Workbook

Sheet - SOMMAIRE -
B4: par The Big Win
B5: www.the-big-win.com
B7: - SOMMAIRE - (cliquez sur les liens ci-dessous pour accéder à chaque chapitre)
B8: LES FORMULES EXCEL
B9: Créer des conditions grâce à la formule SI
B10: Créer des conditions multiples avec la formule ET
B11: Eviter les erreurs dans les résultats grâce la formule SIERREUR
B12: Compter le nombre de valeurs qui correspondent à un ou plusieurs critères avec les formules NB.SI et NB.SI.ENS
B13: Additionner des données en tenant compte d’un critère de sélection avec la formule SOMME.SI
B14: Additionner des données en tant compte de plusieurs critères de sélection grâce à la formule SOMME.SI.ENS
B15: Multiplier plusieurs données entre elles grâce à la formule SOMMEPROD
B16: Faire un grand nombre de multiplications avec PRODUIT et fabriquer sa propre formule PRODUIT.SI
B17: Indiquer la valeur absolue d’une valeur avec la formule ABS
B18: Connaitre les valeurs minimales et maximales d’une série grâce aux formules MIN & MAX
B19: Faire correspondre des nombres à des valeurs ou textes avec CHOISIR
B20: Extraire le jour, le mois ou l’année d’une date
B21: Utiliser des données pour créer une date avec la formule DATE
B22: Utiliser des données pour créer une date avec la formule DATE (avancée)
B23: Passer de mois en mois avec la formule MOIS.DECALER
B24: Définir la fin de chaque mois grâce à la formule FIN.MOIS
B25: Extraire les premiers ou derniers caractères d’une cellule avec DROITE
B26: Extraire les premiers ou derniers caractères d’une cellule avec GAUCHE et NBCAR
B27: Utiliser la formule RECHERCHE
B28: Limite de la formule RECHERCHE
B29: Les formules RECHERCHEV & RECHERCHEH
B30: Limite des formules RECHERCHEV & RECHERCHEH
B31: Piocher des données dans une matrice (formule INDEX)
B32: Piocher des données dans une matrice (EQUIV)
B33: Piocher des données dans une matrice (formule INDEX / EQUIV)
B34: Calculer le Taux de Rentabilité Interne d’un investissement avec la formule TRI
B35: Calculer le Taux de Rentabilité Interne d’un investissement avec la formule TRI.PAIEMENTS
B36: Calculer la Valeur Actuelle Nette d’un investissement grâce à la formule VAN
B37: Calculer la Valeur Actuelle Nette d’un investissement grâce à la formule VAN.PAIEMENTS
B39: LES ASTUCES EXCEL
B40: Modélisation financière simple
B41: Se déplacer rapidement dans un fichier Excel
B42: Les fonctions classiques du collage spécial
B43: Astuces avancées grâce au collage spécial
B44: Retour en arrière et retour en avant
B45: Suivre visuellement les antécédents et les dépendants d’une cellule et d’une fonction
B46: Remplacer un grand nombre de valeurs avec CTRL+H
B47: Personnaliser ses formats de cellules
B48: La conversion des données
B49: Le dollar fige
B50: Figer les volets
B51: Protéger un onglet contre les modifications avec un mot de passe
B52: Insérer un lien interne ou externe pour rendre un fichier plus interactif
B53: Insérer du texte dans une fonction et l’afficher dans une cellule à côté de valeurs numériques
B54: Enregistrer une macro & affilier une macro à un bouton VBA
B55: Créer une macro pour réinitialiser des filtres automatiquement
B56: Nommer des cellules pour rendre des formules plus lisibles et des macros dynamiques
B57: Rendre un tableau plus intelligible avec les mises en forme conditionnelles
B58: Créer une liste déroulante grâce à la validation des données
B59: Ajouter un bouton [+/-] (toupie de contrôle) sur un ou plusieurs onglets
B60: Construire une timeline classique
B61: Comparer des dates avec < et > (exemple 1)
B62: Comparer des dates avec < et > (exemple 2)
B63: Agrandir facilement un tableau
B64: Le tableau croisé dynamique (« TCD » ou « Pivot table » en anglais)
B66: LES MODELES D'ANALYSES FINANCIERES
B67: Introduction au modèle de scoring d’opportunités d’investissement
B68: Créer des graphiques en cascade (bridges)
B69: Afficher des tendances en un clic avec des graphiques sparkline
B70: Valeur cible
B71: Table de données
B72: Analyse d'investissements
B73: Réaliser un football field
B74: Variante de football field

Sheet LES FORMULES EXCEL >>

Sheet Formule SI
A1: Formule SI
B2: >> Retour Sommaire
B4: Produit | C4: Condition
B5: Voiture | C5: =IF(B5="Voiture","Oui","Non") -> Oui
B6: Camion | C6: =IF(B6="Voiture","Oui","Non") -> Non
B7: Moto | C7: Non
B8: Voiture | C8: Oui
B9: Camion | C9: Non
B10: Moto | C10: Non

Sheet Formule ET
A1: Formule ET
B2: >> Retour Sommaire
B4: Produit | C4: Couleur | D4: Condition
B5: Voiture | C5: Bleu | D5: =IF(AND(B5="Voiture",C5="Rouge"),"Vendu","Pas vendu") -> Pas vendu
B6: Camion | C6: Bleu | D6: =IF(AND(B6="Voiture",C6="Rouge"),"Vendu","Pas vendu") -> Pas vendu
B7: Moto | C7: Bleu | D7: Pas vendu
B8: Voiture | C8: Rouge | D8: Vendu
B9: Camion | C9: Rouge | D9: Pas vendu
B10: Moto | C10: Rouge | D10: Pas vendu

Sheet Formule SIERREUR
A1: Formule SIERREUR
B2: >> Retour Sommaire
B4: Produit | C4: Couleur | D4: Quantité | E4: SIERREUR
B5: Voiture | C5: Rouge | D5: 2 | E5: =IFERROR(D5*C5,"Impossible à calculer") -> Impossible à calculer
B6: Camion | C6: Rouge | D6: 3 | E6: =IFERROR(D6*C6,"Impossible à calculer") -> Impossible à calculer
B7: Moto | C7: Rouge | D7: 4 | E7: Impossible à calculer
B8: Voiture | C8: Rouge | D8: 5 | E8: Impossible à calculer
B9: Camion | C9: Rouge | D9: 6 | E9: Impossible à calculer
B10: Moto | C10: Rouge | D10: 7 | E10: Impossible à calculer

Sheet Formule NB.SI & NB.SI.ENS
A1: Compter le nombre de valeurs qui correspondent à un ou plusieurs critères avec les formules NB.SI et NB.SI.ENS
A2: >> Retour Sommaire
B3: PROJET | C3: MOIS | D3: CASH FLOWS | F3: Projets : | G3: A | H3: B
B4: A | C4: Janvier | D4: 221
B5: B | C5: Février | D5: 357 | F5: Formule NB/SI
B6: B | C6: Mars | D6: -312 | F6: Nombre de Cash Flows positifs : | G6: =COUNTIF(D4:D15,">="&0) -> 8 | H6: =NB.SI(D4:D15;">="&0)
B7: B | C7: Avril | D7: 234 | F7: Nombre de Cash Flows négatifs : | G7: =COUNTIF(D4:D15,"<"&0) -> 4 | H7: =NB.SI(D4:D15;"<"&0)
B8: A | C8: Mai | D8: -152 | F8: Cash Flows du projet A : | G8: =COUNTIF(B4:B15,"A") -> 5 | H8: =NB.SI(B4:B15;"A")
B9: A | C9: Juin | D9: 138 | F9: Cash Flows du projet B : | G9: =COUNTIF(B4:B15,H3) -> 7 | H9: =NB.SI(B4:B15;H3)
B10: B | C10: Juillet | D10: 442
B11: A | C11: Août | D11: 497 | F11: Formuler NB.SI.ENS
B12: B | C12: Septembre | D12: 316 | F12: Nombre de Cash Flows positifs du projet A : | G12: =COUNTIFS(B4:B15,"A",D4:D15,">="&0) -> 4 | H12: =NB.SI.ENS(B4:B15;"A";D4:D15;">="&0)
B13: B | C13: Octobre | D13: -335 | F13: Nombre de Cash Flows positifs du projet B : | G13: =COUNTIFS(B4:B15,H3,D4:D15,"<"&0) -> 3 | H13: =NB.SI.ENS(B4:B15;H3;D4:D15;"<"&0)
B14: A | C14: Novembre | D14: 310
B15: B | C15: Décembre | D15: -319

Sheet Formule SOMME.SI
A1: Formule SOMME.SI
B2: >> Retour Sommaire
B4: Produit | C4: Couleur | D4: Quantité
B5: Voiture | C5: Bleu | D5: 2
B6: Camion | C6: Bleu | D6: 3
B7: Moto | C7: Bleu | D7: 4
B8: Voiture | C8: Rouge | D8: 5
B9: Camion | C9: Rouge | D9: 6
B10: Moto | C10: Rouge | D10: 7
B13: Produit | C13: Camion
B14: Nombre de voitures | C14: =SUMIF(B5:B10,C13,D5:D10) -> 9

Sheet Formule SOMME.SI.ENS
A1: Formule SOMME.SI.ENS
B2: >> Retour Sommaire
B4: Produit | C4: Couleur | D4: Quantité
B5: Voiture | C5: Rouge | D5: 2
B6: Camion | C6: Rouge | D6: 3
B7: Moto | C7: Rouge | D7: 4
B8: Voiture | C8: Rouge | D8: 5
B9: Camion | C9: Rouge | D9: 6
B10: Moto | C10: Rouge | D10: 7
B14: Nombre de voitures rouges | C14: =SUMIFS(D5:D10,B5:B10,"Voiture",C5:C10,"Rouge") -> 7
B16: Produit | C16: Voiture
B17: Couleur | C17: Rouge

Sheet Formule SOMMEPROD
A1: Formule SOMMEPROD
B2: >> Retour Sommaire
C4: Produit 1 | D4: Produit 2 | E4: Produit 3
B5: Quantité | C5: 2 | D5: 3 | E5: 4
B6: Prix unitaire | C6: 5 | D6: 6 | E6: 2
B8: Chiffre d'affaires | C8: =SUMPRODUCT(C5:E5,C6:E6) -> 36
B12: Dates | C12: 2021-01-01 | D12: =EDATE(C12,1) -> 2021-02-01 | E12: =EDATE(D12,1) -> 2021-03-01
B13: Date la plus récente | C13: 0 | D13: 0 | E13: 1
B15: Date la plus récente | C15: =SUMPRODUCT(C13:E13,C12:E12) -> 2021-03-01

Sheet Formule PRODUIT
A1: Faire un grand nombre de multiplications avec PRODUIT et fabriquer sa propre formule PRODUIT.SI
A2: >> Retour Sommaire
B3: VAN potentielle | C3: % de succès du projet | D3: Comptabilisation du projet ? | E3: Espérance de VAN | O3: VAN potentielle | P3: % de succès du projet | Q3: Espérance de VAN
B4: 28 | C4: 0.62 | D4: OUI | E4: =PRODUCT(B4:C4,IF(D4="OUI",1,0)) -> 17.36 | F4: =PRODUIT(B4:C4;SI(D4="OUI";1;0)) | O4: 28 | P4: 0.62 | Q4: =PRODUCT(O4:P4) -> 17.36 | R4: =PRODUIT(O4:P4)
B5: 30 | C5: 0.14 | D5: NON | E5: =PRODUCT(B5:C5,IF(D5="OUI",1,0)) -> 0 | O5: 30 | P5: 0.14 | Q5: =PRODUCT(O5:P5) -> 4.2
B6: 21 | C6: 0.02 | D6: OUI | E6: 0.42 | O6: 21 | P6: 0.02 | Q6: 0.42
B7: 9 | C7: 0.36 | D7: OUI | E7: 3.24 | O7: 9 | P7: 0.36 | Q7: 3.24
B8: 5 | C8: 0.8 | D8: NON | E8: 0 | O8: 5 | P8: 0.8 | Q8: 4
B9: 18 | C9: 0.97 | D9: OUI | E9: 17.46 | O9: 18 | P9: 0.97 | Q9: 17.46
B10: 28 | C10: 0.29 | D10: NON | E10: 0 | O10: 28 | P10: 0.29 | Q10: 8.12
B11: 22 | C11: 0.64 | D11: OUI | E11: 14.08 | O11: 22 | P11: 0.64 | Q11: 14.08
B12: TOTAL | E12: =SUM(E4:E11) -> 52.56

Sheet Formule ABS
A1: Indiquer la valeur absolue d’une valeur avec la formule ABS
A2: >> Retour Sommaire
B3: Mois | C3: Virements entrants et sortants | D3: Valeur absolue du virement | E3: Commission bancaire
B4: Janvier | C4: 15 | D4: =ABS(C4) -> 15 | E4: =1%*D4 -> 0.15
B5: Février | C5: -18 | D5: =ABS(C5) -> 18 | E5: =1%*D5 -> 0.18
B6: Mars | C6: 10 | D6: 10 | E6: 0.1
B7: Avril | C7: 7 | D7: 7 | E7: 0.07
B8: Mai | C8: 13 | D8: 13 | E8: 0.13
B9: Juin | C9: 13 | D9: 13 | E9: 0.13
B10: Juillet | C10: 10 | D10: 10 | E10: 0.1
B11: Août | C11: -20 | D11: 20 | E11: 0.2
B12: Septembre | C12: 18 | D12: 18 | E12: 0.18
B13: TOTAL : | C13: =SUM(C4:C12) -> 48 | D13: =SUM(D4:D12) -> 124 | E13: =SUM(E4:E12) -> 1.24

Sheet Formule MIN et MAX
A1: Formules MIN & MAX
B2: >> Retour Sommaire
B4: Produit | C4: Couleur | D4: Quantité
B5: Voiture | C5: Rouge | D5: 2
B6: Camion | C6: Rouge | D6: 3
B7: Moto | C7: Rouge | D7: 4
B8: Voiture | C8: Rouge | D8: 5
B9: Camion | C9: Rouge | D9: 6
B10: Moto | C10: Rouge | D10: 7
B13: Quantité min | C13: =MIN(D5:D10) -> 2
B14: Quantité max | C14: =MAX(D5:D10) -> 7

Sheet Formule CHOISIR
A1: Faire correspondre des nombres à des valeurs ou textes avec CHOISIR
A2: >> Retour Sommaire
B3: Cash Flow | C3: Mois numérique | D3: Mois littéral
B4: 8 | C4: 1 | D4: =CHOOSE(C4,"Janvier","Février","Mars") -> Janvier | E4: =CHOISIR(C4;"Janvier";"Février";"Mars") | F4: Janvier
B5: 13 | C5: 3 | D5: =CHOOSE(C5,$F$4,$F$5,$F$6) -> Mars | E5: =CHOISIR(C5;$F$4;$F$5;$F$6) | F5: Février
B6: 7 | C6: 2 | D6: =CHOOSE(C6,$F$4,$F$5,$F$6) -> Février | F6: Mars
B7: 3 | C7: 1 | D7: Janvier
B8: 12 | C8: 3 | D8: Mars
B9: 14 | C9: 2 | D9: Février

Sheet Extraire jour_mois_an
A1: Extraire le jour, le mois ou l’année d’une date
A2: >> Retour Sommaire
B3: Date complète : | C3: 2021-03-14
B4: Numéro du jour : | C4: =DAY(C3) -> 14 | D4: =JOUR(C3)
B5: Numéro du mois : | C5: =MONTH(C3) -> 3 | D5: =MOIS(C3)
B6: Numéro de l'année : | C6: =YEAR(C3) -> 2021 | D6: =ANNEE(C3)

Sheet Formule DATE
A1: Utiliser des données pour créer une date avec la formule DATE
A2: >> Retour Sommaire
B3: Numéro du jour : | C3: 14
B4: Numéro du mois : | C4: 3
B5: Numéro de l'année : | C5: 2021
B6: Date complète : | C6: =DATE(C5,C4,C3) -> 2021-03-14 | D6: =DATE(C5;C4;C3)

Sheet Formule DATE avancée
A1: Utiliser des données pour créer une date avec la formule DATE
A2: >> Retour Sommaire
B3: Date initiale : | C3: 2021-03-14
B4: Jours à ajouter : | C4: 2
B5: Mois à ajouter : | C5: 4
B6: Année à ajouter : | C6: 5
B7: Date finale : | C7: =DATE(YEAR(C3)+C6,MONTH(C3)+C5,DAY(C3)+C4) -> 2026-07-16 | D7: =DATE(ANNEE(C3)+C6;MOIS(C3)+C5;JOUR(C3)+C4)

Sheet Formule MOIS.DECALER
A1: Passer de mois en mois avec la formule MOIS.DECALER
A2: >> Retour Sommaire
B3: Date de départ : | C3: Formule MOIS.DECALER de 2 mois : | D3: Nombre de jours de décalage :
B4: 2021-01-15 | C4: =EDATE(B4,3) -> 2021-04-15 | D4: =C4-B4 -> 90
B5: 2021-03-15 | C5: =EDATE(B5,3) -> 2021-06-15 | D5: =C5-B5 -> 92
C6: =MOIS.DECALER(B5;3)

Sheet Formule FIN.MOIS
A1: Formule FIN.MOIS
C2: >> Retour Sommaire
C4: Date de départ | D4: Dernier jour du mois précédent | E4: Dernier jour du mois suivant
C5: 2021-03-15 | D5: =EOMONTH(C5,-1) -> 2021-02-28 | E5: =EOMONTH(C5,1) -> 2021-04-30
C7: Date de départ | D7: Dernier jour du mois actuel
C8: 2021-03-15 | D8: =EOMONTH(C8,0) -> 2021-03-31

Sheet Formule DROITE
A1: Extraire les premiers ou derniers caractères d’une cellule avec DROITE, GAUCHE et NBCAR
A2: >> Retour Sommaire
B3: Virements | C3: Extraction de la devise
B4: 11 USD | C4: =RIGHT(B4,3) -> USD | D4: =DROITE(B4;3)
B5: 19 EUR | C5: =RIGHT(B5,3) -> EUR
B6: 6 USD | C6: USD
B7: 13 EUR | C7: EUR
B8: 15 EUR | C8: EUR
B9: 7 GBP | C9: GBP
B10: 9 USD | C10: USD
B11: 17 GBP | C11: GBP

Sheet Formule GAUCHE et NBCAR
A1: Extraire les premiers ou derniers caractères d’une cellule avec DROITE, GAUCHE et NBCAR
A2: >> Retour Sommaire
B3: Virements | C3: Extraction de la devise | D3: Extraction du montant
B4: 11 USD | C4: =RIGHT(B4,3) -> USD | D4: =LEFT(B4,LEN(B4)-4) -> 11 | E4: =GAUCHE(B4;NBCAR(B4)-4)
B5: 19 EUR | C5: =RIGHT(B5,3) -> EUR | D5: =LEFT(B5,LEN(B5)-4) -> 19
B6: 6 USD | C6: USD | D6: 6
B7: 13 EUR | C7: EUR | D7: 13
B8: 15 EUR | C8: EUR | D8: 15
B9: 7 GBP | C9: GBP | D9: 7
B10: 9 USD | C10: USD | D10: 9
B11: 17 GBP | C11: GBP | D11: 17

Sheet Formule RECHERCHE
A1: Formule RECHERCHE
B2: >> Retour Sommaire
B4: Produit | C4: Couleur | E4: Produit | F4: T-shirt | G4: Pantalon | H4: Chaussures | I4: Manteau | J4: Casquette
B5: T-shirt | C5: Bleu | E5: Couleur | F5: Bleu | G5: Jaune | H5: Rouge | I5: Vert | J5: Marron
B6: Pantalon | C6: Jaune
B7: Chaussures | C7: Rouge
B8: Manteau | C8: Vert
B9: Casquette | C9: Marron
E10: Manteau | F10: =LOOKUP(E10,F4:J4,F5:J5) -> Vert
B14: Manteau | C14: =LOOKUP(B14,B5:B9,C5:C9) -> Vert

Sheet Limite Formule RECHERCHE
A1: Limite Formule RECHERCHE
C2: >> Retour Sommaire
B4: # | C4: Produit | D4: Couleur
B5: 1 | C5: T-shirt | D5: Bleu
B6: 2 | C6: Pantalon | D6: Jaune
B7: 3 | C7: Chaussures | D7: Rouge
B8: 5 | C8: Manteau | D8: Vert
B9: 6 | C9: Casquette | D9: Marron
C14: 4 | D14: =LOOKUP(C14,B5:B9,D5:D9) -> Rouge

Sheet Formules RECHERCHEV & H
A1: Formules RECHERCHEV & RECHERCHEH
C2: >> Retour Sommaire
B4: # | C4: Produit | D4: Couleur | F4: Produit | G4: T-shirt | H4: Pantalon | I4: Chaussures | J4: Manteau | K4: Casquette
B5: 1 | C5: T-shirt | D5: Bleu | F5: Couleur | G5: Bleu | H5: Jaune | I5: Rouge | J5: Vert | K5: Marron
B6: 2 | C6: Pantalon | D6: Jaune
B7: 3 | C7: Chaussures | D7: Rouge
B8: 5 | C8: Manteau | D8: Vert
B9: 6 | C9: Casquette | D9: Marron
F10: Manteau | G10: =HLOOKUP(F10,G4:K5,2,TRUE) -> Vert
C14: Manteau | D14: =VLOOKUP(C14,C5:D9,2,TRUE) -> Vert

Sheet Limite Formules RECHERCHEV & H
A1: Limite Formules RECHERCHEV & RECHERCHEH
C2: >> Retour Sommaire
B4: # | C4: Produit | D4: Couleur
B5: 1 | C5: T-shirt | D5: Bleu
B6: 2 | C6: Pantalon | D6: Jaune
B7: 3 | C7: Chaussures | D7: Rouge
B8: 5 | C8: Manteau | D8: Vert
B9: 6 | C9: Casquette | D9: Marron
C14: 4 | D14: =VLOOKUP(C14,B5:D9,3,TRUE) -> Rouge

Sheet Formule INDEX
A1: Piocher des données dans une matrice grâce à INDEX / EQUIV
A2: >> Retour Sommaire
C3: Midi | D3: Soir
B4: Lundi | C4: Légumes | D4: Soupe | F4: =INDEX(B3:D5,2,3) -> Soupe | G4: =INDEX(B3:D5;2;3)
B5: Mardi | C5: Viande | D5: Poisson

Sheet Formule EQUIV
A1: Piocher des données dans une matrice grâce à INDEX / EQUIV
A2: >> Retour Sommaire
B3: JOUR : | D3: =MATCH("Mercredi",B3:B10,0) -> 4 | E3: =EQUIV("Mercredi";B3:B10;0)
B4: Lundi
B5: Mardi
B6: Mercredi
B7: Jeudi
B8: Vendredi
B9: Samedi
B10: Dimanche

Sheet Formule INDEX - EQUIV
A1: Piocher des données dans une matrice grâce à INDEX / EQUIV
A2: >> Retour Sommaire
C3: Ouverture | D3: Fermeture | E3: Mini | F3: Maxi | H3: Jour souhaité : | I3: Mardi | J3: N° de ligne : | K3: =MATCH(I3,B3:B6,0) -> 3 | L3: =EQUIV(I3;B3:B6;0)
B4: Lundi | C4: 15 | D4: 17 | E4: 10 | F4: 19 | H4: Prix souhaité : | I4: Mini | J4: N° de colonne : | K4: =MATCH(I4,B3:F3,0) -> 4 | L4: =EQUIV(I4;B3:F3;0)
B5: Mardi | C5: 18 | D5: 16 | E5: 7 | F5: 19
B6: Mercredi | C6: 15 | D6: 21 | E6: 14 | F6: 23 | H6: Résultat : | I6: =INDEX(B3:F6,MATCH(I3,B3:B6,0),MATCH(I4,B3:F3,0)) -> 7 | J6: =INDEX(B3:F6;EQUIV(I3;B3:B6;0);EQUIV(I4;B3:F3;0))
H8: Résultat : | I8: =INDEX(B5:F5,MATCH(I4,B3:F3,0)) -> 7 | J8: Substitut #1
H10: Résultat : | I10: =INDEX(E3:E6,MATCH(I3,B3:B6,0)) -> 7 | J10: Substitut #2

Sheet Formule TRI
A1: Formule TRI
B2: >> Retour Sommaire
G3: 2021-12-31 | H3: =EDATE(G3,12) -> 2022-12-31 | I3: =EDATE(H3,12) -> 2023-12-31 | J3: =EDATE(I3,12) -> 2024-12-31 | K3: =EDATE(J3,12) -> 2025-12-31
B5: - CAPEX | F5: M€ | G5: -500
B6: + Excédents de trésorerie | F6: M€ | H6: 150 | I6: 150 | J6: 150 | K6: 150
B7: = Flux total | F7: M€ | G7: =SUM(G5:G6) -> -500 | H7: =SUM(H5:H6) -> 150 | I7: 150 | J7: 150 | K7: 150
B9: Taux de Rentabilité Interne | F9: % | G9: =IRR(G7:K7) -> 0.07713847295

Sheet Formule TRI.PAIEMENTS
A1: Formule TRI.PAIEMENTS
B2: >> Retour Sommaire
G3: 2021-12-31 | H3: =EDATE(G3,12) -> 2022-12-31 | I3: =EDATE(H3,12) -> 2023-12-31 | J3: =EDATE(I3,12) -> 2024-12-31 | K3: =EDATE(J3,12) -> 2025-12-31
B5: - CAPEX | F5: M€ | G5: -500
B6: + Excédents de trésorerie | F6: M€ | H6: 150 | I6: 150 | J6: 150 | K6: 150
B7: = Flux total | F7: M€ | G7: =SUM(G5:G6) -> -500 | H7: =SUM(H5:H6) -> 150 | I7: 150 | J7: 150 | K7: 150
B9: Taux de Rentabilité Interne | F9: % | G9: =XIRR(G7:K7,G3:K3) -> 0.07709632814

Sheet Formule VAN
A1: Formule VAN
B2: >> Retour Sommaire
G3: 2021-12-31 | H3: =EDATE(G3,12) -> 2022-12-31 | I3: =EDATE(H3,12) -> 2023-12-31 | J3: =EDATE(I3,12) -> 2024-12-31 | K3: =EDATE(J3,12) -> 2025-12-31
B5: - CAPEX | F5: M€ | G5: -500
B6: + Excédents de trésorerie | F6: M€ | H6: 150 | I6: 150 | J6: 150 | K6: 150
B7: = Flux total | F7: M€ | G7: =SUM(G5:G6) -> -500 | H7: =SUM(H5:H6) -> 150 | I7: 150 | J7: 150 | K7: 150
B9: Taux de Rentabilité Interne | F9: % | G9: =IRR(G7:K7) -> 0.07713847295
B12: WACC | F12: % | G12: 0.03
B14: Valeur Actuelle Nette | F14: M€ | G14: =NPV(G12,G7:K7) -> 55.88811691

Sheet Formule VAN.PAIEMENT
A1: Formule VAN.PAIEMENTS
B2: >> Retour Sommaire
G4: 2021-12-31 | H4: =EDATE(G4,12) -> 2022-12-31 | I4: =EDATE(H4,12) -> 2023-12-31 | J4: =EDATE(I4,12) -> 2024-12-31 | K4: =EDATE(J4,12) -> 2025-12-31
B6: - CAPEX | F6: M€ | G6: -500
B7: + Excédents de trésorerie | F7: M€ | H7: 150 | I7: 150 | J7: 150 | K7: 150
B8: = Flux total | F8: M€ | G8: =SUM(G6:G7) -> -500 | H8: =SUM(H6:H7) -> 150 | I8: 150 | J8: 150 | K8: 150
B10: Taux de Rentabilité Interne | F10: % | G10: =XIRR(G8:K8,G4:K4) -> 0.07709632814
B13: WACC | F13: % | G13: 0.03
B15: Valeur Actuelle Nette | F15: M€ | G15: =XNPV(G13,G8:K8,G4:K4) -> 57.54285181

Sheet LES ASTUCES EXCEL >>

Sheet Modélisation simple (inputs)
A1: Inputs pour modélisation simple
B2: >> Retour Sommaire
D4: 2020 | E4: 2021 | F4: 2022
B5: Quantité | D5: 5 | E5: 6 | F5: 7
B6: Prix | D6: 1 | E6: 2 | F6: 3

Sheet Modélisation simple
A1: Modélisation simple
B2: >> Retour Sommaire
B4: A- Modélisation complexe
D6: 2020 | E6: 2021 | F6: 2022
B7: Chiffre d'affaires | D7: =INDEX('Modélisation simple (inputs)'!$D$5:$F$5,MATCH('Modélisation simple'!D6,'Modélisation simple (inputs)'!$D$4:$F$4,0))*INDEX('Modélisation simple (inputs)'!$D$6:$F$6,MATCH('Modélisation simple'!D6,'Modélisation simple (inputs)'!$D$4:$F$4,0)) -> 5 | E7: =INDEX('Modélisation simple (inputs)'!$D$5:$F$5,MATCH('Modélisation simple'!E6,'Modélisation simple (inputs)'!$D$4:$F$4,0))*INDEX('Modélisation simple (inputs)'!$D$6:$F$6,MATCH('Modélisation simple'!E6,'Modélisation simple (inputs)'!$D$4:$F$4,0)) -> 12 | F7: =INDEX('Modélisation simple (inputs)'!$D$5:$F$5,MATCH('Modélisation simple'!F6,'Modélisation simple (inputs)'!$D$4:$F$4,0))*INDEX('Modélisation simple (inputs)'!$D$6:$F$6,MATCH('Modélisation simple'!F6,'Modélisation simple (inputs)'!$D$4:$F$4,0)) -> 21
B11: B- Modélisation simple
D13: 2020 | E13: 2021 | F13: 2022
B14: Quantité | D14: ='Modélisation simple (inputs)'!D5 -> 5 | E14: ='Modélisation simple (inputs)'!E5 -> 6 | F14: ='Modélisation simple (inputs)'!F5 -> 7
B15: Prix | D15: ='Modélisation simple (inputs)'!D6 -> 1 | E15: ='Modélisation simple (inputs)'!E6 -> 2 | F15: ='Modélisation simple (inputs)'!F6 -> 3
B16: Chiffre d'affaires | D16: =D14*D15 -> 5 | E16: =E14*E15 -> 12 | F16: 21

Sheet Déplacement rapide
A1: Déplacement rapide
C2: >> Retour Sommaire
B4: # | C4: Produit | D4: Quantité | E4: Prix unitaire (€) | F4: Chiffre d'affaires (€) | G4: Chiffre d'affaires (k€)
B5: 1 | C5: A | D5: 10 | E5: 5 | F5: =((D5*E5)) -> 50 | G5: 0.05
B6: =B5+1 -> 2 | C6: B | D6: 5 | E6: 8 | F6: =((D6*E6)) -> 40 | G6: 0.04
B7: =B6+1 -> 3 | C7: C | D7: 8 | E7: 4 | F7: 32 | G7: 0.032
B8: 4 | C8: D | D8: 15 | E8: 5 | F8: 75 | G8: 0.075
B9: 5 | C9: E | D9: 28 | E9: 6 | F9: 168 | G9: 0.168
B10: 6 | C10: F | D10: 10 | E10: 5 | F10: 50
B11: 7 | C11: G | D11: 20 | E11: 2 | F11: 40
B12: 8 | C12: H | D12: 30 | E12: 3 | F12: 90
B13: 9 | C13: I | D13: 45 | E13: 1 | F13: 45
B14: 10 | C14: J | D14: 1 | E14: 4 | F14: 4
B15: 11 | C15: K | D15: 2 | E15: 5 | F15: 10
B16: 12 | C16: L | D16: 3 | E16: 8 | F16: 24
B17: 13 | C17: M | D17: 4 | E17: 9 | F17: 36
B18: 14 | C18: N | D18: 5 | E18: 10 | F18: 50
B19: 15 | C19: O | D19: 6 | E19: 11 | F19: 66
B20: 16 | C20: P | D20: 8 | E20: 4 | F20: 32
B21: 17 | C21: Q | D21: 10 | E21: 8 | F21: 80
B22: 18 | C22: R | D22: 23 | E22: 7 | F22: 161
B23: 19 | C23: S | D23: 45 | E23: 9 | F23: 405
B24: 20 | C24: T | D24: 65 | E24: 6 | F24: 390
B25: 21 | C25: U | D25: 23 | E25: 2 | F25: 46
B26: 22 | C26: V | D26: 1 | E26: 3 | F26: 3
B27: 23 | C27: W | D27: 3 | E27: 1 | F27: 3
B28: 24 | C28: X | D28: 8 | E28: 4 | F28: 32
B29: 25 | C29: Y | D29: 9 | E29: 9 | F29: 81
B30: 26 | C30: Z | D30: 11 | E30: 7 | F30: 77

Sheet Collage spécial classique
A1: Le collage spécial
C2: >> Retour Sommaire
B4: # | C4: Produit | D4: Quantité | E4: Prix unitaire (€) | F4: Chiffre d'affaires (€)
B5: 1 | C5: A | D5: 10 | E5: 5 | F5: =D5*E5 -> 50 | G5: 50
B6: 2 | C6: B | D6: 5 | E6: 8 | F6: =D6*E6 -> 40
B7: 3 | C7: C | D7: 8 | E7: 4
B8: 4 | C8: D | D8: 15 | E8: 5
B9: 5 | C9: E | D9: 28 | E9: 6

Sheet Collage spécial avancé
A1: Astuces avancées grâce au collage spécial
C2: >> Retour Sommaire
B4: # | C4: Produit | D4: Quantité | E4: Prix unitaire (€) | F4: Chiffre d'affaires (€) | G4: Chiffre d'affaires (k€)
B5: 1 | C5: A | D5: 10 | E5: 5 | F5: =((D5*E5)+50)-50 -> 50 | G5: 0.05
B6: 2 | C6: B | D6: 5 | E6: 8 | F6: =((D6*E6)+50)-50 -> 40 | G6: 0.04
B7: 3 | C7: C | D7: 8 | E7: 4 | F7: =((D7*E7)+50)-50 -> 32 | G7: 0.032
B8: 4 | C8: D | D8: 15 | E8: 5 | F8: =((D8*E8)+50)-50 -> 75 | G8: 0.075
B9: 5 | C9: E | D9: 28 | E9: 6 | F9: =((D9*E9)+50)-50 -> 168 | G9: 0.168
C13: Donnée à ajouter | D13: 50
C15: Donnée à soustraire | D15: 50
C17: Donnée à multiplier | D17: -1
C19: Donnée à multiplier | D19: 1000

Sheet Retour en arrière
A1: Retour en arrière
C2: >> Retour Sommaire
B4: # | C4: Produit | D4: Quantité | E4: Prix unitaire (€) | F4: Chiffre d'affaires (€) | G4: Chiffre d'affaires (k€)
B5: 1 | C5: A | D5: 10 | E5: 5 | F5: =((D5*E5)) -> 50 | G5: 0.05
B6: =B5+1 -> 2 | C6: B | D6: 5 | E6: 8 | F6: =((D6*E6)) -> 40 | G6: 0.04
B7: =B6+1 -> 3 | C7: C | D7: 8 | E7: 4 | F7: 32 | G7: 0.032
B8: 4 | C8: D | D8: 15 | E8: 5 | F8: 75 | G8: 0.075
B9: 5 | C9: E | D9: 28 | E9: 6 | F9: 168 | G9: 0.168

Sheet Antécédents et Dépendants
A1: Afficher les antécédents et dépendants d'une cellule
A2: >> Retour Sommaire
B3: Données de l'emprunt | E3: Année | F3: Dette début de période | G3: Remboursement du capital | H3: Intérêts payés | I3: Mensualité totale | J3: Dette fin de période
B4: Taux d'intérêts : | C4: 0.015 | E4: 2010 | F4: =C6 -> 50000 | G4: =I4-H4 -> 4671.708893 | H4: =-IPMT($C$4,COUNT($E$4:E4),$C$5,$C$6) -> 750 | I4: =-PMT($C$4,$C$5,$C$6) -> 5421.708893 | J4: =F4-G4 -> 45328.29111
B5: Nombre d'années : | C5: 10 | E5: 2011 | F5: =J4 -> 45328.29111 | G5: =I5-H5 -> 4741.784527 | H5: =-IPMT($C$4,COUNT($E$4:E5),$C$5,$C$6) -> 679.9243666 | I5: =-PMT($C$4,$C$5,$C$6) -> 5421.708893 | J5: =F5-G5 -> 40586.50658
B6: Montant emprunté : | C6: 50000 | E6: 2012 | F6: =J5 -> 40586.50658 | G6: =I6-H6 -> 4812.911295 | H6: =-IPMT($C$4,COUNT($E$4:E6),$C$5,$C$6) -> 608.7975987 | I6: =-PMT($C$4,$C$5,$C$6) -> 5421.708893 | J6: =F6-G6 -> 35773.59529
E7: 2013 | F7: 35773.59529 | G7: 4885.104964 | H7: =-IPMT($C$4,COUNT($E$4:E7),$C$5,$C$6) -> 536.6039293 | I7: 5421.708893 | J7: 30888.49032
E8: 2014 | F8: 30888.49032 | G8: 4958.381538 | H8: =-IPMT($C$4,COUNT($E$4:E8),$C$5,$C$6) -> 463.3273548 | I8: 5421.708893 | J8: 25930.10878
E9: 2015 | F9: 25930.10878 | G9: 5032.757262 | H9: =-IPMT($C$4,COUNT($E$4:E9),$C$5,$C$6) -> 388.9516317 | I9: 5421.708893 | J9: 20897.35152
E10: 2016 | F10: 20897.35152 | G10: 5108.24862 | H10: =-IPMT($C$4,COUNT($E$4:E10),$C$5,$C$6) -> 313.4602728 | I10: 5421.708893 | J10: 15789.1029
E11: 2017 | F11: 15789.1029 | G11: 5184.87235 | H11: =-IPMT($C$4,COUNT($E$4:E11),$C$5,$C$6) -> 236.8365435 | I11: 5421.708893 | J11: 10604.23055
E12: 2018 | F12: 10604.23055 | G12: 5262.645435 | H12: =-IPMT($C$4,COUNT($E$4:E12),$C$5,$C$6) -> 159.0634583 | I12: 5421.708893 | J12: 5341.585117
E13: 2019 | F13: 5341.585117 | G13: 5341.585117 | H13: =-IPMT($C$4,COUNT($E$4:E13),$C$5,$C$6) -> 80.12377675 | I13: 5421.708893 | J13: 0
E14: 2020 | F14: 0 | G14: 0 | H14: 0 | I14: 0 | J14: 0

Sheet Remplacer avec CTRL + H
A1: Remplacer un grand nombre de valeurs avec CTRL+H
A2: >> Retour Sommaire
C3: 2.83 | D3: CTRL+H | E3: 2.83
C4: 4.9 | D4: Remplacer "." par "," | E4: 4.9
C5: 8.37 | D5: ==> | E5: 8.37
C6: 8.92 | E6: 8.92
C7: 1.83 | E7: 1.83
C8: 3.97 | E8: 3.97
C9: 6.19 | E9: 6.19
C10: 6.52 | E10: 6.52
C11: 9.99 | E11: 9.99
C12: 3.24 | E12: 3.24
C13: 4.87 | E13: 4.87
C14: 6.37 | E14: 6.37
C15: 3.89 | E15: 3.89
C16: 9.74 | E16: 9.74
C17: 2.79 | E17: 2.79
C18: 4.21 | E18: 4.21
C19: 4.69 | E19: 4.69
C20: 5.8 | E20: 5.8
C21: 1.88 | E21: 1.88
C22: 9.14 | E22: 9.14
C23: 1.37 | E23: 1.37
C24: 4.12 | E24: 4.12
C25: 8.24 | E25: 8.24
C26: 5.44 | E26: 5.44
C27: 8.37 | E27: 8.37
C28: 5.46 | E28: 5.46
C29: 7.33 | E29: 7.33
C30: 7.61 | E30: 7.61

Sheet Format cellules
A1: Personnaliser ses formats de cellule
A2: >> Retour Sommaire
B3: Année | C3: 2015 | D3: 2016 | E3: 2017 | F3: 2018 | G3: 2019 | H3: 2020
B4: Production électrique (MWh) | C4: 0 | D4: 1212 | E4: 1254 | F4: 1211 | G4: 1270 | H4: 1266
B5: Prix (k€/MWh) | C5: 50 | D5: -44 | E5: 47 | F5: 50 | G5: 46 | H5: 45
B6: Chiffre d'affaires* (k€) | C6: =C4*C5 -> 0 | D6: =D4*D5 -> -53328 | E6: 58938 | F6: 60550 | G6: 58420 | H6: 56970
B8: *Le chiffre d'affaires est calculé en faisant le produit de la productioin électrique en MWh et du prix de l'électricité en k€/MWh

Sheet Conversion des données
A1: Convertir des données
C2: >> Retour Sommaire
C4: Extract | D4: Produit | E4: Quantité | F4: Prix
C5: A, 10, 5 | D5: A | E5: 10 | F5: 5
C6: B, 5, 8 | D6: B | E6: 5 | F6: 8
C7: C, 8, 4 | D7: C | E7: 8 | F7: 4
C8: D, 15, 5 | D8: D | E8: 15 | F8: 5
C9: E, 28, 6 | D9: E | E9: 28 | F9: 6

Sheet Le dollar fige
A1: Le dollar fige
C2: >> Retour Sommaire
C5: 5 | D5: 3 | F5: =SUM($C$5:$D$5) -> 8 | G5: =SUM($C$5:$D$5) -> 8
C6: 2 | F6: =SUM($C$5:$D$5) -> 8

Sheet Figer les volets
A1: Figer les volets
C2: >> Retour Sommaire
B4: A- | C4: Timeline
C6: Period | I6: 1 | J6: 2 | K6: 3 | L6: 4 | M6: 5 | N6: 6 | O6: 7 | P6: 8 | Q6: 9 | R6: 10 | S6: 11 | T6: 12 | U6: 13 | V6: 14 | W6: 15 | X6: 16 | Y6: 17 | Z6: 18 | AA6: 19 | AB6: 20 | AC6: 21 | AD6: 22 | AE6: 23 | AF6: 24 | AG6: 25 | AH6: 26 | AI6: 27 | AJ6: 28 | AK6: 29 | AL6: 30 | AM6: 31 | AN6: 32 | AO6: 33 | AP6: 34 | AQ6: 35 | AR6: 36 | AS6: 37 | AT6: 38 | AU6: 39 | AV6: 40 | AW6: 41 | AX6: 42 | AY6: 43 | AZ6: 44 | BA6: 45 | BB6: 46 | BC6: 47 | BD6: 48 | BE6: 49 | BF6: 50 | BG6: 51 | BH6: 52 | BI6: 53 | BJ6: 54 | BK6: 55 | BL6: 56 | BM6: 57 | BN6: 58 | BO6: 59 | BP6: 60 | BQ6: 61 | BR6: 62 | BS6: 63 | BT6: 64 | BU6: 65 | BV6: 66 | BW6: 67 | BX6: 68 | BY6: 69 | BZ6: 70 | CA6: 71 | CB6: 72 | CC6: 73 | CD6: 74 | CE6: 75 | CF6: 76 | CG6: 77 | CH6: 78 | CI6: 79 | CJ6: 80 | CK6: 81 | CL6: 82 | CM6: 83 | CN6: 84 | CO6: 85 | CP6: 86 | CQ6: 87 | CR6: 88 | CS6: 89 | CT6: 90 | CU6: 91 | CV6: 92 | CW6: 93 | CX6: 94 | CY6: 95 | CZ6: 96 | DA6: 97 | DB6: 98 | DC6: 99 | DD6: 100 | DE6: 101 | DF6: 102 | DG6: 103 | DH6: 104 | DI6: 105 | DJ6: 106 | DK6: 107 | DL6: 108 | DM6: 109 | DN6: 110 | DO6: 111 | DP6: 112 | DQ6: 113 | DR6: 114 | DS6: 115 | DT6: 116 | DU6: 117 | DV6: 118 | DW6: 119 | DX6: 120 | DY6: 121 | DZ6: 122 | EA6: 123 | EB6: 124 | EC6: 125 | ED6: 126 | EE6: 127 | EF6: 128 | EG6: 129 | EH6: 130 | EI6: 131 | EJ6: 132 | EK6: 133 | EL6: 134 | EM6: 135 | EN6: 136 | EO6: 137 | EP6: 138 | EQ6: 139 | ER6: 140 | ES6: 141 | ET6: 142 | EU6: 143 | EV6: 144 | EW6: 145 | EX6: 146 | EY6: 147 | EZ6: 148 | FA6: 149 | FB6: 150 | FC6: 151 | FD6: 152 | FE6: 153 | FF6: 154 | FG6: 155 | FH6: 156 | FI6: 157 | FJ6: 158 | FK6: 159 | FL6: 160 | FM6: 161 | FN6: 162 | FO6: 163 | FP6: 164 | FQ6: 165 | FR6: 166 | FS6: 167 | FT6: 168 | FU6: 169 | FV6: 170 | FW6: 171 | FX6: 172 | FY6: 173 | FZ6: 174 | GA6: 175 | GB6: 176 | GC6: 177 | GD6: 178 | GE6: 179 | GF6: 180 | GG6: 181 | GH6: 182 | GI6: 183 | GJ6: 184 | GK6: 185 | GL6: 186 | GM6: 187 | GN6: 188 | GO6: 189 | GP6: 190 | GQ6: 191 | GR6: 192 | GS6: 193 | GT6: 194 | GU6: 195 | GV6: 196 | GW6: 197 | GX6: 198 | GY6: 199 | GZ6: 200 | HA6: 201 | HB6: 202 | HC6: 203 | HD6: 204 | HE6: 205 | HF6: 206 | HG6: 207 | HH6: 208 | HI6: 209 | HJ6: 210 | HK6: 211 | HL6: 212 | HM6: 213 | HN6: 214 | HO6: 215 | HP6: 216 | HQ6: 217 | HR6: 218 | HS6: 219 | HT6: 220 | HU6: 221 | HV6: 222 | HW6: 223 | HX6: 224 | HY6: 225 | HZ6: 226 | IA6: 227 | IB6: 228 | IC6: 229 | ID6: 230 | IE6: 231 | IF6: 232 | IG6: 233 | IH6: 234 | II6: 235 | IJ6: 236 | IK6: 237 | IL6: 238 | IM6: 239 | IN6: 240 | IO6: 241 | IP6: 242 | IQ6: 243 | IR6: 244 | IS6: 245 | IT6: 246 | IU6: 247 | IV6: 248 | IW6: 249 | IX6: 250 | IY6: 251 | IZ6: 252 | JA6: 253 | JB6: 254 | JC6: 255 | JD6: 256 | JE6: 257 | JF6: 258
C7: Month in period | I7: 1 | J7: 1 | K7: 1 | L7: 1 | M7: 1 | N7: 1 | O7: 1 | P7: 1 | Q7: 1 | R7: 1 | S7: 1 | T7: 1 | U7: 1 | V7: 1 | W7: 1 | X7: 1 | Y7: 1 | Z7: 1 | AA7: 1 | AB7: 1 | AC7: 1 | AD7: 1 | AE7: 1 | AF7: 1 | AG7: 1 | AH7: 1 | AI7: 1 | AJ7: 1 | AK7: 1 | AL7: 1 | AM7: 1 | AN7: 1 | AO7: 1 | AP7: 1 | AQ7: 1 | AR7: 1 | AS7: 1 | AT7: 1 | AU7: 1 | AV7: 1 | AW7: 1 | AX7: 1 | AY7: 1 | AZ7: 1 | BA7: 1 | BB7: 1 | BC7: 1 | BD7: 1 | BE7: 1 | BF7: 1 | BG7: 1 | BH7: 1 | BI7: 1 | BJ7: 1 | BK7: 1 | BL7: 1 | BM7: 1 | BN7: 1 | BO7: 1 | BP7: 1 | BQ7: 1 | BR7: 1 | BS7: 1 | BT7: 1 | BU7: 1 | BV7: 1 | BW7: 1 | BX7: 1 | BY7: 1 | BZ7: 1 | CA7: 1 | CB7: 1 | CC7: 1 | CD7: 1 | CE7: 1 | CF7: 1 | CG7: 1 | CH7: 1 | CI7: 1 | CJ7: 1 | CK7: 1 | CL7: 1 | CM7: 1 | CN7: 1 | CO7: 1 | CP7: 1 | CQ7: 1 | CR7: 1 | CS7: 1 | CT7: 1 | CU7: 1 | CV7: 1 | CW7: 1 | CX7: 1 | CY7: 1 | CZ7: 1 | DA7: 1 | DB7: 1 | DC7: 1 | DD7: 1 | DE7: 1 | DF7: 1 | DG7: 1 | DH7: 1 | DI7: 1 | DJ7: 1 | DK7: 1 | DL7: 1 | DM7: 1 | DN7: 1 | DO7: 1 | DP7: 1 | DQ7: 1 | DR7: 1 | DS7: 1 | DT7: 1 | DU7: 1 | DV7: 1 | DW7: 1 | DX7: 1 | DY7: 1 | DZ7: 1 | EA7: 1 | EB7: 1 | EC7: 1 | ED7: 1 | EE7: 1 | EF7: 1 | EG7: 1 | EH7: 1 | EI7: 1 | EJ7: 1 | EK7: 1 | EL7: 1 | EM7: 1 | EN7: 1 | EO7: 1 | EP7: 1 | EQ7: 1 | ER7: 1 | ES7: 1 | ET7: 1 | EU7: 1 | EV7: 1 | EW7: 1 | EX7: 1 | EY7: 1 | EZ7: 1 | FA7: 1 | FB7: 1 | FC7: 1 | FD7: 1 | FE7: 1 | FF7: 1 | FG7: 1 | FH7: 1 | FI7: 1 | FJ7: 1 | FK7: 1 | FL7: 1 | FM7: 1 | FN7: 1 | FO7: 1 | FP7: 1 | FQ7: 1 | FR7: 1 | FS7: 1 | FT7: 1 | FU7: 1 | FV7: 1 | FW7: 1 | FX7: 1 | FY7: 1 | FZ7: 1 | GA7: 1 | GB7: 1 | GC7: 1 | GD7: 1 | GE7: 1 | GF7: 1 | GG7: 1 | GH7: 1 | GI7: 1 | GJ7: 1 | GK7: 1 | GL7: 1 | GM7: 1 | GN7: 1 | GO7: 1 | GP7: 1 | GQ7: 1 | GR7: 1 | GS7: 1 | GT7: 1 | GU7: 1 | GV7: 1 | GW7: 1 | GX7: 1 | GY7: 1 | GZ7: 1 | HA7: 1 | HB7: 1 | HC7: 1 | HD7: 1 | HE7: 1 | HF7: 1 | HG7: 1 | HH7: 1 | HI7: 1 | HJ7: 1 | HK7: 1 | HL7: 1 | HM7: 1 | HN7: 1 | HO7: 1 | HP7: 1 | HQ7: 1 | HR7: 1 | HS7: 1 | HT7: 1 | HU7: 1 | HV7: 1 | HW7: 1 | HX7: 1 | HY7: 1 | HZ7: 1 | IA7: 1 | IB7: 1 | IC7: 1 | ID7: 1 | IE7: 1 | IF7: 1 | IG7: 1 | IH7: 1 | II7: 1 | IJ7: 1 | IK7: 1 | IL7: 1 | IM7: 1 | IN7: 1 | IO7: 1 | IP7: 1 | IQ7: 1 | IR7: 1 | IS7: 1 | IT7: 1 | IU7: 1 | IV7: 1 | IW7: 1 | IX7: 1 | IY7: 1 | IZ7: 1 | JA7: 1 | JB7: 1 | JC7: 1 | JD7: 1 | JE7: 1 | JF7: 1
C8: Start date | I8: 2021-07-01 | J8: 2021-08-01 | K8: 2021-09-01 | L8: 2021-10-01 | M8: 2021-11-01 | N8: 2021-12-01 | O8: 2022-01-01 | P8: 2022-02-01 | Q8: 2022-03-01 | R8: 2022-04-01 | S8: 2022-05-01 | T8: 2022-06-01 | U8: 2022-07-01 | V8: 2022-08-01 | W8: 2022-09-01 | X8: 2022-10-01 | Y8: 2022-11-01 | Z8: 2022-12-01 | AA8: 2023-01-01 | AB8: 2023-02-01 | AC8: 2023-03-01 | AD8: 2023-04-01 | AE8: 2023-05-01 | AF8: 2023-06-01 | AG8: 2023-07-01 | AH8: 2023-08-01 | AI8: 2023-09-01 | AJ8: 2023-10-01 | AK8: 2023-11-01 | AL8: 2023-12-01 | AM8: 2024-01-01 | AN8: 2024-02-01 | AO8: 2024-03-01 | AP8: 2024-04-01 | AQ8: 2024-05-01 | AR8: 2024-06-01 | AS8: 2024-07-01 | AT8: 2024-08-01 | AU8: 2024-09-01 | AV8: 2024-10-01 | AW8: 2024-11-01 | AX8: 2024-12-01 | AY8: 2025-01-01 | AZ8: 2025-02-01 | BA8: 2025-03-01 | BB8: 2025-04-01 | BC8: 2025-05-01 | BD8: 2025-06-01 | BE8: 2025-07-01 | BF8: 2025-08-01 | BG8: 2025-09-01 | BH8: 2025-10-01 | BI8: 2025-11-01 | BJ8: 2025-12-01 | BK8: 2026-01-01 | BL8: 2026-02-01 | BM8: 2026-03-01 | BN8: 2026-04-01 | BO8: 2026-05-01 | BP8: 2026-06-01 | BQ8: 2026-07-01 | BR8: 2026-08-01 | BS8: 2026-09-01 | BT8: 2026-10-01 | BU8: 2026-11-01 | BV8: 2026-12-01 | BW8: 2027-01-01 | BX8: 2027-02-01 | BY8: 2027-03-01 | BZ8: 2027-04-01 | CA8: 2027-05-01 | CB8: 2027-06-01 | CC8: 2027-07-01 | CD8: 2027-08-01 | CE8: 2027-09-01 | CF8: 2027-10-01 | CG8: 2027-11-01 | CH8: 2027-12-01 | CI8: 2028-01-01 | CJ8: 2028-02-01 | CK8: 2028-03-01 | CL8: 2028-04-01 | CM8: 2028-05-01 | CN8: 2028-06-01 | CO8: 2028-07-01 | CP8: 2028-08-01 | CQ8: 2028-09-01 | CR8: 2028-10-01 | CS8: 2028-11-01 | CT8: 2028-12-01 | CU8: 2029-01-01 | CV8: 2029-02-01 | CW8: 2029-03-01 | CX8: 2029-04-01 | CY8: 2029-05-01 | CZ8: 2029-06-01 | DA8: 2029-07-01 | DB8: 2029-08-01 | DC8: 2029-09-01 | DD8: 2029-10-01 | DE8: 2029-11-01 | DF8: 2029-12-01 | DG8: 2030-01-01 | DH8: 2030-02-01 | DI8: 2030-03-01 | DJ8: 2030-04-01 | DK8: 2030-05-01 | DL8: 2030-06-01 | DM8: 2030-07-01 | DN8: 2030-08-01 | DO8: 2030-09-01 | DP8: 2030-10-01 | DQ8: 2030-11-01 | DR8: 2030-12-01 | DS8: 2031-01-01 | DT8: 2031-02-01 | DU8: 2031-03-01 | DV8: 2031-04-01 | DW8: 2031-05-01 | DX8: 2031-06-01 | DY8: 2031-07-01 | DZ8: 2031-08-01 | EA8: 2031-09-01 | EB8: 2031-10-01 | EC8: 2031-11-01 | ED8: 2031-12-01 | EE8: 2032-01-01 | EF8: 2032-02-01 | EG8: 2032-03-01 | EH8: 2032-04-01 | EI8: 2032-05-01 | EJ8: 2032-06-01 | EK8: 2032-07-01 | EL8: 2032-08-01 | EM8: 2032-09-01 | EN8: 2032-10-01 | EO8: 2032-11-01 | EP8: 2032-12-01 | EQ8: 2033-01-01 | ER8: 2033-02-01 | ES8: 2033-03-01 | ET8: 2033-04-01 | EU8: 2033-05-01 | EV8: 2033-06-01 | EW8: 2033-07-01 | EX8: 2033-08-01 | EY8: 2033-09-01 | EZ8: 2033-10-01 | FA8: 2033-11-01 | FB8: 2033-12-01 | FC8: 2034-01-01 | FD8: 2034-02-01 | FE8: 2034-03-01 | FF8: 2034-04-01 | FG8: 2034-05-01 | FH8: 2034-06-01 | FI8: 2034-07-01 | FJ8: 2034-08-01 | FK8: 2034-09-01 | FL8: 2034-10-01 | FM8: 2034-11-01 | FN8: 2034-12-01 | FO8: 2035-01-01 | FP8: 2035-02-01 | FQ8: 2035-03-01 | FR8: 2035-04-01 | FS8: 2035-05-01 | FT8: 2035-06-01 | FU8: 2035-07-01 | FV8: 2035-08-01 | FW8: 2035-09-01 | FX8: 2035-10-01 | FY8: 2035-11-01 | FZ8: 2035-12-01 | GA8: 2036-01-01 | GB8: 2036-02-01 | GC8: 2036-03-01 | GD8: 2036-04-01 | GE8: 2036-05-01 | GF8: 2036-06-01 | GG8: 2036-07-01 | GH8: 2036-08-01 | GI8: 2036-09-01 | GJ8: 2036-10-01 | GK8: 2036-11-01 | GL8: 2036-12-01 | GM8: 2037-01-01 | GN8: 2037-02-01 | GO8: 2037-03-01 | GP8: 2037-04-01 | GQ8: 2037-05-01 | GR8: 2037-06-01 | GS8: 2037-07-01 | GT8: 2037-08-01 | GU8: 2037-09-01 | GV8: 2037-10-01 | GW8: 2037-11-01 | GX8: 2037-12-01 | GY8: 2038-01-01 | GZ8: 2038-02-01 | HA8: 2038-03-01 | HB8: 2038-04-01 | HC8: 2038-05-01 | HD8: 2038-06-01 | HE8: 2038-07-01 | HF8: 2038-08-01 | HG8: 2038-09-01 | HH8: 2038-10-01 | HI8: 2038-11-01 | HJ8: 2038-12-01 | HK8: 2039-01-01 | HL8: 2039-02-01 | HM8: 2039-03-01 | HN8: 2039-04-01 | HO8: 2039-05-01 | HP8: 2039-06-01 | HQ8: 2039-07-01 | HR8: 2039-08-01 | HS8: 2039-09-01 | HT8: 2039-10-01 | HU8: 2039-11-01 | HV8: 2039-12-01 | HW8: 2040-01-01 | HX8: 2040-02-01 | HY8: 2040-03-01 | HZ8: 2040-04-01 | IA8: 2040-05-01 | IB8: 2040-06-01 | IC8: 2040-07-01 | ID8: 2040-08-01 | IE8: 2040-09-01 | IF8: 2040-10-01 | IG8: 2040-11-01 | IH8: 2040-12-01 | II8: 2041-01-01 | IJ8: 2041-02-01 | IK8: 2041-03-01 | IL8: 2041-04-01 | IM8: 2041-05-01 | IN8: 2041-06-01 | IO8: 2041-07-01 | IP8: 2041-08-01 | IQ8: 2041-09-01 | IR8: 2041-10-01 | IS8: 2041-11-01 | IT8: 2041-12-01 | IU8: 2042-01-01 | IV8: 2042-02-01 | IW8: 2042-03-01 | IX8: 2042-04-01 | IY8: 2042-05-01 | IZ8: 2042-06-01 | JA8: 2042-07-01 | JB8: 2042-08-01 | JC8: 2042-09-01 | JD8: 2042-10-01 | JE8: 2042-11-01 | JF8: 2042-12-01
C9: End date | H9: 2021-06-30 | I9: 2021-07-31 | J9: 2021-08-31 | K9: 2021-09-30 | L9: 2021-10-31 | M9: 2021-11-30 | N9: 2021-12-31 | O9: 2022-01-31 | P9: 2022-02-28 | Q9: 2022-03-31 | R9: 2022-04-30 | S9: 2022-05-31 | T9: 2022-06-30 | U9: 2022-07-31 | V9: 2022-08-31 | W9: 2022-09-30 | X9: 2022-10-31 | Y9: 2022-11-30 | Z9: 2022-12-31 | AA9: 2023-01-31 | AB9: 2023-02-28 | AC9: 2023-03-31 | AD9: 2023-04-30 | AE9: 2023-05-31 | AF9: 2023-06-30 | AG9: 2023-07-31 | AH9: 2023-08-31 | AI9: 2023-09-30 | AJ9: 2023-10-31 | AK9: 2023-11-30 | AL9: 2023-12-31 | AM9: 2024-01-31 | AN9: 2024-02-29 | AO9: 2024-03-31 | AP9: 2024-04-30 | AQ9: 2024-05-31 | AR9: 2024-06-30 | AS9: 2024-07-31 | AT9: 2024-08-31 | AU9: 2024-09-30 | AV9: 2024-10-31 | AW9: 2024-11-30 | AX9: 2024-12-31 | AY9: 2025-01-31 | AZ9: 2025-02-28 | BA9: 2025-03-31 | BB9: 2025-04-30 | BC9: 2025-05-31 | BD9: 2025-06-30 | BE9: 2025-07-31 | BF9: 2025-08-31 | BG9: 2025-09-30 | BH9: 2025-10-31 | BI9: 2025-11-30 | BJ9: 2025-12-31 | BK9: 2026-01-31 | BL9: 2026-02-28 | BM9: 2026-03-31 | BN9: 2026-04-30 | BO9: 2026-05-31 | BP9: 2026-06-30 | BQ9: 2026-07-31 | BR9: 2026-08-31 | BS9: 2026-09-30 | BT9: 2026-10-31 | BU9: 2026-11-30 | BV9: 2026-12-31 | BW9: 2027-01-31 | BX9: 2027-02-28 | BY9: 2027-03-31 | BZ9: 2027-04-30 | CA9: 2027-05-31 | CB9: 2027-06-30 | CC9: 2027-07-31 | CD9: 2027-08-31 | CE9: 2027-09-30 | CF9: 2027-10-31 | CG9: 2027-11-30 | CH9: 2027-12-31 | CI9: 2028-01-31 | CJ9: 2028-02-29 | CK9: 2028-03-31 | CL9: 2028-04-30 | CM9: 2028-05-31 | CN9: 2028-06-30 | CO9: 2028-07-31 | CP9: 2028-08-31 | CQ9: 2028-09-30 | CR9: 2028-10-31 | CS9: 2028-11-30 | CT9: 2028-12-31 | CU9: 2029-01-31 | CV9: 2029-02-28 | CW9: 2029-03-31 | CX9: 2029-04-30 | CY9: 2029-05-31 | CZ9: 2029-06-30 | DA9: 2029-07-31 | DB9: 2029-08-31 | DC9: 2029-09-30 | DD9: 2029-10-31 | DE9: 2029-11-30 | DF9: 2029-12-31 | DG9: 2030-01-31 | DH9: 2030-02-28 | DI9: 2030-03-31 | DJ9: 2030-04-30 | DK9: 2030-05-31 | DL9: 2030-06-30 | DM9: 2030-07-31 | DN9: 2030-08-31 | DO9: 2030-09-30 | DP9: 2030-10-31 | DQ9: 2030-11-30 | DR9: 2030-12-31 | DS9: 2031-01-31 | DT9: 2031-02-28 | DU9: 2031-03-31 | DV9: 2031-04-30 | DW9: 2031-05-31 | DX9: 2031-06-30 | DY9: 2031-07-31 | DZ9: 2031-08-31 | EA9: 2031-09-30 | EB9: 2031-10-31 | EC9: 2031-11-30 | ED9: 2031-12-31 | EE9: 2032-01-31 | EF9: 2032-02-29 | EG9: 2032-03-31 | EH9: 2032-04-30 | EI9: 2032-05-31 | EJ9: 2032-06-30 | EK9: 2032-07-31 | EL9: 2032-08-31 | EM9: 2032-09-30 | EN9: 2032-10-31 | EO9: 2032-11-30 | EP9: 2032-12-31 | EQ9: 2033-01-31 | ER9: 2033-02-28 | ES9: 2033-03-31 | ET9: 2033-04-30 | EU9: 2033-05-31 | EV9: 2033-06-30 | EW9: 2033-07-31 | EX9: 2033-08-31 | EY9: 2033-09-30 | EZ9: 2033-10-31 | FA9: 2033-11-30 | FB9: 2033-12-31 | FC9: 2034-01-31 | FD9: 2034-02-28 | FE9: 2034-03-31 | FF9: 2034-04-30 | FG9: 2034-05-31 | FH9: 2034-06-30 | FI9: 2034-07-31 | FJ9: 2034-08-31 | FK9: 2034-09-30 | FL9: 2034-10-31 | FM9: 2034-11-30 | FN9: 2034-12-31 | FO9: 2035-01-31 | FP9: 2035-02-28 | FQ9: 2035-03-31 | FR9: 2035-04-30 | FS9: 2035-05-31 | FT9: 2035-06-30 | FU9: 2035-07-31 | FV9: 2035-08-31 | FW9: 2035-09-30 | FX9: 2035-10-31 | FY9: 2035-11-30 | FZ9: 2035-12-31 | GA9: 2036-01-31 | GB9: 2036-02-29 | GC9: 2036-03-31 | GD9: 2036-04-30 | GE9: 2036-05-31 | GF9: 2036-06-30 | GG9: 2036-07-31 | GH9: 2036-08-31 | GI9: 2036-09-30 | GJ9: 2036-10-31 | GK9: 2036-11-30 | GL9: 2036-12-31 | GM9: 2037-01-31 | GN9: 2037-02-28 | GO9: 2037-03-31 | GP9: 2037-04-30 | GQ9: 2037-05-31 | GR9: 2037-06-30 | GS9: 2037-07-31 | GT9: 2037-08-31 | GU9: 2037-09-30 | GV9: 2037-10-31 | GW9: 2037-11-30 | GX9: 2037-12-31 | GY9: 2038-01-31 | GZ9: 2038-02-28 | HA9: 2038-03-31 | HB9: 2038-04-30 | HC9: 2038-05-31 | HD9: 2038-06-30 | HE9: 2038-07-31 | HF9: 2038-08-31 | HG9: 2038-09-30 | HH9: 2038-10-31 | HI9: 2038-11-30 | HJ9: 2038-12-31 | HK9: 2039-01-31 | HL9: 2039-02-28 | HM9: 2039-03-31 | HN9: 2039-04-30 | HO9: 2039-05-31 | HP9: 2039-06-30 | HQ9: 2039-07-31 | HR9: 2039-08-31 | HS9: 2039-09-30 | HT9: 2039-10-31 | HU9: 2039-11-30 | HV9: 2039-12-31 | HW9: 2040-01-31 | HX9: 2040-02-29 | HY9: 2040-03-31 | HZ9: 2040-04-30 | IA9: 2040-05-31 | IB9: 2040-06-30 | IC9: 2040-07-31 | ID9: 2040-08-31 | IE9: 2040-09-30 | IF9: 2040-10-31 | IG9: 2040-11-30 | IH9: 2040-12-31 | II9: 2041-01-31 | IJ9: 2041-02-28 | IK9: 2041-03-31 | IL9: 2041-04-30 | IM9: 2041-05-31 | IN9: 2041-06-30 | IO9: 2041-07-31 | IP9: 2041-08-31 | IQ9: 2041-09-30 | IR9: 2041-10-31 | IS9: 2041-11-30 | IT9: 2041-12-31 | IU9: 2042-01-31 | IV9: 2042-02-28 | IW9: 2042-03-31 | IX9: 2042-04-30 | IY9: 2042-05-31 | IZ9: 2042-06-30 | JA9: 2042-07-31 | JB9: 2042-08-31 | JC9: 2042-09-30 | JD9: 2042-10-31 | JE9: 2042-11-30 | JF9: 2042-12-31
C10: Year | I10: 2021 | J10: 2021 | K10: 2021 | L10: 2021 | M10: 2021 | N10: 2021 | O10: 2022 | P10: 2022 | Q10: 2022 | R10: 2022 | S10: 2022 | T10: 2022 | U10: 2022 | V10: 2022 | W10: 2022 | X10: 2022 | Y10: 2022 | Z10: 2022 | AA10: 2023 | AB10: 2023 | AC10: 2023 | AD10: 2023 | AE10: 2023 | AF10: 2023 | AG10: 2023 | AH10: 2023 | AI10: 2023 | AJ10: 2023 | AK10: 2023 | AL10: 2023 | AM10: 2024 | AN10: 2024 | AO10: 2024 | AP10: 2024 | AQ10: 2024 | AR10: 2024 | AS10: 2024 | AT10: 2024 | AU10: 2024 | AV10: 2024 | AW10: 2024 | AX10: 2024 | AY10: 2025 | AZ10: 2025 | BA10: 2025 | BB10: 2025 | BC10: 2025 | BD10: 2025 | BE10: 2025 | BF10: 2025 | BG10: 2025 | BH10: 2025 | BI10: 2025 | BJ10: 2025 | BK10: 2026 | BL10: 2026 | BM10: 2026 | BN10: 2026 | BO10: 2026 | BP10: 2026 | BQ10: 2026 | BR10: 2026 | BS10: 2026 | BT10: 2026 | BU10: 2026 | BV10: 2026 | BW10: 2027 | BX10: 2027 | BY10: 2027 | BZ10: 2027 | CA10: 2027 | CB10: 2027 | CC10: 2027 | CD10: 2027 | CE10: 2027 | CF10: 2027 | CG10: 2027 | CH10: 2027 | CI10: 2028 | CJ10: 2028 | CK10: 2028 | CL10: 2028 | CM10: 2028 | CN10: 2028 | CO10: 2028 | CP10: 2028 | CQ10: 2028 | CR10: 2028 | CS10: 2028 | CT10: 2028 | CU10: 2029 | CV10: 2029 | CW10: 2029 | CX10: 2029 | CY10: 2029 | CZ10: 2029 | DA10: 2029 | DB10: 2029 | DC10: 2029 | DD10: 2029 | DE10: 2029 | DF10: 2029 | DG10: 2030 | DH10: 2030 | DI10: 2030 | DJ10: 2030 | DK10: 2030 | DL10: 2030 | DM10: 2030 | DN10: 2030 | DO10: 2030 | DP10: 2030 | DQ10: 2030 | DR10: 2030 | DS10: 2031 | DT10: 2031 | DU10: 2031 | DV10: 2031 | DW10: 2031 | DX10: 2031 | DY10: 2031 | DZ10: 2031 | EA10: 2031 | EB10: 2031 | EC10: 2031 | ED10: 2031 | EE10: 2032 | EF10: 2032 | EG10: 2032 | EH10: 2032 | EI10: 2032 | EJ10: 2032 | EK10: 2032 | EL10: 2032 | EM10: 2032 | EN10: 2032 | EO10: 2032 | EP10: 2032 | EQ10: 2033 | ER10: 2033 | ES10: 2033 | ET10: 2033 | EU10: 2033 | EV10: 2033 | EW10: 2033 | EX10: 2033 | EY10: 2033 | EZ10: 2033 | FA10: 2033 | FB10: 2033 | FC10: 2034 | FD10: 2034 | FE10: 2034 | FF10: 2034 | FG10: 2034 | FH10: 2034 | FI10: 2034 | FJ10: 2034 | FK10: 2034 | FL10: 2034 | FM10: 2034 | FN10: 2034 | FO10: 2035 | FP10: 2035 | FQ10: 2035 | FR10: 2035 | FS10: 2035 | FT10: 2035 | FU10: 2035 | FV10: 2035 | FW10: 2035 | FX10: 2035 | FY10: 2035 | FZ10: 2035 | GA10: 2036 | GB10: 2036 | GC10: 2036 | GD10: 2036 | GE10: 2036 | GF10: 2036 | GG10: 2036 | GH10: 2036 | GI10: 2036 | GJ10: 2036 | GK10: 2036 | GL10: 2036 | GM10: 2037 | GN10: 2037 | GO10: 2037 | GP10: 2037 | GQ10: 2037 | GR10: 2037 | GS10: 2037 | GT10: 2037 | GU10: 2037 | GV10: 2037 | GW10: 2037 | GX10: 2037 | GY10: 2038 | GZ10: 2038 | HA10: 2038 | HB10: 2038 | HC10: 2038 | HD10: 2038 | HE10: 2038 | HF10: 2038 | HG10: 2038 | HH10: 2038 | HI10: 2038 | HJ10: 2038 | HK10: 2039 | HL10: 2039 | HM10: 2039 | HN10: 2039 | HO10: 2039 | HP10: 2039 | HQ10: 2039 | HR10: 2039 | HS10: 2039 | HT10: 2039 | HU10: 2039 | HV10: 2039 | HW10: 2040 | HX10: 2040 | HY10: 2040 | HZ10: 2040 | IA10: 2040 | IB10: 2040 | IC10: 2040 | ID10: 2040 | IE10: 2040 | IF10: 2040 | IG10: 2040 | IH10: 2040 | II10: 2041 | IJ10: 2041 | IK10: 2041 | IL10: 2041 | IM10: 2041 | IN10: 2041 | IO10: 2041 | IP10: 2041 | IQ10: 2041 | IR10: 2041 | IS10: 2041 | IT10: 2041 | IU10: 2042 | IV10: 2042 | IW10: 2042 | IX10: 2042 | IY10: 2042 | IZ10: 2042 | JA10: 2042 | JB10: 2042 | JC10: 2042 | JD10: 2042 | JE10: 2042 | JF10: 2042
C11: Pre-COD (development + construction) | I11: TRUE | J11: TRUE | K11: TRUE | L11: TRUE | M11: TRUE | N11: TRUE | O11: TRUE | P11: TRUE | Q11: TRUE | R11: TRUE | S11: TRUE | T11: TRUE | U11: TRUE | V11: TRUE | W11: TRUE | X11: TRUE | Y11: TRUE | Z11: TRUE | AA11: FALSE | AB11: FALSE | AC11: FALSE | AD11: FALSE | AE11: FALSE | AF11: FALSE | AG11: FALSE | AH11: FALSE | AI11: FALSE | AJ11: FALSE | AK11: FALSE | AL11: FALSE | AM11: FALSE | AN11: FALSE | AO11: FALSE | AP11: FALSE | AQ11: FALSE | AR11: FALSE | AS11: FALSE | AT11: FALSE | AU11: FALSE | AV11: FALSE | AW11: FALSE | AX11: FALSE | AY11: FALSE | AZ11: FALSE | BA11: FALSE | BB11: FALSE | BC11: FALSE | BD11: FALSE | BE11: FALSE | BF11: FALSE | BG11: FALSE | BH11: FALSE | BI11: FALSE | BJ11: FALSE | BK11: FALSE | BL11: FALSE | BM11: FALSE | BN11: FALSE | BO11: FALSE | BP11: FALSE | BQ11: FALSE | BR11: FALSE | BS11: FALSE | BT11: FALSE | BU11: FALSE | BV11: FALSE | BW11: FALSE | BX11: FALSE | BY11: FALSE | BZ11: FALSE | CA11: FALSE | CB11: FALSE | CC11: FALSE | CD11: FALSE | CE11: FALSE | CF11: FALSE | CG11: FALSE | CH11: FALSE | CI11: FALSE | CJ11: FALSE | CK11: FALSE | CL11: FALSE | CM11: FALSE | CN11: FALSE | CO11: FALSE | CP11: FALSE | CQ11: FALSE | CR11: FALSE | CS11: FALSE | CT11: FALSE | CU11: FALSE | CV11: FALSE | CW11: FALSE | CX11: FALSE | CY11: FALSE | CZ11: FALSE | DA11: FALSE | DB11: FALSE | DC11: FALSE | DD11: FALSE | DE11: FALSE | DF11: FALSE | DG11: FALSE | DH11: FALSE | DI11: FALSE | DJ11: FALSE | DK11: FALSE | DL11: FALSE | DM11: FALSE | DN11: FALSE | DO11: FALSE | DP11: FALSE | DQ11: FALSE | DR11: FALSE | DS11: FALSE | DT11: FALSE | DU11: FALSE | DV11: FALSE | DW11: FALSE | DX11: FALSE | DY11: FALSE | DZ11: FALSE | EA11: FALSE | EB11: FALSE | EC11: FALSE | ED11: FALSE | EE11: FALSE | EF11: FALSE | EG11: FALSE | EH11: FALSE | EI11: FALSE | EJ11: FALSE | EK11: FALSE | EL11: FALSE | EM11: FALSE | EN11: FALSE | EO11: FALSE | EP11: FALSE | EQ11: FALSE | ER11: FALSE | ES11: FALSE | ET11: FALSE | EU11: FALSE | EV11: FALSE | EW11: FALSE | EX11: FALSE | EY11: FALSE | EZ11: FALSE | FA11: FALSE | FB11: FALSE | FC11: FALSE | FD11: FALSE | FE11: FALSE | FF11: FALSE | FG11: FALSE | FH11: FALSE | FI11: FALSE | FJ11: FALSE | FK11: FALSE | FL11: FALSE | FM11: FALSE | FN11: FALSE | FO11: FALSE | FP11: FALSE | FQ11: FALSE | FR11: FALSE | FS11: FALSE | FT11: FALSE | FU11: FALSE | FV11: FALSE | FW11: FALSE | FX11: FALSE | FY11: FALSE | FZ11: FALSE | GA11: FALSE | GB11: FALSE | GC11: FALSE | GD11: FALSE | GE11: FALSE | GF11: FALSE | GG11: FALSE | GH11: FALSE | GI11: FALSE | GJ11: FALSE | GK11: FALSE | GL11: FALSE | GM11: FALSE | GN11: FALSE | GO11: FALSE | GP11: FALSE | GQ11: FALSE | GR11: FALSE | GS11: FALSE | GT11: FALSE | GU11: FALSE | GV11: FALSE | GW11: FALSE | GX11: FALSE | GY11: FALSE | GZ11: FALSE | HA11: FALSE | HB11: FALSE | HC11: FALSE | HD11: FALSE | HE11: FALSE | HF11: FALSE | HG11: FALSE | HH11: FALSE | HI11: FALSE | HJ11: FALSE | HK11: FALSE | HL11: FALSE | HM11: FALSE | HN11: FALSE | HO11: FALSE | HP11: FALSE | HQ11: FALSE | HR11: FALSE | HS11: FALSE | HT11: FALSE | HU11: FALSE | HV11: FALSE | HW11: FALSE | HX11: FALSE | HY11: FALSE | HZ11: FALSE | IA11: FALSE | IB11: FALSE | IC11: FALSE | ID11: FALSE | IE11: FALSE | IF11: FALSE | IG11: FALSE | IH11: FALSE | II11: FALSE | IJ11: FALSE | IK11: FALSE | IL11: FALSE | IM11: FALSE | IN11: FALSE | IO11: FALSE | IP11: FALSE | IQ11: FALSE | IR11: FALSE | IS11: FALSE | IT11: FALSE | IU11: FALSE | IV11: FALSE | IW11: FALSE | IX11: FALSE | IY11: FALSE | IZ11: FALSE | JA11: FALSE | JB11: FALSE | JC11: FALSE | JD11: FALSE | JE11: FALSE | JF11: FALSE
C12: Post-COD (operation) | I12: FALSE | J12: FALSE | K12: FALSE | L12: FALSE | M12: FALSE | N12: FALSE | O12: FALSE | P12: FALSE | Q12: FALSE | R12: FALSE | S12: FALSE | T12: FALSE | U12: FALSE | V12: FALSE | W12: FALSE | X12: FALSE | Y12: FALSE | Z12: FALSE | AA12: TRUE | AB12: TRUE | AC12: TRUE | AD12: TRUE | AE12: TRUE | AF12: TRUE | AG12: TRUE | AH12: TRUE | AI12: TRUE | AJ12: TRUE | AK12: TRUE | AL12: TRUE | AM12: TRUE | AN12: TRUE | AO12: TRUE | AP12: TRUE | AQ12: TRUE | AR12: TRUE | AS12: TRUE | AT12: TRUE | AU12: TRUE | AV12: TRUE | AW12: TRUE | AX12: TRUE | AY12: TRUE | AZ12: TRUE | BA12: TRUE | BB12: TRUE | BC12: TRUE | BD12: TRUE | BE12: TRUE | BF12: TRUE | BG12: TRUE | BH12: TRUE | BI12: TRUE | BJ12: TRUE | BK12: TRUE | BL12: TRUE | BM12: TRUE | BN12: TRUE | BO12: TRUE | BP12: TRUE | BQ12: TRUE | BR12: TRUE | BS12: TRUE | BT12: TRUE | BU12: TRUE | BV12: TRUE | BW12: TRUE | BX12: TRUE | BY12: TRUE | BZ12: TRUE | CA12: TRUE | CB12: TRUE | CC12: TRUE | CD12: TRUE | CE12: TRUE | CF12: TRUE | CG12: TRUE | CH12: TRUE | CI12: TRUE | CJ12: TRUE | CK12: TRUE | CL12: TRUE | CM12: TRUE | CN12: TRUE | CO12: TRUE | CP12: TRUE | CQ12: TRUE | CR12: TRUE | CS12: TRUE | CT12: TRUE | CU12: TRUE | CV12: TRUE | CW12: TRUE | CX12: TRUE | CY12: TRUE | CZ12: TRUE | DA12: TRUE | DB12: TRUE | DC12: TRUE | DD12: TRUE | DE12: TRUE | DF12: TRUE | DG12: TRUE | DH12: TRUE | DI12: TRUE | DJ12: TRUE | DK12: TRUE | DL12: TRUE | DM12: TRUE | DN12: TRUE | DO12: TRUE | DP12: TRUE | DQ12: TRUE | DR12: TRUE | DS12: TRUE | DT12: TRUE | DU12: TRUE | DV12: TRUE | DW12: TRUE | DX12: TRUE | DY12: TRUE | DZ12: TRUE | EA12: TRUE | EB12: TRUE | EC12: TRUE | ED12: TRUE | EE12: TRUE | EF12: TRUE | EG12: TRUE | EH12: TRUE | EI12: TRUE | EJ12: TRUE | EK12: TRUE | EL12: TRUE | EM12: TRUE | EN12: TRUE | EO12: TRUE | EP12: TRUE | EQ12: TRUE | ER12: TRUE | ES12: TRUE | ET12: TRUE | EU12: TRUE | EV12: TRUE | EW12: TRUE | EX12: TRUE | EY12: TRUE | EZ12: TRUE | FA12: TRUE | FB12: TRUE | FC12: TRUE | FD12: TRUE | FE12: TRUE | FF12: TRUE | FG12: TRUE | FH12: TRUE | FI12: TRUE | FJ12: TRUE | FK12: TRUE | FL12: TRUE | FM12: TRUE | FN12: TRUE | FO12: TRUE | FP12: TRUE | FQ12: TRUE | FR12: TRUE | FS12: TRUE | FT12: TRUE | FU12: TRUE | FV12: TRUE | FW12: TRUE | FX12: TRUE | FY12: TRUE | FZ12: TRUE | GA12: TRUE | GB12: TRUE | GC12: TRUE | GD12: TRUE | GE12: TRUE | GF12: TRUE | GG12: TRUE | GH12: TRUE | GI12: TRUE | GJ12: TRUE | GK12: TRUE | GL12: TRUE | GM12: TRUE | GN12: TRUE | GO12: TRUE | GP12: TRUE | GQ12: TRUE | GR12: TRUE | GS12: TRUE | GT12: TRUE | GU12: TRUE | GV12: TRUE | GW12: TRUE | GX12: TRUE | GY12: TRUE | GZ12: TRUE | HA12: TRUE | HB12: TRUE | HC12: TRUE | HD12: TRUE | HE12: TRUE | HF12: TRUE | HG12: TRUE | HH12: TRUE | HI12: TRUE | HJ12: TRUE | HK12: TRUE | HL12: TRUE | HM12: TRUE | HN12: TRUE | HO12: TRUE | HP12: TRUE | HQ12: TRUE | HR12: TRUE | HS12: TRUE | HT12: TRUE | HU12: TRUE | HV12: TRUE | HW12: TRUE | HX12: TRUE | HY12: TRUE | HZ12: TRUE | IA12: TRUE | IB12: TRUE | IC12: TRUE | ID12: TRUE | IE12: TRUE | IF12: TRUE | IG12: TRUE | IH12: TRUE | II12: TRUE | IJ12: TRUE | IK12: TRUE | IL12: TRUE | IM12: TRUE | IN12: TRUE | IO12: TRUE | IP12: TRUE | IQ12: TRUE | IR12: TRUE | IS12: TRUE | IT12: TRUE | IU12: TRUE | IV12: TRUE | IW12: TRUE | IX12: TRUE | IY12: TRUE | IZ12: TRUE | JA12: TRUE | JB12: TRUE | JC12: TRUE | JD12: TRUE | JE12: TRUE | JF12: TRUE
C13: PPA period | I13: 0 | J13: 0 | K13: 0 | L13: 0 | M13: 0 | N13: 0 | O13: 0 | P13: 0 | Q13: 0 | R13: 0 | S13: 0 | T13: 0 | U13: 0 | V13: 0 | W13: 0 | X13: 0 | Y13: 0 | Z13: 0 | AA13: 1 | AB13: 1 | AC13: 1 | AD13: 1 | AE13: 1 | AF13: 1 | AG13: 1 | AH13: 1 | AI13: 1 | AJ13: 1 | AK13: 1 | AL13: 1 | AM13: 1 | AN13: 1 | AO13: 1 | AP13: 1 | AQ13: 1 | AR13: 1 | AS13: 1 | AT13: 1 | AU13: 1 | AV13: 1 | AW13: 1 | AX13: 1 | AY13: 1 | AZ13: 1 | BA13: 1 | BB13: 1 | BC13: 1 | BD13: 1 | BE13: 1 | BF13: 1 | BG13: 1 | BH13: 1 | BI13: 1 | BJ13: 1 | BK13: 1 | BL13: 1 | BM13: 1 | BN13: 1 | BO13: 1 | BP13: 1 | BQ13: 1 | BR13: 1 | BS13: 1 | BT13: 1 | BU13: 1 | BV13: 1 | BW13: 1 | BX13: 1 | BY13: 1 | BZ13: 1 | CA13: 1 | CB13: 1 | CC13: 1 | CD13: 1 | CE13: 1 | CF13: 1 | CG13: 1 | CH13: 1 | CI13: 1 | CJ13: 1 | CK13: 1 | CL13: 1 | CM13: 1 | CN13: 1 | CO13: 1 | CP13: 1 | CQ13: 1 | CR13: 1 | CS13: 1 | CT13: 1 | CU13: 1 | CV13: 1 | CW13: 1 | CX13: 1 | CY13: 1 | CZ13: 1 | DA13: 1 | DB13: 1 | DC13: 1 | DD13: 1 | DE13: 1 | DF13: 1 | DG13: 1 | DH13: 1 | DI13: 1 | DJ13: 1 | DK13: 1 | DL13: 1 | DM13: 1 | DN13: 1 | DO13: 1 | DP13: 1 | DQ13: 1 | DR13: 1 | DS13: 1 | DT13: 1 | DU13: 1 | DV13: 1 | DW13: 1 | DX13: 1 | DY13: 1 | DZ13: 1 | EA13: 1 | EB13: 1 | EC13: 1 | ED13: 1 | EE13: 1 | EF13: 1 | EG13: 1 | EH13: 1 | EI13: 1 | EJ13: 1 | EK13: 1 | EL13: 1 | EM13: 1 | EN13: 1 | EO13: 1 | EP13: 1 | EQ13: 0 | ER13: 0 | ES13: 0 | ET13: 0 | EU13: 0 | EV13: 0 | EW13: 0 | EX13: 0 | EY13: 0 | EZ13: 0 | FA13: 0 | FB13: 0 | FC13: 0 | FD13: 0 | FE13: 0 | FF13: 0 | FG13: 0 | FH13: 0 | FI13: 0 | FJ13: 0 | FK13: 0 | FL13: 0 | FM13: 0 | FN13: 0 | FO13: 0 | FP13: 0 | FQ13: 0 | FR13: 0 | FS13: 0 | FT13: 0 | FU13: 0 | FV13: 0 | FW13: 0 | FX13: 0 | FY13: 0 | FZ13: 0 | GA13: 0 | GB13: 0 | GC13: 0 | GD13: 0 | GE13: 0 | GF13: 0 | GG13: 0 | GH13: 0 | GI13: 0 | GJ13: 0 | GK13: 0 | GL13: 0 | GM13: 0 | GN13: 0 | GO13: 0 | GP13: 0 | GQ13: 0 | GR13: 0 | GS13: 0 | GT13: 0 | GU13: 0 | GV13: 0 | GW13: 0 | GX13: 0 | GY13: 0 | GZ13: 0 | HA13: 0 | HB13: 0 | HC13: 0 | HD13: 0 | HE13: 0 | HF13: 0 | HG13: 0 | HH13: 0 | HI13: 0 | HJ13: 0 | HK13: 0 | HL13: 0 | HM13: 0 | HN13: 0 | HO13: 0 | HP13: 0 | HQ13: 0 | HR13: 0 | HS13: 0 | HT13: 0 | HU13: 0 | HV13: 0 | HW13: 0 | HX13: 0 | HY13: 0 | HZ13: 0 | IA13: 0 | IB13: 0 | IC13: 0 | ID13: 0 | IE13: 0 | IF13: 0 | IG13: 0 | IH13: 0 | II13: 0 | IJ13: 0 | IK13: 0 | IL13: 0 | IM13: 0 | IN13: 0 | IO13: 0 | IP13: 0 | IQ13: 0 | IR13: 0 | IS13: 0 | IT13: 0 | IU13: 0 | IV13: 0 | IW13: 0 | IX13: 0 | IY13: 0 | IZ13: 0 | JA13: 0 | JB13: 0 | JC13: 0 | JD13: 0 | JE13: 0 | JF13: 0
C14: Merchant period | I14: 0 | J14: 0 | K14: 0 | L14: 0 | M14: 0 | N14: 0 | O14: 0 | P14: 0 | Q14: 0 | R14: 0 | S14: 0 | T14: 0 | U14: 0 | V14: 0 | W14: 0 | X14: 0 | Y14: 0 | Z14: 0 | AA14: 0 | AB14: 0 | AC14: 0 | AD14: 0 | AE14: 0 | AF14: 0 | AG14: 0 | AH14: 0 | AI14: 0 | AJ14: 0 | AK14: 0 | AL14: 0 | AM14: 0 | AN14: 0 | AO14: 0 | AP14: 0 | AQ14: 0 | AR14: 0 | AS14: 0 | AT14: 0 | AU14: 0 | AV14: 0 | AW14: 0 | AX14: 0 | AY14: 0 | AZ14: 0 | BA14: 0 | BB14: 0 | BC14: 0 | BD14: 0 | BE14: 0 | BF14: 0 | BG14: 0 | BH14: 0 | BI14: 0 | BJ14: 0 | BK14: 0 | BL14: 0 | BM14: 0 | BN14: 0 | BO14: 0 | BP14: 0 | BQ14: 0 | BR14: 0 | BS14: 0 | BT14: 0 | BU14: 0 | BV14: 0 | BW14: 0 | BX14: 0 | BY14: 0 | BZ14: 0 | CA14: 0 | CB14: 0 | CC14: 0 | CD14: 0 | CE14: 0 | CF14: 0 | CG14: 0 | CH14: 0 | CI14: 0 | CJ14: 0 | CK14: 0 | CL14: 0 | CM14: 0 | CN14: 0 | CO14: 0 | CP14: 0 | CQ14: 0 | CR14: 0 | CS14: 0 | CT14: 0 | CU14: 0 | CV14: 0 | CW14: 0 | CX14: 0 | CY14: 0 | CZ14: 0 | DA14: 0 | DB14: 0 | DC14: 0 | DD14: 0 | DE14: 0 | DF14: 0 | DG14: 0 | DH14: 0 | DI14: 0 | DJ14: 0 | DK14: 0 | DL14: 0 | DM14: 0 | DN14: 0 | DO14: 0 | DP14: 0 | DQ14: 0 | DR14: 0 | DS14: 0 | DT14: 0 | DU14: 0 | DV14: 0 | DW14: 0 | DX14: 0 | DY14: 0 | DZ14: 0 | EA14: 0 | EB14: 0 | EC14: 0 | ED14: 0 | EE14: 0 | EF14: 0 | EG14: 0 | EH14: 0 | EI14: 0 | EJ14: 0 | EK14: 0 | EL14: 0 | EM14: 0 | EN14: 0 | EO14: 0 | EP14: 0 | EQ14: 1 | ER14: 1 | ES14: 1 | ET14: 1 | EU14: 1 | EV14: 1 | EW14: 1 | EX14: 1 | EY14: 1 | EZ14: 1 | FA14: 1 | FB14: 1 | FC14: 1 | FD14: 1 | FE14: 1 | FF14: 1 | FG14: 1 | FH14: 1 | FI14: 1 | FJ14: 1 | FK14: 1 | FL14: 1 | FM14: 1 | FN14: 1 | FO14: 1 | FP14: 1 | FQ14: 1 | FR14: 1 | FS14: 1 | FT14: 1 | FU14: 1 | FV14: 1 | FW14: 1 | FX14: 1 | FY14: 1 | FZ14: 1 | GA14: 1 | GB14: 1 | GC14: 1 | GD14: 1 | GE14: 1 | GF14: 1 | GG14: 1 | GH14: 1 | GI14: 1 | GJ14: 1 | GK14: 1 | GL14: 1 | GM14: 1 | GN14: 1 | GO14: 1 | GP14: 1 | GQ14: 1 | GR14: 1 | GS14: 1 | GT14: 1 | GU14: 1 | GV14: 1 | GW14: 1 | GX14: 1 | GY14: 1 | GZ14: 1 | HA14: 1 | HB14: 1 | HC14: 1 | HD14: 1 | HE14: 1 | HF14: 1 | HG14: 1 | HH14: 1 | HI14: 1 | HJ14: 1 | HK14: 1 | HL14: 1 | HM14: 1 | HN14: 1 | HO14: 1 | HP14: 1 | HQ14: 1 | HR14: 1 | HS14: 1 | HT14: 1 | HU14: 1 | HV14: 1 | HW14: 1 | HX14: 1 | HY14: 1 | HZ14: 1 | IA14: 1 | IB14: 1 | IC14: 1 | ID14: 1 | IE14: 1 | IF14: 1 | IG14: 1 | IH14: 1 | II14: 1 | IJ14: 1 | IK14: 1 | IL14: 1 | IM14: 1 | IN14: 1 | IO14: 1 | IP14: 1 | IQ14: 1 | IR14: 1 | IS14: 1 | IT14: 1 | IU14: 1 | IV14: 1 | IW14: 1 | IX14: 1 | IY14: 1 | IZ14: 1 | JA14: 1 | JB14: 1 | JC14: 1 | JD14: 1 | JE14: 1 | JF14: 1
C15: Debt period | I15: 0 | J15: 0 | K15: 0 | L15: 0 | M15: 0 | N15: 0 | O15: 0 | P15: 0 | Q15: 0 | R15: 0 | S15: 0 | T15: 0 | U15: 0 | V15: 0 | W15: 0 | X15: 0 | Y15: 0 | Z15: 0 | AA15: 1 | AB15: 1 | AC15: 1 | AD15: 1 | AE15: 1 | AF15: 1 | AG15: 1 | AH15: 1 | AI15: 1 | AJ15: 1 | AK15: 1 | AL15: 1 | AM15: 1 | AN15: 1 | AO15: 1 | AP15: 1 | AQ15: 1 | AR15: 1 | AS15: 1 | AT15: 1 | AU15: 1 | AV15: 1 | AW15: 1 | AX15: 1 | AY15: 1 | AZ15: 1 | BA15: 1 | BB15: 1 | BC15: 1 | BD15: 1 | BE15: 1 | BF15: 1 | BG15: 1 | BH15: 1 | BI15: 1 | BJ15: 1 | BK15: 1 | BL15: 1 | BM15: 1 | BN15: 1 | BO15: 1 | BP15: 1 | BQ15: 1 | BR15: 1 | BS15: 1 | BT15: 1 | BU15: 1 | BV15: 1 | BW15: 1 | BX15: 1 | BY15: 1 | BZ15: 1 | CA15: 1 | CB15: 1 | CC15: 1 | CD15: 1 | CE15: 1 | CF15: 1 | CG15: 1 | CH15: 1 | CI15: 1 | CJ15: 1 | CK15: 1 | CL15: 1 | CM15: 1 | CN15: 1 | CO15: 1 | CP15: 1 | CQ15: 1 | CR15: 1 | CS15: 1 | CT15: 1 | CU15: 1 | CV15: 1 | CW15: 1 | CX15: 1 | CY15: 1 | CZ15: 1 | DA15: 1 | DB15: 1 | DC15: 1 | DD15: 1 | DE15: 1 | DF15: 1 | DG15: 1 | DH15: 1 | DI15: 1 | DJ15: 1 | DK15: 1 | DL15: 1 | DM15: 1 | DN15: 1 | DO15: 1 | DP15: 1 | DQ15: 1 | DR15: 1 | DS15: 1 | DT15: 1 | DU15: 1 | DV15: 1 | DW15: 1 | DX15: 1 | DY15: 1 | DZ15: 1 | EA15: 1 | EB15: 1 | EC15: 1 | ED15: 1 | EE15: 1 | EF15: 1 | EG15: 1 | EH15: 1 | EI15: 1 | EJ15: 1 | EK15: 1 | EL15: 1 | EM15: 1 | EN15: 1 | EO15: 1 | EP15: 1 | EQ15: 1 | ER15: 1 | ES15: 1 | ET15: 1 | EU15: 1 | EV15: 1 | EW15: 1 | EX15: 1 | EY15: 1 | EZ15: 1 | FA15: 1 | FB15: 1 | FC15: 1 | FD15: 1 | FE15: 1 | FF15: 1 | FG15: 1 | FH15: 1 | FI15: 1 | FJ15: 1 | FK15: 1 | FL15: 1 | FM15: 1 | FN15: 1 | FO15: 1 | FP15: 1 | FQ15: 1 | FR15: 1 | FS15: 1 | FT15: 1 | FU15: 1 | FV15: 1 | FW15: 1 | FX15: 1 | FY15: 1 | FZ15: 1 | GA15: 1 | GB15: 1 | GC15: 1 | GD15: 1 | GE15: 1 | GF15: 1 | GG15: 1 | GH15: 1 | GI15: 1 | GJ15: 1 | GK15: 1 | GL15: 1 | GM15: 1 | GN15: 1 | GO15: 1 | GP15: 1 | GQ15: 1 | GR15: 1 | GS15: 1 | GT15: 1 | GU15: 1 | GV15: 1 | GW15: 1 | GX15: 1 | GY15: 0 | GZ15: 0 | HA15: 0 | HB15: 0 | HC15: 0 | HD15: 0 | HE15: 0 | HF15: 0 | HG15: 0 | HH15: 0 | HI15: 0 | HJ15: 0 | HK15: 0 | HL15: 0 | HM15: 0 | HN15: 0 | HO15: 0 | HP15: 0 | HQ15: 0 | HR15: 0 | HS15: 0 | HT15: 0 | HU15: 0 | HV15: 0 | HW15: 0 | HX15: 0 | HY15: 0 | HZ15: 0 | IA15: 0 | IB15: 0 | IC15: 0 | ID15: 0 | IE15: 0 | IF15: 0 | IG15: 0 | IH15: 0 | II15: 0 | IJ15: 0 | IK15: 0 | IL15: 0 | IM15: 0 | IN15: 0 | IO15: 0 | IP15: 0 | IQ15: 0 | IR15: 0 | IS15: 0 | IT15: 0 | IU15: 0 | IV15: 0 | IW15: 0 | IX15: 0 | IY15: 0 | IZ15: 0 | JA15: 0 | JB15: 0 | JC15: 0 | JD15: 0 | JE15: 0 | JF15: 0
B17: B- | C17: Free Cash-Flows
C19: EBIT | D19: M€ | F19: 61.49951593 | I19: 0 | J19: 0 | K19: 0 | L19: 0 | M19: 0 | N19: 0 | O19: 0 | P19: 0 | Q19: 0 | R19: 0 | S19: 0 | T19: 0 | U19: 0 | V19: 0 | W19: 0 | X19: 0 | Y19: 0 | Z19: 0 | AA19: 0.2556460937 | AB19: 0.2554479297 | AC19: 0.2552495179 | AD19: 0.2550508581 | AE19: 0.25485195 | AF19: 0.2546527933 | AG19: 0.2544533876 | AH19: 0.2542537327 | AI19: 0.2540538281 | AJ19: 0.2538536737 | AK19: 0.2536532692 | AL19: 0.2534526141 | AM19: 0.2532517082 | AN19: 0.2530505511 | AO19: 0.2528491426 | AP19: 0.2526474824 | AQ19: 0.25244557 | AR19: 0.2522434053 | AS19: 0.2520409879 | AT19: 0.2518383175 | AU19: 0.2516353937 | AV19: 0.2514322162 | AW19: 0.2512287848 | AX19: 0.2510250991 | AY19: 0.2508211588 | AZ19: 0.2506169636 | BA19: 0.2504125131 | BB19: 0.2502078071 | BC19: 0.2500028452 | BD19: 0.249797627 | BE19: 0.2495921524 | BF19: 0.2493864209 | BG19: 0.2491804322 | BH19: 0.2489741861 | BI19: 0.2487676822 | BJ19: 0.2485609201 | BK19: 0.2483538996 | BL19: 0.2481466202 | BM19: 0.2479390818 | BN19: 0.247731284 | BO19: 0.2475232264 | BP19: 0.2473149088 | BQ19: 0.2471063307 | BR19: 0.246897492 | BS19: 0.2466883922 | BT19: 0.246479031 | BU19: 0.2462694081 | BV19: 0.2460595232 | BW19: 0.2458493759 | BX19: 0.2456389659 | BY19: 0.245428293 | BZ19: 0.2452173566 | CA19: 0.2450061567 | CB19: 0.2447946927 | CC19: 0.2445829644 | CD19: 0.2443709714 | CE19: 0.2441587134 | CF19: 0.2439461901 | CG19: 0.2437334012 | CH19: 0.2435203463 | CI19: 0.243307025 | CJ19: 0.2430934371 | CK19: 0.2428795822 | CL19: 0.24266546 | CM19: 0.2424510702 | CN19: 0.2422364123 | CO19: 0.2420214862 | CP19: 0.2418062914 | CQ19: 0.2415908275 | CR19: 0.2413750944 | CS19: 0.2411590916 | CT19: 0.2409428188 | CU19: 0.2407262756 | CV19: 0.2405094618 | CW19: 0.2402923769 | CX19: 0.2400750207 | CY19: 0.2398573928 | CZ19: 0.2396394929 | DA19: 0.2394213206 | DB19: 0.2392028755 | DC19: 0.2389841574 | DD19: 0.238765166 | DE19: 0.2385459007 | DF19: 0.2383263614 | DG19: 0.2381065477 | DH19: 0.2378864592 | DI19: 0.2376660956 | DJ19: 0.2374454565 | DK19: 0.2372245417 | DL19: 0.2370033507 | DM19: 0.2367818832 | DN19: 0.2365601389 | DO19: 0.2363381174 | DP19: 0.2361158183 | DQ19: 0.2358932414 | DR19: 0.2356703863 | DS19: 0.2354472526 | DT19: 0.23522384 | DU19: 0.2350001481 | DV19: 0.2347761766 | DW19: 0.2345519251 | DX19: 0.2343273934 | DY19: 0.2341025809 | DZ19: 0.2338774875 | EA19: 0.2336521127 | EB19: 0.2334264561 | EC19: 0.2332005175 | ED19: 0.2329742965 | EE19: 0.2327477927 | EF19: 0.2325210057 | EG19: 0.2322939353 | EH19: 0.2320665811 | EI19: 0.2318389426 | EJ19: 0.2316110196 | EK19: 0.2313828117 | EL19: 0.2311543185 | EM19: 0.2309255397 | EN19: 0.230696475 | EO19: 0.2304671239 | EP19: 0.2302374861 | EQ19: 0.2445524315 | ER19: 0.2443222193 | ES19: 0.2440917193 | ET19: 0.2438609312 | EU19: 0.2436298545 | EV19: 0.2433984891 | EW19: 0.2431668344 | EX19: 0.2429348902 | EY19: 0.2427026561 | EZ19: 0.2424701316 | FA19: 0.2422373165 | FB19: 0.2420042104 | FC19: 0.2501139859 | FD19: 0.2498802967 | FE19: 0.2496463153 | FF19: 0.2494120415 | FG19: 0.2491774748 | FH19: 0.2489426149 | FI19: 0.2487074614 | FJ19: 0.248472014 | FK19: 0.2482362723 | FL19: 0.2480002359 | FM19: 0.2477639045 | FN19: 0.2475272776 | FO19: 0.2557586757 | FP19: 0.2555214569 | FQ19: 0.2552839415 | FR19: 0.2550461293 | FS19: 0.2548080199 | FT19: 0.2545696128 | FU19: 0.2543309076 | FV19: 0.2540919041 | FW19: 0.2538526019 | FX19: 0.2536130005 | FY19: 0.2533730996 | FZ19: 0.2531328989 | GA19: 0.2614877433 | GB19: 0.2612469417 | GC19: 0.261005839 | GD19: 0.260764435 | GE19: 0.2605227292 | GF19: 0.2602807213 | GG19: 0.2600384109 | GH19: 0.2597957976 | GI19: 0.259552881 | GJ19: 0.2593096608 | GK19: 0.2590661366 | GL19: 0.2588223079 | GM19: 0.2673024502 | GN19: 0.2670580116 | GO19: 0.2668132674 | GP19: 0.2665682173 | GQ19: 0.2663228609 | GR19: 0.2660771979 | GS19: 0.2658312277 | GT19: 0.2655849501 | GU19: 0.2653383646 | GV19: 0.2650914709 | GW19: 0.2648442686 | GX19: 0.2645967572 | GY19: 0.2732040763 | GZ19: 0.2729559458 | HA19: 0.2727075052 | HB19: 0.272458754 | HC19: 0.2722096918 | HD19: 0.2719603183 | HE19: 0.2717106332 | HF19: 0.2714606359 | HG19: 0.2712103261 | HH19: 0.2709597034 | HI19: 0.2707087674 | HJ19: 0.2704575178 | HK19: 0.279193921 | HL19: 0.2789420428 | HM19: 0.2786898499 | HN19: 0.2784373416 | HO19: 0.2781845178 | HP19: 0.2779313779 | HQ19: 0.2776779215 | HR19: 0.2774241484 | HS19: 0.277170058 | HT19: 0.2769156501 | HU19: 0.2766609241 | HV19: 0.2764058797 | HW19: 0.2852733029 | HX19: 0.2850176205 | HY19: 0.2847616185 | HZ19: 0.2845052965 | IA19: 0.2842486541 | IB19: 0.2839916909 | IC19: 0.2837344064 | ID19: 0.2834768004 | IE19: 0.2832188724 | IF19: 0.282960622 | IG19: 0.2827020487 | IH19: 0.2824431522 | II19: 0.2914435603 | IJ19: 0.2911840162 | IK19: 0.2909241477 | IL19: 0.2906639543 | IM19: 0.2904034357 | IN19: 0.2901425914 | IO19: 0.2898814211 | IP19: 0.2896199243 | IQ19: 0.2893581006 | IR19: 0.2890959497 | IS19: 0.2888334711 | IT19: 0.2885706644 | IU19: 0.2977060517 | IV19: 0.2974425876 | IW19: 0.2971787941 | IX19: 0.2969146709 | IY19: 0.2966502175 | IZ19: 0.2963854335 | JA19: 0.2961203186 | JB19: 0.2958548723 | JC19: 0.2955890942 | JD19: 0.2953229838 | JE19: 0.2950565408 | JF19: 0.2947897648
C20: Taxes | D20: M€ | F20: -24.59980637 | I20: 0 | J20: 0 | K20: 0 | L20: 0 | M20: 0 | N20: 0 | O20: 0 | P20: 0 | Q20: 0 | R20: 0 | S20: 0 | T20: 0 | U20: 0 | V20: 0 | W20: 0 | X20: 0 | Y20: 0 | Z20: 0 | AA20: -0.1022584375 | AB20: -0.1021791719 | AC20: -0.1020998072 | AD20: -0.1020203433 | AE20: -0.10194078 | AF20: -0.1018611173 | AG20: -0.101781355 | AH20: -0.1017014931 | AI20: -0.1016215313 | AJ20: -0.1015414695 | AK20: -0.1014613077 | AL20: -0.1013810456 | AM20: -0.1013006833 | AN20: -0.1012202204 | AO20: -0.101139657 | AP20: -0.1010589929 | AQ20: -0.100978228 | AR20: -0.1008973621 | AS20: -0.1008163952 | AT20: -0.100735327 | AU20: -0.1006541575 | AV20: -0.1005728865 | AW20: -0.1004915139 | AX20: -0.1004100397 | AY20: -0.1003284635 | AZ20: -0.1002467854 | BA20: -0.1001650052 | BB20: -0.1000831228 | BC20: -0.1000011381 | BD20: -0.09991905081 | BE20: -0.09983686095 | BF20: -0.09975456836 | BG20: -0.0996721729 | BH20: -0.09958967444 | BI20: -0.09950707286 | BJ20: -0.09942436803 | BK20: -0.09934155982 | BL20: -0.0992586481 | BM20: -0.09917563274 | BN20: -0.09909251361 | BO20: -0.09900929058 | BP20: -0.09892596352 | BQ20: -0.0988425323 | BR20: -0.09875899679 | BS20: -0.09867535687 | BT20: -0.09859161239 | BU20: -0.09850776323 | BV20: -0.09842380927 | BW20: -0.09833975036 | BX20: -0.09825558637 | BY20: -0.09817131718 | BZ20: -0.09808694266 | CA20: -0.09800246267 | CB20: -0.09791787707 | CC20: -0.09783318575 | CD20: -0.09774838856 | CE20: -0.09766348537 | CF20: -0.09757847605 | CG20: -0.09749336048 | CH20: -0.09740813851 | CI20: -0.09732281001 | CJ20: -0.09723737485 | CK20: -0.0971518329 | CL20: -0.09706618401 | CM20: -0.09698042807 | CN20: -0.09689456494 | CO20: -0.09680859447 | CP20: -0.09672251654 | CQ20: -0.09663633102 | CR20: -0.09655003776 | CS20: -0.09646363663 | CT20: -0.09637712751 | CU20: -0.09629051024 | CV20: -0.09620378471 | CW20: -0.09611695077 | CX20: -0.09603000829 | CY20: -0.09594295712 | CZ20: -0.09585579715 | DA20: -0.09576852822 | DB20: -0.09568115021 | DC20: -0.09559366298 | DD20: -0.09550606638 | DE20: -0.0954183603 | DF20: -0.09533054457 | DG20: -0.09524261908 | DH20: -0.09515458368 | DI20: -0.09506643824 | DJ20: -0.09497818262 | DK20: -0.09488981667 | DL20: -0.09480134027 | DM20: -0.09471275328 | DN20: -0.09462405555 | DO20: -0.09453524694 | DP20: -0.09444632733 | DQ20: -0.09435729657 | DR20: -0.09426815452 | DS20: -0.09417890104 | DT20: -0.09408953599 | DU20: -0.09400005924 | DV20: -0.09391047064 | DW20: -0.09382077006 | DX20: -0.09373095735 | DY20: -0.09364103238 | DZ20: -0.09355099499 | EA20: -0.09346084507 | EB20: -0.09337058245 | EC20: -0.09328020701 | ED20: -0.09318971859 | EE20: -0.09309911707 | EF20: -0.09300840229 | EG20: -0.09291757413 | EH20: -0.09282663242 | EI20: -0.09273557704 | EJ20: -0.09264440784 | EK20: -0.09255312468 | EL20: -0.09246172741 | EM20: -0.0923702159 | EN20: -0.09227859 | EO20: -0.09218684956 | EP20: -0.09209499445 | EQ20: -0.0978209726 | ER20: -0.0977288877 | ES20: -0.09763668771 | ET20: -0.09754437246 | EU20: -0.09745194182 | EV20: -0.09735939564 | EW20: -0.09726673378 | EX20: -0.09717395609 | EY20: -0.09708106242 | EZ20: -0.09698805265 | FA20: -0.0968949266 | FB20: -0.09680168416 | FC20: -0.1000455944 | FD20: -0.09995211867 | FE20: -0.09985852613 | FF20: -0.09976481659 | FG20: -0.09967098992 | FH20: -0.09957704597 | FI20: -0.09948298458 | FJ20: -0.09938880562 | FK20: -0.09929450893 | FL20: -0.09920009437 | FM20: -0.0991055618 | FN20: -0.09901091106 | FO20: -0.1023034703 | FP20: -0.1022085827 | FQ20: -0.1021135766 | FR20: -0.1020184517 | FS20: -0.1019232079 | FT20: -0.1018278451 | FU20: -0.1017323631 | FV20: -0.1016367617 | FW20: -0.1015410408 | FX20: -0.1014452002 | FY20: -0.1013492398 | FZ20: -0.1012531595 | GA20: -0.1045950973 | GB20: -0.1044987767 | GC20: -0.1044023356 | GD20: -0.104305774 | GE20: -0.1042090917 | GF20: -0.1041122885 | GG20: -0.1040153644 | GH20: -0.103918319 | GI20: -0.1038211524 | GJ20: -0.1037238643 | GK20: -0.1036264546 | GL20: -0.1035289232 | GM20: -0.1069209801 | GN20: -0.1068232046 | GO20: -0.106725307 | GP20: -0.1066272869 | GQ20: -0.1065291444 | GR20: -0.1064308791 | GS20: -0.1063324911 | GT20: -0.10623398 | GU20: -0.1061353458 | GV20: -0.1060365884 | GW20: -0.1059377074 | GX20: -0.1058387029 | GY20: -0.1092816305 | GZ20: -0.1091823783 | HA20: -0.1090830021 | HB20: -0.1089835016 | HC20: -0.1088838767 | HD20: -0.1087841273 | HE20: -0.1086842533 | HF20: -0.1085842543 | HG20: -0.1084841304 | HH20: -0.1083838814 | HI20: -0.108283507 | HJ20: -0.1081830071 | HK20: -0.1116775684 | HL20: -0.1115768171 | HM20: -0.1114759399 | HN20: -0.1113749367 | HO20: -0.1112738071 | HP20: -0.1111725511 | HQ20: -0.1110711686 | HR20: -0.1109696594 | HS20: -0.1108680232 | HT20: -0.11076626 | HU20: -0.1106643696 | HV20: -0.1105623519 | HW20: -0.1141093212 | HX20: -0.1140070482 | HY20: -0.1139046474 | HZ20: -0.1138021186 | IA20: -0.1136994616 | IB20: -0.1135966763 | IC20: -0.1134937626 | ID20: -0.1133907202 | IE20: -0.113287549 | IF20: -0.1131842488 | IG20: -0.1130808195 | IH20: -0.1129772609 | II20: -0.1165774241 | IJ20: -0.1164736065 | IK20: -0.1163696591 | IL20: -0.1162655817 | IM20: -0.1161613743 | IN20: -0.1160570366 | IO20: -0.1159525684 | IP20: -0.1158479697 | IQ20: -0.1157432403 | IR20: -0.1156383799 | IS20: -0.1155333884 | IT20: -0.1154282657 | IU20: -0.1190824207 | IV20: -0.118977035 | IW20: -0.1188715176 | IX20: -0.1187658683 | IY20: -0.118660087 | IZ20: -0.1185541734 | JA20: -0.1184481274 | JB20: -0.1183419489 | JC20: -0.1182356377 | JD20: -0.1181291935 | JE20: -0.1180226163 | JF20: -0.1179159059
C21: D&A | D21: M€ | F21: 30.5974375 | I21: 0 | J21: 0 | K21: 0 | L21: 0 | M21: 0 | N21: 0 | O21: 0 | P21: 0 | Q21: 0 | R21: 0 | S21: 0 | T21: 0 | U21: 0 | V21: 0 | W21: 0 | X21: 0 | Y21: 0 | Z21: 0 | AA21: 0.1274893229 | AB21: 0.1274893229 | AC21: 0.1274893229 | AD21: 0.1274893229 | AE21: 0.1274893229 | AF21: 0.1274893229 | AG21: 0.1274893229 | AH21: 0.1274893229 | AI21: 0.1274893229 | AJ21: 0.1274893229 | AK21: 0.1274893229 | AL21: 0.1274893229 | AM21: 0.1274893229 | AN21: 0.1274893229 | AO21: 0.1274893229 | AP21: 0.1274893229 | AQ21: 0.1274893229 | AR21: 0.1274893229 | AS21: 0.1274893229 | AT21: 0.1274893229 | AU21: 0.1274893229 | AV21: 0.1274893229 | AW21: 0.1274893229 | AX21: 0.1274893229 | AY21: 0.1274893229 | AZ21: 0.1274893229 | BA21: 0.1274893229 | BB21: 0.1274893229 | BC21: 0.1274893229 | BD21: 0.1274893229 | BE21: 0.1274893229 | BF21: 0.1274893229 | BG21: 0.1274893229 | BH21: 0.1274893229 | BI21: 0.1274893229 | BJ21: 0.1274893229 | BK21: 0.1274893229 | BL21: 0.1274893229 | BM21: 0.1274893229 | BN21: 0.1274893229 | BO21: 0.1274893229 | BP21: 0.1274893229 | BQ21: 0.1274893229 | BR21: 0.1274893229 | BS21: 0.1274893229 | BT21: 0.1274893229 | BU21: 0.1274893229 | BV21: 0.1274893229 | BW21: 0.1274893229 | BX21: 0.1274893229 | BY21: 0.1274893229 | BZ21: 0.1274893229 | CA21: 0.1274893229 | CB21: 0.1274893229 | CC21: 0.1274893229 | CD21: 0.1274893229 | CE21: 0.1274893229 | CF21: 0.1274893229 | CG21: 0.1274893229 | CH21: 0.1274893229 | CI21: 0.1274893229 | CJ21: 0.1274893229 | CK21: 0.1274893229 | CL21: 0.1274893229 | CM21: 0.1274893229 | CN21: 0.1274893229 | CO21: 0.1274893229 | CP21: 0.1274893229 | CQ21: 0.1274893229 | CR21: 0.1274893229 | CS21: 0.1274893229 | CT21: 0.1274893229 | CU21: 0.1274893229 | CV21: 0.1274893229 | CW21: 0.1274893229 | CX21: 0.1274893229 | CY21: 0.1274893229 | CZ21: 0.1274893229 | DA21: 0.1274893229 | DB21: 0.1274893229 | DC21: 0.1274893229 | DD21: 0.1274893229 | DE21: 0.1274893229 | DF21: 0.1274893229 | DG21: 0.1274893229 | DH21: 0.1274893229 | DI21: 0.1274893229 | DJ21: 0.1274893229 | DK21: 0.1274893229 | DL21: 0.1274893229 | DM21: 0.1274893229 | DN21: 0.1274893229 | DO21: 0.1274893229 | DP21: 0.1274893229 | DQ21: 0.1274893229 | DR21: 0.1274893229 | DS21: 0.1274893229 | DT21: 0.1274893229 | DU21: 0.1274893229 | DV21: 0.1274893229 | DW21: 0.1274893229 | DX21: 0.1274893229 | DY21: 0.1274893229 | DZ21: 0.1274893229 | EA21: 0.1274893229 | EB21: 0.1274893229 | EC21: 0.1274893229 | ED21: 0.1274893229 | EE21: 0.1274893229 | EF21: 0.1274893229 | EG21: 0.1274893229 | EH21: 0.1274893229 | EI21: 0.1274893229 | EJ21: 0.1274893229 | EK21: 0.1274893229 | EL21: 0.1274893229 | EM21: 0.1274893229 | EN21: 0.1274893229 | EO21: 0.1274893229 | EP21: 0.1274893229 | EQ21: 0.1274893229 | ER21: 0.1274893229 | ES21: 0.1274893229 | ET21: 0.1274893229 | EU21: 0.1274893229 | EV21: 0.1274893229 | EW21: 0.1274893229 | EX21: 0.1274893229 | EY21: 0.1274893229 | EZ21: 0.1274893229 | FA21: 0.1274893229 | FB21: 0.1274893229 | FC21: 0.1274893229 | FD21: 0.1274893229 | FE21: 0.1274893229 | FF21: 0.1274893229 | FG21: 0.1274893229 | FH21: 0.1274893229 | FI21: 0.1274893229 | FJ21: 0.1274893229 | FK21: 0.1274893229 | FL21: 0.1274893229 | FM21: 0.1274893229 | FN21: 0.1274893229 | FO21: 0.1274893229 | FP21: 0.1274893229 | FQ21: 0.1274893229 | FR21: 0.1274893229 | FS21: 0.1274893229 | FT21: 0.1274893229 | FU21: 0.1274893229 | FV21: 0.1274893229 | FW21: 0.1274893229 | FX21: 0.1274893229 | FY21: 0.1274893229 | FZ21: 0.1274893229 | GA21: 0.1274893229 | GB21: 0.1274893229 | GC21: 0.1274893229 | GD21: 0.1274893229 | GE21: 0.1274893229 | GF21: 0.1274893229 | GG21: 0.1274893229 | GH21: 0.1274893229 | GI21: 0.1274893229 | GJ21: 0.1274893229 | GK21: 0.1274893229 | GL21: 0.1274893229 | GM21: 0.1274893229 | GN21: 0.1274893229 | GO21: 0.1274893229 | GP21: 0.1274893229 | GQ21: 0.1274893229 | GR21: 0.1274893229 | GS21: 0.1274893229 | GT21: 0.1274893229 | GU21: 0.1274893229 | GV21: 0.1274893229 | GW21: 0.1274893229 | GX21: 0.1274893229 | GY21: 0.1274893229 | GZ21: 0.1274893229 | HA21: 0.1274893229 | HB21: 0.1274893229 | HC21: 0.1274893229 | HD21: 0.1274893229 | HE21: 0.1274893229 | HF21: 0.1274893229 | HG21: 0.1274893229 | HH21: 0.1274893229 | HI21: 0.1274893229 | HJ21: 0.1274893229 | HK21: 0.1274893229 | HL21: 0.1274893229 | HM21: 0.1274893229 | HN21: 0.1274893229 | HO21: 0.1274893229 | HP21: 0.1274893229 | HQ21: 0.1274893229 | HR21: 0.1274893229 | HS21: 0.1274893229 | HT21: 0.1274893229 | HU21: 0.1274893229 | HV21: 0.1274893229 | HW21: 0.1274893229 | HX21: 0.1274893229 | HY21: 0.1274893229 | HZ21: 0.1274893229 | IA21: 0.1274893229 | IB21: 0.1274893229 | IC21: 0.1274893229 | ID21: 0.1274893229 | IE21: 0.1274893229 | IF21: 0.1274893229 | IG21: 0.1274893229 | IH21: 0.1274893229 | II21: 0.1274893229 | IJ21: 0.1274893229 | IK21: 0.1274893229 | IL21: 0.1274893229 | IM21: 0.1274893229 | IN21: 0.1274893229 | IO21: 0.1274893229 | IP21: 0.1274893229 | IQ21: 0.1274893229 | IR21: 0.1274893229 | IS21: 0.1274893229 | IT21: 0.1274893229 | IU21: 0.1274893229 | IV21: 0.1274893229 | IW21: 0.1274893229 | IX21: 0.1274893229 | IY21: 0.1274893229 | IZ21: 0.1274893229 | JA21: 0.1274893229 | JB21: 0.1274893229 | JC21: 0.1274893229 | JD21: 0.1274893229 | JE21: 0.1274893229 | JF21: 0.1274893229
C22: Changes in Working Capital | D22: M€ | F22: 0 | I22: 0 | J22: 0 | K22: 0 | L22: 0 | M22: 0 | N22: 0 | O22: 0 | P22: 0 | Q22: 0 | R22: 0 | S22: 0 | T22: 0 | U22: 0 | V22: 0 | W22: 0 | X22: 0 | Y22: 0 | Z22: 0 | AA22: 0 | AB22: 0 | AC22: 0 | AD22: 0 | AE22: 0 | AF22: 0 | AG22: 0 | AH22: 0 | AI22: 0 | AJ22: 0 | AK22: 0 | AL22: 0 | AM22: 0 | AN22: 0 | AO22: 0 | AP22: 0 | AQ22: 0 | AR22: 0 | AS22: 0 | AT22: 0 | AU22: 0 | AV22: 0 | AW22: 0 | AX22: 0 | AY22: 0 | AZ22: 0 | BA22: 0 | BB22: 0 | BC22: 0 | BD22: 0 | BE22: 0 | BF22: 0 | BG22: 0 | BH22: 0 | BI22: 0 | BJ22: 0 | BK22: 0 | BL22: 0 | BM22: 0 | BN22: 0 | BO22: 0 | BP22: 0 | BQ22: 0 | BR22: 0 | BS22: 0 | BT22: 0 | BU22: 0 | BV22: 0 | BW22: 0 | BX22: 0 | BY22: 0 | BZ22: 0 | CA22: 0 | CB22: 0 | CC22: 0 | CD22: 0 | CE22: 0 | CF22: 0 | CG22: 0 | CH22: 0 | CI22: 0 | CJ22: 0 | CK22: 0 | CL22: 0 | CM22: 0 | CN22: 0 | CO22: 0 | CP22: 0 | CQ22: 0 | CR22: 0 | CS22: 0 | CT22: 0 | CU22: 0 | CV22: 0 | CW22: 0 | CX22: 0 | CY22: 0 | CZ22: 0 | DA22: 0 | DB22: 0 | DC22: 0 | DD22: 0 | DE22: 0 | DF22: 0 | DG22: 0 | DH22: 0 | DI22: 0 | DJ22: 0 | DK22: 0 | DL22: 0 | DM22: 0 | DN22: 0 | DO22: 0 | DP22: 0 | DQ22: 0 | DR22: 0 | DS22: 0 | DT22: 0 | DU22: 0 | DV22: 0 | DW22: 0 | DX22: 0 | DY22: 0 | DZ22: 0 | EA22: 0 | EB22: 0 | EC22: 0 | ED22: 0 | EE22: 0 | EF22: 0 | EG22: 0 | EH22: 0 | EI22: 0 | EJ22: 0 | EK22: 0 | EL22: 0 | EM22: 0 | EN22: 0 | EO22: 0 | EP22: 0 | EQ22: 0 | ER22: 0 | ES22: 0 | ET22: 0 | EU22: 0 | EV22: 0 | EW22: 0 | EX22: 0 | EY22: 0 | EZ22: 0 | FA22: 0 | FB22: 0 | FC22: 0 | FD22: 0 | FE22: 0 | FF22: 0 | FG22: 0 | FH22: 0 | FI22: 0 | FJ22: 0 | FK22: 0 | FL22: 0 | FM22: 0 | FN22: 0 | FO22: 0 | FP22: 0 | FQ22: 0 | FR22: 0 | FS22: 0 | FT22: 0 | FU22: 0 | FV22: 0 | FW22: 0 | FX22: 0 | FY22: 0 | FZ22: 0 | GA22: 0 | GB22: 0 | GC22: 0 | GD22: 0 | GE22: 0 | GF22: 0 | GG22: 0 | GH22: 0 | GI22: 0 | GJ22: 0 | GK22: 0 | GL22: 0 | GM22: 0 | GN22: 0 | GO22: 0 | GP22: 0 | GQ22: 0 | GR22: 0 | GS22: 0 | GT22: 0 | GU22: 0 | GV22: 0 | GW22: 0 | GX22: 0 | GY22: 0 | GZ22: 0 | HA22: 0 | HB22: 0 | HC22: 0 | HD22: 0 | HE22: 0 | HF22: 0 | HG22: 0 | HH22: 0 | HI22: 0 | HJ22: 0 | HK22: 0 | HL22: 0 | HM22: 0 | HN22: 0 | HO22: 0 | HP22: 0 | HQ22: 0 | HR22: 0 | HS22: 0 | HT22: 0 | HU22: 0 | HV22: 0 | HW22: 0 | HX22: 0 | HY22: 0 | HZ22: 0 | IA22: 0 | IB22: 0 | IC22: 0 | ID22: 0 | IE22: 0 | IF22: 0 | IG22: 0 | IH22: 0 | II22: 0 | IJ22: 0 | IK22: 0 | IL22: 0 | IM22: 0 | IN22: 0 | IO22: 0 | IP22: 0 | IQ22: 0 | IR22: 0 | IS22: 0 | IT22: 0 | IU22: 0 | IV22: 0 | IW22: 0 | IX22: 0 | IY22: 0 | IZ22: 0 | JA22: 0 | JB22: 0 | JC22: 0 | JD22: 0 | JE22: 0 | JF22: 0
C23: CAPEX | D23: M€ | F23: -30.5974375 | I23: -3.458600116 | J23: -1.008844907 | K23: -0.3015532407 | L23: -0.7966574074 | M23: -0.7966574074 | N23: -4.285626157 | O23: -7.774594907 | P23: -0.05400115741 | Q23: -0.05400115741 | R23: -0.05400115741 | S23: -3.914298032 | T23: -0.05400115741 | U23: -0.05400115741 | V23: -0.05400115741 | W23: -3.914298032 | X23: -2.627532407 | Y23: -0.05400115741 | Z23: -1.340766782 | AA23: 0 | AB23: 0 | AC23: 0 | AD23: 0 | AE23: 0 | AF23: 0 | AG23: 0 | AH23: 0 | AI23: 0 | AJ23: 0 | AK23: 0 | AL23: 0 | AM23: 0 | AN23: 0 | AO23: 0 | AP23: 0 | AQ23: 0 | AR23: 0 | AS23: 0 | AT23: 0 | AU23: 0 | AV23: 0 | AW23: 0 | AX23: 0 | AY23: 0 | AZ23: 0 | BA23: 0 | BB23: 0 | BC23: 0 | BD23: 0 | BE23: 0 | BF23: 0 | BG23: 0 | BH23: 0 | BI23: 0 | BJ23: 0 | BK23: 0 | BL23: 0 | BM23: 0 | BN23: 0 | BO23: 0 | BP23: 0 | BQ23: 0 | BR23: 0 | BS23: 0 | BT23: 0 | BU23: 0 | BV23: 0 | BW23: 0 | BX23: 0 | BY23: 0 | BZ23: 0 | CA23: 0 | CB23: 0 | CC23: 0 | CD23: 0 | CE23: 0 | CF23: 0 | CG23: 0 | CH23: 0 | CI23: 0 | CJ23: 0 | CK23: 0 | CL23: 0 | CM23: 0 | CN23: 0 | CO23: 0 | CP23: 0 | CQ23: 0 | CR23: 0 | CS23: 0 | CT23: 0 | CU23: 0 | CV23: 0 | CW23: 0 | CX23: 0 | CY23: 0 | CZ23: 0 | DA23: 0 | DB23: 0 | DC23: 0 | DD23: 0 | DE23: 0 | DF23: 0 | DG23: 0 | DH23: 0 | DI23: 0 | DJ23: 0 | DK23: 0 | DL23: 0 | DM23: 0 | DN23: 0 | DO23: 0 | DP23: 0 | DQ23: 0 | DR23: 0 | DS23: 0 | DT23: 0 | DU23: 0 | DV23: 0 | DW23: 0 | DX23: 0 | DY23: 0 | DZ23: 0 | EA23: 0 | EB23: 0 | EC23: 0 | ED23: 0 | EE23: 0 | EF23: 0 | EG23: 0 | EH23: 0 | EI23: 0 | EJ23: 0 | EK23: 0 | EL23: 0 | EM23: 0 | EN23: 0 | EO23: 0 | EP23: 0 | EQ23: 0 | ER23: 0 | ES23: 0 | ET23: 0 | EU23: 0 | EV23: 0 | EW23: 0 | EX23: 0 | EY23: 0 | EZ23: 0 | FA23: 0 | FB23: 0 | FC23: 0 | FD23: 0 | FE23: 0 | FF23: 0 | FG23: 0 | FH23: 0 | FI23: 0 | FJ23: 0 | FK23: 0 | FL23: 0 | FM23: 0 | FN23: 0 | FO23: 0 | FP23: 0 | FQ23: 0 | FR23: 0 | FS23: 0 | FT23: 0 | FU23: 0 | FV23: 0 | FW23: 0 | FX23: 0 | FY23: 0 | FZ23: 0 | GA23: 0 | GB23: 0 | GC23: 0 | GD23: 0 | GE23: 0 | GF23: 0 | GG23: 0 | GH23: 0 | GI23: 0 | GJ23: 0 | GK23: 0 | GL23: 0 | GM23: 0 | GN23: 0 | GO23: 0 | GP23: 0 | GQ23: 0 | GR23: 0 | GS23: 0 | GT23: 0 | GU23: 0 | GV23: 0 | GW23: 0 | GX23: 0 | GY23: 0 | GZ23: 0 | HA23: 0 | HB23: 0 | HC23: 0 | HD23: 0 | HE23: 0 | HF23: 0 | HG23: 0 | HH23: 0 | HI23: 0 | HJ23: 0 | HK23: 0 | HL23: 0 | HM23: 0 | HN23: 0 | HO23: 0 | HP23: 0 | HQ23: 0 | HR23: 0 | HS23: 0 | HT23: 0 | HU23: 0 | HV23: 0 | HW23: 0 | HX23: 0 | HY23: 0 | HZ23: 0 | IA23: 0 | IB23: 0 | IC23: 0 | ID23: 0 | IE23: 0 | IF23: 0 | IG23: 0 | IH23: 0 | II23: 0 | IJ23: 0 | IK23: 0 | IL23: 0 | IM23: 0 | IN23: 0 | IO23: 0 | IP23: 0 | IQ23: 0 | IR23: 0 | IS23: 0 | IT23: 0 | IU23: 0 | IV23: 0 | IW23: 0 | IX23: 0 | IY23: 0 | IZ23: 0 | JA23: 0 | JB23: 0 | JC23: 0 | JD23: 0 | JE23: 0 | JF23: 0
C24: Free Cash-Flow to Firm | D24: M€ | F24: 36.89970956 | I24: -3.458600116 | J24: -1.008844907 | K24: -0.3015532407 | L24: -0.7966574074 | M24: -0.7966574074 | N24: -4.285626157 | O24: -7.774594907 | P24: -0.05400115741 | Q24: -0.05400115741 | R24: -0.05400115741 | S24: -3.914298032 | T24: -0.05400115741 | U24: -0.05400115741 | V24: -0.05400115741 | W24: -3.914298032 | X24: -2.627532407 | Y24: -0.05400115741 | Z24: -1.340766782 | AA24: 0.2808769792 | AB24: 0.2807580807 | AC24: 0.2806390337 | AD24: 0.2805198378 | AE24: 0.2804004929 | AF24: 0.2802809989 | AG24: 0.2801613555 | AH24: 0.2800415625 | AI24: 0.2799216198 | AJ24: 0.2798015272 | AK24: 0.2796812844 | AL24: 0.2795608914 | AM24: 0.2794403478 | AN24: 0.2793196536 | AO24: 0.2791988085 | AP24: 0.2790778123 | AQ24: 0.2789566649 | AR24: 0.2788353661 | AS24: 0.2787139157 | AT24: 0.2785923134 | AU24: 0.2784705591 | AV24: 0.2783486527 | AW24: 0.2782265938 | AX24: 0.2781043824 | AY24: 0.2779820182 | AZ24: 0.2778595011 | BA24: 0.2777368308 | BB24: 0.2776140072 | BC24: 0.27749103 | BD24: 0.2773678991 | BE24: 0.2772446143 | BF24: 0.2771211755 | BG24: 0.2769975823 | BH24: 0.2768738346 | BI24: 0.2767499322 | BJ24: 0.276625875 | BK24: 0.2765016626 | BL24: 0.2763772951 | BM24: 0.276252772 | BN24: 0.2761280933 | BO24: 0.2760032588 | BP24: 0.2758782682 | BQ24: 0.2757531214 | BR24: 0.2756278181 | BS24: 0.2755023582 | BT24: 0.2753767415 | BU24: 0.2752509678 | BV24: 0.2751250368 | BW24: 0.2749989485 | BX24: 0.2748727025 | BY24: 0.2747462987 | BZ24: 0.2746197369 | CA24: 0.2744930169 | CB24: 0.2743661385 | CC24: 0.2742391015 | CD24: 0.2741119058 | CE24: 0.273984551 | CF24: 0.273857037 | CG24: 0.2737293636 | CH24: 0.2736015307 | CI24: 0.2734735379 | CJ24: 0.2733453852 | CK24: 0.2732170723 | CL24: 0.2730885989 | CM24: 0.272959965 | CN24: 0.2728311703 | CO24: 0.2727022146 | CP24: 0.2725730977 | CQ24: 0.2724438194 | CR24: 0.2723143796 | CS24: 0.2721847779 | CT24: 0.2720550142 | CU24: 0.2719250883 | CV24: 0.271795 | CW24: 0.2716647491 | CX24: 0.2715343353 | CY24: 0.2714037586 | CZ24: 0.2712730186 | DA24: 0.2711421153 | DB24: 0.2710110482 | DC24: 0.2708798174 | DD24: 0.2707484225 | DE24: 0.2706168634 | DF24: 0.2704851398 | DG24: 0.2703532515 | DH24: 0.2702211984 | DI24: 0.2700889803 | DJ24: 0.2699565968 | DK24: 0.2698240479 | DL24: 0.2696913333 | DM24: 0.2695584528 | DN24: 0.2694254062 | DO24: 0.2692921933 | DP24: 0.2691588139 | DQ24: 0.2690252678 | DR24: 0.2688915547 | DS24: 0.2687576745 | DT24: 0.2686236269 | DU24: 0.2684894118 | DV24: 0.2683550289 | DW24: 0.268220478 | DX24: 0.2680857589 | DY24: 0.2679508715 | DZ24: 0.2678158154 | EA24: 0.2676805905 | EB24: 0.2675451966 | EC24: 0.2674096334 | ED24: 0.2672739008 | EE24: 0.2671379985 | EF24: 0.2670019264 | EG24: 0.2668656841 | EH24: 0.2667292715 | EI24: 0.2665926885 | EJ24: 0.2664559347 | EK24: 0.2663190099 | EL24: 0.266181914 | EM24: 0.2660446468 | EN24: 0.2659072079 | EO24: 0.2657695973 | EP24: 0.2656318146 | EQ24: 0.2742207818 | ER24: 0.2740826545 | ES24: 0.2739443545 | ET24: 0.2738058816 | EU24: 0.2736672356 | EV24: 0.2735284164 | EW24: 0.2733894236 | EX24: 0.273250257 | EY24: 0.2731109166 | EZ24: 0.2729714019 | FA24: 0.2728317128 | FB24: 0.2726918492 | FC24: 0.2775577145 | FD24: 0.2774175009 | FE24: 0.2772771121 | FF24: 0.2771365478 | FG24: 0.2769958078 | FH24: 0.2768548919 | FI24: 0.2767137998 | FJ24: 0.2765725313 | FK24: 0.2764310863 | FL24: 0.2762894645 | FM24: 0.2761476656 | FN24: 0.2760056895 | FO24: 0.2809445283 | FP24: 0.280802197 | FQ24: 0.2806596878 | FR24: 0.2805170005 | FS24: 0.2803741348 | FT24: 0.2802310906 | FU24: 0.2800878675 | FV24: 0.2799444654 | FW24: 0.279800884 | FX24: 0.2796571232 | FY24: 0.2795131827 | FZ24: 0.2793690622 | GA24: 0.2843819689 | GB24: 0.2842374879 | GC24: 0.2840928263 | GD24: 0.2839479839 | GE24: 0.2838029605 | GF24: 0.2836577557 | GG24: 0.2835123695 | GH24: 0.2833668015 | GI24: 0.2832210515 | GJ24: 0.2830751194 | GK24: 0.2829290049 | GL24: 0.2827827077 | GM24: 0.287870793 | GN24: 0.2877241299 | GO24: 0.2875772834 | GP24: 0.2874302533 | GQ24: 0.2872830395 | GR24: 0.2871356416 | GS24: 0.2869880595 | GT24: 0.286840293 | GU24: 0.2866923417 | GV24: 0.2865442055 | GW24: 0.2863958841 | GX24: 0.2862473773 | GY24: 0.2914117687 | GZ24: 0.2912628904 | HA24: 0.291113826 | HB24: 0.2909645753 | HC24: 0.290815138 | HD24: 0.2906655139 | HE24: 0.2905157028 | HF24: 0.2903657044 | HG24: 0.2902155186 | HH24: 0.290065145 | HI24: 0.2899145834 | HJ24: 0.2897638336 | HK24: 0.2950056755 | HL24: 0.2948545486 | HM24: 0.2947032328 | HN24: 0.2945517279 | HO24: 0.2944000336 | HP24: 0.2942481496 | HQ24: 0.2940960758 | HR24: 0.293943812 | HS24: 0.2937913577 | HT24: 0.293638713 | HU24: 0.2934858774 | HV24: 0.2933328507 | HW24: 0.2986533046 | HX24: 0.2984998952 | HY24: 0.298346294 | HZ24: 0.2981925008 | IA24: 0.2980385154 | IB24: 0.2978843374 | IC24: 0.2977299668 | ID24: 0.2975754032 | IE24: 0.2974206464 | IF24: 0.2972656961 | IG24: 0.2971105521 | IH24: 0.2969552143 | II24: 0.3023554591 | IJ24: 0.3021997326 | IK24: 0.3020438115 | IL24: 0.3018876955 | IM24: 0.3017313843 | IN24: 0.3015748778 | IO24: 0.3014181756 | IP24: 0.3012612775 | IQ24: 0.3011041833 | IR24: 0.3009468927 | IS24: 0.3007894056 | IT24: 0.3006317215 | IU24: 0.3061129539 | IV24: 0.3059548755 | IW24: 0.3057965994 | IX24: 0.3056381254 | IY24: 0.3054794534 | IZ24: 0.305320583 | JA24: 0.3051615141 | JB24: 0.3050022463 | JC24: 0.3048427794 | JD24: 0.3046831132 | JE24: 0.3045232474 | JF24: 0.3043631818
C26: Project IRR | D26: % | F26: 0.08572737277 | I26: 0 | J26: 0 | K26: 0 | L26: 0 | M26: 0 | N26: 0 | O26: 0 | P26: 0 | Q26: 0 | R26: 0 | S26: 0 | T26: 0 | U26: 0 | V26: 0 | W26: 0 | X26: 0 | Y26: 0 | Z26: 0 | AA26: 2.980232239e-09 | AB26: 2.980232239e-09 | AC26: 2.980232239e-09 | AD26: 2.980232239e-09 | AE26: 2.980232239e-09 | AF26: 2.980232239e-09 | AG26: 2.980232239e-09 | AH26: 2.980232239e-09 | AI26: 2.980232239e-09 | AJ26: 2.980232239e-09 | AK26: 2.980232239e-09 | AL26: 2.980232239e-09 | AM26: 2.980232239e-09 | AN26: 2.980232239e-09 | AO26: 2.980232239e-09 | AP26: 2.980232239e-09 | AQ26: 2.980232239e-09 | AR26: 2.980232239e-09 | AS26: 2.980232239e-09 | AT26: 2.980232239e-09 | AU26: 2.980232239e-09 | AV26: 2.980232239e-09 | AW26: 2.980232239e-09 | AX26: 2.980232239e-09 | AY26: 2.980232239e-09 | AZ26: 2.980232239e-09 | BA26: 2.980232239e-09 | BB26: 2.980232239e-09 | BC26: 2.980232239e-09 | BD26: 2.980232239e-09 | BE26: 2.980232239e-09 | BF26: 2.980232239e-09 | BG26: 2.980232239e-09 | BH26: 2.980232239e-09 | BI26: 2.980232239e-09 | BJ26: 2.980232239e-09 | BK26: 2.980232239e-09 | BL26: 2.980232239e-09 | BM26: 2.980232239e-09 | BN26: 2.980232239e-09 | BO26: 2.980232239e-09 | BP26: 2.980232239e-09 | BQ26: 2.980232239e-09 | BR26: 2.980232239e-09 | BS26: 2.980232239e-09 | BT26: 2.980232239e-09 | BU26: 2.980232239e-09 | BV26: 2.980232239e-09 | BW26: 2.980232239e-09 | BX26: 2.980232239e-09 | BY26: 2.980232239e-09 | BZ26: 2.980232239e-09 | CA26: 2.980232239e-09 | CB26: 2.980232239e-09 | CC26: 2.980232239e-09 | CD26: 2.980232239e-09 | CE26: 2.980232239e-09 | CF26: 2.980232239e-09 | CG26: 2.980232239e-09 | CH26: 2.980232239e-09 | CI26: 2.980232239e-09 | CJ26: 2.980232239e-09 | CK26: 2.980232239e-09 | CL26: 2.980232239e-09 | CM26: 2.980232239e-09 | CN26: 2.980232239e-09 | CO26: 2.980232239e-09 | CP26: 2.980232239e-09 | CQ26: 2.980232239e-09 | CR26: 2.980232239e-09 | CS26: 2.980232239e-09 | CT26: 2.980232239e-09 | CU26: 2.980232239e-09 | CV26: 2.980232239e-09 | CW26: 2.980232239e-09 | CX26: 2.980232239e-09 | CY26: 2.980232239e-09 | CZ26: 2.980232239e-09 | DA26: 2.980232239e-09 | DB26: 2.980232239e-09 | DC26: 2.980232239e-09 | DD26: 2.980232239e-09 | DE26: 2.980232239e-09 | DF26: 2.980232239e-09 | DG26: 2.980232239e-09 | DH26: 0 | DI26: 0 | DJ26: 0 | DK26: 0 | DL26: 0 | DM26: 0 | DN26: 0 | DO26: 0 | DP26: 0 | DQ26: 0 | DR26: 0 | DS26: 0 | DT26: 0 | DU26: 0 | DV26: 0 | DW26: 0 | DX26: 0 | DY26: 0 | DZ26: 0 | EA26: 0 | EB26: 0 | EC26: 0 | ED26: 0 | EE26: 0 | EF26: 0 | EG26: 0 | EH26: 0.0005196601152 | EI26: 0.002097377181 | EJ26: 0.003643152118 | EK26: 0.005157777667 | EL26: 0.006642052531 | EM26: 0.008096763492 | EN26: 0.009522625804 | EO26: 0.01092040241 | EP26: 0.01229074895 | EQ26: 0.01367810071 | ER26: 0.01503790319 | ES26: 0.01637071073 | ET26: 0.01767728031 | EU26: 0.018958202 | EV26: 0.02021419704 | EW26: 0.02144580781 | EX26: 0.02265364826 | EY26: 0.02383836806 | EZ26: 0.02500046194 | FA26: 0.02614054978 | FB26: 0.0272590965 | FC26: 0.02837660015 | FD26: 0.02947315276 | FE26: 0.03054901063 | FF26: 0.03160475791 | FG26: 0.03264079392 | FH26: 0.033657673 | FI26: 0.0346557647 | FJ26: 0.03563549817 | FK26: 0.03659740388 | FL26: 0.03754179776 | FM26: 0.0384691745 | FN26: 0.03937983811 | FO26: 0.0402905196 | FP26: 0.04118501246 | FQ26: 0.04206340015 | FR26: 0.0429261595 | FS26: 0.04377353489 | FT26: 0.04460597932 | FU26: 0.04542372525 | FV26: 0.04622710645 | FW26: 0.04701653421 | FX26: 0.0477922231 | FY26: 0.04855457246 | FZ26: 0.04930376709 | GA26: 0.0500536114 | GB26: 0.05079067647 | GC26: 0.0515150398 | GD26: 0.05222708285 | GE26: 0.05292696655 | GF26: 0.05361505449 | GG26: 0.0542915076 | GH26: 0.05495655835 | GI26: 0.05561055839 | GJ26: 0.0562536329 | GK26: 0.05688610971 | GL26: 0.05750811994 | GM26: 0.05813113749 | GN26: 0.05874409378 | GO26: 0.05934691131 | GP26: 0.05993989408 | GQ26: 0.06052316129 | GR26: 0.06109699309 | GS26: 0.0616614908 | GT26: 0.06221685112 | GU26: 0.06276334226 | GV26: 0.06330105364 | GW26: 0.06383025348 | GX26: 0.06435101926 | GY26: 0.0648729831 | GZ26: 0.06538687646 | HA26: 0.06589258015 | HB26: 0.06639035642 | HC26: 0.06688027084 | HD26: 0.06736256182 | HE26: 0.06783729494 | HF26: 0.06830461323 | HG26: 0.06876474321 | HH26: 0.06921775043 | HI26: 0.06966383755 | HJ26: 0.07010307014 | HK26: 0.07054358423 | HL26: 0.0709775418 | HM26: 0.07140483558 | HN26: 0.07182566226 | HO26: 0.07224007547 | HP26: 0.07264826 | HQ26: 0.07305026352 | HR26: 0.07344620526 | HS26: 0.07383626401 | HT26: 0.07422047555 | HU26: 0.07459902465 | HV26: 0.07497193515 | HW26: 0.07534615099 | HX26: 0.07571492493 | HY26: 0.07607820928 | HZ26: 0.07643618882 | IA26: 0.07678887546 | IB26: 0.07713644207 | IC26: 0.07747891247 | ID26: 0.07781637013 | IE26: 0.07814898193 | IF26: 0.07847675383 | IG26: 0.07879985273 | IH26: 0.07911828458 | II26: 0.07943798602 | IJ26: 0.07975325882 | IK26: 0.08006397784 | IL26: 0.08037030399 | IM26: 0.08067223132 | IN26: 0.08096990883 | IO26: 0.08126334846 | IP26: 0.08155262172 | IQ26: 0.08183785975 | IR26: 0.0821190685 | IS26: 0.08239637911 | IT26: 0.0826698035 | IU26: 0.08294444382 | IV26: 0.08321539462 | IW26: 0.08348255455 | IX26: 0.08374603093 | IY26: 0.08400583565 | IZ26: 0.08426208794 | JA26: 0.08451478779 | JB26: 0.08476399481 | JC26: 0.08500982225 | JD26: 0.08525227606 | JE26: 0.08549145758 | JF26: 0.08572737277
C27: Check | D27: Vrai / Faux | F27: TRUE
C30: Free Cash-Flow to Firm | D30: M€ | F30: 36.89970956 | I30: -3.458600116 | J30: -1.008844907 | K30: -0.3015532407 | L30: -0.7966574074 | M30: -0.7966574074 | N30: -4.285626157 | O30: -7.774594907 | P30: -0.05400115741 | Q30: -0.05400115741 | R30: -0.05400115741 | S30: -3.914298032 | T30: -0.05400115741 | U30: -0.05400115741 | V30: -0.05400115741 | W30: -3.914298032 | X30: -2.627532407 | Y30: -0.05400115741 | Z30: -1.340766782 | AA30: 0.2808769792 | AB30: 0.2807580807 | AC30: 0.2806390337 | AD30: 0.2805198378 | AE30: 0.2804004929 | AF30: 0.2802809989 | AG30: 0.2801613555 | AH30: 0.2800415625 | AI30: 0.2799216198 | AJ30: 0.2798015272 | AK30: 0.2796812844 | AL30: 0.2795608914 | AM30: 0.2794403478 | AN30: 0.2793196536 | AO30: 0.2791988085 | AP30: 0.2790778123 | AQ30: 0.2789566649 | AR30: 0.2788353661 | AS30: 0.2787139157 | AT30: 0.2785923134 | AU30: 0.2784705591 | AV30: 0.2783486527 | AW30: 0.2782265938 | AX30: 0.2781043824 | AY30: 0.2779820182 | AZ30: 0.2778595011 | BA30: 0.2777368308 | BB30: 0.2776140072 | BC30: 0.27749103 | BD30: 0.2773678991 | BE30: 0.2772446143 | BF30: 0.2771211755 | BG30: 0.2769975823 | BH30: 0.2768738346 | BI30: 0.2767499322 | BJ30: 0.276625875 | BK30: 0.2765016626 | BL30: 0.2763772951 | BM30: 0.276252772 | BN30: 0.2761280933 | BO30: 0.2760032588 | BP30: 0.2758782682 | BQ30: 0.2757531214 | BR30: 0.2756278181 | BS30: 0.2755023582 | BT30: 0.2753767415 | BU30: 0.2752509678 | BV30: 0.2751250368 | BW30: 0.2749989485 | BX30: 0.2748727025 | BY30: 0.2747462987 | BZ30: 0.2746197369 | CA30: 0.2744930169 | CB30: 0.2743661385 | CC30: 0.2742391015 | CD30: 0.2741119058 | CE30: 0.273984551 | CF30: 0.273857037 | CG30: 0.2737293636 | CH30: 0.2736015307 | CI30: 0.2734735379 | CJ30: 0.2733453852 | CK30: 0.2732170723 | CL30: 0.2730885989 | CM30: 0.272959965 | CN30: 0.2728311703 | CO30: 0.2727022146 | CP30: 0.2725730977 | CQ30: 0.2724438194 | CR30: 0.2723143796 | CS30: 0.2721847779 | CT30: 0.2720550142 | CU30: 0.2719250883 | CV30: 0.271795 | CW30: 0.2716647491 | CX30: 0.2715343353 | CY30: 0.2714037586 | CZ30: 0.2712730186 | DA30: 0.2711421153 | DB30: 0.2710110482 | DC30: 0.2708798174 | DD30: 0.2707484225 | DE30: 0.2706168634 | DF30: 0.2704851398 | DG30: 0.2703532515 | DH30: 0.2702211984 | DI30: 0.2700889803 | DJ30: 0.2699565968 | DK30: 0.2698240479 | DL30: 0.2696913333 | DM30: 0.2695584528 | DN30: 0.2694254062 | DO30: 0.2692921933 | DP30: 0.2691588139 | DQ30: 0.2690252678 | DR30: 0.2688915547 | DS30: 0.2687576745 | DT30: 0.2686236269 | DU30: 0.2684894118 | DV30: 0.2683550289 | DW30: 0.268220478 | DX30: 0.2680857589 | DY30: 0.2679508715 | DZ30: 0.2678158154 | EA30: 0.2676805905 | EB30: 0.2675451966 | EC30: 0.2674096334 | ED30: 0.2672739008 | EE30: 0.2671379985 | EF30: 0.2670019264 | EG30: 0.2668656841 | EH30: 0.2667292715 | EI30: 0.2665926885 | EJ30: 0.2664559347 | EK30: 0.2663190099 | EL30: 0.266181914 | EM30: 0.2660446468 | EN30: 0.2659072079 | EO30: 0.2657695973 | EP30: 0.2656318146 | EQ30: 0.2742207818 | ER30: 0.2740826545 | ES30: 0.2739443545 | ET30: 0.2738058816 | EU30: 0.2736672356 | EV30: 0.2735284164 | EW30: 0.2733894236 | EX30: 0.273250257 | EY30: 0.2731109166 | EZ30: 0.2729714019 | FA30: 0.2728317128 | FB30: 0.2726918492 | FC30: 0.2775577145 | FD30: 0.2774175009 | FE30: 0.2772771121 | FF30: 0.2771365478 | FG30: 0.2769958078 | FH30: 0.2768548919 | FI30: 0.2767137998 | FJ30: 0.2765725313 | FK30: 0.2764310863 | FL30: 0.2762894645 | FM30: 0.2761476656 | FN30: 0.2760056895 | FO30: 0.2809445283 | FP30: 0.280802197 | FQ30: 0.2806596878 | FR30: 0.2805170005 | FS30: 0.2803741348 | FT30: 0.2802310906 | FU30: 0.2800878675 | FV30: 0.2799444654 | FW30: 0.279800884 | FX30: 0.2796571232 | FY30: 0.2795131827 | FZ30: 0.2793690622 | GA30: 0.2843819689 | GB30: 0.2842374879 | GC30: 0.2840928263 | GD30: 0.2839479839 | GE30: 0.2838029605 | GF30: 0.2836577557 | GG30: 0.2835123695 | GH30: 0.2833668015 | GI30: 0.2832210515 | GJ30: 0.2830751194 | GK30: 0.2829290049 | GL30: 0.2827827077 | GM30: 0.287870793 | GN30: 0.2877241299 | GO30: 0.2875772834 | GP30: 0.2874302533 | GQ30: 0.2872830395 | GR30: 0.2871356416 | GS30: 0.2869880595 | GT30: 0.286840293 | GU30: 0.2866923417 | GV30: 0.2865442055 | GW30: 0.2863958841 | GX30: 0.2862473773 | GY30: 0.2914117687 | GZ30: 0.2912628904 | HA30: 0.291113826 | HB30: 0.2909645753 | HC30: 0.290815138 | HD30: 0.2906655139 | HE30: 0.2905157028 | HF30: 0.2903657044 | HG30: 0.2902155186 | HH30: 0.290065145 | HI30: 0.2899145834 | HJ30: 0.2897638336 | HK30: 0.2950056755 | HL30: 0.2948545486 | HM30: 0.2947032328 | HN30: 0.2945517279 | HO30: 0.2944000336 | HP30: 0.2942481496 | HQ30: 0.2940960758 | HR30: 0.293943812 | HS30: 0.2937913577 | HT30: 0.293638713 | HU30: 0.2934858774 | HV30: 0.2933328507 | HW30: 0.2986533046 | HX30: 0.2984998952 | HY30: 0.298346294 | HZ30: 0.2981925008 | IA30: 0.2980385154 | IB30: 0.2978843374 | IC30: 0.2977299668 | ID30: 0.2975754032 | IE30: 0.2974206464 | IF30: 0.2972656961 | IG30: 0.2971105521 | IH30: 0.2969552143 | II30: 0.3023554591 | IJ30: 0.3021997326 | IK30: 0.3020438115 | IL30: 0.3018876955 | IM30: 0.3017313843 | IN30: 0.3015748778 | IO30: 0.3014181756 | IP30: 0.3012612775 | IQ30: 0.3011041833 | IR30: 0.3009468927 | IS30: 0.3007894056 | IT30: 0.3006317215 | IU30: 0.3061129539 | IV30: 0.3059548755 | IW30: 0.3057965994 | IX30: 0.3056381254 | IY30: 0.3054794534 | IZ30: 0.305320583 | JA30: 0.3051615141 | JB30: 0.3050022463 | JC30: 0.3048427794 | JD30: 0.3046831132 | JE30: 0.3045232474 | JF30: 0.3043631818
C31: Interest expenses | D31: M€ | F31: -3.404597349 | I31: 0 | J31: 0 | K31: 0 | L31: 0 | M31: 0 | N31: 0 | O31: 0 | P31: 0 | Q31: 0 | R31: 0 | S31: 0 | T31: 0 | U31: 0 | V31: 0 | W31: 0 | X31: 0 | Y31: 0 | Z31: 0 | AA31: -0.03569701042 | AB31: -0.03552679207 | AC31: -0.03535629002 | AD31: -0.0351855038 | AE31: -0.03501443294 | AF31: -0.03484307696 | AG31: -0.03467143539 | AH31: -0.03449950774 | AI31: -0.03432729356 | AJ31: -0.03415479234 | AK31: -0.03398200363 | AL31: -0.03380892693 | AM31: -0.03363556178 | AN31: -0.03346190768 | AO31: -0.03328796416 | AP31: -0.03311373073 | AQ31: -0.03293920691 | AR31: -0.03276439222 | AS31: -0.03258928618 | AT31: -0.03241388829 | AU31: -0.03223819807 | AV31: -0.03206221503 | AW31: -0.03188593868 | AX31: -0.03170936855 | AY31: -0.03153250413 | AZ31: -0.03135534493 | BA31: -0.03117789047 | BB31: -0.03100014026 | BC31: -0.03082209379 | BD31: -0.03064375058 | BE31: -0.03046511013 | BF31: -0.03028617194 | BG31: -0.03010693553 | BH31: -0.02992740039 | BI31: -0.02974756602 | BJ31: -0.02956743193 | BK31: -0.02938699761 | BL31: -0.02920626258 | BM31: -0.02902522631 | BN31: -0.02884388832 | BO31: -0.0286622481 | BP31: -0.02848030515 | BQ31: -0.02829805895 | BR31: -0.02811550902 | BS31: -0.02793265483 | BT31: -0.02774949589 | BU31: -0.02756603168 | BV31: -0.0273822617 | BW31: -0.02719818543 | BX31: -0.02701380237 | BY31: -0.02682911201 | BZ31: -0.02664411383 | CA31: -0.02645880732 | CB31: -0.02627319196 | CC31: -0.02608726725 | CD31: -0.02590103266 | CE31: -0.02571448768 | CF31: -0.02552763179 | CG31: -0.02534046447 | CH31: -0.02515298521 | CI31: -0.02496519349 | CJ31: -0.02477708878 | CK31: -0.02458867056 | CL31: -0.02439993831 | CM31: -0.0242108915 | CN31: -0.02402152962 | CO31: -0.02383185213 | CP31: -0.02364185852 | CQ31: -0.02345154825 | CR31: -0.0232609208 | CS31: -0.02306997563 | CT31: -0.02287871222 | CU31: -0.02268713004 | CV31: -0.02249522856 | CW31: -0.02230300724 | CX31: -0.02211046555 | CY31: -0.02191760295 | CZ31: -0.02172441892 | DA31: -0.02153091292 | DB31: -0.02133708441 | DC31: -0.02114293285 | DD31: -0.0209484577 | DE31: -0.02075365843 | DF31: -0.02055853449 | DG31: -0.02036308535 | DH31: -0.02016731046 | DI31: -0.01997120927 | DJ31: -0.01977478125 | DK31: -0.01957802585 | DL31: -0.01938094253 | DM31: -0.01918353073 | DN31: -0.01898578992 | DO31: -0.01878771953 | DP31: -0.01858931903 | DQ31: -0.01839058786 | DR31: -0.01819152547 | DS31: -0.01799213131 | DT31: -0.01779240483 | DU31: -0.01759234547 | DV31: -0.01739195268 | DW31: -0.0171912259 | DX31: -0.01699016457 | DY31: -0.01678876815 | DZ31: -0.01658703606 | EA31: -0.01638496775 | EB31: -0.01618256266 | EC31: -0.01597982023 | ED31: -0.0157767399 | EE31: -0.0155733211 | EF31: -0.01536956327 | EG31: -0.01516546584 | EH31: -0.01496102824 | EI31: -0.01475624992 | EJ31: -0.01455113031 | EK31: -0.01434566882 | EL31: -0.0141398649 | EM31: -0.01393371798 | EN31: -0.01372722747 | EO31: -0.01352039282 | EP31: -0.01331321344 | EQ31: -0.01310568876 | ER31: -0.0128978182 | ES31: -0.0126896012 | ET31: -0.01248103717 | EU31: -0.01227212553 | EV31: -0.0120628657 | EW31: -0.01185325711 | EX31: -0.01164329917 | EY31: -0.0114329913 | EZ31: -0.01122233292 | FA31: -0.01101132344 | FB31: -0.01079996228 | FC31: -0.01058824885 | FD31: -0.01037618256 | FE31: -0.01016376283 | FF31: -0.009950989068 | FG31: -0.009737860682 | FH31: -0.009524377081 | FI31: -0.009310537675 | FJ31: -0.00909634187 | FK31: -0.008881789072 | FL31: -0.008666878686 | FM31: -0.008451610116 | FN31: -0.008235982765 | FO31: -0.008019996035 | FP31: -0.007803649327 | FQ31: -0.007586942042 | FR31: -0.007369873577 | FS31: -0.007152443332 | FT31: -0.006934650703 | FU31: -0.006716495086 | FV31: -0.006497975877 | FW31: -0.006279092469 | FX31: -0.006059844255 | FY31: -0.005840230628 | FZ31: -0.005620250977 | GA31: -0.005399904695 | GB31: -0.005179191168 | GC31: -0.004958109785 | GD31: -0.004736659934 | GE31: -0.004514840999 | GF31: -0.004292652366 | GG31: -0.004070093419 | GH31: -0.00384716354 | GI31: -0.003623862111 | GJ31: -0.003400188514 | GK31: -0.003176142127 | GL31: -0.002951722329 | GM31: -0.002726928498 | GN31: -0.002501760011 | GO31: -0.002276216244 | GP31: -0.002050296569 | GQ31: -0.001824000362 | GR31: -0.001597326995 | GS31: -0.001370275839 | GT31: -0.001142846264 | GU31: -0.0009150376401 | GV31: -0.0006868493349 | GW31: -0.000458280716 | GX31: -0.0002293311493 | GY31: -0.0002293311493 | GZ31: -0.0002293311493 | HA31: -0.0002293311493 | HB31: -0.0002293311493 | HC31: -0.0002293311493 | HD31: -0.0002293311493 | HE31: -0.0002293311493 | HF31: -0.0002293311493 | HG31: -0.0002293311493 | HH31: -0.0002293311493 | HI31: -0.0002293311493 | HJ31: -0.0002293311493 | HK31: -0.0002293311493 | HL31: -0.0002293311493 | HM31: -0.0002293311493 | HN31: -0.0002293311493 | HO31: -0.0002293311493 | HP31: -0.0002293311493 | HQ31: -0.0002293311493 | HR31: -0.0002293311493 | HS31: -0.0002293311493 | HT31: -0.0002293311493 | HU31: -0.0002293311493 | HV31: -0.0002293311493 | HW31: -0.0002293311493 | HX31: -0.0002293311493 | HY31: -0.0002293311493 | HZ31: -0.0002293311493 | IA31: -0.0002293311493 | IB31: -0.0002293311493 | IC31: -0.0002293311493 | ID31: -0.0002293311493 | IE31: -0.0002293311493 | IF31: -0.0002293311493 | IG31: -0.0002293311493 | IH31: -0.0002293311493 | II31: -0.0002293311493 | IJ31: -0.0002293311493 | IK31: -0.0002293311493 | IL31: -0.0002293311493 | IM31: -0.0002293311493 | IN31: -0.0002293311493 | IO31: -0.0002293311493 | IP31: -0.0002293311493 | IQ31: -0.0002293311493 | IR31: -0.0002293311493 | IS31: -0.0002293311493 | IT31: -0.0002293311493 | IU31: -0.0002293311493 | IV31: -0.0002293311493 | IW31: -0.0002293311493 | IX31: -0.0002293311493 | IY31: -0.0002293311493 | IZ31: -0.0002293311493 | JA31: -0.0002293311493 | JB31: -0.0002293311493 | JC31: -0.0002293311493 | JD31: -0.0002293311493 | JE31: -0.0002293311493 | JF31: -0.0002293311493
C32: Debt funding | D32: M€ | F32: 21.41820625 | I32: 0 | J32: 0 | K32: 0 | L32: 0 | M32: 0 | N32: 1.468707986 | O32: 7.774594907 | P32: 0.05400115741 | Q32: 0.05400115741 | R32: 0.05400115741 | S32: 3.914298032 | T32: 0.05400115741 | U32: 0.05400115741 | V32: 0.05400115741 | W32: 3.914298032 | X32: 2.627532407 | Y32: 0.05400115741 | Z32: 1.340766782 | AA32: 0 | AB32: 0 | AC32: 0 | AD32: 0 | AE32: 0 | AF32: 0 | AG32: 0 | AH32: 0 | AI32: 0 | AJ32: 0 | AK32: 0 | AL32: 0 | AM32: 0 | AN32: 0 | AO32: 0 | AP32: 0 | AQ32: 0 | AR32: 0 | AS32: 0 | AT32: 0 | AU32: 0 | AV32: 0 | AW32: 0 | AX32: 0 | AY32: 0 | AZ32: 0 | BA32: 0 | BB32: 0 | BC32: 0 | BD32: 0 | BE32: 0 | BF32: 0 | BG32: 0 | BH32: 0 | BI32: 0 | BJ32: 0 | BK32: 0 | BL32: 0 | BM32: 0 | BN32: 0 | BO32: 0 | BP32: 0 | BQ32: 0 | BR32: 0 | BS32: 0 | BT32: 0 | BU32: 0 | BV32: 0 | BW32: 0 | BX32: 0 | BY32: 0 | BZ32: 0 | CA32: 0 | CB32: 0 | CC32: 0 | CD32: 0 | CE32: 0 | CF32: 0 | CG32: 0 | CH32: 0 | CI32: 0 | CJ32: 0 | CK32: 0 | CL32: 0 | CM32: 0 | CN32: 0 | CO32: 0 | CP32: 0 | CQ32: 0 | CR32: 0 | CS32: 0 | CT32: 0 | CU32: 0 | CV32: 0 | CW32: 0 | CX32: 0 | CY32: 0 | CZ32: 0 | DA32: 0 | DB32: 0 | DC32: 0 | DD32: 0 | DE32: 0 | DF32: 0 | DG32: 0 | DH32: 0 | DI32: 0 | DJ32: 0 | DK32: 0 | DL32: 0 | DM32: 0 | DN32: 0 | DO32: 0 | DP32: 0 | DQ32: 0 | DR32: 0 | DS32: 0 | DT32: 0 | DU32: 0 | DV32: 0 | DW32: 0 | DX32: 0 | DY32: 0 | DZ32: 0 | EA32: 0 | EB32: 0 | EC32: 0 | ED32: 0 | EE32: 0 | EF32: 0 | EG32: 0 | EH32: 0 | EI32: 0 | EJ32: 0 | EK32: 0 | EL32: 0 | EM32: 0 | EN32: 0 | EO32: 0 | EP32: 0 | EQ32: 0 | ER32: 0 | ES32: 0 | ET32: 0 | EU32: 0 | EV32: 0 | EW32: 0 | EX32: 0 | EY32: 0 | EZ32: 0 | FA32: 0 | FB32: 0 | FC32: 0 | FD32: 0 | FE32: 0 | FF32: 0 | FG32: 0 | FH32: 0 | FI32: 0 | FJ32: 0 | FK32: 0 | FL32: 0 | FM32: 0 | FN32: 0 | FO32: 0 | FP32: 0 | FQ32: 0 | FR32: 0 | FS32: 0 | FT32: 0 | FU32: 0 | FV32: 0 | FW32: 0 | FX32: 0 | FY32: 0 | FZ32: 0 | GA32: 0 | GB32: 0 | GC32: 0 | GD32: 0 | GE32: 0 | GF32: 0 | GG32: 0 | GH32: 0 | GI32: 0 | GJ32: 0 | GK32: 0 | GL32: 0 | GM32: 0 | GN32: 0 | GO32: 0 | GP32: 0 | GQ32: 0 | GR32: 0 | GS32: 0 | GT32: 0 | GU32: 0 | GV32: 0 | GW32: 0 | GX32: 0 | GY32: 0 | GZ32: 0 | HA32: 0 | HB32: 0 | HC32: 0 | HD32: 0 | HE32: 0 | HF32: 0 | HG32: 0 | HH32: 0 | HI32: 0 | HJ32: 0 | HK32: 0 | HL32: 0 | HM32: 0 | HN32: 0 | HO32: 0 | HP32: 0 | HQ32: 0 | HR32: 0 | HS32: 0 | HT32: 0 | HU32: 0 | HV32: 0 | HW32: 0 | HX32: 0 | HY32: 0 | HZ32: 0 | IA32: 0 | IB32: 0 | IC32: 0 | ID32: 0 | IE32: 0 | IF32: 0 | IG32: 0 | IH32: 0 | II32: 0 | IJ32: 0 | IK32: 0 | IL32: 0 | IM32: 0 | IN32: 0 | IO32: 0 | IP32: 0 | IQ32: 0 | IR32: 0 | IS32: 0 | IT32: 0 | IU32: 0 | IV32: 0 | IW32: 0 | IX32: 0 | IY32: 0 | IZ32: 0 | JA32: 0 | JB32: 0 | JC32: 0 | JD32: 0 | JE32: 0 | JF32: 0
C33: Repayment of Debt Principle | D33: M€ | F33: -21.41820625 | I33: 0 | J33: 0 | K33: 0 | L33: 0 | M33: 0 | N33: 0 | O33: 0 | P33: 0 | Q33: 0 | R33: 0 | S33: 0 | T33: 0 | U33: 0 | V33: 0 | W33: 0 | X33: 0 | Y33: 0 | Z33: 0 | AA33: -0.1189900347 | AB33: -0.1189900347 | AC33: -0.1189900347 | AD33: -0.1189900347 | AE33: -0.1189900347 | AF33: -0.1189900347 | AG33: -0.1189900347 | AH33: -0.1189900347 | AI33: -0.1189900347 | AJ33: -0.1189900347 | AK33: -0.1189900347 | AL33: -0.1189900347 | AM33: -0.1189900347 | AN33: -0.1189900347 | AO33: -0.1189900347 | AP33: -0.1189900347 | AQ33: -0.1189900347 | AR33: -0.1189900347 | AS33: -0.1189900347 | AT33: -0.1189900347 | AU33: -0.1189900347 | AV33: -0.1189900347 | AW33: -0.1189900347 | AX33: -0.1189900347 | AY33: -0.1189900347 | AZ33: -0.1189900347 | BA33: -0.1189900347 | BB33: -0.1189900347 | BC33: -0.1189900347 | BD33: -0.1189900347 | BE33: -0.1189900347 | BF33: -0.1189900347 | BG33: -0.1189900347 | BH33: -0.1189900347 | BI33: -0.1189900347 | BJ33: -0.1189900347 | BK33: -0.1189900347 | BL33: -0.1189900347 | BM33: -0.1189900347 | BN33: -0.1189900347 | BO33: -0.1189900347 | BP33: -0.1189900347 | BQ33: -0.1189900347 | BR33: -0.1189900347 | BS33: -0.1189900347 | BT33: -0.1189900347 | BU33: -0.1189900347 | BV33: -0.1189900347 | BW33: -0.1189900347 | BX33: -0.1189900347 | BY33: -0.1189900347 | BZ33: -0.1189900347 | CA33: -0.1189900347 | CB33: -0.1189900347 | CC33: -0.1189900347 | CD33: -0.1189900347 | CE33: -0.1189900347 | CF33: -0.1189900347 | CG33: -0.1189900347 | CH33: -0.1189900347 | CI33: -0.1189900347 | CJ33: -0.1189900347 | CK33: -0.1189900347 | CL33: -0.1189900347 | CM33: -0.1189900347 | CN33: -0.1189900347 | CO33: -0.1189900347 | CP33: -0.1189900347 | CQ33: -0.1189900347 | CR33: -0.1189900347 | CS33: -0.1189900347 | CT33: -0.1189900347 | CU33: -0.1189900347 | CV33: -0.1189900347 | CW33: -0.1189900347 | CX33: -0.1189900347 | CY33: -0.1189900347 | CZ33: -0.1189900347 | DA33: -0.1189900347 | DB33: -0.1189900347 | DC33: -0.1189900347 | DD33: -0.1189900347 | DE33: -0.1189900347 | DF33: -0.1189900347 | DG33: -0.1189900347 | DH33: -0.1189900347 | DI33: -0.1189900347 | DJ33: -0.1189900347 | DK33: -0.1189900347 | DL33: -0.1189900347 | DM33: -0.1189900347 | DN33: -0.1189900347 | DO33: -0.1189900347 | DP33: -0.1189900347 | DQ33: -0.1189900347 | DR33: -0.1189900347 | DS33: -0.1189900347 | DT33: -0.1189900347 | DU33: -0.1189900347 | DV33: -0.1189900347 | DW33: -0.1189900347 | DX33: -0.1189900347 | DY33: -0.1189900347 | DZ33: -0.1189900347 | EA33: -0.1189900347 | EB33: -0.1189900347 | EC33: -0.1189900347 | ED33: -0.1189900347 | EE33: -0.1189900347 | EF33: -0.1189900347 | EG33: -0.1189900347 | EH33: -0.1189900347 | EI33: -0.1189900347 | EJ33: -0.1189900347 | EK33: -0.1189900347 | EL33: -0.1189900347 | EM33: -0.1189900347 | EN33: -0.1189900347 | EO33: -0.1189900347 | EP33: -0.1189900347 | EQ33: -0.1189900347 | ER33: -0.1189900347 | ES33: -0.1189900347 | ET33: -0.1189900347 | EU33: -0.1189900347 | EV33: -0.1189900347 | EW33: -0.1189900347 | EX33: -0.1189900347 | EY33: -0.1189900347 | EZ33: -0.1189900347 | FA33: -0.1189900347 | FB33: -0.1189900347 | FC33: -0.1189900347 | FD33: -0.1189900347 | FE33: -0.1189900347 | FF33: -0.1189900347 | FG33: -0.1189900347 | FH33: -0.1189900347 | FI33: -0.1189900347 | FJ33: -0.1189900347 | FK33: -0.1189900347 | FL33: -0.1189900347 | FM33: -0.1189900347 | FN33: -0.1189900347 | FO33: -0.1189900347 | FP33: -0.1189900347 | FQ33: -0.1189900347 | FR33: -0.1189900347 | FS33: -0.1189900347 | FT33: -0.1189900347 | FU33: -0.1189900347 | FV33: -0.1189900347 | FW33: -0.1189900347 | FX33: -0.1189900347 | FY33: -0.1189900347 | FZ33: -0.1189900347 | GA33: -0.1189900347 | GB33: -0.1189900347 | GC33: -0.1189900347 | GD33: -0.1189900347 | GE33: -0.1189900347 | GF33: -0.1189900347 | GG33: -0.1189900347 | GH33: -0.1189900347 | GI33: -0.1189900347 | GJ33: -0.1189900347 | GK33: -0.1189900347 | GL33: -0.1189900347 | GM33: -0.1189900347 | GN33: -0.1189900347 | GO33: -0.1189900347 | GP33: -0.1189900347 | GQ33: -0.1189900347 | GR33: -0.1189900347 | GS33: -0.1189900347 | GT33: -0.1189900347 | GU33: -0.1189900347 | GV33: -0.1189900347 | GW33: -0.1189900347 | GX33: -0.1189900347 | GY33: 0 | GZ33: 0 | HA33: 0 | HB33: 0 | HC33: 0 | HD33: 0 | HE33: 0 | HF33: 0 | HG33: 0 | HH33: 0 | HI33: 0 | HJ33: 0 | HK33: 0 | HL33: 0 | HM33: 0 | HN33: 0 | HO33: 0 | HP33: 0 | HQ33: 0 | HR33: 0 | HS33: 0 | HT33: 0 | HU33: 0 | HV33: 0 | HW33: 0 | HX33: 0 | HY33: 0 | HZ33: 0 | IA33: 0 | IB33: 0 | IC33: 0 | ID33: 0 | IE33: 0 | IF33: 0 | IG33: 0 | IH33: 0 | II33: 0 | IJ33: 0 | IK33: 0 | IL33: 0 | IM33: 0 | IN33: 0 | IO33: 0 | IP33: 0 | IQ33: 0 | IR33: 0 | IS33: 0 | IT33: 0 | IU33: 0 | IV33: 0 | IW33: 0 | IX33: 0 | IY33: 0 | IZ33: 0 | JA33: 0 | JB33: 0 | JC33: 0 | JD33: 0 | JE33: 0 | JF33: 0
C34: Free Cash-Flow to Equity | D34: M€ | F34: 33.49511221 | I34: -3.458600116 | J34: -1.008844907 | K34: -0.3015532407 | L34: -0.7966574074 | M34: -0.7966574074 | N34: -2.816918171 | O34: 0 | P34: 0 | Q34: 0 | R34: 0 | S34: 0 | T34: 0 | U34: 0 | V34: 0 | W34: 0 | X34: 0 | Y34: 0 | Z34: 0 | AA34: 0.126189934 | AB34: 0.1262412539 | AC34: 0.1262927089 | AD34: 0.1263442993 | AE34: 0.1263960253 | AF34: 0.1264478872 | AG34: 0.1264998854 | AH34: 0.12655202 | AI34: 0.1266042915 | AJ34: 0.1266567001 | AK34: 0.1267092461 | AL34: 0.1267619297 | AM34: 0.1268147513 | AN34: 0.1268677112 | AO34: 0.1269208096 | AP34: 0.1269740469 | AQ34: 0.1270274233 | AR34: 0.1270809392 | AS34: 0.1271345948 | AT34: 0.1271883904 | AU34: 0.1272423263 | AV34: 0.1272964029 | AW34: 0.1273506204 | AX34: 0.1274049791 | AY34: 0.1274594794 | AZ34: 0.1275141214 | BA34: 0.1275689056 | BB34: 0.1276238322 | BC34: 0.1276789015 | BD34: 0.1277341138 | BE34: 0.1277894695 | BF34: 0.1278449688 | BG34: 0.127900612 | BH34: 0.1279563995 | BI34: 0.1280123315 | BJ34: 0.1280684083 | BK34: 0.1281246303 | BL34: 0.1281809978 | BM34: 0.128237511 | BN34: 0.1282941703 | BO34: 0.128350976 | BP34: 0.1284079283 | BQ34: 0.1284650277 | BR34: 0.1285222744 | BS34: 0.1285796687 | BT34: 0.1286372109 | BU34: 0.1286949014 | BV34: 0.1287527404 | BW34: 0.1288107283 | BX34: 0.1288688654 | BY34: 0.128927152 | BZ34: 0.1289855884 | CA34: 0.1290441749 | CB34: 0.1291029118 | CC34: 0.1291617996 | CD34: 0.1292208384 | CE34: 0.1292800286 | CF34: 0.1293393705 | CG34: 0.1293988644 | CH34: 0.1294585107 | CI34: 0.1295183097 | CJ34: 0.1295782617 | CK34: 0.129638367 | CL34: 0.1296986259 | CM34: 0.1297590388 | CN34: 0.129819606 | CO34: 0.1298803278 | CP34: 0.1299412045 | CQ34: 0.1300022365 | CR34: 0.130063424 | CS34: 0.1301247675 | CT34: 0.1301862672 | CU34: 0.1302479235 | CV34: 0.1303097367 | CW34: 0.1303717071 | CX34: 0.1304338351 | CY34: 0.1304961209 | CZ34: 0.130558565 | DA34: 0.1306211676 | DB34: 0.1306839291 | DC34: 0.1307468498 | DD34: 0.1308099301 | DE34: 0.1308731702 | DF34: 0.1309365706 | DG34: 0.1310001315 | DH34: 0.1310638533 | DI34: 0.1311277363 | DJ34: 0.1311917809 | DK34: 0.1312559874 | DL34: 0.1313203561 | DM34: 0.1313848874 | DN34: 0.1314495816 | DO34: 0.1315144391 | DP34: 0.1315794602 | DQ34: 0.1316446452 | DR34: 0.1317099945 | DS34: 0.1317755084 | DT34: 0.1318411874 | DU34: 0.1319070316 | DV34: 0.1319730415 | DW34: 0.1320392174 | DX34: 0.1321055596 | DY34: 0.1321720686 | DZ34: 0.1322387446 | EA34: 0.132305588 | EB34: 0.1323725992 | EC34: 0.1324397785 | ED34: 0.1325071262 | EE34: 0.1325746427 | EF34: 0.1326423284 | EG34: 0.1327101835 | EH34: 0.1327782086 | EI34: 0.1328464038 | EJ34: 0.1329147696 | EK34: 0.1329833064 | EL34: 0.1330520144 | EM34: 0.1331208941 | EN34: 0.1331899457 | EO34: 0.1332591697 | EP34: 0.1333285664 | EQ34: 0.1421250583 | ER34: 0.1421948015 | ES34: 0.1422647186 | ET34: 0.1423348097 | EU34: 0.1424050754 | EV34: 0.142475516 | EW34: 0.1425461317 | EX34: 0.1426169232 | EY34: 0.1426878905 | EZ34: 0.1427590342 | FA34: 0.1428303547 | FB34: 0.1429018522 | FC34: 0.1479794309 | FD34: 0.1480512836 | FE34: 0.1481233146 | FF34: 0.148195524 | FG34: 0.1482679124 | FH34: 0.1483404801 | FI34: 0.1484132274 | FJ34: 0.1484861547 | FK34: 0.1485592625 | FL34: 0.1486325511 | FM34: 0.1487060208 | FN34: 0.148779672 | FO34: 0.1539344976 | FP34: 0.154008513 | FQ34: 0.1540827111 | FR34: 0.1541570922 | FS34: 0.1542316568 | FT34: 0.1543064051 | FU34: 0.1543813377 | FV34: 0.1544564548 | FW34: 0.1545317569 | FX34: 0.1546072442 | FY34: 0.1546829173 | FZ34: 0.1547587765 | GA34: 0.1599920295 | GB34: 0.160068262 | GC34: 0.1601446818 | GD34: 0.1602212893 | GE34: 0.1602980847 | GF34: 0.1603750686 | GG34: 0.1604522413 | GH34: 0.1605296032 | GI34: 0.1606071547 | GJ34: 0.1606848962 | GK34: 0.160762828 | GL34: 0.1608409506 | GM34: 0.1661538298 | GN34: 0.1662323351 | GO34: 0.1663110324 | GP34: 0.166389922 | GQ34: 0.1664690044 | GR34: 0.1665482799 | GS34: 0.166627749 | GT34: 0.166707412 | GU34: 0.1667872693 | GV34: 0.1668673214 | GW34: 0.1669475686 | GX34: 0.1670280114 | GY34: 0.2911824375 | GZ34: 0.2910335593 | HA34: 0.2908844949 | HB34: 0.2907352441 | HC34: 0.2905858069 | HD34: 0.2904361828 | HE34: 0.2902863717 | HF34: 0.2901363733 | HG34: 0.2899861874 | HH34: 0.2898358138 | HI34: 0.2896852522 | HJ34: 0.2895345025 | HK34: 0.2947763444 | HL34: 0.2946252175 | HM34: 0.2944739017 | HN34: 0.2943223967 | HO34: 0.2941707024 | HP34: 0.2940188185 | HQ34: 0.2938667447 | HR34: 0.2937144808 | HS34: 0.2935620266 | HT34: 0.2934093818 | HU34: 0.2932565462 | HV34: 0.2931035196 | HW34: 0.2984239735 | HX34: 0.2982705641 | HY34: 0.2981169629 | HZ34: 0.2979631697 | IA34: 0.2978091842 | IB34: 0.2976550063 | IC34: 0.2975006356 | ID34: 0.297346072 | IE34: 0.2971913152 | IF34: 0.2970363649 | IG34: 0.296881221 | IH34: 0.2967258831 | II34: 0.302126128 | IJ34: 0.3019704015 | IK34: 0.3018144804 | IL34: 0.3016583643 | IM34: 0.3015020532 | IN34: 0.3013455466 | IO34: 0.3011888444 | IP34: 0.3010319463 | IQ34: 0.3008748522 | IR34: 0.3007175616 | IS34: 0.3005600744 | IT34: 0.3004023904 | IU34: 0.3058836228 | IV34: 0.3057255443 | IW34: 0.3055672682 | IX34: 0.3054087943 | IY34: 0.3052501223 | IZ34: 0.3050912519 | JA34: 0.3049321829 | JB34: 0.3047729151 | JC34: 0.3046134483 | JD34: 0.3044537821 | JE34: 0.3042939163 | JF34: 0.3041338506
C36: Equity IRR | D36: % | F36: 0.1571333706 | I36: 0 | J36: 0 | K36: 0 | L36: 0 | M36: 0 | N36: 0 | O36: 0 | P36: 0 | Q36: 0 | R36: 0 | S36: 0 | T36: 0 | U36: 0 | V36: 0 | W36: 0 | X36: 0 | Y36: 0 | Z36: 0 | AA36: 2.980232239e-09 | AB36: 2.980232239e-09 | AC36: 2.980232239e-09 | AD36: 2.980232239e-09 | AE36: 2.980232239e-09 | AF36: 2.980232239e-09 | AG36: 2.980232239e-09 | AH36: 2.980232239e-09 | AI36: 2.980232239e-09 | AJ36: 2.980232239e-09 | AK36: 2.980232239e-09 | AL36: 2.980232239e-09 | AM36: 2.980232239e-09 | AN36: 2.980232239e-09 | AO36: 2.980232239e-09 | AP36: 2.980232239e-09 | AQ36: 2.980232239e-09 | AR36: 0 | AS36: 0 | AT36: 0 | AU36: 0 | AV36: 0 | AW36: 0 | AX36: 0 | AY36: 0 | AZ36: 0 | BA36: 0 | BB36: 0 | BC36: 0 | BD36: 0 | BE36: 0 | BF36: 0 | BG36: 0 | BH36: 0 | BI36: 0 | BJ36: 0 | BK36: 0 | BL36: 0 | BM36: 0 | BN36: 0 | BO36: 0 | BP36: 0 | BQ36: 0 | BR36: 0 | BS36: 0 | BT36: 0 | BU36: 0 | BV36: 0 | BW36: 0 | BX36: 0 | BY36: 0 | BZ36: 0 | CA36: 0 | CB36: 0 | CC36: 0 | CD36: 0 | CE36: 0 | CF36: 0 | CG36: 0 | CH36: 0 | CI36: 0 | CJ36: 0 | CK36: 0 | CL36: 0 | CM36: 0 | CN36: 0 | CO36: 0 | CP36: 0 | CQ36: 0 | CR36: 0 | CS36: 0 | CT36: 0.001167741418 | CU36: 0.004413351417 | CV36: 0.007570764422 | CW36: 0.01064291894 | CX36: 0.01363277137 | CY36: 0.01654300392 | CZ36: 0.01937637627 | DA36: 0.02213530242 | DB36: 0.02482220829 | DC36: 0.02743961513 | DD36: 0.02998959124 | DE36: 0.03247451484 | DF36: 0.03489625156 | DG36: 0.03725679815 | DH36: 0.03955878913 | DI36: 0.04180339873 | DJ36: 0.04399264157 | DK36: 0.04612797797 | DL36: 0.0482113272 | DM36: 0.05024400651 | DN36: 0.05222753584 | DO36: 0.05416366756 | DP36: 0.05605354011 | DQ36: 0.05789881051 | DR36: 0.05970050395 | DS36: 0.06145990789 | DT36: 0.06317909062 | DU36: 0.06485838592 | DV36: 0.06649923027 | DW36: 0.06810244024 | DX36: 0.06966935098 | DY36: 0.07120071948 | DZ36: 0.0726975292 | EA36: 0.07416102588 | EB36: 0.07559185326 | EC36: 0.07699118555 | ED36: 0.07835961282 | EE36: 0.07969796956 | EF36: 0.08100762069 | EG36: 0.08228879273 | EH36: 0.08354251683 | EI36: 0.0847692579 | EJ36: 0.08596999347 | EK36: 0.08714514077 | EL36: 0.0882953614 | EM36: 0.08942157328 | EN36: 0.09052413404 | EO36: 0.09160390198 | EP36: 0.09266121686 | EQ36: 0.09376387894 | ER36: 0.09484362304 | ES36: 0.0959002763 | ET36: 0.09693471789 | EU36: 0.09794726968 | EV36: 0.0989387691 | EW36: 0.09990951419 | EX36: 0.1008600295 | EY36: 0.1017911017 | EZ36: 0.1027029693 | FA36: 0.1035963714 | FB36: 0.1044715345 | FC36: 0.1053587496 | FD36: 0.1062283456 | FE36: 0.1070800722 | FF36: 0.1079146206 | FG36: 0.1087321937 | FH36: 0.1095334351 | FI36: 0.1103185475 | FJ36: 0.1110879123 | FK36: 0.1118421376 | FL36: 0.1125814021 | FM36: 0.1133062541 | FN36: 0.1140168488 | FO36: 0.1147371829 | FP36: 0.1154438198 | FQ36: 0.1161364734 | FR36: 0.1168157041 | FS36: 0.1174816191 | FT36: 0.1181347549 | FU36: 0.1187751949 | FV36: 0.1194032609 | FW36: 0.1200194299 | FX36: 0.1206237853 | FY36: 0.1212168038 | FZ36: 0.121798557 | GA36: 0.1223882258 | GB36: 0.1229669511 | GC36: 0.1235346377 | GD36: 0.1240917146 | GE36: 0.1246382535 | GF36: 0.1251746714 | GG36: 0.1257010281 | GH36: 0.12621755 | GI36: 0.1267246187 | GJ36: 0.1272223055 | GK36: 0.1277109683 | GL36: 0.1281906545 | GM36: 0.12867679 | GN36: 0.1291544139 | GO36: 0.1296232164 | GP36: 0.130083555 | GQ36: 0.1305354774 | GR36: 0.1309793055 | GS36: 0.1314150751 | GT36: 0.131842953 | GU36: 0.132263273 | GV36: 0.1326760352 | GW36: 0.1330815613 | GX36: 0.1334798515 | GY36: 0.1341596067 | GZ36: 0.1348236263 | HA36: 0.1354717314 | HB36: 0.1361046612 | HC36: 0.136722666 | HD36: 0.1373264372 | HE36: 0.1379161894 | HF36: 0.1384923637 | HG36: 0.139055568 | HH36: 0.139605993 | HI36: 0.1401441991 | HJ36: 0.1406703651 | HK36: 0.1411943734 | HL36: 0.1417072594 | HM36: 0.1422088087 | HN36: 0.1426995099 | HO36: 0.1431794822 | HP36: 0.1436492264 | HQ36: 0.1441088259 | HR36: 0.1445585787 | HS36: 0.1449989021 | HT36: 0.1454299033 | HU36: 0.1458519638 | HV36: 0.1462651908 | HW36: 0.1466773212 | HX36: 0.1470811427 | HY36: 0.1474765837 | HZ36: 0.147864002 | IA36: 0.1482434452 | IB36: 0.1486152709 | IC36: 0.1489795268 | ID36: 0.1493364036 | IE36: 0.1496862352 | IF36: 0.1500290334 | IG36: 0.1503651202 | IH36: 0.1506945193 | II36: 0.1510234416 | IJ36: 0.1513462007 | IK36: 0.1516625941 | IL36: 0.1519728839 | IM36: 0.152277106 | IN36: 0.1525755107 | IO36: 0.1528681338 | IP36: 0.1531550944 | IQ36: 0.153436631 | IR36: 0.1537127793 | IS36: 0.1539837658 | IT36: 0.1542495906 | IU36: 0.1545152605 | IV36: 0.1547761977 | IW36: 0.1550321877 | IX36: 0.155283457 | IY36: 0.1555300057 | IZ36: 0.1557720363 | JA36: 0.1560095608 | JB36: 0.1562426627 | JC36: 0.1564715445 | JD36: 0.1566961944 | JE36: 0.156916815 | JF36: 0.1571333706
C37: Check | D37: Vrai / Faux | F37: TRUE
B40: C- | C40: Metrics
C42: Project metrics
I44: 2021-07-31 | J44: 2021-08-31 | K44: 2021-09-30 | L44: 2021-10-31 | M44: 2021-11-30 | N44: 2021-12-31 | O44: 2022-01-31 | P44: 2022-02-28 | Q44: 2022-03-31 | R44: 2022-04-30 | S44: 2022-05-31 | T44: 2022-06-30 | U44: 2022-07-31 | V44: 2022-08-31 | W44: 2022-09-30 | X44: 2022-10-31 | Y44: 2022-11-30 | Z44: 2022-12-31 | AA44: 2023-01-31 | AB44: 2023-02-28 | AC44: 2023-03-31 | AD44: 2023-04-30 | AE44: 2023-05-31 | AF44: 2023-06-30 | AG44: 2023-07-31 | AH44: 2023-08-31 | AI44: 2023-09-30 | AJ44: 2023-10-31 | AK44: 2023-11-30 | AL44: 2023-12-31 | AM44: 2024-01-31 | AN44: 2024-02-29 | AO44: 2024-03-31 | AP44: 2024-04-30 | AQ44: 2024-05-31 | AR44: 2024-06-30 | AS44: 2024-07-31 | AT44: 2024-08-31 | AU44: 2024-09-30 | AV44: 2024-10-31 | AW44: 2024-11-30 | AX44: 2024-12-31 | AY44: 2025-01-31 | AZ44: 2025-02-28 | BA44: 2025-03-31 | BB44: 2025-04-30 | BC44: 2025-05-31 | BD44: 2025-06-30 | BE44: 2025-07-31 | BF44: 2025-08-31 | BG44: 2025-09-30 | BH44: 2025-10-31 | BI44: 2025-11-30 | BJ44: 2025-12-31 | BK44: 2026-01-31 | BL44: 2026-02-28 | BM44: 2026-03-31 | BN44: 2026-04-30 | BO44: 2026-05-31 | BP44: 2026-06-30 | BQ44: 2026-07-31 | BR44: 2026-08-31 | BS44: 2026-09-30 | BT44: 2026-10-31 | BU44: 2026-11-30 | BV44: 2026-12-31 | BW44: 2027-01-31 | BX44: 2027-02-28 | BY44: 2027-03-31 | BZ44: 2027-04-30 | CA44: 2027-05-31 | CB44: 2027-06-30 | CC44: 2027-07-31 | CD44: 2027-08-31 | CE44: 2027-09-30 | CF44: 2027-10-31 | CG44: 2027-11-30 | CH44: 2027-12-31 | CI44: 2028-01-31 | CJ44: 2028-02-29 | CK44: 2028-03-31 | CL44: 2028-04-30 | CM44: 2028-05-31 | CN44: 2028-06-30 | CO44: 2028-07-31 | CP44: 2028-08-31 | CQ44: 2028-09-30 | CR44: 2028-10-31 | CS44: 2028-11-30 | CT44: 2028-12-31 | CU44: 2029-01-31 | CV44: 2029-02-28 | CW44: 2029-03-31 | CX44: 2029-04-30 | CY44: 2029-05-31 | CZ44: 2029-06-30 | DA44: 2029-07-31 | DB44: 2029-08-31 | DC44: 2029-09-30 | DD44: 2029-10-31 | DE44: 2029-11-30 | DF44: 2029-12-31 | DG44: 2030-01-31 | DH44: 2030-02-28 | DI44: 2030-03-31 | DJ44: 2030-04-30 | DK44: 2030-05-31 | DL44: 2030-06-30 | DM44: 2030-07-31 | DN44: 2030-08-31 | DO44: 2030-09-30 | DP44: 2030-10-31 | DQ44: 2030-11-30 | DR44: 2030-12-31 | DS44: 2031-01-31 | DT44: 2031-02-28 | DU44: 2031-03-31 | DV44: 2031-04-30 | DW44: 2031-05-31 | DX44: 2031-06-30 | DY44: 2031-07-31 | DZ44: 2031-08-31 | EA44: 2031-09-30 | EB44: 2031-10-31 | EC44: 2031-11-30 | ED44: 2031-12-31 | EE44: 2032-01-31 | EF44: 2032-02-29 | EG44: 2032-03-31 | EH44: 2032-04-30 | EI44: 2032-05-31 | EJ44: 2032-06-30 | EK44: 2032-07-31 | EL44: 2032-08-31 | EM44: 2032-09-30 | EN44: 2032-10-31 | EO44: 2032-11-30 | EP44: 2032-12-31 | EQ44: 2033-01-31 | ER44: 2033-02-28 | ES44: 2033-03-31 | ET44: 2033-04-30 | EU44: 2033-05-31 | EV44: 2033-06-30 | EW44: 2033-07-31 | EX44: 2033-08-31 | EY44: 2033-09-30 | EZ44: 2033-10-31 | FA44: 2033-11-30 | FB44: 2033-12-31 | FC44: 2034-01-31 | FD44: 2034-02-28 | FE44: 2034-03-31 | FF44: 2034-04-30 | FG44: 2034-05-31 | FH44: 2034-06-30 | FI44: 2034-07-31 | FJ44: 2034-08-31 | FK44: 2034-09-30 | FL44: 2034-10-31 | FM44: 2034-11-30 | FN44: 2034-12-31 | FO44: 2035-01-31 | FP44: 2035-02-28 | FQ44: 2035-03-31 | FR44: 2035-04-30 | FS44: 2035-05-31 | FT44: 2035-06-30 | FU44: 2035-07-31 | FV44: 2035-08-31 | FW44: 2035-09-30 | FX44: 2035-10-31 | FY44: 2035-11-30 | FZ44: 2035-12-31 | GA44: 2036-01-31 | GB44: 2036-02-29 | GC44: 2036-03-31 | GD44: 2036-04-30 | GE44: 2036-05-31 | GF44: 2036-06-30 | GG44: 2036-07-31 | GH44: 2036-08-31 | GI44: 2036-09-30 | GJ44: 2036-10-31 | GK44: 2036-11-30 | GL44: 2036-12-31 | GM44: 2037-01-31 | GN44: 2037-02-28 | GO44: 2037-03-31 | GP44: 2037-04-30 | GQ44: 2037-05-31 | GR44: 2037-06-30 | GS44: 2037-07-31 | GT44: 2037-08-31 | GU44: 2037-09-30 | GV44: 2037-10-31 | GW44: 2037-11-30 | GX44: 2037-12-31 | GY44: 2038-01-31 | GZ44: 2038-02-28 | HA44: 2038-03-31 | HB44: 2038-04-30 | HC44: 2038-05-31 | HD44: 2038-06-30 | HE44: 2038-07-31 | HF44: 2038-08-31 | HG44: 2038-09-30 | HH44: 2038-10-31 | HI44: 2038-11-30 | HJ44: 2038-12-31 | HK44: 2039-01-31 | HL44: 2039-02-28 | HM44: 2039-03-31 | HN44: 2039-04-30 | HO44: 2039-05-31 | HP44: 2039-06-30 | HQ44: 2039-07-31 | HR44: 2039-08-31 | HS44: 2039-09-30 | HT44: 2039-10-31 | HU44: 2039-11-30 | HV44: 2039-12-31 | HW44: 2040-01-31 | HX44: 2040-02-29 | HY44: 2040-03-31 | HZ44: 2040-04-30 | IA44: 2040-05-31 | IB44: 2040-06-30 | IC44: 2040-07-31 | ID44: 2040-08-31 | IE44: 2040-09-30 | IF44: 2040-10-31 | IG44: 2040-11-30 | IH44: 2040-12-31 | II44: 2041-01-31 | IJ44: 2041-02-28 | IK44: 2041-03-31 | IL44: 2041-04-30 | IM44: 2041-05-31 | IN44: 2041-06-30 | IO44: 2041-07-31 | IP44: 2041-08-31 | IQ44: 2041-09-30 | IR44: 2041-10-31 | IS44: 2041-11-30 | IT44: 2041-12-31 | IU44: 2042-01-31 | IV44: 2042-02-28 | IW44: 2042-03-31 | IX44: 2042-04-30 | IY44: 2042-05-31 | IZ44: 2042-06-30 | JA44: 2042-07-31 | JB44: 2042-08-31 | JC44: 2042-09-30 | JD44: 2042-10-31 | JE44: 2042-11-30 | JF44: 2042-12-31
C46: Free Cash-Flow to Firm | D46: M€ | F46: 36.89970956 | I46: -3.458600116 | J46: -1.008844907 | K46: -0.3015532407 | L46: -0.7966574074 | M46: -0.7966574074 | N46: -4.285626157 | O46: -7.774594907 | P46: -0.05400115741 | Q46: -0.05400115741 | R46: -0.05400115741 | S46: -3.914298032 | T46: -0.05400115741 | U46: -0.05400115741 | V46: -0.05400115741 | W46: -3.914298032 | X46: -2.627532407 | Y46: -0.05400115741 | Z46: -1.340766782 | AA46: 0.2808769792 | AB46: 0.2807580807 | AC46: 0.2806390337 | AD46: 0.2805198378 | AE46: 0.2804004929 | AF46: 0.2802809989 | AG46: 0.2801613555 | AH46: 0.2800415625 | AI46: 0.2799216198 | AJ46: 0.2798015272 | AK46: 0.2796812844 | AL46: 0.2795608914 | AM46: 0.2794403478 | AN46: 0.2793196536 | AO46: 0.2791988085 | AP46: 0.2790778123 | AQ46: 0.2789566649 | AR46: 0.2788353661 | AS46: 0.2787139157 | AT46: 0.2785923134 | AU46: 0.2784705591 | AV46: 0.2783486527 | AW46: 0.2782265938 | AX46: 0.2781043824 | AY46: 0.2779820182 | AZ46: 0.2778595011 | BA46: 0.2777368308 | BB46: 0.2776140072 | BC46: 0.27749103 | BD46: 0.2773678991 | BE46: 0.2772446143 | BF46: 0.2771211755 | BG46: 0.2769975823 | BH46: 0.2768738346 | BI46: 0.2767499322 | BJ46: 0.276625875 | BK46: 0.2765016626 | BL46: 0.2763772951 | BM46: 0.276252772 | BN46: 0.2761280933 | BO46: 0.2760032588 | BP46: 0.2758782682 | BQ46: 0.2757531214 | BR46: 0.2756278181 | BS46: 0.2755023582 | BT46: 0.2753767415 | BU46: 0.2752509678 | BV46: 0.2751250368 | BW46: 0.2749989485 | BX46: 0.2748727025 | BY46: 0.2747462987 | BZ46: 0.2746197369 | CA46: 0.2744930169 | CB46: 0.2743661385 | CC46: 0.2742391015 | CD46: 0.2741119058 | CE46: 0.273984551 | CF46: 0.273857037 | CG46: 0.2737293636 | CH46: 0.2736015307 | CI46: 0.2734735379 | CJ46: 0.2733453852 | CK46: 0.2732170723 | CL46: 0.2730885989 | CM46: 0.272959965 | CN46: 0.2728311703 | CO46: 0.2727022146 | CP46: 0.2725730977 | CQ46: 0.2724438194 | CR46: 0.2723143796 | CS46: 0.2721847779 | CT46: 0.2720550142 | CU46: 0.2719250883 | CV46: 0.271795 | CW46: 0.2716647491 | CX46: 0.2715343353 | CY46: 0.2714037586 | CZ46: 0.2712730186 | DA46: 0.2711421153 | DB46: 0.2710110482 | DC46: 0.2708798174 | DD46: 0.2707484225 | DE46: 0.2706168634 | DF46: 0.2704851398 | DG46: 0.2703532515 | DH46: 0.2702211984 | DI46: 0.2700889803 | DJ46: 0.2699565968 | DK46: 0.2698240479 | DL46: 0.2696913333 | DM46: 0.2695584528 | DN46: 0.2694254062 | DO46: 0.2692921933 | DP46: 0.2691588139 | DQ46: 0.2690252678 | DR46: 0.2688915547 | DS46: 0.2687576745 | DT46: 0.2686236269 | DU46: 0.2684894118 | DV46: 0.2683550289 | DW46: 0.268220478 | DX46: 0.2680857589 | DY46: 0.2679508715 | DZ46: 0.2678158154 | EA46: 0.2676805905 | EB46: 0.2675451966 | EC46: 0.2674096334 | ED46: 0.2672739008 | EE46: 0.2671379985 | EF46: 0.2670019264 | EG46: 0.2668656841 | EH46: 0.2667292715 | EI46: 0.2665926885 | EJ46: 0.2664559347 | EK46: 0.2663190099 | EL46: 0.266181914 | EM46: 0.2660446468 | EN46: 0.2659072079 | EO46: 0.2657695973 | EP46: 0.2656318146 | EQ46: 0.2742207818 | ER46: 0.2740826545 | ES46: 0.2739443545 | ET46: 0.2738058816 | EU46: 0.2736672356 | EV46: 0.2735284164 | EW46: 0.2733894236 | EX46: 0.273250257 | EY46: 0.2731109166 | EZ46: 0.2729714019 | FA46: 0.2728317128 | FB46: 0.2726918492 | FC46: 0.2775577145 | FD46: 0.2774175009 | FE46: 0.2772771121 | FF46: 0.2771365478 | FG46: 0.2769958078 | FH46: 0.2768548919 | FI46: 0.2767137998 | FJ46: 0.2765725313 | FK46: 0.2764310863 | FL46: 0.2762894645 | FM46: 0.2761476656 | FN46: 0.2760056895 | FO46: 0.2809445283 | FP46: 0.280802197 | FQ46: 0.2806596878 | FR46: 0.2805170005 | FS46: 0.2803741348 | FT46: 0.2802310906 | FU46: 0.2800878675 | FV46: 0.2799444654 | FW46: 0.279800884 | FX46: 0.2796571232 | FY46: 0.2795131827 | FZ46: 0.2793690622 | GA46: 0.2843819689 | GB46: 0.2842374879 | GC46: 0.2840928263 | GD46: 0.2839479839 | GE46: 0.2838029605 | GF46: 0.2836577557 | GG46: 0.2835123695 | GH46: 0.2833668015 | GI46: 0.2832210515 | GJ46: 0.2830751194 | GK46: 0.2829290049 | GL46: 0.2827827077 | GM46: 0.287870793 | GN46: 0.2877241299 | GO46: 0.2875772834 | GP46: 0.2874302533 | GQ46: 0.2872830395 | GR46: 0.2871356416 | GS46: 0.2869880595 | GT46: 0.286840293 | GU46: 0.2866923417 | GV46: 0.2865442055 | GW46: 0.2863958841 | GX46: 0.2862473773 | GY46: 0.2914117687 | GZ46: 0.2912628904 | HA46: 0.291113826 | HB46: 0.2909645753 | HC46: 0.290815138 | HD46: 0.2906655139 | HE46: 0.2905157028 | HF46: 0.2903657044 | HG46: 0.2902155186 | HH46: 0.290065145 | HI46: 0.2899145834 | HJ46: 0.2897638336 | HK46: 0.2950056755 | HL46: 0.2948545486 | HM46: 0.2947032328 | HN46: 0.2945517279 | HO46: 0.2944000336 | HP46: 0.2942481496 | HQ46: 0.2940960758 | HR46: 0.293943812 | HS46: 0.2937913577 | HT46: 0.293638713 | HU46: 0.2934858774 | HV46: 0.2933328507 | HW46: 0.2986533046 | HX46: 0.2984998952 | HY46: 0.298346294 | HZ46: 0.2981925008 | IA46: 0.2980385154 | IB46: 0.2978843374 | IC46: 0.2977299668 | ID46: 0.2975754032 | IE46: 0.2974206464 | IF46: 0.2972656961 | IG46: 0.2971105521 | IH46: 0.2969552143 | II46: 0.3023554591 | IJ46: 0.3021997326 | IK46: 0.3020438115 | IL46: 0.3018876955 | IM46: 0.3017313843 | IN46: 0.3015748778 | IO46: 0.3014181756 | IP46: 0.3012612775 | IQ46: 0.3011041833 | IR46: 0.3009468927 | IS46: 0.3007894056 | IT46: 0.3006317215 | IU46: 0.3061129539 | IV46: 0.3059548755 | IW46: 0.3057965994 | IX46: 0.3056381254 | IY46: 0.3054794534 | IZ46: 0.305320583 | JA46: 0.3051615141 | JB46: 0.3050022463 | JC46: 0.3048427794 | JD46: 0.3046831132 | JE46: 0.3045232474 | JF46: 0.3043631818
C48: Project IRR | D48: % | F48: 0.08572737277 | I48: 0 | J48: 0 | K48: 0 | L48: 0 | M48: 0 | N48: 0 | O48: 0 | P48: 0 | Q48: 0 | R48: 0 | S48: 0 | T48: 0 | U48: 0 | V48: 0 | W48: 0 | X48: 0 | Y48: 0 | Z48: 0 | AA48: 2.980232239e-09 | AB48: 2.980232239e-09 | AC48: 2.980232239e-09 | AD48: 2.980232239e-09 | AE48: 2.980232239e-09 | AF48: 2.980232239e-09 | AG48: 2.980232239e-09 | AH48: 2.980232239e-09 | AI48: 2.980232239e-09 | AJ48: 2.980232239e-09 | AK48: 2.980232239e-09 | AL48: 2.980232239e-09 | AM48: 2.980232239e-09 | AN48: 2.980232239e-09 | AO48: 2.980232239e-09 | AP48: 2.980232239e-09 | AQ48: 2.980232239e-09 | AR48: 2.980232239e-09 | AS48: 2.980232239e-09 | AT48: 2.980232239e-09 | AU48: 2.980232239e-09 | AV48: 2.980232239e-09 | AW48: 2.980232239e-09 | AX48: 2.980232239e-09 | AY48: 2.980232239e-09 | AZ48: 2.980232239e-09 | BA48: 2.980232239e-09 | BB48: 2.980232239e-09 | BC48: 2.980232239e-09 | BD48: 2.980232239e-09 | BE48: 2.980232239e-09 | BF48: 2.980232239e-09 | BG48: 2.980232239e-09 | BH48: 2.980232239e-09 | BI48: 2.980232239e-09 | BJ48: 2.980232239e-09 | BK48: 2.980232239e-09 | BL48: 2.980232239e-09 | BM48: 2.980232239e-09 | BN48: 2.980232239e-09 | BO48: 2.980232239e-09 | BP48: 2.980232239e-09 | BQ48: 2.980232239e-09 | BR48: 2.980232239e-09 | BS48: 2.980232239e-09 | BT48: 2.980232239e-09 | BU48: 2.980232239e-09 | BV48: 2.980232239e-09 | BW48: 2.980232239e-09 | BX48: 2.980232239e-09 | BY48: 2.980232239e-09 | BZ48: 2.980232239e-09 | CA48: 2.980232239e-09 | CB48: 2.980232239e-09 | CC48: 2.980232239e-09 | CD48: 2.980232239e-09 | CE48: 2.980232239e-09 | CF48: 2.980232239e-09 | CG48: 2.980232239e-09 | CH48: 2.980232239e-09 | CI48: 2.980232239e-09 | CJ48: 2.980232239e-09 | CK48: 2.980232239e-09 | CL48: 2.980232239e-09 | CM48: 2.980232239e-09 | CN48: 2.980232239e-09 | CO48: 2.980232239e-09 | CP48: 2.980232239e-09 | CQ48: 2.980232239e-09 | CR48: 2.980232239e-09 | CS48: 2.980232239e-09 | CT48: 2.980232239e-09 | CU48: 2.980232239e-09 | CV48: 2.980232239e-09 | CW48: 2.980232239e-09 | CX48: 2.980232239e-09 | CY48: 2.980232239e-09 | CZ48: 2.980232239e-09 | DA48: 2.980232239e-09 | DB48: 2.980232239e-09 | DC48: 2.980232239e-09 | DD48: 2.980232239e-09 | DE48: 2.980232239e-09 | DF48: 2.980232239e-09 | DG48: 2.980232239e-09 | DH48: 0 | DI48: 0 | DJ48: 0 | DK48: 0 | DL48: 0 | DM48: 0 | DN48: 0 | DO48: 0 | DP48: 0 | DQ48: 0 | DR48: 0 | DS48: 0 | DT48: 0 | DU48: 0 | DV48: 0 | DW48: 0 | DX48: 0 | DY48: 0 | DZ48: 0 | EA48: 0 | EB48: 0 | EC48: 0 | ED48: 0 | EE48: 0 | EF48: 0 | EG48: 0 | EH48: 0.0005196601152 | EI48: 0.002097377181 | EJ48: 0.003643152118 | EK48: 0.005157777667 | EL48: 0.006642052531 | EM48: 0.008096763492 | EN48: 0.009522625804 | EO48: 0.01092040241 | EP48: 0.01229074895 | EQ48: 0.01367810071 | ER48: 0.01503790319 | ES48: 0.01637071073 | ET48: 0.01767728031 | EU48: 0.018958202 | EV48: 0.02021419704 | EW48: 0.02144580781 | EX48: 0.02265364826 | EY48: 0.02383836806 | EZ48: 0.02500046194 | FA48: 0.02614054978 | FB48: 0.0272590965 | FC48: 0.02837660015 | FD48: 0.02947315276 | FE48: 0.03054901063 | FF48: 0.03160475791 | FG48: 0.03264079392 | FH48: 0.033657673 | FI48: 0.0346557647 | FJ48: 0.03563549817 | FK48: 0.03659740388 | FL48: 0.03754179776 | FM48: 0.0384691745 | FN48: 0.03937983811 | FO48: 0.0402905196 | FP48: 0.04118501246 | FQ48: 0.04206340015 | FR48: 0.0429261595 | FS48: 0.04377353489 | FT48: 0.04460597932 | FU48: 0.04542372525 | FV48: 0.04622710645 | FW48: 0.04701653421 | FX48: 0.0477922231 | FY48: 0.04855457246 | FZ48: 0.04930376709 | GA48: 0.0500536114 | GB48: 0.05079067647 | GC48: 0.0515150398 | GD48: 0.05222708285 | GE48: 0.05292696655 | GF48: 0.05361505449 | GG48: 0.0542915076 | GH48: 0.05495655835 | GI48: 0.05561055839 | GJ48: 0.0562536329 | GK48: 0.05688610971 | GL48: 0.05750811994 | GM48: 0.05813113749 | GN48: 0.05874409378 | GO48: 0.05934691131 | GP48: 0.05993989408 | GQ48: 0.06052316129 | GR48: 0.06109699309 | GS48: 0.0616614908 | GT48: 0.06221685112 | GU48: 0.06276334226 | GV48: 0.06330105364 | GW48: 0.06383025348 | GX48: 0.06435101926 | GY48: 0.0648729831 | GZ48: 0.06538687646 | HA48: 0.06589258015 | HB48: 0.06639035642 | HC48: 0.06688027084 | HD48: 0.06736256182 | HE48: 0.06783729494 | HF48: 0.06830461323 | HG48: 0.06876474321 | HH48: 0.06921775043 | HI48: 0.06966383755 | HJ48: 0.07010307014 | HK48: 0.07054358423 | HL48: 0.0709775418 | HM48: 0.07140483558 | HN48: 0.07182566226 | HO48: 0.07224007547 | HP48: 0.07264826 | HQ48: 0.07305026352 | HR48: 0.07344620526 | HS48: 0.07383626401 | HT48: 0.07422047555 | HU48: 0.07459902465 | HV48: 0.07497193515 | HW48: 0.07534615099 | HX48: 0.07571492493 | HY48: 0.07607820928 | HZ48: 0.07643618882 | IA48: 0.07678887546 | IB48: 0.07713644207 | IC48: 0.07747891247 | ID48: 0.07781637013 | IE48: 0.07814898193 | IF48: 0.07847675383 | IG48: 0.07879985273 | IH48: 0.07911828458 | II48: 0.07943798602 | IJ48: 0.07975325882 | IK48: 0.08006397784 | IL48: 0.08037030399 | IM48: 0.08067223132 | IN48: 0.08096990883 | IO48: 0.08126334846 | IP48: 0.08155262172 | IQ48: 0.08183785975 | IR48: 0.0821190685 | IS48: 0.08239637911 | IT48: 0.0826698035 | IU48: 0.08294444382 | IV48: 0.08321539462 | IW48: 0.08348255455 | IX48: 0.08374603093 | IY48: 0.08400583565 | IZ48: 0.08426208794 | JA48: 0.08451478779 | JB48: 0.08476399481 | JC48: 0.08500982225 | JD48: 0.08525227606 | JE48: 0.08549145758 | JF48: 0.08572737277
C49: Check | D49: Vrai / Faux | F49: TRUE
C51: WACC | D51: % | F51: 0.06
C53: Project NPV | D53: M€ | F53: 6.813649421 | I53: -3.458600116 | J53: -4.462464718 | K53: -4.761095658 | L53: -5.546138095 | M53: -6.327429775 | N53: -10.50964732 | O53: -18.0591934 | P53: -18.11139753 | Q53: -18.16334395 | R53: -18.21504218 | S53: -21.94391202 | T53: -21.99510925 | U53: -22.04605373 | V53: -22.09674673 | W53: -25.75369506 | X53: -28.19635917 | Y53: -28.24632106 | Z53: -29.48067501 | AA53: -29.22336697 | AB53: -28.96731496 | AC53: -28.71263502 | AD53: -28.45927953 | AE53: -28.20728202 | AF53: -27.95659538 | AG53: -27.70725277 | AH53: -27.45924717 | AI53: -27.21253219 | AJ53: -26.96714048 | AK53: -26.72302615 | AL53: -26.48022149 | AM53: -26.23871965 | AN53: -25.9984371 | AO53: -25.75944418 | AP53: -25.52169619 | AQ53: -25.28522458 | AR53: -25.04998511 | AS53: -24.81600888 | AT53: -24.5832893 | AU53: -24.35178281 | AV53: -24.12152004 | AW53: -23.8924579 | AX53: -23.66462667 | AY53: -23.43801992 | AZ53: -23.21252326 | BA53: -22.98823885 | BB53: -22.76512473 | BC53: -22.5432104 | BD53: -22.32245432 | BE53: -22.10288567 | BF53: -21.88449823 | BG53: -21.66725114 | BH53: -21.45117308 | BI53: -21.23622363 | BJ53: -21.02243119 | BK53: -20.8097897 | BL53: -20.59819179 | BM53: -20.38773333 | BN53: -20.17837492 | BO53: -19.97014423 | BP53: -19.76300226 | BQ53: -19.55697638 | BR53: -19.35206073 | BS53: -19.14821695 | BT53: -18.94547196 | BU53: -18.74378779 | BV53: -18.54319109 | BW53: -18.34367614 | BX53: -18.1451422 | BY53: -17.94767921 | BZ53: -17.75125017 | CA53: -17.55588102 | CB53: -17.36153518 | CC53: -17.1682383 | CD53: -16.97598486 | CE53: -16.78473886 | CF53: -16.59452555 | CG53: -16.40530928 | CH53: -16.21711504 | CI53: -16.02993744 | CJ53: -15.84371171 | CK53: -15.65849229 | CL53: -15.47424449 | CM53: -15.29099262 | CN53: -15.10870233 | CO53: -14.92739768 | CP53: -14.74707348 | CQ53: -14.56769595 | CR53: -14.38928874 | CS53: -14.21181843 | CT53: -14.03530841 | CU53: -13.85975365 | CV53: -13.68506546 | CW53: -13.51132294 | CX53: -13.33849354 | CY53: -13.16660003 | CZ53: -12.9956102 | DA53: -12.82554659 | DB53: -12.65640432 | DC53: -12.48815169 | DD53: -12.32081087 | DE53: -12.1543505 | DF53: -11.9887925 | DG53: -11.82413213 | DH53: -11.66028621 | DI53: -11.49732892 | DJ53: -11.33522968 | DK53: -11.17400987 | DL53: -11.01363925 | DM53: -10.85413895 | DN53: -10.69550439 | DO53: -10.5377058 | DP53: -10.38076397 | DQ53: -10.22464948 | DR53: -10.06938288 | DS53: -9.914959698 | DT53: -9.761301917 | DU53: -9.608479083 | DV53: -9.456462528 | DW53: -9.305272267 | DX53: -9.154879934 | DY53: -9.005305331 | DZ53: -8.856544143 | EA53: -8.708568455 | EB53: -8.561397747 | EC53: -8.415004402 | ED53: -8.269407688 | EE53: -8.1246034 | EF53: -7.980541364 | EG53: -7.837263658 | EH53: -7.694743389 | EI53: -7.552999312 | EJ53: -7.412004818 | EK53: -7.27177846 | EL53: -7.132316178 | EM53: -6.993591791 | EN53: -6.855623548 | EO53: -6.718385545 | EP53: -6.581895834 | EQ53: -6.441688438 | ER53: -6.302176671 | ES53: -6.163423673 | ET53: -6.025403407 | EU53: -5.88813404 | EV53: -5.751589815 | EW53: -5.6157887 | EX53: -5.480726775 | EY53: -5.346378689 | EZ53: -5.212762122 | FA53: -5.079851995 | FB53: -4.947665795 | FC53: -4.813785088 | FD53: -4.680568816 | FE53: -4.548077266 | FF53: -4.416285577 | FG53: -4.285211094 | FH53: -4.154829218 | FI53: -4.025157108 | FJ53: -3.896191017 | FK53: -3.767906737 | FL53: -3.64032115 | FM53: -3.513410305 | FN53: -3.3871909 | FO53: -3.259347178 | FP53: -3.132138113 | FQ53: -3.005621275 | FR53: -2.87977292 | FS53: -2.75460961 | FT53: -2.630107855 | FU53: -2.506284037 | FV53: -2.383134577 | FW53: -2.260636357 | FX53: -2.138805496 | FY53: -2.017619123 | FZ53: -1.897093179 | GA53: -1.775010228 | GB53: -1.653552902 | GC53: -1.532756676 | GD53: -1.412598881 | GE53: -1.293095328 | GF53: -1.174223587 | GG53: -1.055999299 | GH53: -0.9384190435 | GI53: -0.8214607486 | GJ53: -0.7051398011 | GK53: -0.5894343634 | GL53: -0.4743596555 | GM53: -0.3577927222 | GN53: -0.2418047967 | GO53: -0.1264483669 | GP53: -0.01170178074 | GQ53: 0.1024198628 | GR53: 0.2159379855 | GS53: 0.328837652 | GT53: 0.4411221298 | GU53: 0.5528124983 | GV53: 0.6638940651 | GW53: 0.7743876857 | GX53: 0.8842788269 | GY53: 0.9956003113 | GZ53: 1.106368686 | HA53: 1.216533828 | HB53: 1.326116415 | HC53: 1.435102029 | HD53: 1.543511129 | HE53: 1.651329453 | HF53: 1.758560123 | HG53: 1.865223271 | HH53: 1.971304868 | HI53: 2.076824831 | HJ53: 2.181769282 | HK53: 2.288084738 | HL53: 2.39387181 | HM53: 2.499082629 | HN53: 2.603736944 | HO53: 2.707820987 | HP53: 2.811354299 | HQ53: 2.91432326 | HR53: 3.016730853 | HS53: 3.118596305 | HT53: 3.219906219 | HU53: 3.320679619 | HV53: 3.420903251 | HW53: 3.522440992 | HX53: 3.623457826 | HY53: 3.723924251 | HZ53: 3.823859129 | IA53: 3.923249313 | IB53: 4.022113464 | IC53: 4.120438576 | ID53: 4.218227501 | IE53: 4.315498599 | IF53: 4.412239078 | IG53: 4.508467105 | IH53: 4.604170027 | II53: 4.7011323 | IJ53: 4.797612408 | IK53: 4.893566694 | IL53: 4.989013174 | IM53: 5.083939292 | IN53: 5.178362873 | IO53: 5.272271497 | IP53: 5.365667886 | IQ53: 5.458569579 | IR53: 5.55096436 | IS53: 5.642869579 | IT53: 5.734273153 | IU53: 5.826883779 | IV53: 5.919033753 | IW53: 6.01068138 | IX53: 6.101843867 | IY53: 6.192509224 | IZ53: 6.282694476 | JA53: 6.372387762 | JB53: 6.461591683 | JC53: 6.550322992 | JD53: 6.638570021 | JE53: 6.726349344 | JF53: 6.813649421
C54: Check | D54: Vrai / Faux | F54: TRUE
C56: Discounted Payback flag | D56: 1 or 0 | I56: 0 | J56: 0 | K56: 0 | L56: 0 | M56: 0 | N56: 0 | O56: 0 | P56: 0 | Q56: 0 | R56: 0 | S56: 0 | T56: 0 | U56: 0 | V56: 0 | W56: 0 | X56: 0 | Y56: 0 | Z56: 0 | AA56: 0 | AB56: 0 | AC56: 0 | AD56: 0 | AE56: 0 | AF56: 0 | AG56: 0 | AH56: 0 | AI56: 0 | AJ56: 0 | AK56: 0 | AL56: 0 | AM56: 0 | AN56: 0 | AO56: 0 | AP56: 0 | AQ56: 0 | AR56: 0 | AS56: 0 | AT56: 0 | AU56: 0 | AV56: 0 | AW56: 0 | AX56: 0 | AY56: 0 | AZ56: 0 | BA56: 0 | BB56: 0 | BC56: 0 | BD56: 0 | BE56: 0 | BF56: 0 | BG56: 0 | BH56: 0 | BI56: 0 | BJ56: 0 | BK56: 0 | BL56: 0 | BM56: 0 | BN56: 0 | BO56: 0 | BP56: 0 | BQ56: 0 | BR56: 0 | BS56: 0 | BT56: 0 | BU56: 0 | BV56: 0 | BW56: 0 | BX56: 0 | BY56: 0 | BZ56: 0 | CA56: 0 | CB56: 0 | CC56: 0 | CD56: 0 | CE56: 0 | CF56: 0 | CG56: 0 | CH56: 0 | CI56: 0 | CJ56: 0 | CK56: 0 | CL56: 0 | CM56: 0 | CN56: 0 | CO56: 0 | CP56: 0 | CQ56: 0 | CR56: 0 | CS56: 0 | CT56: 0 | CU56: 0 | CV56: 0 | CW56: 0 | CX56: 0 | CY56: 0 | CZ56: 0 | DA56: 0 | DB56: 0 | DC56: 0 | DD56: 0 | DE56: 0 | DF56: 0 | DG56: 0 | DH56: 0 | DI56: 0 | DJ56: 0 | DK56: 0 | DL56: 0 | DM56: 0 | DN56: 0 | DO56: 0 | DP56: 0 | DQ56: 0 | DR56: 0 | DS56: 0 | DT56: 0 | DU56: 0 | DV56: 0 | DW56: 0 | DX56: 0 | DY56: 0 | DZ56: 0 | EA56: 0 | EB56: 0 | EC56: 0 | ED56: 0 | EE56: 0 | EF56: 0 | EG56: 0 | EH56: 0 | EI56: 0 | EJ56: 0 | EK56: 0 | EL56: 0 | EM56: 0 | EN56: 0 | EO56: 0 | EP56: 0 | EQ56: 0 | ER56: 0 | ES56: 0 | ET56: 0 | EU56: 0 | EV56: 0 | EW56: 0 | EX56: 0 | EY56: 0 | EZ56: 0 | FA56: 0 | FB56: 0 | FC56: 0 | FD56: 0 | FE56: 0 | FF56: 0 | FG56: 0 | FH56: 0 | FI56: 0 | FJ56: 0 | FK56: 0 | FL56: 0 | FM56: 0 | FN56: 0 | FO56: 0 | FP56: 0 | FQ56: 0 | FR56: 0 | FS56: 0 | FT56: 0 | FU56: 0 | FV56: 0 | FW56: 0 | FX56: 0 | FY56: 0 | FZ56: 0 | GA56: 0 | GB56: 0 | GC56: 0 | GD56: 0 | GE56: 0 | GF56: 0 | GG56: 0 | GH56: 0 | GI56: 0 | GJ56: 0 | GK56: 0 | GL56: 0 | GM56: 0 | GN56: 0 | GO56: 0 | GP56: 0 | GQ56: 1 | GR56: 1 | GS56: 1 | GT56: 1 | GU56: 1 | GV56: 1 | GW56: 1 | GX56: 1 | GY56: 1 | GZ56: 1 | HA56: 1 | HB56: 1 | HC56: 1 | HD56: 1 | HE56: 1 | HF56: 1 | HG56: 1 | HH56: 1 | HI56: 1 | HJ56: 1 | HK56: 1 | HL56: 1 | HM56: 1 | HN56: 1 | HO56: 1 | HP56: 1 | HQ56: 1 | HR56: 1 | HS56: 1 | HT56: 1 | HU56: 1 | HV56: 1 | HW56: 1 | HX56: 1 | HY56: 1 | HZ56: 1 | IA56: 1 | IB56: 1 | IC56: 1 | ID56: 1 | IE56: 1 | IF56: 1 | IG56: 1 | IH56: 1 | II56: 1 | IJ56: 1 | IK56: 1 | IL56: 1 | IM56: 1 | IN56: 1 | IO56: 1 | IP56: 1 | IQ56: 1 | IR56: 1 | IS56: 1 | IT56: 1 | IU56: 1 | IV56: 1 | IW56: 1 | IX56: 1 | IY56: 1 | IZ56: 1 | JA56: 1 | JB56: 1 | JC56: 1 | JD56: 1 | JE56: 1 | JF56: 1
C57: Discounted Payback date | D57: 1 or 0 | I57: 0 | J57: 0 | K57: 0 | L57: 0 | M57: 0 | N57: 0 | O57: 0 | P57: 0 | Q57: 0 | R57: 0 | S57: 0 | T57: 0 | U57: 0 | V57: 0 | W57: 0 | X57: 0 | Y57: 0 | Z57: 0 | AA57: 0 | AB57: 0 | AC57: 0 | AD57: 0 | AE57: 0 | AF57: 0 | AG57: 0 | AH57: 0 | AI57: 0 | AJ57: 0 | AK57: 0 | AL57: 0 | AM57: 0 | AN57: 0 | AO57: 0 | AP57: 0 | AQ57: 0 | AR57: 0 | AS57: 0 | AT57: 0 | AU57: 0 | AV57: 0 | AW57: 0 | AX57: 0 | AY57: 0 | AZ57: 0 | BA57: 0 | BB57: 0 | BC57: 0 | BD57: 0 | BE57: 0 | BF57: 0 | BG57: 0 | BH57: 0 | BI57: 0 | BJ57: 0 | BK57: 0 | BL57: 0 | BM57: 0 | BN57: 0 | BO57: 0 | BP57: 0 | BQ57: 0 | BR57: 0 | BS57: 0 | BT57: 0 | BU57: 0 | BV57: 0 | BW57: 0 | BX57: 0 | BY57: 0 | BZ57: 0 | CA57: 0 | CB57: 0 | CC57: 0 | CD57: 0 | CE57: 0 | CF57: 0 | CG57: 0 | CH57: 0 | CI57: 0 | CJ57: 0 | CK57: 0 | CL57: 0 | CM57: 0 | CN57: 0 | CO57: 0 | CP57: 0 | CQ57: 0 | CR57: 0 | CS57: 0 | CT57: 0 | CU57: 0 | CV57: 0 | CW57: 0 | CX57: 0 | CY57: 0 | CZ57: 0 | DA57: 0 | DB57: 0 | DC57: 0 | DD57: 0 | DE57: 0 | DF57: 0 | DG57: 0 | DH57: 0 | DI57: 0 | DJ57: 0 | DK57: 0 | DL57: 0 | DM57: 0 | DN57: 0 | DO57: 0 | DP57: 0 | DQ57: 0 | DR57: 0 | DS57: 0 | DT57: 0 | DU57: 0 | DV57: 0 | DW57: 0 | DX57: 0 | DY57: 0 | DZ57: 0 | EA57: 0 | EB57: 0 | EC57: 0 | ED57: 0 | EE57: 0 | EF57: 0 | EG57: 0 | EH57: 0 | EI57: 0 | EJ57: 0 | EK57: 0 | EL57: 0 | EM57: 0 | EN57: 0 | EO57: 0 | EP57: 0 | EQ57: 0 | ER57: 0 | ES57: 0 | ET57: 0 | EU57: 0 | EV57: 0 | EW57: 0 | EX57: 0 | EY57: 0 | EZ57: 0 | FA57: 0 | FB57: 0 | FC57: 0 | FD57: 0 | FE57: 0 | FF57: 0 | FG57: 0 | FH57: 0 | FI57: 0 | FJ57: 0 | FK57: 0 | FL57: 0 | FM57: 0 | FN57: 0 | FO57: 0 | FP57: 0 | FQ57: 0 | FR57: 0 | FS57: 0 | FT57: 0 | FU57: 0 | FV57: 0 | FW57: 0 | FX57: 0 | FY57: 0 | FZ57: 0 | GA57: 0 | GB57: 0 | GC57: 0 | GD57: 0 | GE57: 0 | GF57: 0 | GG57: 0 | GH57: 0 | GI57: 0 | GJ57: 0 | GK57: 0 | GL57: 0 | GM57: 0 | GN57: 0 | GO57: 0 | GP57: 0 | GQ57: 1 | GR57: 0 | GS57: 0 | GT57: 0 | GU57: 0 | GV57: 0 | GW57: 0 | GX57: 0 | GY57: 0 | GZ57: 0 | HA57: 0 | HB57: 0 | HC57: 0 | HD57: 0 | HE57: 0 | HF57: 0 | HG57: 0 | HH57: 0 | HI57: 0 | HJ57: 0 | HK57: 0 | HL57: 0 | HM57: 0 | HN57: 0 | HO57: 0 | HP57: 0 | HQ57: 0 | HR57: 0 | HS57: 0 | HT57: 0 | HU57: 0 | HV57: 0 | HW57: 0 | HX57: 0 | HY57: 0 | HZ57: 0 | IA57: 0 | IB57: 0 | IC57: 0 | ID57: 0 | IE57: 0 | IF57: 0 | IG57: 0 | IH57: 0 | II57: 0 | IJ57: 0 | IK57: 0 | IL57: 0 | IM57: 0 | IN57: 0 | IO57: 0 | IP57: 0 | IQ57: 0 | IR57: 0 | IS57: 0 | IT57: 0 | IU57: 0 | IV57: 0 | IW57: 0 | IX57: 0 | IY57: 0 | IZ57: 0 | JA57: 0 | JB57: 0 | JC57: 0 | JD57: 0 | JE57: 0 | JF57: 0
C59: Date of the payback | D59: date | F59: 2037-05-31
C60: Project Discounted Payback Period | D60: number of years | F60: 16.06388889
C63: Equity metrics
I65: 2021-07-31 | J65: 2021-08-31 | K65: 2021-09-30 | L65: 2021-10-31 | M65: 2021-11-30 | N65: 2021-12-31 | O65: 2022-01-31 | P65: 2022-02-28 | Q65: 2022-03-31 | R65: 2022-04-30 | S65: 2022-05-31 | T65: 2022-06-30 | U65: 2022-07-31 | V65: 2022-08-31 | W65: 2022-09-30 | X65: 2022-10-31 | Y65: 2022-11-30 | Z65: 2022-12-31 | AA65: 2023-01-31 | AB65: 2023-02-28 | AC65: 2023-03-31 | AD65: 2023-04-30 | AE65: 2023-05-31 | AF65: 2023-06-30 | AG65: 2023-07-31 | AH65: 2023-08-31 | AI65: 2023-09-30 | AJ65: 2023-10-31 | AK65: 2023-11-30 | AL65: 2023-12-31 | AM65: 2024-01-31 | AN65: 2024-02-29 | AO65: 2024-03-31 | AP65: 2024-04-30 | AQ65: 2024-05-31 | AR65: 2024-06-30 | AS65: 2024-07-31 | AT65: 2024-08-31 | AU65: 2024-09-30 | AV65: 2024-10-31 | AW65: 2024-11-30 | AX65: 2024-12-31 | AY65: 2025-01-31 | AZ65: 2025-02-28 | BA65: 2025-03-31 | BB65: 2025-04-30 | BC65: 2025-05-31 | BD65: 2025-06-30 | BE65: 2025-07-31 | BF65: 2025-08-31 | BG65: 2025-09-30 | BH65: 2025-10-31 | BI65: 2025-11-30 | BJ65: 2025-12-31 | BK65: 2026-01-31 | BL65: 2026-02-28 | BM65: 2026-03-31 | BN65: 2026-04-30 | BO65: 2026-05-31 | BP65: 2026-06-30 | BQ65: 2026-07-31 | BR65: 2026-08-31 | BS65: 2026-09-30 | BT65: 2026-10-31 | BU65: 2026-11-30 | BV65: 2026-12-31 | BW65: 2027-01-31 | BX65: 2027-02-28 | BY65: 2027-03-31 | BZ65: 2027-04-30 | CA65: 2027-05-31 | CB65: 2027-06-30 | CC65: 2027-07-31 | CD65: 2027-08-31 | CE65: 2027-09-30 | CF65: 2027-10-31 | CG65: 2027-11-30 | CH65: 2027-12-31 | CI65: 2028-01-31 | CJ65: 2028-02-29 | CK65: 2028-03-31 | CL65: 2028-04-30 | CM65: 2028-05-31 | CN65: 2028-06-30 | CO65: 2028-07-31 | CP65: 2028-08-31 | CQ65: 2028-09-30 | CR65: 2028-10-31 | CS65: 2028-11-30 | CT65: 2028-12-31 | CU65: 2029-01-31 | CV65: 2029-02-28 | CW65: 2029-03-31 | CX65: 2029-04-30 | CY65: 2029-05-31 | CZ65: 2029-06-30 | DA65: 2029-07-31 | DB65: 2029-08-31 | DC65: 2029-09-30 | DD65: 2029-10-31 | DE65: 2029-11-30 | DF65: 2029-12-31 | DG65: 2030-01-31 | DH65: 2030-02-28 | DI65: 2030-03-31 | DJ65: 2030-04-30 | DK65: 2030-05-31 | DL65: 2030-06-30 | DM65: 2030-07-31 | DN65: 2030-08-31 | DO65: 2030-09-30 | DP65: 2030-10-31 | DQ65: 2030-11-30 | DR65: 2030-12-31 | DS65: 2031-01-31 | DT65: 2031-02-28 | DU65: 2031-03-31 | DV65: 2031-04-30 | DW65: 2031-05-31 | DX65: 2031-06-30 | DY65: 2031-07-31 | DZ65: 2031-08-31 | EA65: 2031-09-30 | EB65: 2031-10-31 | EC65: 2031-11-30 | ED65: 2031-12-31 | EE65: 2032-01-31 | EF65: 2032-02-29 | EG65: 2032-03-31 | EH65: 2032-04-30 | EI65: 2032-05-31 | EJ65: 2032-06-30 | EK65: 2032-07-31 | EL65: 2032-08-31 | EM65: 2032-09-30 | EN65: 2032-10-31 | EO65: 2032-11-30 | EP65: 2032-12-31 | EQ65: 2033-01-31 | ER65: 2033-02-28 | ES65: 2033-03-31 | ET65: 2033-04-30 | EU65: 2033-05-31 | EV65: 2033-06-30 | EW65: 2033-07-31 | EX65: 2033-08-31 | EY65: 2033-09-30 | EZ65: 2033-10-31 | FA65: 2033-11-30 | FB65: 2033-12-31 | FC65: 2034-01-31 | FD65: 2034-02-28 | FE65: 2034-03-31 | FF65: 2034-04-30 | FG65: 2034-05-31 | FH65: 2034-06-30 | FI65: 2034-07-31 | FJ65: 2034-08-31 | FK65: 2034-09-30 | FL65: 2034-10-31 | FM65: 2034-11-30 | FN65: 2034-12-31 | FO65: 2035-01-31 | FP65: 2035-02-28 | FQ65: 2035-03-31 | FR65: 2035-04-30 | FS65: 2035-05-31 | FT65: 2035-06-30 | FU65: 2035-07-31 | FV65: 2035-08-31 | FW65: 2035-09-30 | FX65: 2035-10-31 | FY65: 2035-11-30 | FZ65: 2035-12-31 | GA65: 2036-01-31 | GB65: 2036-02-29 | GC65: 2036-03-31 | GD65: 2036-04-30 | GE65: 2036-05-31 | GF65: 2036-06-30 | GG65: 2036-07-31 | GH65: 2036-08-31 | GI65: 2036-09-30 | GJ65: 2036-10-31 | GK65: 2036-11-30 | GL65: 2036-12-31 | GM65: 2037-01-31 | GN65: 2037-02-28 | GO65: 2037-03-31 | GP65: 2037-04-30 | GQ65: 2037-05-31 | GR65: 2037-06-30 | GS65: 2037-07-31 | GT65: 2037-08-31 | GU65: 2037-09-30 | GV65: 2037-10-31 | GW65: 2037-11-30 | GX65: 2037-12-31 | GY65: 2038-01-31 | GZ65: 2038-02-28 | HA65: 2038-03-31 | HB65: 2038-04-30 | HC65: 2038-05-31 | HD65: 2038-06-30 | HE65: 2038-07-31 | HF65: 2038-08-31 | HG65: 2038-09-30 | HH65: 2038-10-31 | HI65: 2038-11-30 | HJ65: 2038-12-31 | HK65: 2039-01-31 | HL65: 2039-02-28 | HM65: 2039-03-31 | HN65: 2039-04-30 | HO65: 2039-05-31 | HP65: 2039-06-30 | HQ65: 2039-07-31 | HR65: 2039-08-31 | HS65: 2039-09-30 | HT65: 2039-10-31 | HU65: 2039-11-30 | HV65: 2039-12-31 | HW65: 2040-01-31 | HX65: 2040-02-29 | HY65: 2040-03-31 | HZ65: 2040-04-30 | IA65: 2040-05-31 | IB65: 2040-06-30 | IC65: 2040-07-31 | ID65: 2040-08-31 | IE65: 2040-09-30 | IF65: 2040-10-31 | IG65: 2040-11-30 | IH65: 2040-12-31 | II65: 2041-01-31 | IJ65: 2041-02-28 | IK65: 2041-03-31 | IL65: 2041-04-30 | IM65: 2041-05-31 | IN65: 2041-06-30 | IO65: 2041-07-31 | IP65: 2041-08-31 | IQ65: 2041-09-30 | IR65: 2041-10-31 | IS65: 2041-11-30 | IT65: 2041-12-31 | IU65: 2042-01-31 | IV65: 2042-02-28 | IW65: 2042-03-31 | IX65: 2042-04-30 | IY65: 2042-05-31 | IZ65: 2042-06-30 | JA65: 2042-07-31 | JB65: 2042-08-31 | JC65: 2042-09-30 | JD65: 2042-10-31 | JE65: 2042-11-30 | JF65: 2042-12-31
C67: Free Cash-Flow to Equity | D67: M€ | F67: 33.49511221 | I67: -3.458600116 | J67: -1.008844907 | K67: -0.3015532407 | L67: -0.7966574074 | M67: -0.7966574074 | N67: -2.816918171 | O67: 0 | P67: 0 | Q67: 0 | R67: 0 | S67: 0 | T67: 0 | U67: 0 | V67: 0 | W67: 0 | X67: 0 | Y67: 0 | Z67: 0 | AA67: 0.126189934 | AB67: 0.1262412539 | AC67: 0.1262927089 | AD67: 0.1263442993 | AE67: 0.1263960253 | AF67: 0.1264478872 | AG67: 0.1264998854 | AH67: 0.12655202 | AI67: 0.1266042915 | AJ67: 0.1266567001 | AK67: 0.1267092461 | AL67: 0.1267619297 | AM67: 0.1268147513 | AN67: 0.1268677112 | AO67: 0.1269208096 | AP67: 0.1269740469 | AQ67: 0.1270274233 | AR67: 0.1270809392 | AS67: 0.1271345948 | AT67: 0.1271883904 | AU67: 0.1272423263 | AV67: 0.1272964029 | AW67: 0.1273506204 | AX67: 0.1274049791 | AY67: 0.1274594794 | AZ67: 0.1275141214 | BA67: 0.1275689056 | BB67: 0.1276238322 | BC67: 0.1276789015 | BD67: 0.1277341138 | BE67: 0.1277894695 | BF67: 0.1278449688 | BG67: 0.127900612 | BH67: 0.1279563995 | BI67: 0.1280123315 | BJ67: 0.1280684083 | BK67: 0.1281246303 | BL67: 0.1281809978 | BM67: 0.128237511 | BN67: 0.1282941703 | BO67: 0.128350976 | BP67: 0.1284079283 | BQ67: 0.1284650277 | BR67: 0.1285222744 | BS67: 0.1285796687 | BT67: 0.1286372109 | BU67: 0.1286949014 | BV67: 0.1287527404 | BW67: 0.1288107283 | BX67: 0.1288688654 | BY67: 0.128927152 | BZ67: 0.1289855884 | CA67: 0.1290441749 | CB67: 0.1291029118 | CC67: 0.1291617996 | CD67: 0.1292208384 | CE67: 0.1292800286 | CF67: 0.1293393705 | CG67: 0.1293988644 | CH67: 0.1294585107 | CI67: 0.1295183097 | CJ67: 0.1295782617 | CK67: 0.129638367 | CL67: 0.1296986259 | CM67: 0.1297590388 | CN67: 0.129819606 | CO67: 0.1298803278 | CP67: 0.1299412045 | CQ67: 0.1300022365 | CR67: 0.130063424 | CS67: 0.1301247675 | CT67: 0.1301862672 | CU67: 0.1302479235 | CV67: 0.1303097367 | CW67: 0.1303717071 | CX67: 0.1304338351 | CY67: 0.1304961209 | CZ67: 0.130558565 | DA67: 0.1306211676 | DB67: 0.1306839291 | DC67: 0.1307468498 | DD67: 0.1308099301 | DE67: 0.1308731702 | DF67: 0.1309365706 | DG67: 0.1310001315 | DH67: 0.1310638533 | DI67: 0.1311277363 | DJ67: 0.1311917809 | DK67: 0.1312559874 | DL67: 0.1313203561 | DM67: 0.1313848874 | DN67: 0.1314495816 | DO67: 0.1315144391 | DP67: 0.1315794602 | DQ67: 0.1316446452 | DR67: 0.1317099945 | DS67: 0.1317755084 | DT67: 0.1318411874 | DU67: 0.1319070316 | DV67: 0.1319730415 | DW67: 0.1320392174 | DX67: 0.1321055596 | DY67: 0.1321720686 | DZ67: 0.1322387446 | EA67: 0.132305588 | EB67: 0.1323725992 | EC67: 0.1324397785 | ED67: 0.1325071262 | EE67: 0.1325746427 | EF67: 0.1326423284 | EG67: 0.1327101835 | EH67: 0.1327782086 | EI67: 0.1328464038 | EJ67: 0.1329147696 | EK67: 0.1329833064 | EL67: 0.1330520144 | EM67: 0.1331208941 | EN67: 0.1331899457 | EO67: 0.1332591697 | EP67: 0.1333285664 | EQ67: 0.1421250583 | ER67: 0.1421948015 | ES67: 0.1422647186 | ET67: 0.1423348097 | EU67: 0.1424050754 | EV67: 0.142475516 | EW67: 0.1425461317 | EX67: 0.1426169232 | EY67: 0.1426878905 | EZ67: 0.1427590342 | FA67: 0.1428303547 | FB67: 0.1429018522 | FC67: 0.1479794309 | FD67: 0.1480512836 | FE67: 0.1481233146 | FF67: 0.148195524 | FG67: 0.1482679124 | FH67: 0.1483404801 | FI67: 0.1484132274 | FJ67: 0.1484861547 | FK67: 0.1485592625 | FL67: 0.1486325511 | FM67: 0.1487060208 | FN67: 0.148779672 | FO67: 0.1539344976 | FP67: 0.154008513 | FQ67: 0.1540827111 | FR67: 0.1541570922 | FS67: 0.1542316568 | FT67: 0.1543064051 | FU67: 0.1543813377 | FV67: 0.1544564548 | FW67: 0.1545317569 | FX67: 0.1546072442 | FY67: 0.1546829173 | FZ67: 0.1547587765 | GA67: 0.1599920295 | GB67: 0.160068262 | GC67: 0.1601446818 | GD67: 0.1602212893 | GE67: 0.1602980847 | GF67: 0.1603750686 | GG67: 0.1604522413 | GH67: 0.1605296032 | GI67: 0.1606071547 | GJ67: 0.1606848962 | GK67: 0.160762828 | GL67: 0.1608409506 | GM67: 0.1661538298 | GN67: 0.1662323351 | GO67: 0.1663110324 | GP67: 0.166389922 | GQ67: 0.1664690044 | GR67: 0.1665482799 | GS67: 0.166627749 | GT67: 0.166707412 | GU67: 0.1667872693 | GV67: 0.1668673214 | GW67: 0.1669475686 | GX67: 0.1670280114 | GY67: 0.2911824375 | GZ67: 0.2910335593 | HA67: 0.2908844949 | HB67: 0.2907352441 | HC67: 0.2905858069 | HD67: 0.2904361828 | HE67: 0.2902863717 | HF67: 0.2901363733 | HG67: 0.2899861874 | HH67: 0.2898358138 | HI67: 0.2896852522 | HJ67: 0.2895345025 | HK67: 0.2947763444 | HL67: 0.2946252175 | HM67: 0.2944739017 | HN67: 0.2943223967 | HO67: 0.2941707024 | HP67: 0.2940188185 | HQ67: 0.2938667447 | HR67: 0.2937144808 | HS67: 0.2935620266 | HT67: 0.2934093818 | HU67: 0.2932565462 | HV67: 0.2931035196 | HW67: 0.2984239735 | HX67: 0.2982705641 | HY67: 0.2981169629 | HZ67: 0.2979631697 | IA67: 0.2978091842 | IB67: 0.2976550063 | IC67: 0.2975006356 | ID67: 0.297346072 | IE67: 0.2971913152 | IF67: 0.2970363649 | IG67: 0.296881221 | IH67: 0.2967258831 | II67: 0.302126128 | IJ67: 0.3019704015 | IK67: 0.3018144804 | IL67: 0.3016583643 | IM67: 0.3015020532 | IN67: 0.3013455466 | IO67: 0.3011888444 | IP67: 0.3010319463 | IQ67: 0.3008748522 | IR67: 0.3007175616 | IS67: 0.3005600744 | IT67: 0.3004023904 | IU67: 0.3058836228 | IV67: 0.3057255443 | IW67: 0.3055672682 | IX67: 0.3054087943 | IY67: 0.3052501223 | IZ67: 0.3050912519 | JA67: 0.3049321829 | JB67: 0.3047729151 | JC67: 0.3046134483 | JD67: 0.3044537821 | JE67: 0.3042939163 | JF67: 0.3041338506
C69: Equity IRR | D69: % | F69: 0.1571333706 | I69: 0 | J69: 0 | K69: 0 | L69: 0 | M69: 0 | N69: 0 | O69: 0 | P69: 0 | Q69: 0 | R69: 0 | S69: 0 | T69: 0 | U69: 0 | V69: 0 | W69: 0 | X69: 0 | Y69: 0 | Z69: 0 | AA69: 2.980232239e-09 | AB69: 2.980232239e-09 | AC69: 2.980232239e-09 | AD69: 2.980232239e-09 | AE69: 2.980232239e-09 | AF69: 2.980232239e-09 | AG69: 2.980232239e-09 | AH69: 2.980232239e-09 | AI69: 2.980232239e-09 | AJ69: 2.980232239e-09 | AK69: 2.980232239e-09 | AL69: 2.980232239e-09 | AM69: 2.980232239e-09 | AN69: 2.980232239e-09 | AO69: 2.980232239e-09 | AP69: 2.980232239e-09 | AQ69: 2.980232239e-09 | AR69: 0 | AS69: 0 | AT69: 0 | AU69: 0 | AV69: 0 | AW69: 0 | AX69: 0 | AY69: 0 | AZ69: 0 | BA69: 0 | BB69: 0 | BC69: 0 | BD69: 0 | BE69: 0 | BF69: 0 | BG69: 0 | BH69: 0 | BI69: 0 | BJ69: 0 | BK69: 0 | BL69: 0 | BM69: 0 | BN69: 0 | BO69: 0 | BP69: 0 | BQ69: 0 | BR69: 0 | BS69: 0 | BT69: 0 | BU69: 0 | BV69: 0 | BW69: 0 | BX69: 0 | BY69: 0 | BZ69: 0 | CA69: 0 | CB69: 0 | CC69: 0 | CD69: 0 | CE69: 0 | CF69: 0 | CG69: 0 | CH69: 0 | CI69: 0 | CJ69: 0 | CK69: 0 | CL69: 0 | CM69: 0 | CN69: 0 | CO69: 0 | CP69: 0 | CQ69: 0 | CR69: 0 | CS69: 0 | CT69: 0.001167741418 | CU69: 0.004413351417 | CV69: 0.007570764422 | CW69: 0.01064291894 | CX69: 0.01363277137 | CY69: 0.01654300392 | CZ69: 0.01937637627 | DA69: 0.02213530242 | DB69: 0.02482220829 | DC69: 0.02743961513 | DD69: 0.02998959124 | DE69: 0.03247451484 | DF69: 0.03489625156 | DG69: 0.03725679815 | DH69: 0.03955878913 | DI69: 0.04180339873 | DJ69: 0.04399264157 | DK69: 0.04612797797 | DL69: 0.0482113272 | DM69: 0.05024400651 | DN69: 0.05222753584 | DO69: 0.05416366756 | DP69: 0.05605354011 | DQ69: 0.05789881051 | DR69: 0.05970050395 | DS69: 0.06145990789 | DT69: 0.06317909062 | DU69: 0.06485838592 | DV69: 0.06649923027 | DW69: 0.06810244024 | DX69: 0.06966935098 | DY69: 0.07120071948 | DZ69: 0.0726975292 | EA69: 0.07416102588 | EB69: 0.07559185326 | EC69: 0.07699118555 | ED69: 0.07835961282 | EE69: 0.07969796956 | EF69: 0.08100762069 | EG69: 0.08228879273 | EH69: 0.08354251683 | EI69: 0.0847692579 | EJ69: 0.08596999347 | EK69: 0.08714514077 | EL69: 0.0882953614 | EM69: 0.08942157328 | EN69: 0.09052413404 | EO69: 0.09160390198 | EP69: 0.09266121686 | EQ69: 0.09376387894 | ER69: 0.09484362304 | ES69: 0.0959002763 | ET69: 0.09693471789 | EU69: 0.09794726968 | EV69: 0.0989387691 | EW69: 0.09990951419 | EX69: 0.1008600295 | EY69: 0.1017911017 | EZ69: 0.1027029693 | FA69: 0.1035963714 | FB69: 0.1044715345 | FC69: 0.1053587496 | FD69: 0.1062283456 | FE69: 0.1070800722 | FF69: 0.1079146206 | FG69: 0.1087321937 | FH69: 0.1095334351 | FI69: 0.1103185475 | FJ69: 0.1110879123 | FK69: 0.1118421376 | FL69: 0.1125814021 | FM69: 0.1133062541 | FN69: 0.1140168488 | FO69: 0.1147371829 | FP69: 0.1154438198 | FQ69: 0.1161364734 | FR69: 0.1168157041 | FS69: 0.1174816191 | FT69: 0.1181347549 | FU69: 0.1187751949 | FV69: 0.1194032609 | FW69: 0.1200194299 | FX69: 0.1206237853 | FY69: 0.1212168038 | FZ69: 0.121798557 | GA69: 0.1223882258 | GB69: 0.1229669511 | GC69: 0.1235346377 | GD69: 0.1240917146 | GE69: 0.1246382535 | GF69: 0.1251746714 | GG69: 0.1257010281 | GH69: 0.12621755 | GI69: 0.1267246187 | GJ69: 0.1272223055 | GK69: 0.1277109683 | GL69: 0.1281906545 | GM69: 0.12867679 | GN69: 0.1291544139 | GO69: 0.1296232164 | GP69: 0.130083555 | GQ69: 0.1305354774 | GR69: 0.1309793055 | GS69: 0.1314150751 | GT69: 0.131842953 | GU69: 0.132263273 | GV69: 0.1326760352 | GW69: 0.1330815613 | GX69: 0.1334798515 | GY69: 0.1341596067 | GZ69: 0.1348236263 | HA69: 0.1354717314 | HB69: 0.1361046612 | HC69: 0.136722666 | HD69: 0.1373264372 | HE69: 0.1379161894 | HF69: 0.1384923637 | HG69: 0.139055568 | HH69: 0.139605993 | HI69: 0.1401441991 | HJ69: 0.1406703651 | HK69: 0.1411943734 | HL69: 0.1417072594 | HM69: 0.1422088087 | HN69: 0.1426995099 | HO69: 0.1431794822 | HP69: 0.1436492264 | HQ69: 0.1441088259 | HR69: 0.1445585787 | HS69: 0.1449989021 | HT69: 0.1454299033 | HU69: 0.1458519638 | HV69: 0.1462651908 | HW69: 0.1466773212 | HX69: 0.1470811427 | HY69: 0.1474765837 | HZ69: 0.147864002 | IA69: 0.1482434452 | IB69: 0.1486152709 | IC69: 0.1489795268 | ID69: 0.1493364036 | IE69: 0.1496862352 | IF69: 0.1500290334 | IG69: 0.1503651202 | IH69: 0.1506945193 | II69: 0.1510234416 | IJ69: 0.1513462007 | IK69: 0.1516625941 | IL69: 0.1519728839 | IM69: 0.152277106 | IN69: 0.1525755107 | IO69: 0.1528681338 | IP69: 0.1531550944 | IQ69: 0.153436631 | IR69: 0.1537127793 | IS69: 0.1539837658 | IT69: 0.1542495906 | IU69: 0.1545152605 | IV69: 0.1547761977 | IW69: 0.1550321877 | IX69: 0.155283457 | IY69: 0.1555300057 | IZ69: 0.1557720363 | JA69: 0.1560095608 | JB69: 0.1562426627 | JC69: 0.1564715445 | JD69: 0.1566961944 | JE69: 0.156916815 | JF69: 0.1571333706
C70: Check | D70: Vrai / Faux | F70: TRUE
C72: Cost of Equity | D72: % | F72: 0.08
C74: Equity NPV | D74: M€ | F74: 7.941852486 | I74: -3.458600116 | J74: -4.460872296 | K74: -4.758571801 | L74: -5.539924256 | M74: -6.316349814 | N74: -9.043843322 | O74: -9.043843322 | P74: -9.043843322 | Q74: -9.043843322 | R74: -9.043843322 | S74: -9.043843322 | T74: -9.043843322 | U74: -9.043843322 | V74: -9.043843322 | W74: -9.043843322 | X74: -9.043843322 | Y74: -9.043843322 | Z74: -9.043843322 | AA74: -8.931447098 | AB74: -8.819667049 | AC74: -8.708569995 | AD74: -8.598128378 | AE74: -8.488361378 | AF74: -8.37924177 | AG74: -8.270788508 | AH74: -8.162997423 | AI74: -8.055841785 | AJ74: -7.949340207 | AK74: -7.843466281 | AL74: -7.7382384 | AM74: -7.633652526 | AN74: -7.529660804 | AO74: -7.426303357 | AP74: -7.323554561 | AQ74: -7.221432273 | AR74: -7.119911175 | AS74: -7.019008912 | AT74: -6.918721621 | AU74: -6.819024441 | AV74: -6.719934704 | AW74: -6.621427849 | AX74: -6.523521004 | AY74: -6.426210423 | AZ74: -6.329431186 | BA74: -6.233241166 | BB74: -6.137616528 | BC74: -6.042573901 | BD74: -5.948089735 | BE74: -5.854180463 | BF74: -5.7608425 | BG74: -5.668052721 | BH74: -5.575827268 | BI74: -5.484143292 | BJ74: -5.393016745 | BK74: -5.302444153 | BL74: -5.212365102 | BM74: -5.122833469 | BN74: -5.033827078 | BO74: -4.94536142 | BP74: -4.857414584 | BQ74: -4.770001878 | BR74: -4.683119975 | BS74: -4.596747361 | BT74: -4.510899071 | BU74: -4.425553848 | BV74: -4.340726551 | BW74: -4.256413958 | BX74: -4.172559838 | BY74: -4.089214356 | BZ74: -4.00635688 | CA74: -3.924001839 | CB74: -3.842128846 | CC74: -3.760752164 | CD74: -3.679868704 | CE74: -3.599458447 | CF74: -3.519535403 | CG74: -3.440079789 | CH74: -3.361105451 | CI74: -3.282609397 | CJ74: -3.204555746 | CK74: -3.126974652 | CL74: -3.04984692 | CM74: -2.973185992 | CN74: -2.896972899 | CO74: -2.821220927 | CP74: -2.745927212 | CQ74: -2.671073128 | CR74: -2.596671723 | CS74: -2.522704595 | CT74: -2.449184639 | CU74: -2.376109081 | CV74: -2.303429204 | CW74: -2.231188505 | CX74: -2.159369118 | CY74: -2.087983569 | CZ74: -2.017014205 | DA74: -1.946473407 | DB74: -1.876358515 | DC74: -1.806652195 | DD74: -1.737366607 | DE74: -1.668484621 | DF74: -1.600018256 | DG74: -1.531964938 | DH74: -1.464279305 | DI74: -1.397001874 | DJ74: -1.330116016 | DK74: -1.263633405 | DL74: -1.197537609 | DM74: -1.131840166 | DN74: -1.066538609 | DO74: -1.001616801 | DP74: -0.9370860766 | DQ74: -0.8729304901 | DR74: -0.809161244 | DS74: -0.7457759482 | DT74: -0.6827323616 | DU74: -0.6200682302 | DV74: -0.5577680726 | DW74: -0.495842771 | DX74: -0.4342770278 | DY74: -0.3730815981 | DZ74: -0.3122541931 | EA74: -0.2517797886 | EB74: -0.191668951 | EC74: -0.1319068343 | ED74: -0.07250388186 | EE74: -0.01345787523 | EF74: 0.04525814566 | EG74: 0.1036214671 | EH74: 0.1616465002 | EI74: 0.2193231019 | EJ74: 0.2766655126 | EK74: 0.3336637073 | EL74: 0.3903198102 | EM74: 0.4466478076 | EN74: 0.5026378502 | EO74: 0.5583037587 | EP74: 0.6136357981 | EQ74: 0.672234149 | ER74: 0.7305161486 | ES74: 0.7884469056 | ET74: 0.8460407357 | EU74: 0.903287583 | EV74: 0.9602015931 | EW74: 1.016772827 | EX74: 1.073003406 | EY74: 1.128907221 | EZ74: 1.184474509 | FA74: 1.239718998 | FB74: 1.294631037 | FC74: 1.351123737 | FD74: 1.407311164 | FE74: 1.463159683 | FF74: 1.518683098 | FG74: 1.573871717 | FH74: 1.628739179 | FI74: 1.683275906 | FJ74: 1.737483945 | FK74: 1.79137669 | FL74: 1.844944733 | FM74: 1.898201309 | FN74: 1.951137118 | FO74: 2.005550182 | FP74: 2.059668955 | FQ74: 2.113461042 | FR74: 2.166939741 | FS74: 2.22009572 | FT74: 2.272942118 | FU74: 2.325469712 | FV74: 2.377680475 | FW74: 2.429587311 | FX74: 2.48118116 | FY74: 2.532474773 | FZ74: 2.583459193 | GA74: 2.635824279 | GB74: 2.687894943 | GC74: 2.739651059 | GD74: 2.791105424 | GE74: 2.84224906 | GF74: 2.893094612 | GG74: 2.943633207 | GH74: 2.993866747 | GI74: 3.043807649 | GJ74: 3.093447197 | GK74: 3.142797661 | GL74: 3.191850427 | GM74: 3.242193359 | GN74: 3.292263594 | GO74: 3.342031167 | GP74: 3.391508384 | GQ74: 3.440686614 | GR74: 3.489578018 | GS74: 3.538174065 | GT74: 3.586476587 | GU74: 3.634497525 | GV74: 3.682228499 | GW74: 3.729681311 | GX74: 3.776847678 | GY74: 3.858537804 | GZ74: 3.939705542 | HA74: 4.020303162 | HB74: 4.100351473 | HC74: 4.179837383 | HD74: 4.258781418 | HE74: 4.337170669 | HF74: 4.415008965 | HG74: 4.492316405 | HH74: 4.569080352 | HI74: 4.645320632 | HJ74: 4.721024782 | HK74: 4.797597359 | HL74: 4.873680167 | HM74: 4.949228468 | HN74: 5.024261767 | HO74: 5.098767796 | HP74: 5.172765794 | HQ74: 5.246243664 | HR74: 5.319204994 | HS74: 5.391668627 | HT74: 5.463622718 | HU74: 5.535085851 | HV74: 5.606046347 | HW74: 5.67782422 | HX74: 5.749127858 | HY74: 5.819930465 | HZ74: 5.890250324 | IA74: 5.960075938 | IB74: 6.029425337 | IC74: 6.098287187 | ID74: 6.166664851 | IE74: 6.23457599 | IF74: 6.302009504 | IG74: 6.36898281 | IH74: 6.435484964 | II74: 6.502756266 | IJ74: 6.569597108 | IK74: 6.635968187 | IL74: 6.701886642 | IM74: 6.767341697 | IN74: 6.832350256 | IO74: 6.896901693 | IP74: 6.960999163 | IQ74: 7.024659221 | IR74: 7.087871465 | IS74: 7.150652221 | IT74: 7.212991232 | IU74: 7.276054144 | IV74: 7.33871344 | IW74: 7.400932276 | IX74: 7.46272672 | IY74: 7.524086672 | IZ74: 7.585027978 | JA74: 7.645540679 | JB74: 7.705627734 | JC74: 7.765304662 | JD74: 7.824561712 | JE74: 7.883414192 | JF74: 7.941852486
C75: Check | D75: Vrai / Faux | F75: TRUE
C77: Discounted Payback flag | D77: 1 or 0 | I77: 0 | J77: 0 | K77: 0 | L77: 0 | M77: 0 | N77: 0 | O77: 0 | P77: 0 | Q77: 0 | R77: 0 | S77: 0 | T77: 0 | U77: 0 | V77: 0 | W77: 0 | X77: 0 | Y77: 0 | Z77: 0 | AA77: 0 | AB77: 0 | AC77: 0 | AD77: 0 | AE77: 0 | AF77: 0 | AG77: 0 | AH77: 0 | AI77: 0 | AJ77: 0 | AK77: 0 | AL77: 0 | AM77: 0 | AN77: 0 | AO77: 0 | AP77: 0 | AQ77: 0 | AR77: 0 | AS77: 0 | AT77: 0 | AU77: 0 | AV77: 0 | AW77: 0 | AX77: 0 | AY77: 0 | AZ77: 0 | BA77: 0 | BB77: 0 | BC77: 0 | BD77: 0 | BE77: 0 | BF77: 0 | BG77: 0 | BH77: 0 | BI77: 0 | BJ77: 0 | BK77: 0 | BL77: 0 | BM77: 0 | BN77: 0 | BO77: 0 | BP77: 0 | BQ77: 0 | BR77: 0 | BS77: 0 | BT77: 0 | BU77: 0 | BV77: 0 | BW77: 0 | BX77: 0 | BY77: 0 | BZ77: 0 | CA77: 0 | CB77: 0 | CC77: 0 | CD77: 0 | CE77: 0 | CF77: 0 | CG77: 0 | CH77: 0 | CI77: 0 | CJ77: 0 | CK77: 0 | CL77: 0 | CM77: 0 | CN77: 0 | CO77: 0 | CP77: 0 | CQ77: 0 | CR77: 0 | CS77: 0 | CT77: 0 | CU77: 0 | CV77: 0 | CW77: 0 | CX77: 0 | CY77: 0 | CZ77: 0 | DA77: 0 | DB77: 0 | DC77: 0 | DD77: 0 | DE77: 0 | DF77: 0 | DG77: 0 | DH77: 0 | DI77: 0 | DJ77: 0 | DK77: 0 | DL77: 0 | DM77: 0 | DN77: 0 | DO77: 0 | DP77: 0 | DQ77: 0 | DR77: 0 | DS77: 0 | DT77: 0 | DU77: 0 | DV77: 0 | DW77: 0 | DX77: 0 | DY77: 0 | DZ77: 0 | EA77: 0 | EB77: 0 | EC77: 0 | ED77: 0 | EE77: 0 | EF77: 1 | EG77: 1 | EH77: 1 | EI77: 1 | EJ77: 1 | EK77: 1 | EL77: 1 | EM77: 1 | EN77: 1 | EO77: 1 | EP77: 1 | EQ77: 1 | ER77: 1 | ES77: 1 | ET77: 1 | EU77: 1 | EV77: 1 | EW77: 1 | EX77: 1 | EY77: 1 | EZ77: 1 | FA77: 1 | FB77: 1 | FC77: 1 | FD77: 1 | FE77: 1 | FF77: 1 | FG77: 1 | FH77: 1 | FI77: 1 | FJ77: 1 | FK77: 1 | FL77: 1 | FM77: 1 | FN77: 1 | FO77: 1 | FP77: 1 | FQ77: 1 | FR77: 1 | FS77: 1 | FT77: 1 | FU77: 1 | FV77: 1 | FW77: 1 | FX77: 1 | FY77: 1 | FZ77: 1 | GA77: 1 | GB77: 1 | GC77: 1 | GD77: 1 | GE77: 1 | GF77: 1 | GG77: 1 | GH77: 1 | GI77: 1 | GJ77: 1 | GK77: 1 | GL77: 1 | GM77: 1 | GN77: 1 | GO77: 1 | GP77: 1 | GQ77: 1 | GR77: 1 | GS77: 1 | GT77: 1 | GU77: 1 | GV77: 1 | GW77: 1 | GX77: 1 | GY77: 1 | GZ77: 1 | HA77: 1 | HB77: 1 | HC77: 1 | HD77: 1 | HE77: 1 | HF77: 1 | HG77: 1 | HH77: 1 | HI77: 1 | HJ77: 1 | HK77: 1 | HL77: 1 | HM77: 1 | HN77: 1 | HO77: 1 | HP77: 1 | HQ77: 1 | HR77: 1 | HS77: 1 | HT77: 1 | HU77: 1 | HV77: 1 | HW77: 1 | HX77: 1 | HY77: 1 | HZ77: 1 | IA77: 1 | IB77: 1 | IC77: 1 | ID77: 1 | IE77: 1 | IF77: 1 | IG77: 1 | IH77: 1 | II77: 1 | IJ77: 1 | IK77: 1 | IL77: 1 | IM77: 1 | IN77: 1 | IO77: 1 | IP77: 1 | IQ77: 1 | IR77: 1 | IS77: 1 | IT77: 1 | IU77: 1 | IV77: 1 | IW77: 1 | IX77: 1 | IY77: 1 | IZ77: 1 | JA77: 1 | JB77: 1 | JC77: 1 | JD77: 1 | JE77: 1 | JF77: 1
C78: Discounted Payback date | D78: 1 or 0 | I78: 0 | J78: 0 | K78: 0 | L78: 0 | M78: 0 | N78: 0 | O78: 0 | P78: 0 | Q78: 0 | R78: 0 | S78: 0 | T78: 0 | U78: 0 | V78: 0 | W78: 0 | X78: 0 | Y78: 0 | Z78: 0 | AA78: 0 | AB78: 0 | AC78: 0 | AD78: 0 | AE78: 0 | AF78: 0 | AG78: 0 | AH78: 0 | AI78: 0 | AJ78: 0 | AK78: 0 | AL78: 0 | AM78: 0 | AN78: 0 | AO78: 0 | AP78: 0 | AQ78: 0 | AR78: 0 | AS78: 0 | AT78: 0 | AU78: 0 | AV78: 0 | AW78: 0 | AX78: 0 | AY78: 0 | AZ78: 0 | BA78: 0 | BB78: 0 | BC78: 0 | BD78: 0 | BE78: 0 | BF78: 0 | BG78: 0 | BH78: 0 | BI78: 0 | BJ78: 0 | BK78: 0 | BL78: 0 | BM78: 0 | BN78: 0 | BO78: 0 | BP78: 0 | BQ78: 0 | BR78: 0 | BS78: 0 | BT78: 0 | BU78: 0 | BV78: 0 | BW78: 0 | BX78: 0 | BY78: 0 | BZ78: 0 | CA78: 0 | CB78: 0 | CC78: 0 | CD78: 0 | CE78: 0 | CF78: 0 | CG78: 0 | CH78: 0 | CI78: 0 | CJ78: 0 | CK78: 0 | CL78: 0 | CM78: 0 | CN78: 0 | CO78: 0 | CP78: 0 | CQ78: 0 | CR78: 0 | CS78: 0 | CT78: 0 | CU78: 0 | CV78: 0 | CW78: 0 | CX78: 0 | CY78: 0 | CZ78: 0 | DA78: 0 | DB78: 0 | DC78: 0 | DD78: 0 | DE78: 0 | DF78: 0 | DG78: 0 | DH78: 0 | DI78: 0 | DJ78: 0 | DK78: 0 | DL78: 0 | DM78: 0 | DN78: 0 | DO78: 0 | DP78: 0 | DQ78: 0 | DR78: 0 | DS78: 0 | DT78: 0 | DU78: 0 | DV78: 0 | DW78: 0 | DX78: 0 | DY78: 0 | DZ78: 0 | EA78: 0 | EB78: 0 | EC78: 0 | ED78: 0 | EE78: 0 | EF78: 1 | EG78: 0 | EH78: 0 | EI78: 0 | EJ78: 0 | EK78: 0 | EL78: 0 | EM78: 0 | EN78: 0 | EO78: 0 | EP78: 0 | EQ78: 0 | ER78: 0 | ES78: 0 | ET78: 0 | EU78: 0 | EV78: 0 | EW78: 0 | EX78: 0 | EY78: 0 | EZ78: 0 | FA78: 0 | FB78: 0 | FC78: 0 | FD78: 0 | FE78: 0 | FF78: 0 | FG78: 0 | FH78: 0 | FI78: 0 | FJ78: 0 | FK78: 0 | FL78: 0 | FM78: 0 | FN78: 0 | FO78: 0 | FP78: 0 | FQ78: 0 | FR78: 0 | FS78: 0 | FT78: 0 | FU78: 0 | FV78: 0 | FW78: 0 | FX78: 0 | FY78: 0 | FZ78: 0 | GA78: 0 | GB78: 0 | GC78: 0 | GD78: 0 | GE78: 0 | GF78: 0 | GG78: 0 | GH78: 0 | GI78: 0 | GJ78: 0 | GK78: 0 | GL78: 0 | GM78: 0 | GN78: 0 | GO78: 0 | GP78: 0 | GQ78: 0 | GR78: 0 | GS78: 0 | GT78: 0 | GU78: 0 | GV78: 0 | GW78: 0 | GX78: 0 | GY78: 0 | GZ78: 0 | HA78: 0 | HB78: 0 | HC78: 0 | HD78: 0 | HE78: 0 | HF78: 0 | HG78: 0 | HH78: 0 | HI78: 0 | HJ78: 0 | HK78: 0 | HL78: 0 | HM78: 0 | HN78: 0 | HO78: 0 | HP78: 0 | HQ78: 0 | HR78: 0 | HS78: 0 | HT78: 0 | HU78: 0 | HV78: 0 | HW78: 0 | HX78: 0 | HY78: 0 | HZ78: 0 | IA78: 0 | IB78: 0 | IC78: 0 | ID78: 0 | IE78: 0 | IF78: 0 | IG78: 0 | IH78: 0 | II78: 0 | IJ78: 0 | IK78: 0 | IL78: 0 | IM78: 0 | IN78: 0 | IO78: 0 | IP78: 0 | IQ78: 0 | IR78: 0 | IS78: 0 | IT78: 0 | IU78: 0 | IV78: 0 | IW78: 0 | IX78: 0 | IY78: 0 | IZ78: 0 | JA78: 0 | JB78: 0 | JC78: 0 | JD78: 0 | JE78: 0 | JF78: 0
C80: Date of the payback | D80: date | F80: 2032-02-29
C81: Equity Discounted Payback Period | D81: number of years | F81: 10.73611111

Sheet Protéger avec mdp
A1: Protéger un onglet avec un mot de passe
A2: >> Retour Sommaire
B3: Données de l'emprunt | E3: Année | F3: Dette début de période | G3: Remboursement du capital | H3: Intérêts payés | I3: Mensualité totale | J3: Dette fin de période
B4: Taux d'intérêts : | C4: 0.02 | E4: 2010 | F4: =C6 -> 50000 | G4: =I4-H4 -> 4566.326393 | H4: =-IPMT($C$4,COUNT($E$4:E4),$C$5,$C$6) -> 1000 | I4: =-PMT($C$4,$C$5,$C$6) -> 5566.326393 | J4: =F4-G4 -> 45433.67361
B5: Nombre d'années : | C5: 10 | E5: 2011 | F5: =J4 -> 45433.67361 | G5: =I5-H5 -> 4657.652921 | H5: =-IPMT($C$4,COUNT($E$4:E5),$C$5,$C$6) -> 908.6734721 | I5: =-PMT($C$4,$C$5,$C$6) -> 5566.326393 | J5: =F5-G5 -> 40776.02069
B6: Montant emprunté : | C6: 50000 | E6: 2012 | F6: =J5 -> 40776.02069 | G6: =I6-H6 -> 4750.80598 | H6: =-IPMT($C$4,COUNT($E$4:E6),$C$5,$C$6) -> 815.5204137 | I6: =-PMT($C$4,$C$5,$C$6) -> 5566.326393 | J6: =F6-G6 -> 36025.21471
E7: 2013 | F7: 36025.21471 | G7: 4845.822099 | H7: =-IPMT($C$4,COUNT($E$4:E7),$C$5,$C$6) -> 720.5042941 | I7: 5566.326393 | J7: 31179.39261
E8: 2014 | F8: 31179.39261 | G8: 4942.738541 | H8: =-IPMT($C$4,COUNT($E$4:E8),$C$5,$C$6) -> 623.5878521 | I8: 5566.326393 | J8: 26236.65407
E9: 2015 | F9: 26236.65407 | G9: 5041.593312 | H9: =-IPMT($C$4,COUNT($E$4:E9),$C$5,$C$6) -> 524.7330813 | I9: 5566.326393 | J9: 21195.06075
B10: Pour dévérouiller la page utilisez le mot de passe TBW | E10: 2016 | F10: 21195.06075 | G10: 5142.425178 | H10: =-IPMT($C$4,COUNT($E$4:E10),$C$5,$C$6) -> 423.9012151 | I10: 5566.326393 | J10: 16052.63558
E11: 2017 | F11: 16052.63558 | G11: 5245.273682 | H11: =-IPMT($C$4,COUNT($E$4:E11),$C$5,$C$6) -> 321.0527115 | I11: 5566.326393 | J11: 10807.36189
E12: 2018 | F12: 10807.36189 | G12: 5350.179155 | H12: =-IPMT($C$4,COUNT($E$4:E12),$C$5,$C$6) -> 216.1472379 | I12: 5566.326393 | J12: 5457.182738
E13: 2019 | F13: 5457.182738 | G13: 5457.182738 | H13: =-IPMT($C$4,COUNT($E$4:E13),$C$5,$C$6) -> 109.1436548 | I13: 5566.326393 | J13: 0
E14: 2020 | F14: 0 | G14: 0 | H14: 0 | I14: 0 | J14: 0

Sheet Insertion lien
A1: Insérer un lien interne ou externe dans une cellule
A2: >> Retour Sommaire
B3: Bilan simplifié : | C3: 2018 | D3: 2019 | E3: 2020
B4: Actif circulant | C4: 10 | D4: 14 | E4: 16
B5: Actif immobilisé | C5: 30 | D5: 32 | E5: 36
B6: Passif court-terme | C6: 15 | D6: 18 | E6: 17
B7: Passif long-terme | C7: 20 | D7: 22 | E7: 27
B8: Capitaux propres | C8: =SUM(C4:C5)-SUM(C6:C7) -> 5 | D8: =SUM(D4:D5)-SUM(D6:D7) -> 6 | E8: 8
B10: Accéder au bilan complet
B11: Comprendre un bilan facilement
B100: Bilan complet | C100: 2018 | D100: 2019 | E100: 2020
B101: Trésorerie | C101: 2 | D101: 4 | E101: 5
B102: Stocks | C102: 8 | D102: 11 | E102: 19
B103: Créaces clients | C103: 6 | D103: 9 | E103: 12
B104: Actif circulant | C104: =SUM(C101:C103) -> 16 | D104: =SUM(D101:D103) -> 24 | E104: 36
B105: Actifs intangibles | C105: 7 | D105: 9 | E105: 14
B106: Matériel | C106: 19 | D106: 23 | E106: 27
B107: Actifs immobilisés | C107: =SUM(C105:C106) -> 26 | D107: =SUM(D105:D106) -> 32 | E107: 41
B108: TOTAL ACTIF | C108: =C104+C107 -> 42 | D108: =D104+D107 -> 56 | E108: 77
B109: Dettes fournisseurs | C109: 10 | D109: 17 | E109: 18
B110: Dettes fiscales | C110: 2 | D110: 5 | E110: 6
B111: Partie des dettes à -1 an | C111: 5 | D111: 7 | E111: 11
B112: Passif court terme | C112: =SUM(C109:C111) -> 17 | D112: =SUM(D109:D111) -> 29 | E112: 35
B113: Dettes à +1 an | C113: =C111*4 -> 20 | D113: =D111*3 -> 21 | E113: 33
B114: Passif long terme | C114: =C113 -> 20 | D114: =D113 -> 21 | E114: 33
B115: Fonds propres | C115: =C108-C112-C114 -> 5 | D115: =D108-D112-D114 -> 6 | E115: 9
B116: TOTAL PASSIF | C116: =C112+C114+C115 -> 42 | D116: =D112+D114+D115 -> 56 | E116: 77

Sheet Insertion texte formules
A1: Utiliser du texte dans des formules
A2: >> Retour Sommaire
B3: Compte de résultat | C3: 2018 | D3: 2019 | E3: 2020 | F3: 2021
B4: Chiffre d'affaires | C4: 1000 | D4: 1060 | E4: 1197.8 | F4: 1329.558
B5: Croissance du CA | C5: - | D5: =D4/C4-1 -> 0.06 | E5: =E4/D4-1 -> 0.13 | F5: =F4/E4-1 -> 0.11
B6: EBITDA | C6: 290 | D6: 233.2 | E6: 263.516 | F6: 265.9116
B7: Marge d'EBITDA | C7: =C6/C4 -> 0.29 | D7: =D6/D4 -> 0.22 | E7: =E6/E4 -> 0.22 | F7: =F6/F4 -> 0.2
B8: D&A | C8: 80 | D8: 106 | E8: 95.824 | F8: 132.9558
B9: EBIT | C9: 210 | D9: 127.2 | E9: 167.692 | F9: 132.9558
B10: Intérêts | C10: 20 | D10: 21.2 | E10: 23.956 | F10: 13.29558
B11: Impôts | C11: 57 | D11: 31.8 | E11: 43.1208 | F11: 35.898066
B12: Résultat net | C12: 133 | D12: 74 | E12: 101 | F12: 84
B14: Analyse :
B15: Chiffre d'affaires : | C15: ="Le taux de croissance moyen annuel du chiffre d'affaires est de : "&TEXT(AVERAGE(C5:F5),"###%") -> Le taux de croissance moyen annuel du chiffre d'affaires est de : 10% | I15: ="Le taux de croissance moyen annuel du chiffre d'affaires est de : "&TEXTE(MOYENNE(C5:F5);"###%")
B17: EBITDA : | C17: ="La marge d'EBITDA moyenne entre "&C3&" et "&F3&" est de "&TEXT(AVERAGE(C7:F7),"###%") -> La marge d'EBITDA moyenne entre 2018 et 2021 est de 23% | I17: ="La marge d'EBITDA moyenne entre "&C3&" et "&F3&" est de "&TEXTE(MOYENNE(C7:F7);"###%")
B19: Résultat net : | C19: ="Le résultat net entre "&C3&" et "&F3&" s'étale sur une plage de "&MIN(C12:F12)&" M€ à "&MAX(C12:F12)&" M€." -> Le résultat net entre 2018 et 2021 s'étale sur une plage de 74 M€ à 133 M€. | I19: ="Le résultat net entre "&C3&" et "&F3&" s'étale sur une plage de "&MIN(C12:F12)&" M€ à "&MAX(C12:F12)&" M€."
B22: Valeur décimale : | C22: =1/3 -> 0.3333333333 | D22: =1/3
B24: Utilisation de la valeur chiffrée avec du texte : | C24: ="Le taux de croissance est de : "&C22 -> Le taux de croissance est de : 0,333333333333333 | I24: ="Le taux de croissance est de : "&C3
B26: Utilisation de la valeur transformée en texte : | C26: ="Le taux de croissance est de : "&TEXT(C22,"###%") -> Le taux de croissance est de : 33% | I26: ="Le taux de croissance est de : "&TEXTE(C3;"###%")

Sheet Macro Bouton VBA
A1: Affilier une macro à un bouton VBA
C2: >> Retour Sommaire
C3: The Big Win

Sheet Macro Filtre
A1: Macro filtre
B2: >> Retour Sommaire
B6: # | C6: Nom de l'immeuble | D6: Pays | E6: Continent
B7: 1 | C7: Immeuble A | D7: France | E7: Europe
B8: 2 | C8: Immeuble B | D8: Japon | E8: Asie
B9: 3 | C9: Immeuble C | D9: Argentine | E9: Amérique du sud
B10: 4 | C10: Immeuble D | D10: Inde | E10: Asie
B11: 5 | C11: Immeuble E | D11: Australie | E11: Océanie
B12: 6 | C12: Immeuble F | D12: Maroc | E12: Afrique
B13: 7 | C13: Immeuble G | D13: Brésil | E13: Amérique du sud
B14: 8 | C14: Immeuble H | D14: France | E14: Europe
B15: 9 | C15: Immeuble I | D15: Portugal | E15: Europe
B16: 10 | C16: Immeuble J | D16: Espagne | E16: Europe

Sheet Nommer cellule
A1: Nommer des cellules
A2: >> Retour Sommaire
C3: Milliers : | D3: 1000
C4: Chiffre d'affaires en euros : | D4: 335000
C5: Chiffre d'affaires en milliers d'euros : | D5: =D4/mille -> 335

Sheet Mise en forme conditionnelle
A1: Rendre un tableau plus intelligible avec les mises en forme conditionnelles
A2: >> Retour Sommaire
B3: PROJET | C3: MOIS | D3: CASH FLOWS
B4: A | C4: Janvier | D4: 221
B5: B | C5: Février | D5: 357
B6: B | C6: Mars | D6: -312
B7: B | C7: Avril | D7: 234
B8: A | C8: Mai | D8: -152
B9: A | C9: Juin | D9: 138
B10: B | C10: Juillet | D10: 442
B11: A | C11: Août | D11: 497
B12: B | C12: Septembre | D12: 316
B13: B | C13: Octobre | D13: -335
B14: A | C14: Novembre | D14: 310
B15: B | C15: Décembre | D15: -319

Sheet Liste déroulante
A1: Liste déroulante
C2: >> Retour Sommaire
C5: Produit | D5: F | E5: G | F5: H | G5: I | H5: J
C7: Choix du produit

Sheet Bouton Toupie
A1: Ajouter un bouton [+/-] (toupie de contrôle)
A2: >> Retour Sommaire
C3: Valeur à faire varier : | D3: 1

Sheet Timeline classique
A1: Timeline classique
B2: >> Retour Sommaire
B4: Date début de période | D4: date | F4: 2025-11-01
B5: Périodicité | D5: nombre | F5: 6
B8: Début de période | D8: date | I8: =F4 -> 2025-11-01 | J8: =EDATE(I8,$F$5) -> 2026-05-01 | K8: =EDATE(J8,$F$5) -> 2026-11-01 | L8: 2027-05-01 | M8: 2027-11-01 | N8: 2028-05-01 | O8: 2028-11-01
B9: Fin de période | D9: date | I9: =EOMONTH(I8,$F$5-1) -> 2026-04-30 | J9: =EOMONTH(J8,$F$5-1) -> 2026-10-31 | K9: 2027-04-30 | L9: 2027-10-31 | M9: 2028-04-30 | N9: 2028-10-31 | O9: 2029-04-30
B10: Année | D10: nombre | I10: =YEAR(I9) -> 2026 | J10: =YEAR(J9) -> 2026 | K10: 2027 | L10: 2027 | M10: 2028 | N10: 2028 | O10: 2029
B11: Durée de la période | D11: jours | I11: =I9-I8 -> 180 | J11: =J9-J8 -> 183 | K11: 180 | L11: 183 | M11: 181 | N11: 183 | O11: 180

Sheet DATES <> (exemple 1)
A1: Comparer des dates avec < et >
A2: >> Retour Sommaire
B4: Date du virement | C4: Date attendue | D4: Virement à temps
B5: 2020-01-06 | C5: =DATE(2020,IFERROR(MONTH(C4)+1,1),15) -> 2020-01-15 | D5: =IF(B5<=C5,"OK","RETARD") -> OK | E5: =SI(B5<=C5;"OK";"RETARD")
B6: 2020-02-12 | C6: =DATE(2020,IFERROR(MONTH(C5)+1,1),15) -> 2020-02-15 | D6: =IF(B6<=C6,"OK","RETARD") -> OK
B7: 2020-03-13 | C7: 2020-03-15 | D7: OK
B8: 2020-04-19 | C8: 2020-04-15 | D8: RETARD
B9: 2020-05-20 | C9: 2020-05-15 | D9: RETARD
B10: 2020-06-18 | C10: 2020-06-15 | D10: RETARD
B11: 2020-07-15 | C11: 2020-07-15 | D11: OK
B12: 2020-08-08 | C12: 2020-08-15 | D12: OK
B13: 2020-09-20 | C13: 2020-09-15 | D13: RETARD
B14: 2020-10-08 | C14: 2020-10-15 | D14: OK
B15: 2020-11-05 | C15: 2020-11-15 | D15: OK
B16: 2020-12-10 | C16: 2020-12-15 | D16: OK

Sheet DATES <> (exemple 2)
A1: Comparer des dates avec < et >
A2: >> Retour Sommaire
B4: Investissements prévus | F4: 2020-01-01 | G4: 2020-02-01 | H4: 2020-03-01 | I4: 2020-04-01 | J4: 2020-05-01 | K4: 2020-06-01 | L4: 2020-07-01 | M4: 2020-08-01 | N4: 2020-09-01 | O4: 2020-10-01 | P4: 2020-11-01 | Q4: 2020-12-01
B5: N° | C5: Date | D5: Montant
B6: 1 | C6: 2020-02-01 | D6: 5 | F6: =IF($C$6=F4,$D$6,0) -> 0 | G6: =IF($C$6=G4,$D$6,0) -> 5 | H6: 0 | I6: 0 | J6: 0 | K6: 0 | L6: 0 | M6: 0 | N6: 0 | O6: 0 | P6: 0 | Q6: 0 | R6: =SI($C$6=Q4;$D$6;0)
B7: 2 | C7: 2020-04-01 | D7: 3 | F7: =IF($C$7=F4,$D$7,0) -> 0 | G7: =IF($C$7=G4,$D$7,0) -> 0 | H7: 0 | I7: 3 | J7: 0 | K7: 0 | L7: 0 | M7: 0 | N7: 0 | O7: 0 | P7: 0 | Q7: 0
B8: 3 | C8: 2020-09-01 | D8: 8 | F8: =IF($C$8=F4,$D$8,0) -> 0 | G8: =IF($C$8=G4,$D$8,0) -> 0 | H8: 0 | I8: 0 | J8: 0 | K8: 0 | L8: 0 | M8: 0 | N8: 8 | O8: 0 | P8: 0 | Q8: 0

Sheet Agrandir tableau
A1: Agrandir facilement un tableau
C2: >> Retour Sommaire
C4: Produit | D4: Quantité | E4: Prix unitaire (€) | F4: Chiffre d'affaires (€)
C5: A | D5: 10 | E5: 5 | F5: =((D5*E5)) -> 50
C6: B | D6: 5 | E6: 8 | F6: =((D6*E6)) -> 40
C7: C | D7: 8 | E7: 4 | F7: 32
C8: D | D8: 15 | E8: 5 | F8: 75
C9: E | D9: 28 | E9: 6 | F9: 168
C10: F | D10: 3 | E10: 50 | F10: 150
C11: x | D11: x | E11: x | F11: x
C12: Total | D12: =SUM(D$5:D$11) -> 69 | E12: =SUM(E$5:E$11) -> 78 | F12: 515
C14: Moyenne 1 | D14: =AVERAGE(D5:D10) -> 11.5
C15: Moyenne 2 | D15: =AVERAGE(D5:D11) -> 11.5
C16: Check | D16: =D14=D15 -> TRUE

Sheet TCD
A1: Tableau Croisé Dynamique
C2: >> Retour Sommaire
C4: Produit | D4: Ville | E4: Prix | F4: Quantité | H4: Étiquettes de lignes | I4: Somme de Quantité | J4: Somme de Prix
C5: A | D5: Paris | E5: 5 | F5: 12 | H5: Lyon | I5: 162 | J5: 37
C6: A | D6: Marseille | E6: 6 | F6: 50 | H6: A | I6: 4 | J6: 5.5
C7: A | D7: Lyon | E7: 5.5 | F7: 4 | H7: B | I7: 85 | J7: 3
C8: B | D8: Paris | E8: 3.5 | F8: 20 | H8: C | I8: 65 | J8: 6
C9: B | D9: Marseille | E9: 2.5 | F9: 30 | H9: D | I9: 2 | J9: 9.5
C10: B | D10: Lyon | E10: 3 | F10: 85 | H10: E | I10: 6 | J10: 13
C11: C | D11: Paris | E11: 4.5 | F11: 7 | H11: Marseille | I11: 118 | J11: 34
C12: C | D12: Marseille | E12: 5.5 | F12: 11 | H12: A | I12: 50 | J12: 6
C13: C | D13: Lyon | E13: 6 | F13: 65 | H13: B | I13: 30 | J13: 2.5
C14: D | D14: Paris | E14: 7.5 | F14: 20 | H14: C | I14: 11 | J14: 5.5
C15: D | D15: Marseille | E15: 8 | F15: 15 | H15: D | I15: 15 | J15: 8
C16: D | D16: Lyon | E16: 9.5 | F16: 2 | H16: E | I16: 12 | J16: 12
C17: E | D17: Paris | E17: 11 | F17: 1 | H17: Paris | I17: 60 | J17: 31.5
C18: E | D18: Marseille | E18: 12 | F18: 12 | H18: A | I18: 12 | J18: 5
C19: E | D19: Lyon | E19: 13 | F19: 6 | H19: B | I19: 20 | J19: 3.5
H20: C | I20: 7 | J20: 4.5
H21: D | I21: 20 | J21: 7.5
H22: E | I22: 1 | J22: 11
H23: Total général | I23: 340 | J23: 102.5

Sheet MODELES ANALYSES FINANCIERES >>

Sheet Scoring
A1: Scoring d'opportunités d'investissement
B2: >> Retour Sommaire
B4: Base de données | C4: Etats-Unis | D4: Brésil | E4: Espagne | F4: Inde | G4: Japon
B5: PIB par habitant1 | C5: 59495 | D5: 15500 | E5: 38171 | F5: 5174 | G5: 42659
B6: Sécurité2 | C6: 2401 | D6: 2271 | E6: 1699 | F6: 2605 | G6: 1369
B7: Population3 | C7: 332639000 | D7: 211755692 | E7: 47100396 | F7: 1373055000 | G7: 126010000
B8: Indice de développement humain4 | C8: 0.797 | D8: 0.578 | E8: 0.754 | F8: 0.468 | G8: 0.876
B10: Source :
B11: 1) https://fr.wikipedia.org/wiki/Liste_des_pays_par_PIB_(PPA)_par_habitant
B12: 2) https://bestof.one/categories/lieux/pays/classements/les-pays-les-plus-surs-au-monde
B13: 3) https://fr.wikipedia.org/wiki/Liste_des_pays_par_population
B14: 4) https://fr.wikipedia.org/wiki/Liste_des_pays_par_IDH_ajust%C3%A9_selon_les_in%C3%A9galit%C3%A9s
B17: Scoring | C17: Etats-Unis | D17: Brésil | E17: Espagne | F17: Inde | G17: Japon
B18: PIB par habitant | C18: 5 | D18: 2 | E18: 3 | F18: 1 | G18: 4
B19: Sécurité | C19: 2 | D19: 3 | E19: 4 | F19: 1 | G19: 5
B20: Population | C20: 4 | D20: 3 | E20: 1 | F20: 5 | G20: 2
B21: Indice de développement humain | C21: 4 | D21: 2 | E21: 3 | F21: 1 | G21: 5
B22: Scoring total | C22: =SUM(C18:C21) -> 15 | D22: =SUM(D18:D21) -> 10 | E22: 11 | F22: 8 | G22: 16
B25: Coefficient | C25: %
B26: PIB par habitant | C26: 0.2
B27: Sécurité | C27: 0.3
B28: Population | C28: 0.1
B29: Indice de développement humain | C29: 0.4
B30: Total | C30: =SUM(C26:C29) -> 1
B33: Scoring pondéré | C33: Etats-Unis | D33: Brésil | E33: Espagne | F33: Inde | G33: Japon
B34: PIB par habitant | C34: =C18*$C26 -> 1 | D34: =D18*$C26 -> 0.4 | E34: 0.6 | F34: 0.2 | G34: 0.8
B35: Sécurité | C35: =C19*$C27 -> 0.6 | D35: 0.9 | E35: 1.2 | F35: 0.3 | G35: 1.5
B36: Population | C36: =C20*$C28 -> 0.4 | D36: 0.3 | E36: 0.1 | F36: 0.5 | G36: 0.2
B37: Indice de développement humain | C37: =C21*$C29 -> 1.6 | D37: 0.8 | E37: 1.2 | F37: 0.4 | G37: 2
B38: Scoring total pondéré | C38: =SUM(C34:C37) -> 3.6 | D38: =SUM(D34:D37) -> 2.4 | E38: 3.1 | F38: 1.4 | G38: 4.5

Sheet Graph Cascade (Bridge)
A1: Créer des graphiques en cascade (bridges)
A2: >> Retour Sommaire
B3: Budget Initial | C3: 500
B4: Augmentation des coûts des conseils financiers | C4: 150
B5: Diminution des coûts des conseils légaux | C5: -70
B6: Hausse de l'enveloppe Capex | C6: 220
B7: Budget Révisé avant effet de change | C7: =SUM(C3:C6) -> 800 | D7: =SOMME(C3:C6)
B8: Effet taux de change | C8: 50
B9: Budget Révisé après effet de change | C9: =SUM(C7:C8) -> 850 | D9: =SOMME(C7:C8)
B20: Budget Initial | C20: 500
B21: Augmentation des coûts des conseils financiers | C21: 150
B22: Diminution des coûts des conseils légaux | C22: -70
B23: Hausse de l'enveloppe Capex | C23: 220
B24: Budget Révisé | C24: =SUM(C20:C23) -> 800 | D24: =SOMME(C20:C23)

Sheet Sparkline
A1: Graphiques Sparkline
A2: >> Retour Sommaire
B3: Année | C3: Chiffre d'Affaires (M€) | D3: EBITDA (M€) | E3: Marge d'EBITDA (%)
B4: 2000 | C4: 1000 | D4: 210 | E4: =D4/C4 -> 0.21
B5: 2001 | C5: 1020 | D5: 295.8 | E5: =D5/C5 -> 0.29
B6: 2002 | C6: 1091.4 | D6: 240.108 | E6: 0.22
B7: 2003 | C7: 1113.228 | D7: 333.9684 | E7: 0.3
B8: 2004 | C8: 1180.02168 | D8: 259.6047696 | E8: 0.22
B9: 2005 | C9: 1227.222547 | D9: 282.2611859 | E9: 0.23
B10: 2006 | C10: 1325.400351 | D10: 371.1120983 | E10: 0.28
B11: 2007 | C11: 1418.178376 | D11: 411.2717289 | E11: 0.29
B12: 2008 | C12: 1489.087294 | D12: 297.8174589 | E12: 0.2
B13: 2009 | C13: 1533.759913 | D13: 337.4271809 | E13: 0.22
B14: 2010 | C14: 1610.447909 | D14: 354.2985399 | E14: 0.22
B15: 2011 | C15: 1707.074783 | D15: 495.0516872 | E15: 0.29
B16: 2012 | C16: 1758.287027 | D16: 457.154627 | E16: 0.26
B17: 2013 | C17: 1898.949989 | D17: 550.6954968 | E17: 0.29
B18: 2014 | C18: 1974.907989 | D18: 394.9815977 | E18: 0.2
B19: 2015 | C19: 2014.406148 | D19: 443.1693526 | E19: 0.22
B20: 2016 | C20: 2094.982394 | D20: 502.7957746 | E20: 0.24
B21: 2017 | C21: 2220.681338 | D21: 532.9635211 | E21: 0.24
B22: 2018 | C22: 2353.922218 | D22: 612.0197767 | E22: 0.26
B23: 2019 | C23: 2495.157551 | D23: 598.8378123 | E23: 0.24
B24: 2020 | C24: 2594.963853 | D24: 570.8920477 | E24: 0.22
B26: Graphs :

Sheet Analyse Investissements
A1: Business plan - parc solaire
B2: >> Retour Sommaire
B4: 1- Hypothèses
B6: Début d'exploitation | D6: date | F6: 2020-01-01
B8: Chiffre d'affaires Janvier 2020 | D8: k€ | F8: 1000
B9: Evolution mensuelle du chiffre d'affaires | D9: % | F9: 0.0025
B11: Coût mensuel de maintenance Janvier 2020 | D11: k€ | F11: 300
B12: Evolution mensuelle des coûts de maintenance | D12: % | F12: 0.008
B14: Loyer mensuel Janvier 2020 | D14: k€ | F14: 50
B15: Evolution mensuelle du loyer | D15: % | F15: 0.005
B17: Employés | D17: nombre | F17: 50
B18: Salaire moyen mensuel | D18: k€ | F18: 3
B19: Evolution mensuelle des salaires | D19: % | F19: 0.001
B21: Autres dépenses exploitation mensuelles | D21: k€ | F21: 200
B23: Début de construction | D23: date | F23: 2019-12-01
B25: CAPEX | D25: k€ | F25: 15000
B26: D&A annuelles | D26: k€ | F26: =F25/10 -> 1500
B27: D&A mensuelles | D27: k€ | F27: =F26/12 -> 125
B29: Working Capital | D29: k€ | F29: 0
B31: Taux d'imposition | D31: % | F31: 0.3
B33: WACC | D33: % | F33: 0.08
B34: TRE | D34: % | F34: =F33+1% -> 0.09
B37: 2- Business plan
B40: a- Income Statement
B42: Début de période | D42: date | I42: =F6 -> 2020-01-01 | J42: =EDATE(I42,1) -> 2020-02-01 | K42: =EDATE(J42,1) -> 2020-03-01 | L42: 2020-04-01 | M42: 2020-05-01 | N42: 2020-06-01 | O42: 2020-07-01 | P42: 2020-08-01 | Q42: 2020-09-01 | R42: 2020-10-01 | S42: 2020-11-01 | T42: 2020-12-01 | U42: 2021-01-01 | V42: 2021-02-01 | W42: 2021-03-01 | X42: 2021-04-01 | Y42: 2021-05-01 | Z42: 2021-06-01 | AA42: 2021-07-01 | AB42: 2021-08-01 | AC42: 2021-09-01 | AD42: 2021-10-01 | AE42: 2021-11-01 | AF42: 2021-12-01 | AG42: 2022-01-01 | AH42: 2022-02-01 | AI42: 2022-03-01 | AJ42: 2022-04-01 | AK42: 2022-05-01 | AL42: 2022-06-01 | AM42: 2022-07-01 | AN42: 2022-08-01 | AO42: 2022-09-01 | AP42: 2022-10-01 | AQ42: 2022-11-01 | AR42: 2022-12-01 | AS42: 2023-01-01 | AT42: 2023-02-01 | AU42: 2023-03-01 | AV42: 2023-04-01 | AW42: 2023-05-01 | AX42: 2023-06-01 | AY42: 2023-07-01 | AZ42: 2023-08-01 | BA42: 2023-09-01 | BB42: 2023-10-01 | BC42: 2023-11-01 | BD42: 2023-12-01 | BE42: 2024-01-01 | BF42: 2024-02-01 | BG42: 2024-03-01 | BH42: 2024-04-01 | BI42: 2024-05-01 | BJ42: 2024-06-01 | BK42: 2024-07-01 | BL42: 2024-08-01 | BM42: 2024-09-01 | BN42: 2024-10-01 | BO42: 2024-11-01 | BP42: 2024-12-01 | BQ42: 2025-01-01 | BR42: 2025-02-01 | BS42: 2025-03-01 | BT42: 2025-04-01 | BU42: 2025-05-01 | BV42: 2025-06-01 | BW42: =EDATE(BV42,1) -> 2025-07-01 | BX42: 2025-08-01 | BY42: 2025-09-01 | BZ42: 2025-10-01 | CA42: 2025-11-01 | CB42: 2025-12-01 | CC42: 2026-01-01 | CD42: 2026-02-01 | CE42: 2026-03-01 | CF42: 2026-04-01 | CG42: 2026-05-01 | CH42: 2026-06-01 | CI42: 2026-07-01 | CJ42: 2026-08-01 | CK42: 2026-09-01 | CL42: 2026-10-01 | CM42: 2026-11-01 | CN42: 2026-12-01 | CO42: 2027-01-01 | CP42: 2027-02-01 | CQ42: 2027-03-01 | CR42: 2027-04-01 | CS42: 2027-05-01 | CT42: 2027-06-01 | CU42: 2027-07-01 | CV42: 2027-08-01 | CW42: 2027-09-01 | CX42: 2027-10-01 | CY42: 2027-11-01 | CZ42: 2027-12-01 | DA42: 2028-01-01 | DB42: 2028-02-01 | DC42: 2028-03-01 | DD42: 2028-04-01 | DE42: 2028-05-01 | DF42: 2028-06-01 | DG42: 2028-07-01 | DH42: 2028-08-01 | DI42: 2028-09-01 | DJ42: 2028-10-01 | DK42: 2028-11-01 | DL42: 2028-12-01 | DM42: 2029-01-01 | DN42: 2029-02-01 | DO42: 2029-03-01 | DP42: 2029-04-01 | DQ42: 2029-05-01 | DR42: 2029-06-01 | DS42: 2029-07-01 | DT42: 2029-08-01 | DU42: 2029-09-01 | DV42: 2029-10-01 | DW42: 2029-11-01 | DX42: 2029-12-01
B43: Fin de période | D43: date | I43: =EOMONTH(I42,0) -> 2020-01-31 | J43: 2020-02-29 | K43: 2020-03-31 | L43: 2020-04-30 | M43: 2020-05-31 | N43: 2020-06-30 | O43: 2020-07-31 | P43: 2020-08-31 | Q43: 2020-09-30 | R43: 2020-10-31 | S43: 2020-11-30 | T43: 2020-12-31 | U43: 2021-01-31 | V43: 2021-02-28 | W43: 2021-03-31 | X43: 2021-04-30 | Y43: 2021-05-31 | Z43: 2021-06-30 | AA43: 2021-07-31 | AB43: 2021-08-31 | AC43: 2021-09-30 | AD43: 2021-10-31 | AE43: 2021-11-30 | AF43: 2021-12-31 | AG43: 2022-01-31 | AH43: 2022-02-28 | AI43: 2022-03-31 | AJ43: 2022-04-30 | AK43: 2022-05-31 | AL43: 2022-06-30 | AM43: 2022-07-31 | AN43: 2022-08-31 | AO43: 2022-09-30 | AP43: 2022-10-31 | AQ43: 2022-11-30 | AR43: 2022-12-31 | AS43: 2023-01-31 | AT43: 2023-02-28 | AU43: 2023-03-31 | AV43: 2023-04-30 | AW43: 2023-05-31 | AX43: 2023-06-30 | AY43: 2023-07-31 | AZ43: 2023-08-31 | BA43: 2023-09-30 | BB43: 2023-10-31 | BC43: 2023-11-30 | BD43: 2023-12-31 | BE43: 2024-01-31 | BF43: 2024-02-29 | BG43: 2024-03-31 | BH43: 2024-04-30 | BI43: 2024-05-31 | BJ43: 2024-06-30 | BK43: 2024-07-31 | BL43: 2024-08-31 | BM43: 2024-09-30 | BN43: 2024-10-31 | BO43: 2024-11-30 | BP43: 2024-12-31 | BQ43: 2025-01-31 | BR43: 2025-02-28 | BS43: 2025-03-31 | BT43: 2025-04-30 | BU43: =EOMONTH(BU42,0) -> 2025-05-31 | BV43: 2025-06-30 | BW43: 2025-07-31 | BX43: 2025-08-31 | BY43: 2025-09-30 | BZ43: 2025-10-31 | CA43: 2025-11-30 | CB43: 2025-12-31 | CC43: 2026-01-31 | CD43: 2026-02-28 | CE43: 2026-03-31 | CF43: 2026-04-30 | CG43: 2026-05-31 | CH43: 2026-06-30 | CI43: 2026-07-31 | CJ43: 2026-08-31 | CK43: 2026-09-30 | CL43: 2026-10-31 | CM43: 2026-11-30 | CN43: 2026-12-31 | CO43: 2027-01-31 | CP43: 2027-02-28 | CQ43: 2027-03-31 | CR43: 2027-04-30 | CS43: 2027-05-31 | CT43: 2027-06-30 | CU43: 2027-07-31 | CV43: 2027-08-31 | CW43: 2027-09-30 | CX43: 2027-10-31 | CY43: 2027-11-30 | CZ43: 2027-12-31 | DA43: 2028-01-31 | DB43: 2028-02-29 | DC43: 2028-03-31 | DD43: 2028-04-30 | DE43: 2028-05-31 | DF43: 2028-06-30 | DG43: 2028-07-31 | DH43: 2028-08-31 | DI43: 2028-09-30 | DJ43: 2028-10-31 | DK43: 2028-11-30 | DL43: 2028-12-31 | DM43: 2029-01-31 | DN43: 2029-02-28 | DO43: 2029-03-31 | DP43: 2029-04-30 | DQ43: 2029-05-31 | DR43: 2029-06-30 | DS43: 2029-07-31 | DT43: 2029-08-31 | DU43: 2029-09-30 | DV43: 2029-10-31 | DW43: 2029-11-30 | DX43: 2029-12-31
B44: Année | D44: nombre | I44: =YEAR(I43) -> 2020 | J44: =YEAR(J43) -> 2020 | K44: 2020 | L44: 2020 | M44: 2020 | N44: 2020 | O44: 2020 | P44: 2020 | Q44: 2020 | R44: 2020 | S44: 2020 | T44: 2020 | U44: 2021 | V44: 2021 | W44: 2021 | X44: 2021 | Y44: 2021 | Z44: 2021 | AA44: 2021 | AB44: 2021 | AC44: 2021 | AD44: 2021 | AE44: 2021 | AF44: 2021 | AG44: 2022 | AH44: 2022 | AI44: 2022 | AJ44: 2022 | AK44: 2022 | AL44: 2022 | AM44: 2022 | AN44: 2022 | AO44: 2022 | AP44: 2022 | AQ44: 2022 | AR44: 2022 | AS44: 2023 | AT44: 2023 | AU44: 2023 | AV44: 2023 | AW44: 2023 | AX44: 2023 | AY44: 2023 | AZ44: 2023 | BA44: 2023 | BB44: 2023 | BC44: 2023 | BD44: 2023 | BE44: 2024 | BF44: 2024 | BG44: 2024 | BH44: 2024 | BI44: 2024 | BJ44: 2024 | BK44: 2024 | BL44: 2024 | BM44: 2024 | BN44: 2024 | BO44: 2024 | BP44: 2024 | BQ44: 2025 | BR44: 2025 | BS44: 2025 | BT44: 2025 | BU44: 2025 | BV44: =YEAR(BV43) -> 2025 | BW44: 2025 | BX44: 2025 | BY44: 2025 | BZ44: 2025 | CA44: 2025 | CB44: 2025 | CC44: 2026 | CD44: 2026 | CE44: 2026 | CF44: 2026 | CG44: 2026 | CH44: 2026 | CI44: 2026 | CJ44: 2026 | CK44: 2026 | CL44: 2026 | CM44: 2026 | CN44: 2026 | CO44: 2027 | CP44: 2027 | CQ44: 2027 | CR44: 2027 | CS44: 2027 | CT44: 2027 | CU44: 2027 | CV44: 2027 | CW44: 2027 | CX44: 2027 | CY44: 2027 | CZ44: 2027 | DA44: 2028 | DB44: 2028 | DC44: 2028 | DD44: 2028 | DE44: 2028 | DF44: 2028 | DG44: 2028 | DH44: 2028 | DI44: 2028 | DJ44: 2028 | DK44: 2028 | DL44: 2028 | DM44: 2029 | DN44: 2029 | DO44: 2029 | DP44: 2029 | DQ44: 2029 | DR44: 2029 | DS44: 2029 | DT44: 2029 | DU44: 2029 | DV44: 2029 | DW44: 2029 | DX44: 2029
B46: Chiffre d'affaires | D46: k€ | F46: =SUM(I46:DX46) -> 139741.4189 | I46: =F8 -> 1000 | J46: =I46*(1+J47) -> 1002.5 | K46: =J46*(1+K47) -> 1005.00625 | L46: 1007.518766 | M46: 1010.037563 | N46: 1012.562656 | O46: 1015.094063 | P46: 1017.631798 | Q46: 1020.175878 | R46: 1022.726317 | S46: 1025.283133 | T46: 1027.846341 | U46: 1030.415957 | V46: 1032.991997 | W46: 1035.574477 | X46: 1038.163413 | Y46: 1040.758822 | Z46: 1043.360719 | AA46: 1045.96912 | AB46: 1048.584043 | AC46: 1051.205503 | AD46: 1053.833517 | AE46: 1056.468101 | AF46: 1059.109271 | AG46: 1061.757044 | AH46: 1064.411437 | AI46: 1067.072465 | AJ46: 1069.740147 | AK46: 1072.414497 | AL46: 1075.095533 | AM46: 1077.783272 | AN46: 1080.47773 | AO46: 1083.178925 | AP46: 1085.886872 | AQ46: 1088.601589 | AR46: 1091.323093 | AS46: 1094.051401 | AT46: 1096.786529 | AU46: 1099.528496 | AV46: 1102.277317 | AW46: 1105.03301 | AX46: 1107.795593 | AY46: 1110.565082 | AZ46: 1113.341494 | BA46: 1116.124848 | BB46: 1118.91516 | BC46: 1121.712448 | BD46: 1124.516729 | BE46: 1127.328021 | BF46: 1130.146341 | BG46: 1132.971707 | BH46: 1135.804136 | BI46: 1138.643647 | BJ46: 1141.490256 | BK46: 1144.343981 | BL46: 1147.204841 | BM46: 1150.072853 | BN46: 1152.948035 | BO46: 1155.830406 | BP46: 1158.719982 | BQ46: 1161.616782 | BR46: 1164.520824 | BS46: 1167.432126 | BT46: 1170.350706 | BU46: 1173.276583 | BV46: 1176.209774 | BW46: =BV46*(1+BW47) -> 1179.150299 | BX46: 1182.098174 | BY46: 1185.05342 | BZ46: 1188.016053 | CA46: 1190.986093 | CB46: 1193.963559 | CC46: 1196.948468 | CD46: 1199.940839 | CE46: 1202.940691 | CF46: 1205.948043 | CG46: 1208.962913 | CH46: 1211.98532 | CI46: 1215.015283 | CJ46: 1218.052821 | CK46: 1221.097953 | CL46: 1224.150698 | CM46: 1227.211075 | CN46: 1230.279103 | CO46: 1233.354801 | CP46: 1236.438188 | CQ46: 1239.529283 | CR46: 1242.628106 | CS46: 1245.734676 | CT46: 1248.849013 | CU46: 1251.971136 | CV46: 1255.101064 | CW46: 1258.238816 | CX46: 1261.384413 | CY46: 1264.537874 | CZ46: 1267.699219 | DA46: 1270.868467 | DB46: 1274.045638 | DC46: 1277.230752 | DD46: 1280.423829 | DE46: 1283.624889 | DF46: 1286.833951 | DG46: 1290.051036 | DH46: 1293.276163 | DI46: 1296.509354 | DJ46: 1299.750627 | DK46: 1303.000004 | DL46: 1306.257504 | DM46: 1309.523148 | DN46: 1312.796955 | DO46: 1316.078948 | DP46: 1319.369145 | DQ46: 1322.667568 | DR46: 1325.974237 | DS46: 1329.289173 | DT46: 1332.612395 | DU46: 1335.943926 | DV46: 1339.283786 | DW46: 1342.631996 | DX46: 1345.988576
B47: Evolution mensuelle du chiffre d'affaires | D47: % | F47: =F9 -> 0.0025 | J47: =$F$47 -> 0.0025 | K47: =$F$47 -> 0.0025 | L47: 0.0025 | M47: 0.0025 | N47: 0.0025 | O47: 0.0025 | P47: 0.0025 | Q47: 0.0025 | R47: 0.0025 | S47: 0.0025 | T47: 0.0025 | U47: 0.0025 | V47: 0.0025 | W47: 0.0025 | X47: 0.0025 | Y47: 0.0025 | Z47: 0.0025 | AA47: 0.0025 | AB47: 0.0025 | AC47: 0.0025 | AD47: 0.0025 | AE47: 0.0025 | AF47: 0.0025 | AG47: 0.0025 | AH47: 0.0025 | AI47: 0.0025 | AJ47: 0.0025 | AK47: 0.0025 | AL47: 0.0025 | AM47: 0.0025 | AN47: 0.0025 | AO47: 0.0025 | AP47: 0.0025 | AQ47: 0.0025 | AR47: 0.0025 | AS47: 0.0025 | AT47: 0.0025 | AU47: 0.0025 | AV47: 0.0025 | AW47: 0.0025 | AX47: 0.0025 | AY47: 0.0025 | AZ47: 0.0025 | BA47: 0.0025 | BB47: 0.0025 | BC47: 0.0025 | BD47: 0.0025 | BE47: 0.0025 | BF47: 0.0025 | BG47: 0.0025 | BH47: 0.0025 | BI47: 0.0025 | BJ47: 0.0025 | BK47: 0.0025 | BL47: 0.0025 | BM47: 0.0025 | BN47: 0.0025 | BO47: 0.0025 | BP47: 0.0025 | BQ47: 0.0025 | BR47: 0.0025 | BS47: 0.0025 | BT47: 0.0025 | BU47: 0.0025 | BV47: 0.0025 | BW47: =$F$47 -> 0.0025 | BX47: 0.0025 | BY47: 0.0025 | BZ47: 0.0025 | CA47: 0.0025 | CB47: 0.0025 | CC47: 0.0025 | CD47: 0.0025 | CE47: 0.0025 | CF47: 0.0025 | CG47: 0.0025 | CH47: 0.0025 | CI47: 0.0025 | CJ47: 0.0025 | CK47: 0.0025 | CL47: 0.0025 | CM47: 0.0025 | CN47: 0.0025 | CO47: 0.0025 | CP47: 0.0025 | CQ47: 0.0025 | CR47: 0.0025 | CS47: 0.0025 | CT47: 0.0025 | CU47: 0.0025 | CV47: 0.0025 | CW47: 0.0025 | CX47: 0.0025 | CY47: 0.0025 | CZ47: 0.0025 | DA47: 0.0025 | DB47: 0.0025 | DC47: 0.0025 | DD47: 0.0025 | DE47: 0.0025 | DF47: 0.0025 | DG47: 0.0025 | DH47: 0.0025 | DI47: 0.0025 | DJ47: 0.0025 | DK47: 0.0025 | DL47: 0.0025 | DM47: 0.0025 | DN47: 0.0025 | DO47: 0.0025 | DP47: 0.0025 | DQ47: 0.0025 | DR47: 0.0025 | DS47: 0.0025 | DT47: 0.0025 | DU47: 0.0025 | DV47: 0.0025 | DW47: 0.0025 | DX47: 0.0025
B49: Coûts de maintenance | D49: k€ | F49: =SUM(I49:DX49) -> -60065.24082 | I49: =-F11 -> -300 | J49: =I49*(1+J50) -> -302.4 | K49: =J49*(1+K50) -> -304.8192 | L49: -307.2577536 | M49: -309.7158156 | N49: -312.1935422 | O49: -314.6910905 | P49: -317.2086192 | Q49: -319.7462882 | R49: -322.3042585 | S49: -324.8826925 | T49: -327.4817541 | U49: -330.1016081 | V49: -332.742421 | W49: -335.4043603 | X49: -338.0875952 | Y49: -340.792296 | Z49: -343.5186344 | AA49: -346.2667834 | AB49: -349.0369177 | AC49: -351.829213 | AD49: -354.6438467 | AE49: -357.4809975 | AF49: -360.3408455 | AG49: -363.2235723 | AH49: -366.1293608 | AI49: -369.0583957 | AJ49: -372.0108629 | AK49: -374.9869498 | AL49: -377.9868454 | AM49: -381.0107402 | AN49: -384.0588261 | AO49: -387.1312967 | AP49: -390.2283471 | AQ49: -393.3501738 | AR49: -396.4969752 | AS49: -399.668951 | AT49: -402.8663026 | AU49: -406.0892331 | AV49: -409.3379469 | AW49: -412.6126505 | AX49: -415.9135517 | AY49: -419.2408601 | AZ49: -422.594787 | BA49: -425.9755453 | BB49: -429.3833497 | BC49: -432.8184165 | BD49: -436.2809638 | BE49: -439.7712115 | BF49: -443.2893812 | BG49: -446.8356962 | BH49: -450.4103818 | BI49: -454.0136649 | BJ49: -457.6457742 | BK49: -461.3069404 | BL49: -464.9973959 | BM49: -468.7173751 | BN49: -472.4671141 | BO49: -476.246851 | BP49: -480.0568258 | BQ49: -483.8972804 | BR49: -487.7684586 | BS49: -491.6706063 | BT49: -495.6039712 | BU49: -499.5688029 | BV49: -503.5653534 | BW49: =BV49*(1+BW50) -> -507.5938762 | BX49: -511.6546272 | BY49: -515.7478642 | BZ49: -519.8738471 | CA49: -524.0328379 | CB49: -528.2251006 | CC49: -532.4509014 | CD49: -536.7105086 | CE49: -541.0041927 | CF49: -545.3322262 | CG49: -549.694884 | CH49: -554.0924431 | CI49: -558.5251827 | CJ49: -562.9933841 | CK49: -567.4973312 | CL49: -572.0373098 | CM49: -576.6136083 | CN49: -581.2265172 | CO49: -585.8763293 | CP49: -590.56334 | CQ49: -595.2878467 | CR49: -600.0501494 | CS49: -604.8505506 | CT49: -609.689355 | CU49: -614.5668699 | CV49: -619.4834048 | CW49: -624.4392721 | CX49: -629.4347863 | CY49: -634.4702646 | CZ49: -639.5460267 | DA49: -644.6623949 | DB49: -649.819694 | DC49: -655.0182516 | DD49: -660.2583976 | DE49: -665.5404648 | DF49: -670.8647885 | DG49: -676.2317068 | DH49: -681.6415605 | DI49: -687.094693 | DJ49: -692.5914505 | DK49: -698.1321821 | DL49: -703.7172396 | DM49: -709.3469775 | DN49: -715.0217533 | DO49: -720.7419273 | DP49: -726.5078627 | DQ49: -732.3199256 | DR49: -738.178485 | DS49: -744.0839129 | DT49: -750.0365842 | DU49: -756.0368769 | DV49: -762.0851719 | DW49: -768.1818533 | DX49: -774.3273081
B50: Evolution mensuelle des coûts de maintenance | D50: % | F50: =F12 -> 0.008 | J50: =$F$50 -> 0.008 | K50: =$F$50 -> 0.008 | L50: 0.008 | M50: 0.008 | N50: 0.008 | O50: 0.008 | P50: 0.008 | Q50: 0.008 | R50: 0.008 | S50: 0.008 | T50: 0.008 | U50: 0.008 | V50: 0.008 | W50: 0.008 | X50: 0.008 | Y50: 0.008 | Z50: 0.008 | AA50: 0.008 | AB50: 0.008 | AC50: 0.008 | AD50: 0.008 | AE50: 0.008 | AF50: 0.008 | AG50: 0.008 | AH50: 0.008 | AI50: 0.008 | AJ50: 0.008 | AK50: 0.008 | AL50: 0.008 | AM50: 0.008 | AN50: 0.008 | AO50: 0.008 | AP50: 0.008 | AQ50: 0.008 | AR50: 0.008 | AS50: 0.008 | AT50: 0.008 | AU50: 0.008 | AV50: 0.008 | AW50: 0.008 | AX50: 0.008 | AY50: 0.008 | AZ50: 0.008 | BA50: 0.008 | BB50: 0.008 | BC50: 0.008 | BD50: 0.008 | BE50: 0.008 | BF50: 0.008 | BG50: 0.008 | BH50: 0.008 | BI50: 0.008 | BJ50: 0.008 | BK50: 0.008 | BL50: 0.008 | BM50: 0.008 | BN50: 0.008 | BO50: 0.008 | BP50: 0.008 | BQ50: 0.008 | BR50: 0.008 | BS50: 0.008 | BT50: 0.008 | BU50: 0.008 | BV50: 0.008 | BW50: =$F$50 -> 0.008 | BX50: 0.008 | BY50: 0.008 | BZ50: 0.008 | CA50: 0.008 | CB50: 0.008 | CC50: 0.008 | CD50: 0.008 | CE50: 0.008 | CF50: 0.008 | CG50: 0.008 | CH50: 0.008 | CI50: 0.008 | CJ50: 0.008 | CK50: 0.008 | CL50: 0.008 | CM50: 0.008 | CN50: 0.008 | CO50: 0.008 | CP50: 0.008 | CQ50: 0.008 | CR50: 0.008 | CS50: 0.008 | CT50: 0.008 | CU50: 0.008 | CV50: 0.008 | CW50: 0.008 | CX50: 0.008 | CY50: 0.008 | CZ50: 0.008 | DA50: 0.008 | DB50: 0.008 | DC50: 0.008 | DD50: 0.008 | DE50: 0.008 | DF50: 0.008 | DG50: 0.008 | DH50: 0.008 | DI50: 0.008 | DJ50: 0.008 | DK50: 0.008 | DL50: 0.008 | DM50: 0.008 | DN50: 0.008 | DO50: 0.008 | DP50: 0.008 | DQ50: 0.008 | DR50: 0.008 | DS50: 0.008 | DT50: 0.008 | DU50: 0.008 | DV50: 0.008 | DW50: 0.008 | DX50: 0.008
B52: Loyer mensuel | D52: k€ | F52: =SUM(I52:DX52) -> -8193.96734 | I52: =-F14 -> -50 | J52: =I52*(1+J53) -> -50.25 | K52: =J52*(1+K53) -> -50.50125 | L52: -50.75375625 | M52: -51.00752503 | N52: -51.26256266 | O52: -51.51887547 | P52: -51.77646985 | Q52: -52.0353522 | R52: -52.29552896 | S52: -52.5570066 | T52: -52.81979164 | U52: -53.08389059 | V52: -53.34931005 | W52: -53.6160566 | X52: -53.88413688 | Y52: -54.15355756 | Z52: -54.42432535 | AA52: -54.69644698 | AB52: -54.96992921 | AC52: -55.24477886 | AD52: -55.52100275 | AE52: -55.79860777 | AF52: -56.07760081 | AG52: -56.35798881 | AH52: -56.63977875 | AI52: -56.92297765 | AJ52: -57.20759254 | AK52: -57.4936305 | AL52: -57.78109865 | AM52: -58.07000414 | AN52: -58.36035417 | AO52: -58.65215594 | AP52: -58.94541672 | AQ52: -59.2401438 | AR52: -59.53634452 | AS52: -59.83402624 | AT52: -60.13319637 | AU52: -60.43386235 | AV52: -60.73603167 | AW52: -61.03971182 | AX52: -61.34491038 | AY52: -61.65163494 | AZ52: -61.95989311 | BA52: -62.26969258 | BB52: -62.58104104 | BC52: -62.89394624 | BD52: -63.20841597 | BE52: -63.52445805 | BF52: -63.84208035 | BG52: -64.16129075 | BH52: -64.4820972 | BI52: -64.80450769 | BJ52: -65.12853022 | BK52: -65.45417288 | BL52: -65.78144374 | BM52: -66.11035096 | BN52: -66.44090271 | BO52: -66.77310723 | BP52: -67.10697276 | BQ52: -67.44250763 | BR52: -67.77972017 | BS52: -68.11861877 | BT52: -68.45921186 | BU52: -68.80150792 | BV52: -69.14551546 | BW52: =BV52*(1+BW53) -> -69.49124304 | BX52: -69.83869925 | BY52: -70.18789275 | BZ52: -70.53883221 | CA52: -70.89152637 | CB52: -71.245984 | CC52: -71.60221392 | CD52: -71.96022499 | CE52: -72.32002612 | CF52: -72.68162625 | CG52: -73.04503438 | CH52: -73.41025955 | CI52: -73.77731085 | CJ52: -74.1461974 | CK52: -74.51692839 | CL52: -74.88951303 | CM52: -75.2639606 | CN52: -75.6402804 | CO52: -76.0184818 | CP52: -76.39857421 | CQ52: -76.78056708 | CR52: -77.16446992 | CS52: -77.55029227 | CT52: -77.93804373 | CU52: -78.32773395 | CV52: -78.71937262 | CW52: -79.11296948 | CX52: -79.50853433 | CY52: -79.906077 | CZ52: -80.30560739 | DA52: -80.70713542 | DB52: -81.1106711 | DC52: -81.51622446 | DD52: -81.92380558 | DE52: -82.33342461 | DF52: -82.74509173 | DG52: -83.15881719 | DH52: -83.57461127 | DI52: -83.99248433 | DJ52: -84.41244675 | DK52: -84.83450899 | DL52: -85.25868153 | DM52: -85.68497494 | DN52: -86.11339981 | DO52: -86.54396681 | DP52: -86.97668665 | DQ52: -87.41157008 | DR52: -87.84862793 | DS52: -88.28787107 | DT52: -88.72931042 | DU52: -89.17295698 | DV52: -89.61882176 | DW52: -90.06691587 | DX52: -90.51725045
B53: Evolution mensuelle du loyer | D53: % | F53: =F15 -> 0.005 | J53: =$F$53 -> 0.005 | K53: =$F$53 -> 0.005 | L53: 0.005 | M53: 0.005 | N53: 0.005 | O53: 0.005 | P53: 0.005 | Q53: 0.005 | R53: 0.005 | S53: 0.005 | T53: 0.005 | U53: 0.005 | V53: 0.005 | W53: 0.005 | X53: 0.005 | Y53: 0.005 | Z53: 0.005 | AA53: 0.005 | AB53: 0.005 | AC53: 0.005 | AD53: 0.005 | AE53: 0.005 | AF53: 0.005 | AG53: 0.005 | AH53: 0.005 | AI53: 0.005 | AJ53: 0.005 | AK53: 0.005 | AL53: 0.005 | AM53: 0.005 | AN53: 0.005 | AO53: 0.005 | AP53: 0.005 | AQ53: 0.005 | AR53: 0.005 | AS53: 0.005 | AT53: 0.005 | AU53: 0.005 | AV53: 0.005 | AW53: 0.005 | AX53: 0.005 | AY53: 0.005 | AZ53: 0.005 | BA53: 0.005 | BB53: 0.005 | BC53: 0.005 | BD53: 0.005 | BE53: 0.005 | BF53: 0.005 | BG53: 0.005 | BH53: 0.005 | BI53: 0.005 | BJ53: 0.005 | BK53: 0.005 | BL53: 0.005 | BM53: 0.005 | BN53: 0.005 | BO53: 0.005 | BP53: 0.005 | BQ53: 0.005 | BR53: 0.005 | BS53: 0.005 | BT53: 0.005 | BU53: 0.005 | BV53: 0.005 | BW53: =$F$53 -> 0.005 | BX53: 0.005 | BY53: 0.005 | BZ53: 0.005 | CA53: 0.005 | CB53: 0.005 | CC53: 0.005 | CD53: 0.005 | CE53: 0.005 | CF53: 0.005 | CG53: 0.005 | CH53: 0.005 | CI53: 0.005 | CJ53: 0.005 | CK53: 0.005 | CL53: 0.005 | CM53: 0.005 | CN53: 0.005 | CO53: 0.005 | CP53: 0.005 | CQ53: 0.005 | CR53: 0.005 | CS53: 0.005 | CT53: 0.005 | CU53: 0.005 | CV53: 0.005 | CW53: 0.005 | CX53: 0.005 | CY53: 0.005 | CZ53: 0.005 | DA53: 0.005 | DB53: 0.005 | DC53: 0.005 | DD53: 0.005 | DE53: 0.005 | DF53: 0.005 | DG53: 0.005 | DH53: 0.005 | DI53: 0.005 | DJ53: 0.005 | DK53: 0.005 | DL53: 0.005 | DM53: 0.005 | DN53: 0.005 | DO53: 0.005 | DP53: 0.005 | DQ53: 0.005 | DR53: 0.005 | DS53: 0.005 | DT53: 0.005 | DU53: 0.005 | DV53: 0.005 | DW53: 0.005 | DX53: 0.005
B55: Salaires | D55: k€ | F55: =SUM(I55:DX55) -> -18277.15012 | I55: =F17*-F18 -> -150 | J55: =I55*(1+J56) -> -150.15 | K55: =J55*(1+K56) -> -150.15 | L55: -150.15 | M55: -150.15 | N55: -150.30015 | O55: -150.30015 | P55: -150.30015 | Q55: -150.30015 | R55: -150.4504501 | S55: -150.4504501 | T55: -150.4504501 | U55: -150.4504501 | V55: -150.6009006 | W55: -150.6009006 | X55: -150.6009006 | Y55: -150.6009006 | Z55: -150.7515015 | AA55: -150.7515015 | AB55: -150.7515015 | AC55: -150.7515015 | AD55: -150.902253 | AE55: -150.902253 | AF55: -150.902253 | AG55: -150.902253 | AH55: -151.0531553 | AI55: -151.0531553 | AJ55: -151.0531553 | AK55: -151.0531553 | AL55: -151.2042084 | AM55: -151.2042084 | AN55: -151.2042084 | AO55: -151.2042084 | AP55: -151.3554126 | AQ55: -151.3554126 | AR55: -151.3554126 | AS55: -151.3554126 | AT55: -151.506768 | AU55: -151.506768 | AV55: -151.506768 | AW55: -151.506768 | AX55: -151.6582748 | AY55: -151.6582748 | AZ55: -151.6582748 | BA55: -151.6582748 | BB55: -151.8099331 | BC55: -151.8099331 | BD55: -151.8099331 | BE55: -151.8099331 | BF55: -151.961743 | BG55: -151.961743 | BH55: -151.961743 | BI55: -151.961743 | BJ55: -152.1137048 | BK55: -152.1137048 | BL55: -152.1137048 | BM55: -152.1137048 | BN55: -152.2658185 | BO55: -152.2658185 | BP55: -152.2658185 | BQ55: -152.2658185 | BR55: -152.4180843 | BS55: -152.4180843 | BT55: -152.4180843 | BU55: -152.4180843 | BV55: -152.5705024 | BW55: =BV55*(1+BW56) -> -152.5705024 | BX55: -152.5705024 | BY55: -152.5705024 | BZ55: -152.7230729 | CA55: -152.7230729 | CB55: -152.7230729 | CC55: -152.7230729 | CD55: -152.8757959 | CE55: -152.8757959 | CF55: -152.8757959 | CG55: -152.8757959 | CH55: -153.0286717 | CI55: -153.0286717 | CJ55: -153.0286717 | CK55: -153.0286717 | CL55: -153.1817004 | CM55: -153.1817004 | CN55: -153.1817004 | CO55: -153.1817004 | CP55: -153.3348821 | CQ55: -153.3348821 | CR55: -153.3348821 | CS55: -153.3348821 | CT55: -153.488217 | CU55: -153.488217 | CV55: -153.488217 | CW55: -153.488217 | CX55: -153.6417052 | CY55: -153.6417052 | CZ55: -153.6417052 | DA55: -153.6417052 | DB55: -153.7953469 | DC55: -153.7953469 | DD55: -153.7953469 | DE55: -153.7953469 | DF55: -153.9491423 | DG55: -153.9491423 | DH55: -153.9491423 | DI55: -153.9491423 | DJ55: -154.1030914 | DK55: -154.1030914 | DL55: -154.1030914 | DM55: -154.1030914 | DN55: -154.2571945 | DO55: -154.2571945 | DP55: -154.2571945 | DQ55: -154.2571945 | DR55: -154.4114517 | DS55: -154.4114517 | DT55: -154.4114517 | DU55: -154.4114517 | DV55: -154.5658631 | DW55: -154.5658631 | DX55: -154.5658631
B56: Evolution mensuelle des salaires | D56: % | F56: =F19 -> 0.001 | J56: =F56 -> 0.001 | K56: =G56 -> 0 | L56: 0 | M56: 0 | N56: 0.001 | O56: 0 | P56: 0 | Q56: 0 | R56: 0.001 | S56: 0 | T56: 0 | U56: 0 | V56: 0.001 | W56: 0 | X56: 0 | Y56: 0 | Z56: 0.001 | AA56: 0 | AB56: 0 | AC56: 0 | AD56: 0.001 | AE56: 0 | AF56: 0 | AG56: 0 | AH56: 0.001 | AI56: 0 | AJ56: 0 | AK56: 0 | AL56: 0.001 | AM56: 0 | AN56: 0 | AO56: 0 | AP56: 0.001 | AQ56: 0 | AR56: 0 | AS56: 0 | AT56: 0.001 | AU56: 0 | AV56: 0 | AW56: 0 | AX56: 0.001 | AY56: 0 | AZ56: 0 | BA56: 0 | BB56: 0.001 | BC56: 0 | BD56: 0 | BE56: 0 | BF56: 0.001 | BG56: 0 | BH56: 0 | BI56: 0 | BJ56: 0.001 | BK56: 0 | BL56: 0 | BM56: 0 | BN56: 0.001 | BO56: 0 | BP56: 0 | BQ56: 0 | BR56: 0.001 | BS56: 0 | BT56: 0 | BU56: 0 | BV56: 0.001 | BW56: =BS56 -> 0 | BX56: 0 | BY56: 0 | BZ56: 0.001 | CA56: 0 | CB56: 0 | CC56: 0 | CD56: 0.001 | CE56: 0 | CF56: 0 | CG56: 0 | CH56: 0.001 | CI56: 0 | CJ56: 0 | CK56: 0 | CL56: 0.001 | CM56: 0 | CN56: 0 | CO56: 0 | CP56: 0.001 | CQ56: 0 | CR56: 0 | CS56: 0 | CT56: 0.001 | CU56: 0 | CV56: 0 | CW56: 0 | CX56: 0.001 | CY56: 0 | CZ56: 0 | DA56: 0 | DB56: 0.001 | DC56: 0 | DD56: 0 | DE56: 0 | DF56: 0.001 | DG56: 0 | DH56: 0 | DI56: 0 | DJ56: 0.001 | DK56: 0 | DL56: 0 | DM56: 0 | DN56: 0.001 | DO56: 0 | DP56: 0 | DQ56: 0 | DR56: 0.001 | DS56: 0 | DT56: 0 | DU56: 0 | DV56: 0.001 | DW56: 0 | DX56: 0
B58: Autres dépenses d'exploitation | D58: k€ | F58: =SUM(I58:DX58) -> -24000 | I58: =-$F$21 -> -200 | J58: -200 | K58: -200 | L58: -200 | M58: -200 | N58: -200 | O58: -200 | P58: -200 | Q58: -200 | R58: -200 | S58: -200 | T58: -200 | U58: -200 | V58: -200 | W58: -200 | X58: -200 | Y58: -200 | Z58: -200 | AA58: -200 | AB58: -200 | AC58: -200 | AD58: -200 | AE58: -200 | AF58: -200 | AG58: -200 | AH58: -200 | AI58: -200 | AJ58: -200 | AK58: -200 | AL58: -200 | AM58: -200 | AN58: -200 | AO58: -200 | AP58: -200 | AQ58: -200 | AR58: -200 | AS58: -200 | AT58: -200 | AU58: -200 | AV58: -200 | AW58: -200 | AX58: -200 | AY58: -200 | AZ58: -200 | BA58: -200 | BB58: -200 | BC58: -200 | BD58: -200 | BE58: -200 | BF58: -200 | BG58: -200 | BH58: -200 | BI58: -200 | BJ58: -200 | BK58: -200 | BL58: -200 | BM58: -200 | BN58: -200 | BO58: -200 | BP58: -200 | BQ58: -200 | BR58: -200 | BS58: -200 | BT58: -200 | BU58: =-$F$21 -> -200 | BV58: -200 | BW58: -200 | BX58: -200 | BY58: -200 | BZ58: -200 | CA58: -200 | CB58: -200 | CC58: -200 | CD58: -200 | CE58: -200 | CF58: -200 | CG58: -200 | CH58: -200 | CI58: -200 | CJ58: -200 | CK58: -200 | CL58: -200 | CM58: -200 | CN58: -200 | CO58: -200 | CP58: -200 | CQ58: -200 | CR58: -200 | CS58: -200 | CT58: -200 | CU58: -200 | CV58: -200 | CW58: -200 | CX58: -200 | CY58: -200 | CZ58: -200 | DA58: -200 | DB58: -200 | DC58: -200 | DD58: -200 | DE58: -200 | DF58: -200 | DG58: -200 | DH58: -200 | DI58: -200 | DJ58: -200 | DK58: -200 | DL58: -200 | DM58: -200 | DN58: -200 | DO58: -200 | DP58: -200 | DQ58: -200 | DR58: -200 | DS58: -200 | DT58: -200 | DU58: -200 | DV58: -200 | DW58: -200 | DX58: -200
B60: EBITDA | D60: k€ | F60: =SUM(I60:DX60) -> 29205.06059 | I60: =I46+I49+I52+I55+I58 -> 300 | J60: =J46+J49+J52+J55+J58 -> 299.7 | K60: 299.5358 | L60: 299.3572558 | M60: 299.1642219 | N60: 298.8064016 | O60: 298.5839471 | P60: 298.3465592 | Q60: 298.0940874 | R60: 297.6760799 | S60: 297.3929839 | T60: 297.0943452 | U60: 296.7800081 | V60: 296.2993652 | W60: 295.9531593 | X60: 295.5907803 | Y60: 295.2120674 | Z60: 294.6662574 | AA60: 294.2543885 | AB60: 293.8256948 | AC60: 293.3800099 | AD60: 292.7664145 | AE60: 292.2862425 | AF60: 291.7885718 | AG60: 291.2732302 | AH60: 290.589142 | AI60: 290.0379368 | AJ60: 289.4685359 | AK60: 288.8807614 | AL60: 288.1233808 | AM60: 287.4983194 | AN60: 286.8543416 | AO60: 286.1912635 | AP60: 285.3576955 | AQ60: 284.6558588 | AR60: 283.9343607 | AS60: 283.1930109 | AT60: 282.2802622 | AU60: 281.4986321 | AV60: 280.6965702 | AW60: 279.8738798 | AX60: 278.8788558 | AY60: 278.0143118 | AZ60: 277.1285394 | BA60: 276.2213354 | BB60: 275.1408364 | BC60: 274.1901523 | BD60: 273.2174164 | BE60: 272.2224184 | BF60: 271.0531365 | BG60: 270.0129769 | BH60: 268.9499142 | BI60: 267.863731 | BJ60: 266.6022465 | BK60: 265.4691633 | BL60: 264.3122969 | BM60: 263.1314226 | BN60: 261.7742003 | BO60: 260.5446289 | BP60: 259.2903646 | BQ60: 258.0111751 | BR60: 256.5545604 | BS60: 255.2248162 | BT60: 253.8694386 | BU60: 252.4881875 | BV60: =BV46+BV49+BV52+BV55+BV58 -> 250.9284029 | BW60: 249.494677 | BX60: 248.0343455 | BY60: 246.5471604 | BZ60: 244.8803011 | CA60: 243.3386563 | CB60: 241.7694012 | CC60: 240.1722793 | CD60: 238.3943092 | CE60: 236.7406761 | CF60: 235.0583941 | CG60: 233.3471983 | CH60: 231.4539455 | CI60: 229.684118 | CJ60: 227.8845682 | CK60: 226.0550222 | CL60: 224.0421751 | CM60: 222.1518058 | CN60: 220.2306048 | CO60: 218.278289 | CP60: 216.1413913 | CQ60: 214.1259872 | CR60: 212.0786048 | CS60: 209.9989515 | CT60: 207.7333974 | CU60: 205.5883149 | CV60: 203.4100691 | CW60: 201.1983577 | CX60: 198.7993875 | CY60: 196.5198275 | CZ60: 194.2058797 | DA60: 191.8572315 | DB60: 189.3199261 | DC60: 186.9009293 | DD60: 184.4462791 | DE60: 181.9556524 | DF60: 179.2749285 | DG60: 176.7113696 | DH60: 174.1108494 | DI60: 171.4730343 | DJ60: 168.6436386 | DK60: 165.9302213 | DL60: 163.1784913 | DM60: 160.3881038 | DN60: 157.4046078 | DO60: 154.5358592 | DP60: 151.6274013 | DQ60: 148.6788778 | DR60: 145.5356723 | DS60: 142.5059369 | DT60: 139.4350492 | DU60: 136.3226409 | DV60: 133.0139295 | DW60: 129.8173635 | DX60: 126.5781541
B62: D&A | D62: k€ | F62: =SUM(I62:DX62) -> -15000 | I62: =-$F$27 -> -125 | J62: -125 | K62: -125 | L62: -125 | M62: -125 | N62: -125 | O62: -125 | P62: -125 | Q62: -125 | R62: -125 | S62: -125 | T62: -125 | U62: -125 | V62: -125 | W62: -125 | X62: -125 | Y62: -125 | Z62: -125 | AA62: -125 | AB62: -125 | AC62: -125 | AD62: -125 | AE62: -125 | AF62: -125 | AG62: -125 | AH62: -125 | AI62: -125 | AJ62: -125 | AK62: -125 | AL62: -125 | AM62: -125 | AN62: -125 | AO62: -125 | AP62: -125 | AQ62: -125 | AR62: -125 | AS62: -125 | AT62: -125 | AU62: -125 | AV62: -125 | AW62: -125 | AX62: -125 | AY62: -125 | AZ62: -125 | BA62: -125 | BB62: -125 | BC62: -125 | BD62: -125 | BE62: -125 | BF62: -125 | BG62: -125 | BH62: -125 | BI62: -125 | BJ62: -125 | BK62: -125 | BL62: -125 | BM62: -125 | BN62: -125 | BO62: -125 | BP62: -125 | BQ62: -125 | BR62: -125 | BS62: -125 | BT62: -125 | BU62: =-$F$27 -> -125 | BV62: -125 | BW62: -125 | BX62: -125 | BY62: -125 | BZ62: -125 | CA62: -125 | CB62: -125 | CC62: -125 | CD62: -125 | CE62: -125 | CF62: -125 | CG62: -125 | CH62: -125 | CI62: -125 | CJ62: -125 | CK62: -125 | CL62: -125 | CM62: -125 | CN62: -125 | CO62: -125 | CP62: -125 | CQ62: -125 | CR62: -125 | CS62: -125 | CT62: -125 | CU62: -125 | CV62: -125 | CW62: -125 | CX62: -125 | CY62: -125 | CZ62: -125 | DA62: -125 | DB62: -125 | DC62: -125 | DD62: -125 | DE62: -125 | DF62: -125 | DG62: -125 | DH62: -125 | DI62: -125 | DJ62: -125 | DK62: -125 | DL62: -125 | DM62: -125 | DN62: -125 | DO62: -125 | DP62: -125 | DQ62: -125 | DR62: -125 | DS62: -125 | DT62: -125 | DU62: -125 | DV62: -125 | DW62: -125 | DX62: -125
B64: EBIT | D64: k€ | F64: =SUM(I64:DX64) -> 14205.06059 | I64: =I60+I62 -> 175 | J64: =J60+J62 -> 174.7 | K64: 174.5358 | L64: 174.3572558 | M64: 174.1642219 | N64: 173.8064016 | O64: 173.5839471 | P64: 173.3465592 | Q64: 173.0940874 | R64: 172.6760799 | S64: 172.3929839 | T64: 172.0943452 | U64: 171.7800081 | V64: 171.2993652 | W64: 170.9531593 | X64: 170.5907803 | Y64: 170.2120674 | Z64: 169.6662574 | AA64: 169.2543885 | AB64: 168.8256948 | AC64: 168.3800099 | AD64: 167.7664145 | AE64: 167.2862425 | AF64: 166.7885718 | AG64: 166.2732302 | AH64: 165.589142 | AI64: 165.0379368 | AJ64: 164.4685359 | AK64: 163.8807614 | AL64: 163.1233808 | AM64: 162.4983194 | AN64: 161.8543416 | AO64: 161.1912635 | AP64: 160.3576955 | AQ64: 159.6558588 | AR64: 158.9343607 | AS64: 158.1930109 | AT64: 157.2802622 | AU64: 156.4986321 | AV64: 155.6965702 | AW64: 154.8738798 | AX64: 153.8788558 | AY64: 153.0143118 | AZ64: 152.1285394 | BA64: 151.2213354 | BB64: 150.1408364 | BC64: 149.1901523 | BD64: 148.2174164 | BE64: 147.2224184 | BF64: 146.0531365 | BG64: 145.0129769 | BH64: 143.9499142 | BI64: 142.863731 | BJ64: 141.6022465 | BK64: 140.4691633 | BL64: 139.3122969 | BM64: 138.1314226 | BN64: 136.7742003 | BO64: 135.5446289 | BP64: 134.2903646 | BQ64: 133.0111751 | BR64: 131.5545604 | BS64: 130.2248162 | BT64: 128.8694386 | BU64: 127.4881875 | BV64: =BV60+BV62 -> 125.9284029 | BW64: 124.494677 | BX64: 123.0343455 | BY64: 121.5471604 | BZ64: 119.8803011 | CA64: 118.3386563 | CB64: 116.7694012 | CC64: 115.1722793 | CD64: 113.3943092 | CE64: 111.7406761 | CF64: 110.0583941 | CG64: 108.3471983 | CH64: 106.4539455 | CI64: 104.684118 | CJ64: 102.8845682 | CK64: 101.0550222 | CL64: 99.04217509 | CM64: 97.15180579 | CN64: 95.23060481 | CO64: 93.27828903 | CP64: 91.14139128 | CQ64: 89.12598716 | CR64: 87.07860476 | CS64: 84.99895148 | CT64: 82.73339742 | CU64: 80.5883149 | CV64: 78.41006911 | CW64: 76.19835766 | CX64: 73.79938746 | CY64: 71.51982753 | CZ64: 69.20587972 | DA64: 66.85723152 | DB64: 64.31992614 | DC64: 61.90092933 | DD64: 59.44627908 | DE64: 56.95565244 | DF64: 54.27492847 | DG64: 51.71136958 | DH64: 49.11084943 | DI64: 46.4730343 | DJ64: 43.64363858 | DK64: 40.93022131 | DL64: 38.17849132 | DM64: 35.38810375 | DN64: 32.40460784 | DO64: 29.5358592 | DP64: 26.62740132 | DQ64: 23.67887784 | DR64: 20.53567231 | DS64: 17.50593689 | DT64: 14.43504916 | DU64: 11.32264092 | DV64: 8.013929486 | DW64: 4.817363467 | DX64: 1.578154051
B66: Produits financiers | D66: k€ | F66: =SUM(I66:DX66) -> 0 | I66: 0 | J66: 0 | K66: 0 | L66: 0 | M66: 0 | N66: 0 | O66: 0 | P66: 0 | Q66: 0 | R66: 0 | S66: 0 | T66: 0 | U66: 0 | V66: 0 | W66: 0 | X66: 0 | Y66: 0 | Z66: 0 | AA66: 0 | AB66: 0 | AC66: 0 | AD66: 0 | AE66: 0 | AF66: 0 | AG66: 0 | AH66: 0 | AI66: 0 | AJ66: 0 | AK66: 0 | AL66: 0 | AM66: 0 | AN66: 0 | AO66: 0 | AP66: 0 | AQ66: 0 | AR66: 0 | AS66: 0 | AT66: 0 | AU66: 0 | AV66: 0 | AW66: 0 | AX66: 0 | AY66: 0 | AZ66: 0 | BA66: 0 | BB66: 0 | BC66: 0 | BD66: 0 | BE66: 0 | BF66: 0 | BG66: 0 | BH66: 0 | BI66: 0 | BJ66: 0 | BK66: 0 | BL66: 0 | BM66: 0 | BN66: 0 | BO66: 0 | BP66: 0 | BQ66: 0 | BR66: 0 | BS66: 0 | BT66: 0 | BU66: 0 | BV66: 0 | BW66: 0 | BX66: 0 | BY66: 0 | BZ66: 0 | CA66: 0 | CB66: 0 | CC66: 0 | CD66: 0 | CE66: 0 | CF66: 0 | CG66: 0 | CH66: 0 | CI66: 0 | CJ66: 0 | CK66: 0 | CL66: 0 | CM66: 0 | CN66: 0 | CO66: 0 | CP66: 0 | CQ66: 0 | CR66: 0 | CS66: 0 | CT66: 0 | CU66: 0 | CV66: 0 | CW66: 0 | CX66: 0 | CY66: 0 | CZ66: 0 | DA66: 0 | DB66: 0 | DC66: 0 | DD66: 0 | DE66: 0 | DF66: 0 | DG66: 0 | DH66: 0 | DI66: 0 | DJ66: 0 | DK66: 0 | DL66: 0 | DM66: 0 | DN66: 0 | DO66: 0 | DP66: 0 | DQ66: 0 | DR66: 0 | DS66: 0 | DT66: 0 | DU66: 0 | DV66: 0 | DW66: 0 | DX66: 0
B68: Charges financières | D68: k€ | F68: =SUM(I68:DX68) -> 0 | I68: 0 | J68: 0 | K68: 0 | L68: 0 | M68: 0 | N68: 0 | O68: 0 | P68: 0 | Q68: 0 | R68: 0 | S68: 0 | T68: 0 | U68: 0 | V68: 0 | W68: 0 | X68: 0 | Y68: 0 | Z68: 0 | AA68: 0 | AB68: 0 | AC68: 0 | AD68: 0 | AE68: 0 | AF68: 0 | AG68: 0 | AH68: 0 | AI68: 0 | AJ68: 0 | AK68: 0 | AL68: 0 | AM68: 0 | AN68: 0 | AO68: 0 | AP68: 0 | AQ68: 0 | AR68: 0 | AS68: 0 | AT68: 0 | AU68: 0 | AV68: 0 | AW68: 0 | AX68: 0 | AY68: 0 | AZ68: 0 | BA68: 0 | BB68: 0 | BC68: 0 | BD68: 0 | BE68: 0 | BF68: 0 | BG68: 0 | BH68: 0 | BI68: 0 | BJ68: 0 | BK68: 0 | BL68: 0 | BM68: 0 | BN68: 0 | BO68: 0 | BP68: 0 | BQ68: 0 | BR68: 0 | BS68: 0 | BT68: 0 | BU68: 0 | BV68: 0 | BW68: 0 | BX68: 0 | BY68: 0 | BZ68: 0 | CA68: 0 | CB68: 0 | CC68: 0 | CD68: 0 | CE68: 0 | CF68: 0 | CG68: 0 | CH68: 0 | CI68: 0 | CJ68: 0 | CK68: 0 | CL68: 0 | CM68: 0 | CN68: 0 | CO68: 0 | CP68: 0 | CQ68: 0 | CR68: 0 | CS68: 0 | CT68: 0 | CU68: 0 | CV68: 0 | CW68: 0 | CX68: 0 | CY68: 0 | CZ68: 0 | DA68: 0 | DB68: 0 | DC68: 0 | DD68: 0 | DE68: 0 | DF68: 0 | DG68: 0 | DH68: 0 | DI68: 0 | DJ68: 0 | DK68: 0 | DL68: 0 | DM68: 0 | DN68: 0 | DO68: 0 | DP68: 0 | DQ68: 0 | DR68: 0 | DS68: 0 | DT68: 0 | DU68: 0 | DV68: 0 | DW68: 0 | DX68: 0
B70: Pre-tax Income | D70: k€ | F70: =SUM(I70:DX70) -> 14205.06059 | I70: =I64+I66-I68 -> 175 | J70: =J64+J66-J68 -> 174.7 | K70: 174.5358 | L70: 174.3572558 | M70: 174.1642219 | N70: 173.8064016 | O70: 173.5839471 | P70: 173.3465592 | Q70: 173.0940874 | R70: 172.6760799 | S70: 172.3929839 | T70: 172.0943452 | U70: 171.7800081 | V70: 171.2993652 | W70: 170.9531593 | X70: 170.5907803 | Y70: 170.2120674 | Z70: 169.6662574 | AA70: 169.2543885 | AB70: 168.8256948 | AC70: 168.3800099 | AD70: 167.7664145 | AE70: 167.2862425 | AF70: 166.7885718 | AG70: 166.2732302 | AH70: 165.589142 | AI70: 165.0379368 | AJ70: 164.4685359 | AK70: 163.8807614 | AL70: 163.1233808 | AM70: 162.4983194 | AN70: 161.8543416 | AO70: 161.1912635 | AP70: 160.3576955 | AQ70: 159.6558588 | AR70: 158.9343607 | AS70: 158.1930109 | AT70: 157.2802622 | AU70: 156.4986321 | AV70: 155.6965702 | AW70: 154.8738798 | AX70: 153.8788558 | AY70: 153.0143118 | AZ70: 152.1285394 | BA70: 151.2213354 | BB70: 150.1408364 | BC70: 149.1901523 | BD70: 148.2174164 | BE70: 147.2224184 | BF70: 146.0531365 | BG70: 145.0129769 | BH70: 143.9499142 | BI70: 142.863731 | BJ70: 141.6022465 | BK70: 140.4691633 | BL70: 139.3122969 | BM70: 138.1314226 | BN70: 136.7742003 | BO70: 135.5446289 | BP70: 134.2903646 | BQ70: 133.0111751 | BR70: 131.5545604 | BS70: 130.2248162 | BT70: 128.8694386 | BU70: 127.4881875 | BV70: =BV64+BV66-BV68 -> 125.9284029 | BW70: 124.494677 | BX70: 123.0343455 | BY70: 121.5471604 | BZ70: 119.8803011 | CA70: 118.3386563 | CB70: 116.7694012 | CC70: 115.1722793 | CD70: 113.3943092 | CE70: 111.7406761 | CF70: 110.0583941 | CG70: 108.3471983 | CH70: 106.4539455 | CI70: 104.684118 | CJ70: 102.8845682 | CK70: 101.0550222 | CL70: 99.04217509 | CM70: 97.15180579 | CN70: 95.23060481 | CO70: 93.27828903 | CP70: 91.14139128 | CQ70: 89.12598716 | CR70: 87.07860476 | CS70: 84.99895148 | CT70: 82.73339742 | CU70: 80.5883149 | CV70: 78.41006911 | CW70: 76.19835766 | CX70: 73.79938746 | CY70: 71.51982753 | CZ70: 69.20587972 | DA70: 66.85723152 | DB70: 64.31992614 | DC70: 61.90092933 | DD70: 59.44627908 | DE70: 56.95565244 | DF70: 54.27492847 | DG70: 51.71136958 | DH70: 49.11084943 | DI70: 46.4730343 | DJ70: 43.64363858 | DK70: 40.93022131 | DL70: 38.17849132 | DM70: 35.38810375 | DN70: 32.40460784 | DO70: 29.5358592 | DP70: 26.62740132 | DQ70: 23.67887784 | DR70: 20.53567231 | DS70: 17.50593689 | DT70: 14.43504916 | DU70: 11.32264092 | DV70: 8.013929486 | DW70: 4.817363467 | DX70: 1.578154051
B72: Impôts | D72: % | F72: =$F$31 -> 0.3 | I72: =-IF(I70<0,0,I70*$F$72) -> -52.5 | J72: =-IF(J70<0,0,J70*$F$72) -> -52.41 | K72: -52.36074 | L72: -52.30717673 | M72: -52.24926656 | N72: -52.14192049 | O72: -52.07518414 | P72: -52.00396775 | Q72: -51.92822621 | R72: -51.80282396 | S72: -51.71789518 | T72: -51.62830356 | U72: -51.53400242 | V72: -51.38980955 | W72: -51.28594778 | X72: -51.17723408 | Y72: -51.06362021 | Z72: -50.89987721 | AA72: -50.77631654 | AB72: -50.64770843 | AC72: -50.51400296 | AD72: -50.32992436 | AE72: -50.18587276 | AF72: -50.03657153 | AG72: -49.88196905 | AH72: -49.67674261 | AI72: -49.51138105 | AJ72: -49.34056078 | AK72: -49.16422843 | AL72: -48.93701423 | AM72: -48.74949581 | AN72: -48.55630248 | AO72: -48.35737906 | AP72: -48.10730865 | AQ72: -47.89675764 | AR72: -47.6803082 | AS72: -47.45790326 | AT72: -47.18407867 | AU72: -46.94958964 | AV72: -46.70897106 | AW72: -46.46216393 | AX72: -46.16365673 | AY72: -45.90429353 | AZ72: -45.63856183 | BA72: -45.36640062 | BB72: -45.04225093 | BC72: -44.7570457 | BD72: -44.46522491 | BE72: -44.16672552 | BF72: -43.81594096 | BG72: -43.50389308 | BH72: -43.18497426 | BI72: -42.8591193 | BJ72: -42.48067395 | BK72: -42.14074899 | BL72: -41.79368906 | BM72: -41.43942678 | BN72: -41.03226008 | BO72: -40.66338868 | BP72: -40.28710938 | BQ72: -39.90335252 | BR72: -39.46636813 | BS72: -39.06744487 | BT72: -38.66083158 | BU72: -38.24645626 | BV72: =-IF(BV70<0,0,BV70*$F$72) -> -37.77852088 | BW72: -37.34840309 | BX72: -36.91030365 | BY72: -36.46414812 | BZ72: -35.96409032 | CA72: -35.50159688 | CB72: -35.03082035 | CC72: -34.5516838 | CD72: -34.01829275 | CE72: -33.52220282 | CF72: -33.01751824 | CG72: -32.50415948 | CH72: -31.93618366 | CI72: -31.40523539 | CJ72: -30.86537045 | CK72: -30.31650665 | CL72: -29.71265253 | CM72: -29.14554174 | CN72: -28.56918144 | CO72: -27.98348671 | CP72: -27.34241738 | CQ72: -26.73779615 | CR72: -26.12358143 | CS72: -25.49968544 | CT72: -24.82001923 | CU72: -24.17649447 | CV72: -23.52302073 | CW72: -22.8595073 | CX72: -22.13981624 | CY72: -21.45594826 | CZ72: -20.76176392 | DA72: -20.05716945 | DB72: -19.29597784 | DC72: -18.5702788 | DD72: -17.83388372 | DE72: -17.08669573 | DF72: -16.28247854 | DG72: -15.51341088 | DH72: -14.73325483 | DI72: -13.94191029 | DJ72: -13.09309157 | DK72: -12.27906639 | DL72: -11.4535474 | DM72: -10.61643113 | DN72: -9.721382351 | DO72: -8.86075776 | DP72: -7.988220395 | DQ72: -7.103663353 | DR72: -6.160701694 | DS72: -5.251781066 | DT72: -4.330514748 | DU72: -3.396792276 | DV72: -2.404178846 | DW72: -1.44520904 | DX72: -0.4734462153
B74: Net Income | D74: k€ | F74: =SUM(I74:DX74) -> 9943.542416 | I74: =I70+I72 -> 122.5 | J74: =J70+J72 -> 122.29 | K74: 122.17506 | L74: 122.050079 | M74: 121.9149553 | N74: 121.6644811 | O74: 121.508763 | P74: 121.3425914 | Q74: 121.1658612 | R74: 120.8732559 | S74: 120.6750888 | T74: 120.4660416 | U74: 120.2460056 | V74: 119.9095556 | W74: 119.6672115 | X74: 119.4135462 | Y74: 119.1484472 | Z74: 118.7663802 | AA74: 118.4780719 | AB74: 118.1779863 | AC74: 117.8660069 | AD74: 117.4364902 | AE74: 117.1003698 | AF74: 116.7520002 | AG74: 116.3912611 | AH74: 115.9123994 | AI74: 115.5265558 | AJ74: 115.1279752 | AK74: 114.716533 | AL74: 114.1863665 | AM74: 113.7488235 | AN74: 113.2980391 | AO74: 112.8338845 | AP74: 112.2503868 | AQ74: 111.7591012 | AR74: 111.2540525 | AS74: 110.7351076 | AT74: 110.0961836 | AU74: 109.5490425 | AV74: 108.9875991 | AW74: 108.4117158 | AX74: 107.715199 | AY74: 107.1100182 | AZ74: 106.4899776 | BA74: 105.8549348 | BB74: 105.0985855 | BC74: 104.4331066 | BD74: 103.7521915 | BE74: 103.0556929 | BF74: 102.2371956 | BG74: 101.5090839 | BH74: 100.7649399 | BI74: 100.0046117 | BJ74: 99.12157256 | BK74: 98.32841431 | BL74: 97.51860781 | BM74: 96.69199581 | BN74: 95.74194018 | BO74: 94.88124025 | BP74: 94.00325521 | BQ74: 93.10782255 | BR74: 92.0881923 | BS74: 91.15737135 | BT74: 90.20860701 | BU74: 89.24173127 | BV74: =BV70+BV72 -> 88.14988205 | BW74: 87.14627388 | BX74: 86.12404184 | BY74: 85.08301229 | BZ74: 83.91621075 | CA74: 82.83705939 | CB74: 81.73858082 | CC74: 80.62059554 | CD74: 79.37601641 | CE74: 78.21847324 | CF74: 77.04087588 | CG74: 75.8430388 | CH74: 74.51776187 | CI74: 73.27888259 | CJ74: 72.01919772 | CK74: 70.73851552 | CL74: 69.32952256 | CM74: 68.00626405 | CN74: 66.66142337 | CO74: 65.29480232 | CP74: 63.7989739 | CQ74: 62.38819101 | CR74: 60.95502333 | CS74: 59.49926604 | CT74: 57.9133782 | CU74: 56.41182043 | CV74: 54.88704837 | CW74: 53.33885036 | CX74: 51.65957122 | CY74: 50.06387927 | CZ74: 48.4441158 | DA74: 46.80006206 | DB74: 45.0239483 | DC74: 43.33065053 | DD74: 41.61239535 | DE74: 39.86895671 | DF74: 37.99244993 | DG74: 36.19795871 | DH74: 34.3775946 | DI74: 32.53112401 | DJ74: 30.55054701 | DK74: 28.65115492 | DL74: 26.72494392 | DM74: 24.77167263 | DN74: 22.68322548 | DO74: 20.67510144 | DP74: 18.63918092 | DQ74: 16.57521449 | DR74: 14.37497062 | DS74: 12.25415582 | DT74: 10.10453441 | DU74: 7.925848645 | DV74: 5.60975064 | DW74: 3.372154427 | DX74: 1.104707836
B77: b- Indicateurs d'investissement
B79: Début de période | D79: date | H79: =F23 -> 2019-12-01 | I79: =I42 -> 2020-01-01 | J79: 2020-02-01 | K79: 2020-03-01 | L79: 2020-04-01 | M79: 2020-05-01 | N79: 2020-06-01 | O79: 2020-07-01 | P79: 2020-08-01 | Q79: 2020-09-01 | R79: 2020-10-01 | S79: 2020-11-01 | T79: 2020-12-01 | U79: 2021-01-01 | V79: 2021-02-01 | W79: 2021-03-01 | X79: 2021-04-01 | Y79: 2021-05-01 | Z79: 2021-06-01 | AA79: 2021-07-01 | AB79: 2021-08-01 | AC79: 2021-09-01 | AD79: 2021-10-01 | AE79: 2021-11-01 | AF79: 2021-12-01 | AG79: 2022-01-01 | AH79: 2022-02-01 | AI79: 2022-03-01 | AJ79: 2022-04-01 | AK79: 2022-05-01 | AL79: 2022-06-01 | AM79: 2022-07-01 | AN79: 2022-08-01 | AO79: 2022-09-01 | AP79: 2022-10-01 | AQ79: 2022-11-01 | AR79: 2022-12-01 | AS79: 2023-01-01 | AT79: 2023-02-01 | AU79: 2023-03-01 | AV79: 2023-04-01 | AW79: 2023-05-01 | AX79: 2023-06-01 | AY79: 2023-07-01 | AZ79: 2023-08-01 | BA79: 2023-09-01 | BB79: 2023-10-01 | BC79: 2023-11-01 | BD79: 2023-12-01 | BE79: 2024-01-01 | BF79: 2024-02-01 | BG79: 2024-03-01 | BH79: 2024-04-01 | BI79: 2024-05-01 | BJ79: 2024-06-01 | BK79: 2024-07-01 | BL79: 2024-08-01 | BM79: 2024-09-01 | BN79: 2024-10-01 | BO79: 2024-11-01 | BP79: 2024-12-01 | BQ79: 2025-01-01 | BR79: 2025-02-01 | BS79: 2025-03-01 | BT79: 2025-04-01 | BU79: =BU42 -> 2025-05-01 | BV79: 2025-06-01 | BW79: 2025-07-01 | BX79: 2025-08-01 | BY79: 2025-09-01 | BZ79: 2025-10-01 | CA79: 2025-11-01 | CB79: 2025-12-01 | CC79: 2026-01-01 | CD79: 2026-02-01 | CE79: 2026-03-01 | CF79: 2026-04-01 | CG79: 2026-05-01 | CH79: 2026-06-01 | CI79: 2026-07-01 | CJ79: 2026-08-01 | CK79: 2026-09-01 | CL79: 2026-10-01 | CM79: 2026-11-01 | CN79: 2026-12-01 | CO79: 2027-01-01 | CP79: 2027-02-01 | CQ79: 2027-03-01 | CR79: 2027-04-01 | CS79: 2027-05-01 | CT79: 2027-06-01 | CU79: 2027-07-01 | CV79: 2027-08-01 | CW79: 2027-09-01 | CX79: 2027-10-01 | CY79: 2027-11-01 | CZ79: 2027-12-01 | DA79: 2028-01-01 | DB79: 2028-02-01 | DC79: 2028-03-01 | DD79: 2028-04-01 | DE79: 2028-05-01 | DF79: 2028-06-01 | DG79: 2028-07-01 | DH79: 2028-08-01 | DI79: 2028-09-01 | DJ79: 2028-10-01 | DK79: 2028-11-01 | DL79: 2028-12-01 | DM79: 2029-01-01 | DN79: 2029-02-01 | DO79: 2029-03-01 | DP79: 2029-04-01 | DQ79: 2029-05-01 | DR79: 2029-06-01 | DS79: 2029-07-01 | DT79: 2029-08-01 | DU79: 2029-09-01 | DV79: 2029-10-01 | DW79: 2029-11-01 | DX79: 2029-12-01
B80: Fin de période | D80: date | H80: =EOMONTH(H79,0) -> 2019-12-31 | I80: 2020-01-31 | J80: 2020-02-29 | K80: 2020-03-31 | L80: 2020-04-30 | M80: 2020-05-31 | N80: 2020-06-30 | O80: 2020-07-31 | P80: 2020-08-31 | Q80: 2020-09-30 | R80: 2020-10-31 | S80: 2020-11-30 | T80: 2020-12-31 | U80: 2021-01-31 | V80: 2021-02-28 | W80: 2021-03-31 | X80: 2021-04-30 | Y80: 2021-05-31 | Z80: 2021-06-30 | AA80: 2021-07-31 | AB80: 2021-08-31 | AC80: 2021-09-30 | AD80: 2021-10-31 | AE80: 2021-11-30 | AF80: 2021-12-31 | AG80: 2022-01-31 | AH80: 2022-02-28 | AI80: 2022-03-31 | AJ80: 2022-04-30 | AK80: 2022-05-31 | AL80: 2022-06-30 | AM80: 2022-07-31 | AN80: 2022-08-31 | AO80: 2022-09-30 | AP80: 2022-10-31 | AQ80: 2022-11-30 | AR80: 2022-12-31 | AS80: 2023-01-31 | AT80: 2023-02-28 | AU80: 2023-03-31 | AV80: 2023-04-30 | AW80: 2023-05-31 | AX80: 2023-06-30 | AY80: 2023-07-31 | AZ80: 2023-08-31 | BA80: 2023-09-30 | BB80: 2023-10-31 | BC80: 2023-11-30 | BD80: 2023-12-31 | BE80: 2024-01-31 | BF80: 2024-02-29 | BG80: 2024-03-31 | BH80: 2024-04-30 | BI80: 2024-05-31 | BJ80: 2024-06-30 | BK80: 2024-07-31 | BL80: 2024-08-31 | BM80: 2024-09-30 | BN80: 2024-10-31 | BO80: 2024-11-30 | BP80: 2024-12-31 | BQ80: 2025-01-31 | BR80: 2025-02-28 | BS80: 2025-03-31 | BT80: 2025-04-30 | BU80: 2025-05-31 | BV80: 2025-06-30 | BW80: 2025-07-31 | BX80: 2025-08-31 | BY80: 2025-09-30 | BZ80: 2025-10-31 | CA80: 2025-11-30 | CB80: 2025-12-31 | CC80: 2026-01-31 | CD80: 2026-02-28 | CE80: 2026-03-31 | CF80: 2026-04-30 | CG80: 2026-05-31 | CH80: 2026-06-30 | CI80: 2026-07-31 | CJ80: 2026-08-31 | CK80: 2026-09-30 | CL80: 2026-10-31 | CM80: 2026-11-30 | CN80: 2026-12-31 | CO80: 2027-01-31 | CP80: 2027-02-28 | CQ80: 2027-03-31 | CR80: 2027-04-30 | CS80: 2027-05-31 | CT80: 2027-06-30 | CU80: 2027-07-31 | CV80: 2027-08-31 | CW80: 2027-09-30 | CX80: 2027-10-31 | CY80: 2027-11-30 | CZ80: 2027-12-31 | DA80: 2028-01-31 | DB80: 2028-02-29 | DC80: 2028-03-31 | DD80: 2028-04-30 | DE80: 2028-05-31 | DF80: 2028-06-30 | DG80: 2028-07-31 | DH80: 2028-08-31 | DI80: 2028-09-30 | DJ80: 2028-10-31 | DK80: 2028-11-30 | DL80: 2028-12-31 | DM80: 2029-01-31 | DN80: 2029-02-28 | DO80: 2029-03-31 | DP80: 2029-04-30 | DQ80: 2029-05-31 | DR80: 2029-06-30 | DS80: 2029-07-31 | DT80: 2029-08-31 | DU80: 2029-09-30 | DV80: 2029-10-31 | DW80: 2029-11-30 | DX80: 2029-12-31
B81: Année | D81: nombre | H81: =YEAR(H80) -> 2019 | I81: =YEAR(I80) -> 2020 | J81: 2020 | K81: 2020 | L81: 2020 | M81: 2020 | N81: 2020 | O81: 2020 | P81: 2020 | Q81: 2020 | R81: 2020 | S81: 2020 | T81: 2020 | U81: 2021 | V81: 2021 | W81: 2021 | X81: 2021 | Y81: 2021 | Z81: 2021 | AA81: 2021 | AB81: 2021 | AC81: 2021 | AD81: 2021 | AE81: 2021 | AF81: 2021 | AG81: 2022 | AH81: 2022 | AI81: 2022 | AJ81: 2022 | AK81: 2022 | AL81: 2022 | AM81: 2022 | AN81: 2022 | AO81: 2022 | AP81: 2022 | AQ81: 2022 | AR81: 2022 | AS81: 2023 | AT81: 2023 | AU81: 2023 | AV81: 2023 | AW81: 2023 | AX81: 2023 | AY81: 2023 | AZ81: 2023 | BA81: 2023 | BB81: 2023 | BC81: 2023 | BD81: 2023 | BE81: 2024 | BF81: 2024 | BG81: 2024 | BH81: 2024 | BI81: 2024 | BJ81: 2024 | BK81: 2024 | BL81: 2024 | BM81: 2024 | BN81: 2024 | BO81: 2024 | BP81: 2024 | BQ81: 2025 | BR81: 2025 | BS81: 2025 | BT81: 2025 | BU81: =YEAR(BU80) -> 2025 | BV81: 2025 | BW81: 2025 | BX81: 2025 | BY81: 2025 | BZ81: 2025 | CA81: 2025 | CB81: 2025 | CC81: 2026 | CD81: 2026 | CE81: 2026 | CF81: 2026 | CG81: 2026 | CH81: 2026 | CI81: 2026 | CJ81: 2026 | CK81: 2026 | CL81: 2026 | CM81: 2026 | CN81: 2026 | CO81: 2027 | CP81: 2027 | CQ81: 2027 | CR81: 2027 | CS81: 2027 | CT81: 2027 | CU81: 2027 | CV81: 2027 | CW81: 2027 | CX81: 2027 | CY81: 2027 | CZ81: 2027 | DA81: 2028 | DB81: 2028 | DC81: 2028 | DD81: 2028 | DE81: 2028 | DF81: 2028 | DG81: 2028 | DH81: 2028 | DI81: 2028 | DJ81: 2028 | DK81: 2028 | DL81: 2028 | DM81: 2029 | DN81: 2029 | DO81: 2029 | DP81: 2029 | DQ81: 2029 | DR81: 2029 | DS81: 2029 | DT81: 2029 | DU81: 2029 | DV81: 2029 | DW81: 2029 | DX81: 2029
B83: CAPEX | D83: k€ | F83: =SUM(H83:DX83) -> -15000 | H83: =-F25 -> -15000
B84: EBIT | D84: k€ | F84: =SUM(H84:DX84) -> 14205.06059 | I84: =I64 -> 175 | J84: 174.7 | K84: 174.5358 | L84: 174.3572558 | M84: 174.1642219 | N84: 173.8064016 | O84: 173.5839471 | P84: 173.3465592 | Q84: 173.0940874 | R84: 172.6760799 | S84: 172.3929839 | T84: 172.0943452 | U84: 171.7800081 | V84: 171.2993652 | W84: 170.9531593 | X84: 170.5907803 | Y84: 170.2120674 | Z84: 169.6662574 | AA84: 169.2543885 | AB84: 168.8256948 | AC84: 168.3800099 | AD84: 167.7664145 | AE84: 167.2862425 | AF84: 166.7885718 | AG84: 166.2732302 | AH84: 165.589142 | AI84: 165.0379368 | AJ84: 164.4685359 | AK84: 163.8807614 | AL84: 163.1233808 | AM84: 162.4983194 | AN84: 161.8543416 | AO84: 161.1912635 | AP84: 160.3576955 | AQ84: 159.6558588 | AR84: 158.9343607 | AS84: 158.1930109 | AT84: 157.2802622 | AU84: 156.4986321 | AV84: 155.6965702 | AW84: 154.8738798 | AX84: 153.8788558 | AY84: 153.0143118 | AZ84: 152.1285394 | BA84: 151.2213354 | BB84: 150.1408364 | BC84: 149.1901523 | BD84: 148.2174164 | BE84: 147.2224184 | BF84: 146.0531365 | BG84: 145.0129769 | BH84: 143.9499142 | BI84: 142.863731 | BJ84: 141.6022465 | BK84: 140.4691633 | BL84: 139.3122969 | BM84: 138.1314226 | BN84: 136.7742003 | BO84: 135.5446289 | BP84: 134.2903646 | BQ84: 133.0111751 | BR84: 131.5545604 | BS84: 130.2248162 | BT84: 128.8694386 | BU84: =BU64 -> 127.4881875 | BV84: 125.9284029 | BW84: 124.494677 | BX84: 123.0343455 | BY84: 121.5471604 | BZ84: 119.8803011 | CA84: 118.3386563 | CB84: 116.7694012 | CC84: 115.1722793 | CD84: 113.3943092 | CE84: 111.7406761 | CF84: 110.0583941 | CG84: 108.3471983 | CH84: 106.4539455 | CI84: 104.684118 | CJ84: 102.8845682 | CK84: 101.0550222 | CL84: 99.04217509 | CM84: 97.15180579 | CN84: 95.23060481 | CO84: 93.27828903 | CP84: 91.14139128 | CQ84: 89.12598716 | CR84: 87.07860476 | CS84: 84.99895148 | CT84: 82.73339742 | CU84: 80.5883149 | CV84: 78.41006911 | CW84: 76.19835766 | CX84: 73.79938746 | CY84: 71.51982753 | CZ84: 69.20587972 | DA84: 66.85723152 | DB84: 64.31992614 | DC84: 61.90092933 | DD84: 59.44627908 | DE84: 56.95565244 | DF84: 54.27492847 | DG84: 51.71136958 | DH84: 49.11084943 | DI84: 46.4730343 | DJ84: 43.64363858 | DK84: 40.93022131 | DL84: 38.17849132 | DM84: 35.38810375 | DN84: 32.40460784 | DO84: 29.5358592 | DP84: 26.62740132 | DQ84: 23.67887784 | DR84: 20.53567231 | DS84: 17.50593689 | DT84: 14.43504916 | DU84: 11.32264092 | DV84: 8.013929486 | DW84: 4.817363467 | DX84: 1.578154051
B85: Taxes | D85: k€ | F85: -4261.518178 | I85: =-IF(I84<0,0,I84*$F$31) -> -52.5 | J85: =-IF(J84<0,0,J84*$F$31) -> -52.41 | K85: -52.36074 | L85: -52.30717673 | M85: -52.24926656 | N85: -52.14192049 | O85: -52.07518414 | P85: -52.00396775 | Q85: -51.92822621 | R85: -51.80282396 | S85: -51.71789518 | T85: -51.62830356 | U85: -51.53400242 | V85: -51.38980955 | W85: -51.28594778 | X85: -51.17723408 | Y85: -51.06362021 | Z85: -50.89987721 | AA85: -50.77631654 | AB85: -50.64770843 | AC85: -50.51400296 | AD85: -50.32992436 | AE85: -50.18587276 | AF85: -50.03657153 | AG85: -49.88196905 | AH85: -49.67674261 | AI85: -49.51138105 | AJ85: -49.34056078 | AK85: -49.16422843 | AL85: -48.93701423 | AM85: -48.74949581 | AN85: -48.55630248 | AO85: -48.35737906 | AP85: -48.10730865 | AQ85: -47.89675764 | AR85: -47.6803082 | AS85: -47.45790326 | AT85: -47.18407867 | AU85: -46.94958964 | AV85: -46.70897106 | AW85: -46.46216393 | AX85: -46.16365673 | AY85: -45.90429353 | AZ85: -45.63856183 | BA85: -45.36640062 | BB85: -45.04225093 | BC85: -44.7570457 | BD85: -44.46522491 | BE85: -44.16672552 | BF85: -43.81594096 | BG85: -43.50389308 | BH85: -43.18497426 | BI85: -42.8591193 | BJ85: -42.48067395 | BK85: -42.14074899 | BL85: -41.79368906 | BM85: -41.43942678 | BN85: -41.03226008 | BO85: -40.66338868 | BP85: -40.28710938 | BQ85: -39.90335252 | BR85: -39.46636813 | BS85: -39.06744487 | BT85: -38.66083158 | BU85: -38.24645626 | BV85: =-IF(BV84<0,0,BV84*$F$31) -> -37.77852088 | BW85: -37.34840309 | BX85: -36.91030365 | BY85: -36.46414812 | BZ85: -35.96409032 | CA85: -35.50159688 | CB85: -35.03082035 | CC85: -34.5516838 | CD85: -34.01829275 | CE85: -33.52220282 | CF85: -33.01751824 | CG85: -32.50415948 | CH85: -31.93618366 | CI85: -31.40523539 | CJ85: -30.86537045 | CK85: -30.31650665 | CL85: -29.71265253 | CM85: -29.14554174 | CN85: -28.56918144 | CO85: -27.98348671 | CP85: -27.34241738 | CQ85: -26.73779615 | CR85: -26.12358143 | CS85: -25.49968544 | CT85: -24.82001923 | CU85: -24.17649447 | CV85: -23.52302073 | CW85: -22.8595073 | CX85: -22.13981624 | CY85: -21.45594826 | CZ85: -20.76176392 | DA85: -20.05716945 | DB85: -19.29597784 | DC85: -18.5702788 | DD85: -17.83388372 | DE85: -17.08669573 | DF85: -16.28247854 | DG85: -15.51341088 | DH85: -14.73325483 | DI85: -13.94191029 | DJ85: -13.09309157 | DK85: -12.27906639 | DL85: -11.4535474 | DM85: -10.61643113 | DN85: -9.721382351 | DO85: -8.86075776 | DP85: -7.988220395 | DQ85: -7.103663353 | DR85: -6.160701694 | DS85: -5.251781066 | DT85: -4.330514748 | DU85: -3.396792276 | DV85: -2.404178846 | DW85: -1.44520904 | DX85: -0.4734462153
B86: D&A | D86: k€ | F86: 15000 | I86: =-I62 -> 125 | J86: 125 | K86: 125 | L86: 125 | M86: 125 | N86: 125 | O86: 125 | P86: 125 | Q86: 125 | R86: 125 | S86: 125 | T86: 125 | U86: 125 | V86: 125 | W86: 125 | X86: 125 | Y86: 125 | Z86: 125 | AA86: 125 | AB86: 125 | AC86: 125 | AD86: 125 | AE86: 125 | AF86: 125 | AG86: 125 | AH86: 125 | AI86: 125 | AJ86: 125 | AK86: 125 | AL86: 125 | AM86: 125 | AN86: 125 | AO86: 125 | AP86: 125 | AQ86: 125 | AR86: 125 | AS86: 125 | AT86: 125 | AU86: 125 | AV86: 125 | AW86: 125 | AX86: 125 | AY86: 125 | AZ86: 125 | BA86: 125 | BB86: 125 | BC86: 125 | BD86: 125 | BE86: 125 | BF86: 125 | BG86: 125 | BH86: 125 | BI86: 125 | BJ86: 125 | BK86: 125 | BL86: 125 | BM86: 125 | BN86: 125 | BO86: 125 | BP86: 125 | BQ86: 125 | BR86: 125 | BS86: 125 | BT86: 125 | BU86: =-BU62 -> 125 | BV86: 125 | BW86: 125 | BX86: 125 | BY86: 125 | BZ86: 125 | CA86: 125 | CB86: 125 | CC86: 125 | CD86: 125 | CE86: 125 | CF86: 125 | CG86: 125 | CH86: 125 | CI86: 125 | CJ86: 125 | CK86: 125 | CL86: 125 | CM86: 125 | CN86: 125 | CO86: 125 | CP86: 125 | CQ86: 125 | CR86: 125 | CS86: 125 | CT86: 125 | CU86: 125 | CV86: 125 | CW86: 125 | CX86: 125 | CY86: 125 | CZ86: 125 | DA86: 125 | DB86: 125 | DC86: 125 | DD86: 125 | DE86: 125 | DF86: 125 | DG86: 125 | DH86: 125 | DI86: 125 | DJ86: 125 | DK86: 125 | DL86: 125 | DM86: 125 | DN86: 125 | DO86: 125 | DP86: 125 | DQ86: 125 | DR86: 125 | DS86: 125 | DT86: 125 | DU86: 125 | DV86: 125 | DW86: 125 | DX86: 125
B87: Working Capital | D87: k€ | F87: 0 | I87: =$F$29 -> 0 | J87: =$F$29 -> 0 | K87: 0 | L87: 0 | M87: 0 | N87: 0 | O87: 0 | P87: 0 | Q87: 0 | R87: 0 | S87: 0 | T87: 0 | U87: 0 | V87: 0 | W87: 0 | X87: 0 | Y87: 0 | Z87: 0 | AA87: 0 | AB87: 0 | AC87: 0 | AD87: 0 | AE87: 0 | AF87: 0 | AG87: 0 | AH87: 0 | AI87: 0 | AJ87: 0 | AK87: 0 | AL87: 0 | AM87: 0 | AN87: 0 | AO87: 0 | AP87: 0 | AQ87: 0 | AR87: 0 | AS87: 0 | AT87: 0 | AU87: 0 | AV87: 0 | AW87: 0 | AX87: 0 | AY87: 0 | AZ87: 0 | BA87: 0 | BB87: 0 | BC87: 0 | BD87: 0 | BE87: 0 | BF87: 0 | BG87: 0 | BH87: 0 | BI87: 0 | BJ87: 0 | BK87: 0 | BL87: 0 | BM87: 0 | BN87: 0 | BO87: 0 | BP87: 0 | BQ87: 0 | BR87: 0 | BS87: 0 | BT87: 0 | BU87: 0 | BV87: =$F$29 -> 0 | BW87: 0 | BX87: 0 | BY87: 0 | BZ87: 0 | CA87: 0 | CB87: 0 | CC87: 0 | CD87: 0 | CE87: 0 | CF87: 0 | CG87: 0 | CH87: 0 | CI87: 0 | CJ87: 0 | CK87: 0 | CL87: 0 | CM87: 0 | CN87: 0 | CO87: 0 | CP87: 0 | CQ87: 0 | CR87: 0 | CS87: 0 | CT87: 0 | CU87: 0 | CV87: 0 | CW87: 0 | CX87: 0 | CY87: 0 | CZ87: 0 | DA87: 0 | DB87: 0 | DC87: 0 | DD87: 0 | DE87: 0 | DF87: 0 | DG87: 0 | DH87: 0 | DI87: 0 | DJ87: 0 | DK87: 0 | DL87: 0 | DM87: 0 | DN87: 0 | DO87: 0 | DP87: 0 | DQ87: 0 | DR87: 0 | DS87: 0 | DT87: 0 | DU87: 0 | DV87: 0 | DW87: 0 | DX87: 0
B89: FCFF | D89: k€ | F89: =SUM(H89:DX89) -> 9943.542416 | H89: =SUM(H83:H87) -> -15000 | I89: =SUM(I83:I87) -> 247.5 | J89: 247.29 | K89: 247.17506 | L89: 247.050079 | M89: 246.9149553 | N89: 246.6644811 | O89: 246.508763 | P89: 246.3425914 | Q89: 246.1658612 | R89: 245.8732559 | S89: 245.6750888 | T89: 245.4660416 | U89: 245.2460056 | V89: 244.9095556 | W89: 244.6672115 | X89: 244.4135462 | Y89: 244.1484472 | Z89: 243.7663802 | AA89: 243.4780719 | AB89: 243.1779863 | AC89: 242.8660069 | AD89: 242.4364902 | AE89: 242.1003698 | AF89: 241.7520002 | AG89: 241.3912611 | AH89: 240.9123994 | AI89: 240.5265558 | AJ89: 240.1279752 | AK89: 239.716533 | AL89: 239.1863665 | AM89: 238.7488235 | AN89: 238.2980391 | AO89: 237.8338845 | AP89: 237.2503868 | AQ89: 236.7591012 | AR89: 236.2540525 | AS89: 235.7351076 | AT89: 235.0961836 | AU89: 234.5490425 | AV89: 233.9875991 | AW89: 233.4117158 | AX89: 232.715199 | AY89: 232.1100182 | AZ89: 231.4899776 | BA89: 230.8549348 | BB89: 230.0985855 | BC89: 229.4331066 | BD89: 228.7521915 | BE89: 228.0556929 | BF89: 227.2371956 | BG89: 226.5090839 | BH89: 225.7649399 | BI89: 225.0046117 | BJ89: 224.1215726 | BK89: 223.3284143 | BL89: 222.5186078 | BM89: 221.6919958 | BN89: 220.7419402 | BO89: 219.8812402 | BP89: 219.0032552 | BQ89: 218.1078226 | BR89: 217.0881923 | BS89: 216.1573714 | BT89: 215.208607 | BU89: =SUM(BU83:BU87) -> 214.2417313 | BV89: 213.1498821 | BW89: 212.1462739 | BX89: 211.1240418 | BY89: 210.0830123 | BZ89: 208.9162108 | CA89: 207.8370594 | CB89: 206.7385808 | CC89: 205.6205955 | CD89: 204.3760164 | CE89: 203.2184732 | CF89: 202.0408759 | CG89: 200.8430388 | CH89: 199.5177619 | CI89: 198.2788826 | CJ89: 197.0191977 | CK89: 195.7385155 | CL89: 194.3295226 | CM89: 193.0062641 | CN89: 191.6614234 | CO89: 190.2948023 | CP89: 188.7989739 | CQ89: 187.388191 | CR89: 185.9550233 | CS89: 184.499266 | CT89: 182.9133782 | CU89: 181.4118204 | CV89: 179.8870484 | CW89: 178.3388504 | CX89: 176.6595712 | CY89: 175.0638793 | CZ89: 173.4441158 | DA89: 171.8000621 | DB89: 170.0239483 | DC89: 168.3306505 | DD89: 166.6123954 | DE89: 164.8689567 | DF89: 162.9924499 | DG89: 161.1979587 | DH89: 159.3775946 | DI89: 157.531124 | DJ89: 155.550547 | DK89: 153.6511549 | DL89: 151.7249439 | DM89: 149.7716726 | DN89: 147.6832255 | DO89: 145.6751014 | DP89: 143.6391809 | DQ89: 141.5752145 | DR89: 139.3749706 | DS89: 137.2541558 | DT89: 135.1045344 | DU89: 132.9258486 | DV89: 130.6097506 | DW89: 128.3721544 | DX89: 126.1047078
B92: TRI Projet | D92: % | F92: =XIRR(H89:DX89,H80:DX80) -> 0.1318859398
B94: TRI Projet rolling | D94: % | F94: =DX94 -> 0.1318859398 | H94: =IFERROR(IF((XIRR($H$89:H89,$H$80:H80))<0,0,(XIRR($H$89:H89,$H$80:H80))),0) -> 0 | I94: =IFERROR(IF((XIRR($H$89:I89,$H$80:I80))<0,0,(XIRR($H$89:I89,$H$80:I80))),0) -> 0 | J94: =IFERROR(IF((XIRR($H$89:J89,$H$80:J80))<0,0,(XIRR($H$89:J89,$H$80:J80))),0) -> 0 | K94: =IFERROR(IF((XIRR($H$89:K89,$H$80:K80))<0,0,(XIRR($H$89:K89,$H$80:K80))),0) -> 0 | L94: =IFERROR(IF((XIRR($H$89:L89,$H$80:L80))<0,0,(XIRR($H$89:L89,$H$80:L80))),0) -> 0 | M94: =IFERROR(IF((XIRR($H$89:M89,$H$80:M80))<0,0,(XIRR($H$89:M89,$H$80:M80))),0) -> 0 | N94: =IFERROR(IF((XIRR($H$89:N89,$H$80:N80))<0,0,(XIRR($H$89:N89,$H$80:N80))),0) -> 0 | O94: =IFERROR(IF((XIRR($H$89:O89,$H$80:O80))<0,0,(XIRR($H$89:O89,$H$80:O80))),0) -> 0 | P94: =IFERROR(IF((XIRR($H$89:P89,$H$80:P80))<0,0,(XIRR($H$89:P89,$H$80:P80))),0) -> 0 | Q94: =IFERROR(IF((XIRR($H$89:Q89,$H$80:Q80))<0,0,(XIRR($H$89:Q89,$H$80:Q80))),0) -> 0 | R94: =IFERROR(IF((XIRR($H$89:R89,$H$80:R80))<0,0,(XIRR($H$89:R89,$H$80:R80))),0) -> 0 | S94: =IFERROR(IF((XIRR($H$89:S89,$H$80:S80))<0,0,(XIRR($H$89:S89,$H$80:S80))),0) -> 0 | T94: =IFERROR(IF((XIRR($H$89:T89,$H$80:T80))<0,0,(XIRR($H$89:T89,$H$80:T80))),0) -> 0 | U94: =IFERROR(IF((XIRR($H$89:U89,$H$80:U80))<0,0,(XIRR($H$89:U89,$H$80:U80))),0) -> 0 | V94: =IFERROR(IF((XIRR($H$89:V89,$H$80:V80))<0,0,(XIRR($H$89:V89,$H$80:V80))),0) -> 0 | W94: =IFERROR(IF((XIRR($H$89:W89,$H$80:W80))<0,0,(XIRR($H$89:W89,$H$80:W80))),0) -> 0 | X94: =IFERROR(IF((XIRR($H$89:X89,$H$80:X80))<0,0,(XIRR($H$89:X89,$H$80:X80))),0) -> 0 | Y94: =IFERROR(IF((XIRR($H$89:Y89,$H$80:Y80))<0,0,(XIRR($H$89:Y89,$H$80:Y80))),0) -> 0 | Z94: =IFERROR(IF((XIRR($H$89:Z89,$H$80:Z80))<0,0,(XIRR($H$89:Z89,$H$80:Z80))),0) -> 0 | AA94: =IFERROR(IF((XIRR($H$89:AA89,$H$80:AA80))<0,0,(XIRR($H$89:AA89,$H$80:AA80))),0) -> 0 | AB94: =IFERROR(IF((XIRR($H$89:AB89,$H$80:AB80))<0,0,(XIRR($H$89:AB89,$H$80:AB80))),0) -> 0 | AC94: =IFERROR(IF((XIRR($H$89:AC89,$H$80:AC80))<0,0,(XIRR($H$89:AC89,$H$80:AC80))),0) -> 0 | AD94: =IFERROR(IF((XIRR($H$89:AD89,$H$80:AD80))<0,0,(XIRR($H$89:AD89,$H$80:AD80))),0) -> 0 | AE94: =IFERROR(IF((XIRR($H$89:AE89,$H$80:AE80))<0,0,(XIRR($H$89:AE89,$H$80:AE80))),0) -> 0 | AF94: =IFERROR(IF((XIRR($H$89:AF89,$H$80:AF80))<0,0,(XIRR($H$89:AF89,$H$80:AF80))),0) -> 0 | AG94: =IFERROR(IF((XIRR($H$89:AG89,$H$80:AG80))<0,0,(XIRR($H$89:AG89,$H$80:AG80))),0) -> 0 | AH94: =IFERROR(IF((XIRR($H$89:AH89,$H$80:AH80))<0,0,(XIRR($H$89:AH89,$H$80:AH80))),0) -> 0 | AI94: =IFERROR(IF((XIRR($H$89:AI89,$H$80:AI80))<0,0,(XIRR($H$89:AI89,$H$80:AI80))),0) -> 0 | AJ94: =IFERROR(IF((XIRR($H$89:AJ89,$H$80:AJ80))<0,0,(XIRR($H$89:AJ89,$H$80:AJ80))),0) -> 0 | AK94: =IFERROR(IF((XIRR($H$89:AK89,$H$80:AK80))<0,0,(XIRR($H$89:AK89,$H$80:AK80))),0) -> 0 | AL94: =IFERROR(IF((XIRR($H$89:AL89,$H$80:AL80))<0,0,(XIRR($H$89:AL89,$H$80:AL80))),0) -> 0 | AM94: =IFERROR(IF((XIRR($H$89:AM89,$H$80:AM80))<0,0,(XIRR($H$89:AM89,$H$80:AM80))),0) -> 0 | AN94: =IFERROR(IF((XIRR($H$89:AN89,$H$80:AN80))<0,0,(XIRR($H$89:AN89,$H$80:AN80))),0) -> 0 | AO94: =IFERROR(IF((XIRR($H$89:AO89,$H$80:AO80))<0,0,(XIRR($H$89:AO89,$H$80:AO80))),0) -> 0 | AP94: =IFERROR(IF((XIRR($H$89:AP89,$H$80:AP80))<0,0,(XIRR($H$89:AP89,$H$80:AP80))),0) -> 0 | AQ94: =IFERROR(IF((XIRR($H$89:AQ89,$H$80:AQ80))<0,0,(XIRR($H$89:AQ89,$H$80:AQ80))),0) -> 0 | AR94: =IFERROR(IF((XIRR($H$89:AR89,$H$80:AR80))<0,0,(XIRR($H$89:AR89,$H$80:AR80))),0) -> 0 | AS94: =IFERROR(IF((XIRR($H$89:AS89,$H$80:AS80))<0,0,(XIRR($H$89:AS89,$H$80:AS80))),0) -> 0 | AT94: =IFERROR(IF((XIRR($H$89:AT89,$H$80:AT80))<0,0,(XIRR($H$89:AT89,$H$80:AT80))),0) -> 0 | AU94: =IFERROR(IF((XIRR($H$89:AU89,$H$80:AU80))<0,0,(XIRR($H$89:AU89,$H$80:AU80))),0) -> 0 | AV94: =IFERROR(IF((XIRR($H$89:AV89,$H$80:AV80))<0,0,(XIRR($H$89:AV89,$H$80:AV80))),0) -> 0 | AW94: =IFERROR(IF((XIRR($H$89:AW89,$H$80:AW80))<0,0,(XIRR($H$89:AW89,$H$80:AW80))),0) -> 0 | AX94: =IFERROR(IF((XIRR($H$89:AX89,$H$80:AX80))<0,0,(XIRR($H$89:AX89,$H$80:AX80))),0) -> 0 | AY94: =IFERROR(IF((XIRR($H$89:AY89,$H$80:AY80))<0,0,(XIRR($H$89:AY89,$H$80:AY80))),0) -> 0 | AZ94: =IFERROR(IF((XIRR($H$89:AZ89,$H$80:AZ80))<0,0,(XIRR($H$89:AZ89,$H$80:AZ80))),0) -> 0 | BA94: =IFERROR(IF((XIRR($H$89:BA89,$H$80:BA80))<0,0,(XIRR($H$89:BA89,$H$80:BA80))),0) -> 0 | BB94: =IFERROR(IF((XIRR($H$89:BB89,$H$80:BB80))<0,0,(XIRR($H$89:BB89,$H$80:BB80))),0) -> 0 | BC94: =IFERROR(IF((XIRR($H$89:BC89,$H$80:BC80))<0,0,(XIRR($H$89:BC89,$H$80:BC80))),0) -> 0 | BD94: =IFERROR(IF((XIRR($H$89:BD89,$H$80:BD80))<0,0,(XIRR($H$89:BD89,$H$80:BD80))),0) -> 0 | BE94: =IFERROR(IF((XIRR($H$89:BE89,$H$80:BE80))<0,0,(XIRR($H$89:BE89,$H$80:BE80))),0) -> 0 | BF94: =IFERROR(IF((XIRR($H$89:BF89,$H$80:BF80))<0,0,(XIRR($H$89:BF89,$H$80:BF80))),0) -> 0 | BG94: =IFERROR(IF((XIRR($H$89:BG89,$H$80:BG80))<0,0,(XIRR($H$89:BG89,$H$80:BG80))),0) -> 0 | BH94: =IFERROR(IF((XIRR($H$89:BH89,$H$80:BH80))<0,0,(XIRR($H$89:BH89,$H$80:BH80))),0) -> 0 | BI94: =IFERROR(IF((XIRR($H$89:BI89,$H$80:BI80))<0,0,(XIRR($H$89:BI89,$H$80:BI80))),0) -> 0 | BJ94: =IFERROR(IF((XIRR($H$89:BJ89,$H$80:BJ80))<0,0,(XIRR($H$89:BJ89,$H$80:BJ80))),0) -> 0 | BK94: =IFERROR(IF((XIRR($H$89:BK89,$H$80:BK80))<0,0,(XIRR($H$89:BK89,$H$80:BK80))),0) -> 0 | BL94: =IFERROR(IF((XIRR($H$89:BL89,$H$80:BL80))<0,0,(XIRR($H$89:BL89,$H$80:BL80))),0) -> 0 | BM94: =IFERROR(IF((XIRR($H$89:BM89,$H$80:BM80))<0,0,(XIRR($H$89:BM89,$H$80:BM80))),0) -> 0 | BN94: =IFERROR(IF((XIRR($H$89:BN89,$H$80:BN80))<0,0,(XIRR($H$89:BN89,$H$80:BN80))),0) -> 0 | BO94: =IFERROR(IF((XIRR($H$89:BO89,$H$80:BO80))<0,0,(XIRR($H$89:BO89,$H$80:BO80))),0) -> 0 | BP94: =IFERROR(IF((XIRR($H$89:BP89,$H$80:BP80))<0,0,(XIRR($H$89:BP89,$H$80:BP80))),0) -> 0 | BQ94: =IFERROR(IF((XIRR($H$89:BQ89,$H$80:BQ80))<0,0,(XIRR($H$89:BQ89,$H$80:BQ80))),0) -> 0 | BR94: =IFERROR(IF((XIRR($H$89:BR89,$H$80:BR80))<0,0,(XIRR($H$89:BR89,$H$80:BR80))),0) -> 0 | BS94: =IFERROR(IF((XIRR($H$89:BS89,$H$80:BS80))<0,0,(XIRR($H$89:BS89,$H$80:BS80))),0) -> 0 | BT94: =IFERROR(IF((XIRR($H$89:BT89,$H$80:BT80))<0,0,(XIRR($H$89:BT89,$H$80:BT80))),0) -> 0.002194222808 | BU94: =IFERROR(IF((XIRR($H$89:BU89,$H$80:BU80))<0,0,(XIRR($H$89:BU89,$H$80:BU80))),0) -> 0.00745742023 | BV94: =IFERROR(IF((XIRR($H$89:BV89,$H$80:BV80))<0,0,(XIRR($H$89:BV89,$H$80:BV80))),0) -> 0.01252318919 | BW94: =IFERROR(IF((XIRR($H$89:BW89,$H$80:BW80))<0,0,(XIRR($H$89:BW89,$H$80:BW80))),0) -> 0.0174023658 | BX94: =IFERROR(IF((XIRR($H$89:BX89,$H$80:BX80))<0,0,(XIRR($H$89:BX89,$H$80:BX80))),0) -> 0.02210277021 | BY94: =IFERROR(IF((XIRR($H$89:BY89,$H$80:BY80))<0,0,(XIRR($H$89:BY89,$H$80:BY80))),0) -> 0.02663216293 | BZ94: =IFERROR(IF((XIRR($H$89:BZ89,$H$80:BZ80))<0,0,(XIRR($H$89:BZ89,$H$80:BZ80))),0) -> 0.0309951812 | CA94: =IFERROR(IF((XIRR($H$89:CA89,$H$80:CA80))<0,0,(XIRR($H$89:CA89,$H$80:CA80))),0) -> 0.03520128429 | CB94: =IFERROR(IF((XIRR($H$89:CB89,$H$80:CB80))<0,0,(XIRR($H$89:CB89,$H$80:CB80))),0) -> 0.0392565459 | CC94: =IFERROR(IF((XIRR($H$89:CC89,$H$80:CC80))<0,0,(XIRR($H$89:CC89,$H$80:CC80))),0) -> 0.04316705167 | CD94: =IFERROR(IF((XIRR($H$89:CD89,$H$80:CD80))<0,0,(XIRR($H$89:CD89,$H$80:CD80))),0) -> 0.04693807065 | CE94: =IFERROR(IF((XIRR($H$89:CE89,$H$80:CE80))<0,0,(XIRR($H$89:CE89,$H$80:CE80))),0) -> 0.05057590902 | CF94: =IFERROR(IF((XIRR($H$89:CF89,$H$80:CF80))<0,0,(XIRR($H$89:CF89,$H$80:CF80))),0) -> 0.05408630669 | CG94: =IFERROR(IF((XIRR($H$89:CG89,$H$80:CG80))<0,0,(XIRR($H$89:CG89,$H$80:CG80))),0) -> 0.05747379363 | CH94: =IFERROR(IF((XIRR($H$89:CH89,$H$80:CH80))<0,0,(XIRR($H$89:CH89,$H$80:CH80))),0) -> 0.06074194014 | CI94: =IFERROR(IF((XIRR($H$89:CI89,$H$80:CI80))<0,0,(XIRR($H$89:CI89,$H$80:CI80))),0) -> 0.06389661133 | CJ94: =IFERROR(IF((XIRR($H$89:CJ89,$H$80:CJ80))<0,0,(XIRR($H$89:CJ89,$H$80:CJ80))),0) -> 0.06694214046 | CK94: =IFERROR(IF((XIRR($H$89:CK89,$H$80:CK80))<0,0,(XIRR($H$89:CK89,$H$80:CK80))),0) -> 0.06988320649 | CL94: =IFERROR(IF((XIRR($H$89:CL89,$H$80:CL80))<0,0,(XIRR($H$89:CL89,$H$80:CL80))),0) -> 0.07272168696 | CM94: =IFERROR(IF((XIRR($H$89:CM89,$H$80:CM80))<0,0,(XIRR($H$89:CM89,$H$80:CM80))),0) -> 0.07546352446 | CN94: =IFERROR(IF((XIRR($H$89:CN89,$H$80:CN80))<0,0,(XIRR($H$89:CN89,$H$80:CN80))),0) -> 0.07811178863 | CO94: =IFERROR(IF((XIRR($H$89:CO89,$H$80:CO80))<0,0,(XIRR($H$89:CO89,$H$80:CO80))),0) -> 0.08066990674 | CP94: =IFERROR(IF((XIRR($H$89:CP89,$H$80:CP80))<0,0,(XIRR($H$89:CP89,$H$80:CP80))),0) -> 0.08314139545 | CQ94: =IFERROR(IF((XIRR($H$89:CQ89,$H$80:CQ80))<0,0,(XIRR($H$89:CQ89,$H$80:CQ80))),0) -> 0.08552925289 | CR94: =IFERROR(IF((XIRR($H$89:CR89,$H$80:CR80))<0,0,(XIRR($H$89:CR89,$H$80:CR80))),0) -> 0.08783699572 | CS94: =IFERROR(IF((XIRR($H$89:CS89,$H$80:CS80))<0,0,(XIRR($H$89:CS89,$H$80:CS80))),0) -> 0.09006697834 | CT94: =IFERROR(IF((XIRR($H$89:CT89,$H$80:CT80))<0,0,(XIRR($H$89:CT89,$H$80:CT80))),0) -> 0.09222119749 | CU94: =IFERROR(IF((XIRR($H$89:CU89,$H$80:CU80))<0,0,(XIRR($H$89:CU89,$H$80:CU80))),0) -> 0.0943030864 | CV94: =IFERROR(IF((XIRR($H$89:CV89,$H$80:CV80))<0,0,(XIRR($H$89:CV89,$H$80:CV80))),0) -> 0.09631515145 | CW94: =IFERROR(IF((XIRR($H$89:CW89,$H$80:CW80))<0,0,(XIRR($H$89:CW89,$H$80:CW80))),0) -> 0.09826030135 | CX94: =IFERROR(IF((XIRR($H$89:CX89,$H$80:CX80))<0,0,(XIRR($H$89:CX89,$H$80:CX80))),0) -> 0.1001392066 | CY94: =IFERROR(IF((XIRR($H$89:CY89,$H$80:CY80))<0,0,(XIRR($H$89:CY89,$H$80:CY80))),0) -> 0.1019557416 | CZ94: =IFERROR(IF((XIRR($H$89:CZ89,$H$80:CZ80))<0,0,(XIRR($H$89:CZ89,$H$80:CZ80))),0) -> 0.1037115514 | DA94: =IFERROR(IF((XIRR($H$89:DA89,$H$80:DA80))<0,0,(XIRR($H$89:DA89,$H$80:DA80))),0) -> 0.1054086387 | DB94: =IFERROR(IF((XIRR($H$89:DB89,$H$80:DB80))<0,0,(XIRR($H$89:DB89,$H$80:DB80))),0) -> 0.1070488632 | DC94: =IFERROR(IF((XIRR($H$89:DC89,$H$80:DC80))<0,0,(XIRR($H$89:DC89,$H$80:DC80))),0) -> 0.1086342156 | DD94: =IFERROR(IF((XIRR($H$89:DD89,$H$80:DD80))<0,0,(XIRR($H$89:DD89,$H$80:DD80))),0) -> 0.1101669371 | DE94: =IFERROR(IF((XIRR($H$89:DE89,$H$80:DE80))<0,0,(XIRR($H$89:DE89,$H$80:DE80))),0) -> 0.1116482913 | DF94: =IFERROR(IF((XIRR($H$89:DF89,$H$80:DF80))<0,0,(XIRR($H$89:DF89,$H$80:DF80))),0) -> 0.1130794227 | DG94: =IFERROR(IF((XIRR($H$89:DG89,$H$80:DG80))<0,0,(XIRR($H$89:DG89,$H$80:DG80))),0) -> 0.1144624531 | DH94: =IFERROR(IF((XIRR($H$89:DH89,$H$80:DH80))<0,0,(XIRR($H$89:DH89,$H$80:DH80))),0) -> 0.1157988966 | DI94: =IFERROR(IF((XIRR($H$89:DI89,$H$80:DI80))<0,0,(XIRR($H$89:DI89,$H$80:DI80))),0) -> 0.1170906246 | DJ94: =IFERROR(IF((XIRR($H$89:DJ89,$H$80:DJ80))<0,0,(XIRR($H$89:DJ89,$H$80:DJ80))),0) -> 0.1183377683 | DK94: =IFERROR(IF((XIRR($H$89:DK89,$H$80:DK80))<0,0,(XIRR($H$89:DK89,$H$80:DK80))),0) -> 0.1195429385 | DL94: =IFERROR(IF((XIRR($H$89:DL89,$H$80:DL80))<0,0,(XIRR($H$89:DL89,$H$80:DL80))),0) -> 0.1207070649 | DM94: =IFERROR(IF((XIRR($H$89:DM89,$H$80:DM80))<0,0,(XIRR($H$89:DM89,$H$80:DM80))),0) -> 0.1218313754 | DN94: =IFERROR(IF((XIRR($H$89:DN89,$H$80:DN80))<0,0,(XIRR($H$89:DN89,$H$80:DN80))),0) -> 0.1229173243 | DO94: =IFERROR(IF((XIRR($H$89:DO89,$H$80:DO80))<0,0,(XIRR($H$89:DO89,$H$80:DO80))),0) -> 0.1239658058 | DP94: =IFERROR(IF((XIRR($H$89:DP89,$H$80:DP80))<0,0,(XIRR($H$89:DP89,$H$80:DP80))),0) -> 0.1249782622 | DQ94: =IFERROR(IF((XIRR($H$89:DQ89,$H$80:DQ80))<0,0,(XIRR($H$89:DQ89,$H$80:DQ80))),0) -> 0.1259554327 | DR94: =IFERROR(IF((XIRR($H$89:DR89,$H$80:DR80))<0,0,(XIRR($H$89:DR89,$H$80:DR80))),0) -> 0.1268979132 | DS94: =IFERROR(IF((XIRR($H$89:DS89,$H$80:DS80))<0,0,(XIRR($H$89:DS89,$H$80:DS80))),0) -> 0.1278071344 | DT94: =IFERROR(IF((XIRR($H$89:DT89,$H$80:DT80))<0,0,(XIRR($H$89:DT89,$H$80:DT80))),0) -> 0.128684026 | DU94: =IFERROR(IF((XIRR($H$89:DU89,$H$80:DU80))<0,0,(XIRR($H$89:DU89,$H$80:DU80))),0) -> 0.1295298159 | DV94: =IFERROR(IF((XIRR($H$89:DV89,$H$80:DV80))<0,0,(XIRR($H$89:DV89,$H$80:DV80))),0) -> 0.1303443968 | DW94: =IFERROR(IF((XIRR($H$89:DW89,$H$80:DW80))<0,0,(XIRR($H$89:DW89,$H$80:DW80))),0) -> 0.1311295927 | DX94: =IFERROR(IF((XIRR($H$89:DX89,$H$80:DX80))<0,0,(XIRR($H$89:DX89,$H$80:DX80))),0) -> 0.1318859398
B95: Check | D95: VRAI / FAUX | F95: =F94=F92 -> TRUE
B98: WACC | D98: % | F98: =F33 -> 0.08
B100: VAN Projet | D100: k€ | F100: =XNPV(F98,H89:DX89,H80:DX80) -> 2946.541169
B102: VAN Projet rolling | D102: k€ | F102: =DX102 -> 2946.541169 | H102: =XNPV($F$98,$H$89:H89,$H$80:H80) -> -15000 | I102: =XNPV($F$98,$H$89:I89,$H$80:I80) -> -14754.11249 | J102: =XNPV($F$98,$H$89:J89,$H$80:J80) -> -14509.93128 | K102: =XNPV($F$98,$H$89:K89,$H$80:K80) -> -14267.45369 | L102: =XNPV($F$98,$H$89:L89,$H$80:L80) -> -14026.6269 | M102: =XNPV($F$98,$H$89:M89,$H$80:M80) -> -13787.49999 | N102: =XNPV($F$98,$H$89:N89,$H$80:N80) -> -13550.12196 | O102: =XNPV($F$98,$H$89:O89,$H$80:O80) -> -13314.43935 | P102: =XNPV($F$98,$H$89:P89,$H$80:P80) -> -13080.45007 | Q102: =XNPV($F$98,$H$89:Q89,$H$80:Q80) -> -12848.10305 | R102: =XNPV($F$98,$H$89:R89,$H$80:R80) -> -12617.54417 | S102: =XNPV($F$98,$H$89:S89,$H$80:S80) -> -12388.62375 | T102: =XNPV($F$98,$H$89:T89,$H$80:T80) -> -12161.3883 | U102: =XNPV($F$98,$H$89:U89,$H$80:U80) -> -11935.83567 | V102: =XNPV($F$98,$H$89:V89,$H$80:V80) -> -11711.91837 | W102: =XNPV($F$98,$H$89:W89,$H$80:W80) -> -11489.68003 | X102: =XNPV($F$98,$H$89:X89,$H$80:X80) -> -11269.07201 | Y102: =XNPV($F$98,$H$89:Y89,$H$80:Y80) -> -11050.13898 | Z102: =XNPV($F$98,$H$89:Z89,$H$80:Z80) -> -10832.92691 | AA102: =XNPV($F$98,$H$89:AA89,$H$80:AA80) -> -10617.38522 | AB102: =XNPV($F$98,$H$89:AB89,$H$80:AB80) -> -10403.51173 | AC102: =XNPV($F$98,$H$89:AC89,$H$80:AC80) -> -10191.2595 | AD102: =XNPV($F$98,$H$89:AD89,$H$80:AD80) -> -9980.763043 | AE102: =XNPV($F$98,$H$89:AE89,$H$80:AE80) -> -9771.883889 | AF102: =XNPV($F$98,$H$89:AF89,$H$80:AF80) -> -9564.664212 | AG102: =XNPV($F$98,$H$89:AG89,$H$80:AG80) -> -9359.101788 | AH102: =XNPV($F$98,$H$89:AH89,$H$80:AH80) -> -9155.154785 | AI102: =XNPV($F$98,$H$89:AI89,$H$80:AI80) -> -8952.86103 | AJ102: =XNPV($F$98,$H$89:AJ89,$H$80:AJ80) -> -8752.17597 | AK102: =XNPV($F$98,$H$89:AK89,$H$80:AK80) -> -8553.140012 | AL102: =XNPV($F$98,$H$89:AL89,$H$80:AL80) -> -8355.796515 | AM102: =XNPV($F$98,$H$89:AM89,$H$80:AM80) -> -8160.09738 | AN102: =XNPV($F$98,$H$89:AN89,$H$80:AN80) -> -7966.040338 | AO102: =XNPV($F$98,$H$89:AO89,$H$80:AO80) -> -7773.582542 | AP102: =XNPV($F$98,$H$89:AP89,$H$80:AP80) -> -7582.847724 | AQ102: =XNPV($F$98,$H$89:AQ89,$H$80:AQ80) -> -7393.708077 | AR102: =XNPV($F$98,$H$89:AR89,$H$80:AR80) -> -7206.201534 | AS102: =XNPV($F$98,$H$89:AS89,$H$80:AS80) -> -7020.325799 | AT102: =XNPV($F$98,$H$89:AT89,$H$80:AT80) -> -6836.045038 | AU102: =XNPV($F$98,$H$89:AU89,$H$80:AU80) -> -6653.390969 | AV102: =XNPV($F$98,$H$89:AV89,$H$80:AV80) -> -6472.323108 | AW102: =XNPV($F$98,$H$89:AW89,$H$80:AW80) -> -6292.877658 | AX102: =XNPV($F$98,$H$89:AX89,$H$80:AX80) -> -6115.095821 | AY102: =XNPV($F$98,$H$89:AY89,$H$80:AY80) -> -5938.931563 | AZ102: =XNPV($F$98,$H$89:AZ89,$H$80:AZ80) -> -5764.382559 | BA102: =XNPV($F$98,$H$89:BA89,$H$80:BA80) -> -5591.41001 | BB102: =XNPV($F$98,$H$89:BB89,$H$80:BB80) -> -5420.127411 | BC102: =XNPV($F$98,$H$89:BC89,$H$80:BC80) -> -5250.417103 | BD102: =XNPV($F$98,$H$89:BD89,$H$80:BD80) -> -5082.312863 | BE102: =XNPV($F$98,$H$89:BE89,$H$80:BE80) -> -4915.812343 | BF102: =XNPV($F$98,$H$89:BF89,$H$80:BF80) -> -4750.920751 | BG102: =XNPV($F$98,$H$89:BG89,$H$80:BG80) -> -4587.628346 | BH102: =XNPV($F$98,$H$89:BH89,$H$80:BH80) -> -4425.898676 | BI102: =XNPV($F$98,$H$89:BI89,$H$80:BI80) -> -4265.763813 | BJ102: =XNPV($F$98,$H$89:BJ89,$H$80:BJ80) -> -4107.26319 | BK102: =XNPV($F$98,$H$89:BK89,$H$80:BK80) -> -3950.352487 | BL102: =XNPV($F$98,$H$89:BL89,$H$80:BL80) -> -3795.029337 | BM102: =XNPV($F$98,$H$89:BM89,$H$80:BM80) -> -3641.25895 | BN102: =XNPV($F$98,$H$89:BN89,$H$80:BN80) -> -3489.145077 | BO102: =XNPV($F$98,$H$89:BO89,$H$80:BO80) -> -3338.579745 | BP102: =XNPV($F$98,$H$89:BP89,$H$80:BP80) -> -3189.592651 | BQ102: =XNPV($F$98,$H$89:BQ89,$H$80:BQ80) -> -3042.181414 | BR102: =XNPV($F$98,$H$89:BR89,$H$80:BR80) -> -2896.322983 | BS102: =XNPV($F$98,$H$89:BS89,$H$80:BS80) -> -2752.036166 | BT102: =XNPV($F$98,$H$89:BT89,$H$80:BT80) -> -2609.288478 | BU102: =XNPV($F$98,$H$89:BU89,$H$80:BU80) -> -2468.107955 | BV102: =XNPV($F$98,$H$89:BV89,$H$80:BV80) -> -2328.532627 | BW102: =XNPV($F$98,$H$89:BW89,$H$80:BW80) -> -2190.519551 | BX102: =XNPV($F$98,$H$89:BX89,$H$80:BX80) -> -2054.06633 | BY102: =XNPV($F$98,$H$89:BY89,$H$80:BY80) -> -1919.142122 | BZ102: =XNPV($F$98,$H$89:BZ89,$H$80:BZ80) -> -1785.841446 | CA102: =XNPV($F$98,$H$89:CA89,$H$80:CA80) -> -1654.065531 | CB102: =XNPV($F$98,$H$89:CB89,$H$80:CB80) -> -1523.840085 | CC102: =XNPV($F$98,$H$89:CC89,$H$80:CC80) -> -1395.162706 | CD102: =XNPV($F$98,$H$89:CD89,$H$80:CD80) -> -1268.017055 | CE102: =XNPV($F$98,$H$89:CE89,$H$80:CE80) -> -1142.415206 | CF102: =XNPV($F$98,$H$89:CF89,$H$80:CF80) -> -1018.328592 | CG102: =XNPV($F$98,$H$89:CG89,$H$80:CG80) -> -895.7812925 | CH102: =XNPV($F$98,$H$89:CH89,$H$80:CH80) -> -774.8102654 | CI102: =XNPV($F$98,$H$89:CI89,$H$80:CI80) -> -655.3736367 | CJ102: =XNPV($F$98,$H$89:CJ89,$H$80:CJ80) -> -537.4689986 | CK102: =XNPV($F$98,$H$89:CK89,$H$80:CK80) -> -421.0694018 | CL102: =XNPV($F$98,$H$89:CL89,$H$80:CL80) -> -306.2605855 | CM102: =XNPV($F$98,$H$89:CM89,$H$80:CM80) -> -192.9525521 | CN102: =XNPV($F$98,$H$89:CN89,$H$80:CN80) -> -81.16710276 | CO102: =XNPV($F$98,$H$89:CO89,$H$80:CO80) -> 29.098172 | CP102: =XNPV($F$98,$H$89:CP89,$H$80:CP80) -> 137.8527264 | CQ102: =XNPV($F$98,$H$89:CQ89,$H$80:CQ80) -> 245.0913701 | CR102: =XNPV($F$98,$H$89:CR89,$H$80:CR80) -> 350.8388072 | CS102: =XNPV($F$98,$H$89:CS89,$H$80:CS80) -> 455.0748339 | CT102: =XNPV($F$98,$H$89:CT89,$H$80:CT80) -> 557.763265 | CU102: =XNPV($F$98,$H$89:CU89,$H$80:CU80) -> 658.9451811 | CV102: =XNPV($F$98,$H$89:CV89,$H$80:CV80) -> 758.6229902 | CW102: =XNPV($F$98,$H$89:CW89,$H$80:CW80) -> 856.8198032 | CX102: =XNPV($F$98,$H$89:CX89,$H$80:CX80) -> 953.4582346 | CY102: =XNPV($F$98,$H$89:CY89,$H$80:CY80) -> 1048.619912 | CZ102: =XNPV($F$98,$H$89:CZ89,$H$80:CZ80) -> 1142.286863 | DA102: =XNPV($F$98,$H$89:DA89,$H$80:DA80) -> 1234.461492 | DB102: =XNPV($F$98,$H$89:DB89,$H$80:DB80) -> 1325.127103 | DC102: =XNPV($F$98,$H$89:DC89,$H$80:DC80) -> 1414.304947 | DD102: =XNPV($F$98,$H$89:DD89,$H$80:DD80) -> 1502.015918 | DE102: =XNPV($F$98,$H$89:DE89,$H$80:DE80) -> 1588.243611 | DF102: =XNPV($F$98,$H$89:DF89,$H$80:DF80) -> 1672.952349 | DG102: =XNPV($F$98,$H$89:DG89,$H$80:DG80) -> 1756.182662 | DH102: =XNPV($F$98,$H$89:DH89,$H$80:DH80) -> 1837.936947 | DI102: =XNPV($F$98,$H$89:DI89,$H$80:DI80) -> 1918.234531 | DJ102: =XNPV($F$98,$H$89:DJ89,$H$80:DJ80) -> 1997.005994 | DK102: =XNPV($F$98,$H$89:DK89,$H$80:DK80) -> 2074.324961 | DL102: =XNPV($F$98,$H$89:DL89,$H$80:DL80) -> 2150.177212 | DM102: =XNPV($F$98,$H$89:DM89,$H$80:DM80) -> 2224.565135 | DN102: =XNPV($F$98,$H$89:DN89,$H$80:DN80) -> 2297.484002 | DO102: =XNPV($F$98,$H$89:DO89,$H$80:DO80) -> 2368.94274 | DP102: =XNPV($F$98,$H$89:DP89,$H$80:DP80) -> 2438.958494 | DQ102: =XNPV($F$98,$H$89:DQ89,$H$80:DQ80) -> 2507.51858 | DR102: =XNPV($F$98,$H$89:DR89,$H$80:DR80) -> 2574.587568 | DS102: =XNPV($F$98,$H$89:DS89,$H$80:DS80) -> 2640.205681 | DT102: =XNPV($F$98,$H$89:DT89,$H$80:DT80) -> 2704.375295 | DU102: =XNPV($F$98,$H$89:DU89,$H$80:DU80) -> 2767.112012 | DV102: =XNPV($F$98,$H$89:DV89,$H$80:DV80) -> 2828.353992 | DW102: =XNPV($F$98,$H$89:DW89,$H$80:DW80) -> 2888.167226 | DX102: =XNPV($F$98,$H$89:DX89,$H$80:DX80) -> 2946.541169
B103: Check | D103: VRAI / FAUX | F103: =F100=F102 -> TRUE
B105: Discounted Project Payback flag | D105: 1 ou 0 | H105: =IF(H102<0,0,1) -> 0 | I105: =IF(I102<0,0,1) -> 0 | J105: 0 | K105: 0 | L105: 0 | M105: 0 | N105: 0 | O105: 0 | P105: 0 | Q105: 0 | R105: 0 | S105: 0 | T105: 0 | U105: 0 | V105: 0 | W105: 0 | X105: 0 | Y105: 0 | Z105: 0 | AA105: 0 | AB105: 0 | AC105: 0 | AD105: 0 | AE105: 0 | AF105: 0 | AG105: 0 | AH105: 0 | AI105: 0 | AJ105: 0 | AK105: 0 | AL105: 0 | AM105: 0 | AN105: 0 | AO105: 0 | AP105: 0 | AQ105: 0 | AR105: 0 | AS105: 0 | AT105: 0 | AU105: 0 | AV105: 0 | AW105: 0 | AX105: 0 | AY105: 0 | AZ105: 0 | BA105: 0 | BB105: 0 | BC105: 0 | BD105: 0 | BE105: 0 | BF105: 0 | BG105: 0 | BH105: 0 | BI105: 0 | BJ105: 0 | BK105: 0 | BL105: 0 | BM105: 0 | BN105: 0 | BO105: 0 | BP105: 0 | BQ105: 0 | BR105: 0 | BS105: 0 | BT105: 0 | BU105: =IF(BU102<0,0,1) -> 0 | BV105: 0 | BW105: 0 | BX105: 0 | BY105: 0 | BZ105: 0 | CA105: 0 | CB105: 0 | CC105: 0 | CD105: 0 | CE105: 0 | CF105: 0 | CG105: 0 | CH105: 0 | CI105: 0 | CJ105: 0 | CK105: 0 | CL105: 0 | CM105: 0 | CN105: 0 | CO105: 1 | CP105: 1 | CQ105: 1 | CR105: 1 | CS105: 1 | CT105: 1 | CU105: 1 | CV105: 1 | CW105: 1 | CX105: 1 | CY105: 1 | CZ105: 1 | DA105: 1 | DB105: 1 | DC105: 1 | DD105: 1 | DE105: 1 | DF105: 1 | DG105: 1 | DH105: 1 | DI105: 1 | DJ105: 1 | DK105: 1 | DL105: 1 | DM105: 1 | DN105: 1 | DO105: 1 | DP105: 1 | DQ105: 1 | DR105: 1 | DS105: 1 | DT105: 1 | DU105: 1 | DV105: 1 | DW105: 1 | DX105: 1
B106: Discounted Project Payback date | D106: 1 ou 0 | H106: =IF(AND(G105=0,H105=1,I105=1),1,0) -> 0 | I106: =IF(AND(H105=0,I105=1,J105=1),1,0) -> 0 | J106: 0 | K106: 0 | L106: 0 | M106: 0 | N106: 0 | O106: 0 | P106: 0 | Q106: 0 | R106: 0 | S106: 0 | T106: 0 | U106: 0 | V106: 0 | W106: 0 | X106: 0 | Y106: 0 | Z106: 0 | AA106: 0 | AB106: 0 | AC106: 0 | AD106: 0 | AE106: 0 | AF106: 0 | AG106: 0 | AH106: 0 | AI106: 0 | AJ106: 0 | AK106: 0 | AL106: 0 | AM106: 0 | AN106: 0 | AO106: 0 | AP106: 0 | AQ106: 0 | AR106: 0 | AS106: 0 | AT106: 0 | AU106: 0 | AV106: 0 | AW106: 0 | AX106: 0 | AY106: 0 | AZ106: 0 | BA106: 0 | BB106: 0 | BC106: 0 | BD106: 0 | BE106: 0 | BF106: 0 | BG106: 0 | BH106: 0 | BI106: 0 | BJ106: 0 | BK106: 0 | BL106: 0 | BM106: 0 | BN106: 0 | BO106: 0 | BP106: 0 | BQ106: 0 | BR106: 0 | BS106: 0 | BT106: 0 | BU106: =IF(AND(BT105=0,BU105=1,BV105=1),1,0) -> 0 | BV106: 0 | BW106: 0 | BX106: 0 | BY106: 0 | BZ106: 0 | CA106: 0 | CB106: 0 | CC106: 0 | CD106: 0 | CE106: 0 | CF106: 0 | CG106: 0 | CH106: 0 | CI106: 0 | CJ106: 0 | CK106: 0 | CL106: 0 | CM106: 0 | CN106: 0 | CO106: 1 | CP106: 0 | CQ106: 0 | CR106: 0 | CS106: 0 | CT106: 0 | CU106: 0 | CV106: 0 | CW106: 0 | CX106: 0 | CY106: 0 | CZ106: 0 | DA106: 0 | DB106: 0 | DC106: 0 | DD106: 0 | DE106: 0 | DF106: 0 | DG106: 0 | DH106: 0 | DI106: 0 | DJ106: 0 | DK106: 0 | DL106: 0 | DM106: 0 | DN106: 0 | DO106: 0 | DP106: 0 | DQ106: 0 | DR106: 0 | DS106: 0 | DT106: 0 | DU106: 0 | DV106: 0 | DW106: 0 | DX106: 0
B108: Discounted Project Payback | D108: date | F108: =SUMPRODUCT(H106:DX106,H80:DX80) -> 2027-01-31
B109: Discounted Project Payback Period | D109: nombre d'années | F109: =(F108-H80)/360 -> 7.188888889
B112: c- Graphiques
B115: 1- Courbe de TRI
B117: Début de période | D117: date | H117: =H79 -> 2019-12-01 | I117: =I79 -> 2020-01-01 | J117: 2020-02-01 | K117: 2020-03-01 | L117: 2020-04-01 | M117: 2020-05-01 | N117: 2020-06-01 | O117: 2020-07-01 | P117: 2020-08-01 | Q117: 2020-09-01 | R117: 2020-10-01 | S117: 2020-11-01 | T117: 2020-12-01 | U117: 2021-01-01 | V117: 2021-02-01 | W117: 2021-03-01 | X117: 2021-04-01 | Y117: 2021-05-01 | Z117: 2021-06-01 | AA117: 2021-07-01 | AB117: 2021-08-01 | AC117: 2021-09-01 | AD117: 2021-10-01 | AE117: 2021-11-01 | AF117: 2021-12-01 | AG117: 2022-01-01 | AH117: 2022-02-01 | AI117: 2022-03-01 | AJ117: 2022-04-01 | AK117: 2022-05-01 | AL117: 2022-06-01 | AM117: 2022-07-01 | AN117: 2022-08-01 | AO117: 2022-09-01 | AP117: 2022-10-01 | AQ117: 2022-11-01 | AR117: 2022-12-01 | AS117: 2023-01-01 | AT117: 2023-02-01 | AU117: 2023-03-01 | AV117: 2023-04-01 | AW117: 2023-05-01 | AX117: 2023-06-01 | AY117: 2023-07-01 | AZ117: 2023-08-01 | BA117: 2023-09-01 | BB117: 2023-10-01 | BC117: 2023-11-01 | BD117: 2023-12-01 | BE117: 2024-01-01 | BF117: 2024-02-01 | BG117: 2024-03-01 | BH117: 2024-04-01 | BI117: 2024-05-01 | BJ117: 2024-06-01 | BK117: 2024-07-01 | BL117: 2024-08-01 | BM117: 2024-09-01 | BN117: 2024-10-01 | BO117: 2024-11-01 | BP117: 2024-12-01 | BQ117: 2025-01-01 | BR117: 2025-02-01 | BS117: 2025-03-01 | BT117: 2025-04-01 | BU117: =BU79 -> 2025-05-01 | BV117: 2025-06-01 | BW117: 2025-07-01 | BX117: 2025-08-01 | BY117: 2025-09-01 | BZ117: 2025-10-01 | CA117: 2025-11-01 | CB117: 2025-12-01 | CC117: 2026-01-01 | CD117: 2026-02-01 | CE117: 2026-03-01 | CF117: 2026-04-01 | CG117: 2026-05-01 | CH117: 2026-06-01 | CI117: 2026-07-01 | CJ117: 2026-08-01 | CK117: 2026-09-01 | CL117: 2026-10-01 | CM117: 2026-11-01 | CN117: 2026-12-01 | CO117: 2027-01-01 | CP117: 2027-02-01 | CQ117: 2027-03-01 | CR117: 2027-04-01 | CS117: 2027-05-01 | CT117: 2027-06-01 | CU117: 2027-07-01 | CV117: 2027-08-01 | CW117: 2027-09-01 | CX117: 2027-10-01 | CY117: 2027-11-01 | CZ117: 2027-12-01 | DA117: 2028-01-01 | DB117: 2028-02-01 | DC117: 2028-03-01 | DD117: 2028-04-01 | DE117: 2028-05-01 | DF117: 2028-06-01 | DG117: 2028-07-01 | DH117: 2028-08-01 | DI117: 2028-09-01 | DJ117: 2028-10-01 | DK117: 2028-11-01 | DL117: 2028-12-01 | DM117: 2029-01-01 | DN117: 2029-02-01 | DO117: 2029-03-01 | DP117: 2029-04-01 | DQ117: 2029-05-01 | DR117: 2029-06-01 | DS117: 2029-07-01 | DT117: 2029-08-01 | DU117: 2029-09-01 | DV117: 2029-10-01 | DW117: 2029-11-01 | DX117: 2029-12-01
B118: Fin de période | D118: date | H118: =H80 -> 2019-12-31 | I118: 2020-01-31 | J118: 2020-02-29 | K118: 2020-03-31 | L118: 2020-04-30 | M118: 2020-05-31 | N118: 2020-06-30 | O118: 2020-07-31 | P118: 2020-08-31 | Q118: 2020-09-30 | R118: 2020-10-31 | S118: 2020-11-30 | T118: 2020-12-31 | U118: 2021-01-31 | V118: 2021-02-28 | W118: 2021-03-31 | X118: 2021-04-30 | Y118: 2021-05-31 | Z118: 2021-06-30 | AA118: 2021-07-31 | AB118: 2021-08-31 | AC118: 2021-09-30 | AD118: 2021-10-31 | AE118: 2021-11-30 | AF118: 2021-12-31 | AG118: 2022-01-31 | AH118: 2022-02-28 | AI118: 2022-03-31 | AJ118: 2022-04-30 | AK118: 2022-05-31 | AL118: 2022-06-30 | AM118: 2022-07-31 | AN118: 2022-08-31 | AO118: 2022-09-30 | AP118: 2022-10-31 | AQ118: 2022-11-30 | AR118: 2022-12-31 | AS118: 2023-01-31 | AT118: 2023-02-28 | AU118: 2023-03-31 | AV118: 2023-04-30 | AW118: 2023-05-31 | AX118: 2023-06-30 | AY118: 2023-07-31 | AZ118: 2023-08-31 | BA118: 2023-09-30 | BB118: 2023-10-31 | BC118: 2023-11-30 | BD118: 2023-12-31 | BE118: 2024-01-31 | BF118: 2024-02-29 | BG118: 2024-03-31 | BH118: 2024-04-30 | BI118: 2024-05-31 | BJ118: 2024-06-30 | BK118: 2024-07-31 | BL118: 2024-08-31 | BM118: 2024-09-30 | BN118: 2024-10-31 | BO118: 2024-11-30 | BP118: 2024-12-31 | BQ118: 2025-01-31 | BR118: 2025-02-28 | BS118: 2025-03-31 | BT118: 2025-04-30 | BU118: 2025-05-31 | BV118: 2025-06-30 | BW118: 2025-07-31 | BX118: 2025-08-31 | BY118: 2025-09-30 | BZ118: 2025-10-31 | CA118: 2025-11-30 | CB118: 2025-12-31 | CC118: 2026-01-31 | CD118: 2026-02-28 | CE118: 2026-03-31 | CF118: 2026-04-30 | CG118: 2026-05-31 | CH118: 2026-06-30 | CI118: 2026-07-31 | CJ118: 2026-08-31 | CK118: 2026-09-30 | CL118: 2026-10-31 | CM118: 2026-11-30 | CN118: 2026-12-31 | CO118: 2027-01-31 | CP118: 2027-02-28 | CQ118: 2027-03-31 | CR118: 2027-04-30 | CS118: 2027-05-31 | CT118: 2027-06-30 | CU118: 2027-07-31 | CV118: 2027-08-31 | CW118: 2027-09-30 | CX118: 2027-10-31 | CY118: 2027-11-30 | CZ118: 2027-12-31 | DA118: 2028-01-31 | DB118: 2028-02-29 | DC118: 2028-03-31 | DD118: 2028-04-30 | DE118: 2028-05-31 | DF118: 2028-06-30 | DG118: 2028-07-31 | DH118: 2028-08-31 | DI118: 2028-09-30 | DJ118: 2028-10-31 | DK118: 2028-11-30 | DL118: 2028-12-31 | DM118: 2029-01-31 | DN118: 2029-02-28 | DO118: 2029-03-31 | DP118: 2029-04-30 | DQ118: 2029-05-31 | DR118: 2029-06-30 | DS118: 2029-07-31 | DT118: 2029-08-31 | DU118: 2029-09-30 | DV118: 2029-10-31 | DW118: 2029-11-30 | DX118: 2029-12-31
B119: Année | D119: nombre | H119: =H81 -> 2019 | I119: 2020 | J119: 2020 | K119: 2020 | L119: 2020 | M119: 2020 | N119: 2020 | O119: 2020 | P119: 2020 | Q119: 2020 | R119: 2020 | S119: 2020 | T119: 2020 | U119: 2021 | V119: 2021 | W119: 2021 | X119: 2021 | Y119: 2021 | Z119: 2021 | AA119: 2021 | AB119: 2021 | AC119: 2021 | AD119: 2021 | AE119: 2021 | AF119: 2021 | AG119: 2022 | AH119: 2022 | AI119: 2022 | AJ119: 2022 | AK119: 2022 | AL119: 2022 | AM119: 2022 | AN119: 2022 | AO119: 2022 | AP119: 2022 | AQ119: 2022 | AR119: 2022 | AS119: 2023 | AT119: 2023 | AU119: 2023 | AV119: 2023 | AW119: 2023 | AX119: 2023 | AY119: 2023 | AZ119: 2023 | BA119: 2023 | BB119: 2023 | BC119: 2023 | BD119: 2023 | BE119: 2024 | BF119: 2024 | BG119: 2024 | BH119: 2024 | BI119: 2024 | BJ119: 2024 | BK119: 2024 | BL119: 2024 | BM119: 2024 | BN119: 2024 | BO119: 2024 | BP119: 2024 | BQ119: 2025 | BR119: 2025 | BS119: 2025 | BT119: 2025 | BU119: 2025 | BV119: 2025 | BW119: 2025 | BX119: 2025 | BY119: 2025 | BZ119: 2025 | CA119: 2025 | CB119: 2025 | CC119: 2026 | CD119: 2026 | CE119: 2026 | CF119: 2026 | CG119: 2026 | CH119: 2026 | CI119: 2026 | CJ119: 2026 | CK119: 2026 | CL119: 2026 | CM119: 2026 | CN119: 2026 | CO119: 2027 | CP119: 2027 | CQ119: 2027 | CR119: 2027 | CS119: 2027 | CT119: 2027 | CU119: 2027 | CV119: 2027 | CW119: 2027 | CX119: 2027 | CY119: 2027 | CZ119: 2027 | DA119: 2028 | DB119: 2028 | DC119: 2028 | DD119: 2028 | DE119: 2028 | DF119: 2028 | DG119: 2028 | DH119: 2028 | DI119: 2028 | DJ119: 2028 | DK119: 2028 | DL119: 2028 | DM119: 2029 | DN119: 2029 | DO119: 2029 | DP119: 2029 | DQ119: 2029 | DR119: 2029 | DS119: 2029 | DT119: 2029 | DU119: 2029 | DV119: 2029 | DW119: 2029 | DX119: 2029
B121: TRI Projet rolling | D121: % | F121: =MAX(H121:DX121) -> 0.1318859398 | H121: =H94 -> 0 | I121: =I94 -> 0 | J121: 0 | K121: 0 | L121: 0 | M121: 0 | N121: 0 | O121: 0 | P121: 0 | Q121: 0 | R121: 0 | S121: 0 | T121: 0 | U121: 0 | V121: 0 | W121: 0 | X121: 0 | Y121: 0 | Z121: 0 | AA121: 0 | AB121: 0 | AC121: 0 | AD121: 0 | AE121: 0 | AF121: 0 | AG121: 0 | AH121: 0 | AI121: 0 | AJ121: 0 | AK121: 0 | AL121: 0 | AM121: 0 | AN121: 0 | AO121: 0 | AP121: 0 | AQ121: 0 | AR121: 0 | AS121: 0 | AT121: 0 | AU121: 0 | AV121: 0 | AW121: 0 | AX121: 0 | AY121: 0 | AZ121: 0 | BA121: 0 | BB121: 0 | BC121: 0 | BD121: 0 | BE121: 0 | BF121: 0 | BG121: 0 | BH121: 0 | BI121: 0 | BJ121: 0 | BK121: 0 | BL121: 0 | BM121: 0 | BN121: 0 | BO121: 0 | BP121: 0 | BQ121: 0 | BR121: 0 | BS121: 0 | BT121: 0.002194222808 | BU121: =BU94 -> 0.00745742023 | BV121: 0.01252318919 | BW121: 0.0174023658 | BX121: 0.02210277021 | BY121: 0.02663216293 | BZ121: 0.0309951812 | CA121: 0.03520128429 | CB121: 0.0392565459 | CC121: 0.04316705167 | CD121: 0.04693807065 | CE121: 0.05057590902 | CF121: 0.05408630669 | CG121: 0.05747379363 | CH121: 0.06074194014 | CI121: 0.06389661133 | CJ121: 0.06694214046 | CK121: 0.06988320649 | CL121: 0.07272168696 | CM121: 0.07546352446 | CN121: 0.07811178863 | CO121: 0.08066990674 | CP121: 0.08314139545 | CQ121: 0.08552925289 | CR121: 0.08783699572 | CS121: 0.09006697834 | CT121: 0.09222119749 | CU121: 0.0943030864 | CV121: 0.09631515145 | CW121: 0.09826030135 | CX121: 0.1001392066 | CY121: 0.1019557416 | CZ121: 0.1037115514 | DA121: 0.1054086387 | DB121: 0.1070488632 | DC121: 0.1086342156 | DD121: 0.1101669371 | DE121: 0.1116482913 | DF121: 0.1130794227 | DG121: 0.1144624531 | DH121: 0.1157988966 | DI121: 0.1170906246 | DJ121: 0.1183377683 | DK121: 0.1195429385 | DL121: 0.1207070649 | DM121: 0.1218313754 | DN121: 0.1229173243 | DO121: 0.1239658058 | DP121: 0.1249782622 | DQ121: 0.1259554327 | DR121: 0.1268979132 | DS121: 0.1278071344 | DT121: 0.128684026 | DU121: 0.1295298159 | DV121: 0.1303443968 | DW121: 0.1311295927 | DX121: 0.1318859398
B123: WACC (payback periode) | D123: % | F123: =$F$33 -> 0.08 | H123: =$F$123 -> 0.08 | I123: =$F$123 -> 0.08 | J123: 0.08 | K123: 0.08 | L123: 0.08 | M123: 0.08 | N123: 0.08 | O123: 0.08 | P123: 0.08 | Q123: 0.08 | R123: 0.08 | S123: 0.08 | T123: 0.08 | U123: 0.08 | V123: 0.08 | W123: 0.08 | X123: 0.08 | Y123: 0.08 | Z123: 0.08 | AA123: 0.08 | AB123: 0.08 | AC123: 0.08 | AD123: 0.08 | AE123: 0.08 | AF123: 0.08 | AG123: 0.08 | AH123: 0.08 | AI123: 0.08 | AJ123: 0.08 | AK123: 0.08 | AL123: 0.08 | AM123: 0.08 | AN123: 0.08 | AO123: 0.08 | AP123: 0.08 | AQ123: 0.08 | AR123: 0.08 | AS123: 0.08 | AT123: 0.08 | AU123: 0.08 | AV123: 0.08 | AW123: 0.08 | AX123: 0.08 | AY123: 0.08 | AZ123: 0.08 | BA123: 0.08 | BB123: 0.08 | BC123: 0.08 | BD123: 0.08 | BE123: 0.08 | BF123: 0.08 | BG123: 0.08 | BH123: 0.08 | BI123: 0.08 | BJ123: 0.08 | BK123: 0.08 | BL123: 0.08 | BM123: 0.08 | BN123: 0.08 | BO123: 0.08 | BP123: 0.08 | BQ123: 0.08 | BR123: 0.08 | BS123: 0.08 | BT123: 0.08 | BU123: =$F$123 -> 0.08 | BV123: 0.08 | BW123: 0.08 | BX123: 0.08 | BY123: 0.08 | BZ123: 0.08 | CA123: 0.08 | CB123: 0.08 | CC123: 0.08 | CD123: 0.08 | CE123: 0.08 | CF123: 0.08 | CG123: 0.08 | CH123: 0.08 | CI123: 0.08 | CJ123: 0.08 | CK123: 0.08 | CL123: 0.08 | CM123: 0.08 | CN123: 0.08 | CO123: 0.08
B124: WACC (payback date) | D124: % | F124: =$F$33 -> 0.08 | CO124: 0.08
B125: TRE | D125: % | F125: =$F$34 -> 0.09 | H125: =$F$34 -> 0.09 | I125: =$F$34 -> 0.09 | J125: 0.09 | K125: 0.09 | L125: 0.09 | M125: 0.09 | N125: 0.09 | O125: 0.09 | P125: 0.09 | Q125: 0.09 | R125: 0.09 | S125: 0.09 | T125: 0.09 | U125: 0.09 | V125: 0.09 | W125: 0.09 | X125: 0.09 | Y125: 0.09 | Z125: 0.09 | AA125: 0.09 | AB125: 0.09 | AC125: 0.09 | AD125: 0.09 | AE125: 0.09 | AF125: 0.09 | AG125: 0.09 | AH125: 0.09 | AI125: 0.09 | AJ125: 0.09 | AK125: 0.09 | AL125: 0.09 | AM125: 0.09 | AN125: 0.09 | AO125: 0.09 | AP125: 0.09 | AQ125: 0.09 | AR125: 0.09 | AS125: 0.09 | AT125: 0.09 | AU125: 0.09 | AV125: 0.09 | AW125: 0.09 | AX125: 0.09 | AY125: 0.09 | AZ125: 0.09 | BA125: 0.09 | BB125: 0.09 | BC125: 0.09 | BD125: 0.09 | BE125: 0.09 | BF125: 0.09 | BG125: 0.09 | BH125: 0.09 | BI125: 0.09 | BJ125: 0.09 | BK125: 0.09 | BL125: 0.09 | BM125: 0.09 | BN125: 0.09 | BO125: 0.09 | BP125: 0.09 | BQ125: 0.09 | BR125: 0.09 | BS125: 0.09 | BT125: 0.09 | BU125: =$F$34 -> 0.09 | BV125: 0.09 | BW125: 0.09 | BX125: 0.09 | BY125: 0.09 | BZ125: 0.09 | CA125: 0.09 | CB125: 0.09 | CC125: 0.09 | CD125: 0.09 | CE125: 0.09 | CF125: 0.09 | CG125: 0.09 | CH125: 0.09 | CI125: 0.09 | CJ125: 0.09 | CK125: 0.09 | CL125: 0.09 | CM125: 0.09 | CN125: 0.09 | CO125: 0.09 | CP125: 0.09 | CQ125: 0.09 | CR125: 0.09 | CS125: 0.09 | CT125: 0.09 | CU125: 0.09 | CV125: 0.09 | CW125: 0.09 | CX125: 0.09 | CY125: 0.09 | CZ125: 0.09 | DA125: 0.09 | DB125: 0.09 | DC125: 0.09 | DD125: 0.09 | DE125: 0.09 | DF125: 0.09 | DG125: 0.09 | DH125: 0.09 | DI125: 0.09 | DJ125: 0.09 | DK125: 0.09 | DL125: 0.09 | DM125: 0.09 | DN125: 0.09 | DO125: 0.09 | DP125: 0.09 | DQ125: 0.09 | DR125: 0.09 | DS125: 0.09 | DT125: 0.09 | DU125: 0.09 | DV125: 0.09 | DW125: 0.09 | DX125: 0.09
B153: 2- Courbe de VAN
B155: Début de période | D155: date | H155: =H117 -> 2019-12-01 | I155: =EDATE(H155,12) -> 2020-12-01 | J155: =EDATE(I155,12) -> 2021-12-01 | K155: 2022-12-01 | L155: 2023-12-01 | M155: 2024-12-01 | N155: 2025-12-01 | O155: 2026-12-01 | P155: 2027-12-01 | Q155: 2028-12-01 | R155: 2029-12-01
B156: Fin de période | D156: date | H156: =H118 -> 2019-12-31 | I156: =EDATE(H156,12) -> 2020-12-31 | J156: 2021-12-31 | K156: 2022-12-31 | L156: 2023-12-31 | M156: 2024-12-31 | N156: 2025-12-31 | O156: 2026-12-31 | P156: 2027-12-31 | Q156: 2028-12-31 | R156: 2029-12-31
B157: Année | D157: nombre | H157: =YEAR(H156) -> 2019 | I157: =YEAR(I156) -> 2020 | J157: 2021 | K157: 2022 | L157: 2023 | M157: 2024 | N157: 2025 | O157: 2026 | P157: 2027 | Q157: 2028 | R157: 2029
B159: VAN Projet rolling | D159: k€ | H159: =LOOKUP(H156,$H$80:$DX$80,$H$102:$DX$102) -> -15000 | I159: =LOOKUP(I156,$H$80:$DX$80,$H$102:$DX$102) -> -12161.3883 | J159: -9564.664212 | K159: -7206.201534 | L159: -5082.312863 | M159: -3189.592651 | N159: -1523.840085 | O159: -81.16710276 | P159: 1142.286863 | Q159: 2150.177212 | R159: 2946.541169
B160: FCFF | D160: k€ | H160: =SUMIF($H$81:$DX$81,H157,$H$89:$DX$89) -> -15000 | I160: =SUMIF($H$81:$DX$81,I157,$H$89:$DX$89) -> 2958.626177 | J160: 2922.962072 | K160: 2867.005379 | L160: 2788.233662 | M160: 2683.85855 | N160: 2550.798786 | O160: 2385.650568 | P160: 2184.65492 | Q160: 1943.661786 | R160: 1658.090517
B189: d- Table de sensitivités
D193: Evolution mensuelle du chiffre d'affaires
C195: =F108 -> 2027-01-31 | D195: 0.001 | E195: =D195+0.05% -> 0.0015 | F195: 0.002 | G195: 0.0025 | H195: 0.003 | I195: 0.0035 | J195: 0.004 | K195: 0.0045
B196: Evolution du WACC | C196: 0.05 | D196: 0 | E196: 2028-01-31 | F196: 2026-11-30 | G196: 2026-03-31 | H196: 2025-10-31 | I196: 2025-06-30 | J196: 2025-03-31 | K196: 2024-12-31
C197: =C196+1% -> 0.06 | D197: 0 | E197: 0 | F197: 2027-03-31 | G197: 2026-06-30 | H197: 2026-01-31 | I197: 2025-08-31 | J197: 2025-05-31 | K197: 2025-02-28
C198: =C197+1% -> 0.07 | D198: 0 | E198: 0 | F198: 2027-08-31 | G198: 2026-10-31 | H198: 2026-03-31 | I198: 2025-10-31 | J198: 2025-07-31 | K198: 2025-03-31
C199: 0.08 | D199: 0 | E199: 0 | F199: 2028-02-29 | G199: 2027-01-31 | H199: 2026-06-30 | I199: 2026-01-31 | J199: 2025-08-31 | K199: 2025-05-31
C200: 0.09 | D200: 0 | E200: 0 | F200: 2028-10-31 | G200: 2027-05-31 | H200: 2026-09-30 | I200: 2026-03-31 | J200: 2025-11-30 | K200: 2025-07-31
C201: 0.1 | D201: 0 | E201: 0 | F201: 0 | G201: 2027-10-31 | H201: 2026-12-31 | I201: 2026-06-30 | J201: 2026-01-31 | K201: 2025-09-30
C202: 0.11 | D202: 0 | E202: 0 | F202: 0 | G202: 2028-04-30 | H202: 2027-04-30 | I202: 2026-09-30 | J202: 2026-03-31 | K202: 2025-11-30
C203: 0.12 | D203: 0 | E203: 0 | F203: 0 | G203: 2028-12-31 | H203: 2027-09-30 | I203: 2026-12-31 | J203: 2026-06-30 | K203: 2026-01-31

Sheet Valeur cible
A1: Valeur cible
C2: >> Retour Sommaire
C5: Quantité | D5: 5
C6: Prix | D6: 10
C7: Chiffre d'affaires | D7: =D5*D6 -> 50

Sheet Table de données
A1: Table de données
C2: >> Retour Sommaire
C5: Quantité | D5: 1
C6: Prix | D6: 10
C7: Chiffre d'affaires | D7: =D5*D6 -> 10
E11: Evolution de la quantité
D13: =D7 -> 10 | E13: 1 | F13: =E13+1 -> 2 | G13: =F13+1 -> 3 | H13: 4 | I13: 5
C14: Evolution du prix | D14: 10
D15: =D14+10 -> 20
D16: =D15+10 -> 30
D17: 40
D18: 50

Sheet Football field
A1: Football field
B2: >> Retour Sommaire
B4: Valorisations | D4: Faible | E4: Médian | F4: Elevé | H4: Point minimum | I4: Point médian | J4: Point maximum
B5: DCF - Gordon Growth Exit | D5: =E5/1.1 -> 136.3636364 | E5: 150 | F5: =E5*1.1 -> 165 | H5: =D5 -> 136.3636364 | I5: =E5-D5 -> 13.63636364 | J5: =F5-E5 -> 15
B6: DCF - EV/EBITDA Exit | D6: =E6/1.1 -> 90.90909091 | E6: 100 | F6: =E6*1.1 -> 110 | H6: =D6 -> 90.90909091 | I6: =E6-D6 -> 9.090909091 | J6: 10
B7: Precedent Transactions - EV / Revenue | D7: 77.27272727 | E7: 85 | F7: 93.5 | H7: 77.27272727 | I7: 7.727272727 | J7: 8.5
B8: Precedent Transactions - EV / EBITDA | D8: 63.63636364 | E8: 70 | F8: 77 | H8: 63.63636364 | I8: 6.363636364 | J8: 7
B9: Trading Comps - EV / Revenue | D9: 59.09090909 | E9: 65 | F9: 71.5 | H9: 59.09090909 | I9: 5.909090909 | J9: 6.5
B10: Trading Comps - EV / EBITDA | D10: 45.45454545 | E10: 50 | F10: 55 | H10: 45.45454545 | I10: 4.545454545 | J10: 5
B11: Current Market Capitalization | D11: 100 | E11: 100 | F11: 100 | H11: 100 | I11: 0 | J11: 0

Sheet Variante de football field
A1: Variante de football field
B2: >> Retour Sommaire
B4: TRI Projet actuel (cas de base) | D4: 0.1318859398
D7: TRI Projet | E7: Sensi vs. Cas de base | F7: Ecart sensi vs. Cas de base
B8: Evolution chiffre d'affaire = 0,2% au lieu de 0,25% | D8: 0.1002343237 | E8: =IF(D8<$D$4,D8,$D$4) -> 0.1002343237 | F8: =IF(D8<$D$4,$D$4-D8,D8-E8) -> 0.0316516161 | H8: =IF(D8>E8,E8+F8,0) -> 0
B9: Evolution coûts de maintenance = 0,7% au lieu de 0,8% | D9: 0.1546483099 | E9: =IF(D9<$D$4,D9,$D$4) -> 0.1318859398 | F9: =IF(D9<$D$4,$D$4-D9,D9-E9) -> 0.02276237011 | H9: =IF(D9>E9,E9+F9,0) -> 0.1546483099
B10: Evolution loyer = 0,7% au lieu de 0,5% | D10: 0.1243336022 | E10: 0.1243336022 | F10: 0.007552337646 | H10: 0
B11: Autres dépenses exploitation = 180k€ au lieu de 200k€ | D11: 0.1514000475 | E11: 0.1318859398 | F11: 0.0195141077 | H11: 0.1514000475
B12: CAPEX = 16,5k€ au lieu de 15k€ | D12: 0.1083553374 | E12: 0.1083553374 | F12: 0.02353060246 | H12: 0
D15: Faible | E15: Médian | F15: Elevé | H15: Point minimum | I15: Point médian | J15: Point maximum
B16: TRI Projet (cas de base) | D16: =$D$4 -> 0.1318859398 | E16: =$D$4 -> 0.1318859398 | F16: 0.1318859398 | H16: 0.1318859398 | I16: 0 | J16: 0
B17: WACC | D17: 0.08 | E17: 0.08 | F17: 0.08 | H17: 0.1318859398 | I17: 0 | J17: 0
B18: TRE | D18: 0.09 | E18: 0.09 | F18: 0.09 | H18: 0.1318859398 | I18: 0 | J18: 0
